Workbook

Sheet Default-Solar PV (hidden)
B2: No | C2: Inputs and Assumptions | D2: Value | E2: Unit | F2: Min | G2: Max
B3: 1 | C3: Capacity | D3: 1 | E3: MW | F3: 0.001 | G3: 1000
B4: =B3+1 -> 2 | C4: Initial Capacity Utilization Factor | D4: 0.19 | E4: % | F4: 0 | G4: 0.4
B5: =B4+1 -> 3 | C5: Annual Gross Generation | D5: =(D3*1000*8760*D4)/10^5 -> 16.644 | E5: Lakh kWhs
B6: 4 | C6: Auxiliary consumption | D6: 0 | E6: % | F6: 0 | G6: 0.5
B7: 5 | C7: Annual Net Generation | D7: =D5*(1-D6) -> 16.644 | E7: Lakh kWhs
B8: 6 | C8: Annual Deration | D8: 0 | E8: % | F8: 0 | G8: 1
B9: 7 | C9: Life of Plant and Machinery / Project Life | D9: 25 | E9: years | F9: 1 | G9: 40
B10: 8 | C10: CapEx | D10: 1000 | E10: Rs Lacs/MW | F10: 1 | G10: 10000
B11: 9 | C11: Non - Depreciable Amount | D11: 0.1 | E11: % of Capital Cost | F11: 0 | G11: 1
B12: 10 | C12: Depreciable Amount (Cap Cost Less non-depreciable Cost) | D12: =D10*D3*(100%-D11) -> 900 | E12: lacs
B13: 11 | C13: Debt Fraction | D13: 0.7 | E13: % | F13: 0 | G13: 0.7
B14: 12 | C14: Debt | D14: =D10*D3*D13 -> 700 | E14: lacs
B15: 13 | C15: Equity | D15: =D10*D3-D14 -> 300 | E15: lacs
B16: 14 | C16: Interest Rate on Term Loan | D16: ='Default-Solar PV'!D67 -> 0.1232 | E16: % | F16: 0 | G16: 0.5
B17: 15 | C17: Loan Term | D17: 12 | E17: years | F17: 1 | G17: 50
B18: 16 | C18: Moratorium | D18: 0 | E18: years | F18: 0 | G18: =G17/2 -> 25
B19: 17 | C19: Depreciation (Straight Line Method, Company Law) - initial years | D19: 0.0583 | E19: % | F19: 0 | G19: 0.2
B20: 18 | C20: Depreciation (Straight Line Method, Company Law) - later years | D20: =(90%-D19*D21)/D22 -> 0.01541538462 | E20: % | F20: 0 | G20: 0.2
B21: 19 | C21: Number of years for initial depreciation rate | D21: 12 | E21: years | F21: 0 | G21: =G17 -> 50
B22: 20 | C22: Number of years for later depreciation rate | D22: 13 | E22: years
B23: 21 | C23: Discount Rate | D23: =(D13*D16*(1-D32))+((1-D13)*D34) -> 0.106259432 | E23: %
B24: 22 | C24: O&M cost | D24: 11 | E24: Rs Lacs / MW | F24: 0 | G24: 1000
B25: 23 | C25: O&M Cost Esclation | D25: 0.0572 | E25: % | F25: 0 | G25: 0.1
B26: 24 | C26: Return on Equity - pretax (initial years) | D26: 0.2 | E26: % | F26: 0 | G26: =G16 -> 0.5
B27: 25 | C27: Return on Equity - pretax (later years) | D27: 0.24 | E27: % | F27: 0 | G27: =G16 -> 0.5
B28: 26 | C28: Annuity Factor (25 Years) | D28: =(((1+D23)^D9-1)/(D23*(1+D23)^D9)) -> 8.657213087
B29: 27 | C29: Interest on working capital | D29: ='Default-Solar PV'!D67+0.5% -> 0.1282 | E29: % | F29: 0 | G29: =G16 -> 0.5
B30: 28 | C30: Assumed tariff (Iterative) | D30: 10.37 | E30: Rs / kWh
B31: 29 | C31: Maintenance spares | D31: 0.15 | E31: of yearly O&M Cost | F31: 0 | G31: 1
B32: 30 | C32: Corporate Tax Rate | D32: 0.32445 | E32: % | F32: 0 | G32: =G16 -> 0.5
B33: 31 | C33: MAT | D33: 0.20008 | E33: % | F33: 0 | G33: =G16 -> 0.5
B34: 32 | C34: Post Tax ROE | D34: 0.16 | E34: % | F34: 0 | G34: =G16 -> 0.5
B35: 33 | C35: Book depreciation first year | D35: 0.0264 | E35: % | F35: 0 | G35: 0.5
B36: 34 | C36: Book depreciation from second year | D36: 0.0528 | E36: % | F36: 0 | G36: 1
B37: 35 | C37: Accelerated Depreciation first year | D37: 0.4 | E37: % | F37: 0 | G37: 0.5
B38: 36 | C38: Accelerated Depreciation from second year | D38: 0.8 | E38: % | F38: 0 | G38: 1
B39: 37 | C39: Tax Holiday Duration | D39: 10 | E39: years | F39: 0 | G39: =D9 -> 25
B40: 38 | C40: Tax Holiday Start Year | D40: 6 | E40: year | F40: 1 | G40: =D9 -> 25
B41: 39 | C41: MAT set off accumulation allowed u/s 115JAA (3A) | D41: 10 | E41: years | F41: 0 | G41: =D9 -> 25
B42: 40 | C42: MAT Setoff Duration | D42: 5 | E42: years | F42: 0 | G42: =D9-D43+1 -> 10
B43: 41 | C43: MAT Setoff Start Year | D43: 16 | E43: year | F43: 2 | G43: =D9 -> 25
B44: 42 | C44: Emission Factor | D44: 0.9 | E44: tons of CO2/MWh | F44: 0 | G44: 10
B45: 43 | C45: Price of one CER | D45: 0 | E45: $/ton | F45: 0 | G45: 100
B46: 44 | C46: Exchange Rate | D46: 50 | E46: Rs/US$ | F46: 1 | G46: 100
B47: 45 | C47: Number of years for initial return on equity | D47: 10 | E47: years | F47: 0 | G47: =D9 -> 25
B48: 46 | C48: Duration of initial Capacity Utilization Factor | D48: =D9 -> 25 | E48: years | F48: 0 | G48: =D9 -> 25
B49: 47 | C49: Capacity Utilization Factor for subsequent years | D49: 0.9 | E49: % | F49: 0 | G49: 1
B50: 48 | C50: Fuel requirement/kWh | D50: 0 | E50: kg/kWh | F50: 0 | G50: 0
B51: 49 | C51: Feedstock Price | D51: 0 | E51: Rs/MT | F51: 0 | G51: 0
B52: 50 | C52: Fuel Cost Escalation | D52: 0 | E52: % | F52: 0 | G52: 0
C54: Interest rates
C55: Effective Date | D55: Rate | E55: Hike
C56: 2011-10-01
C57: 2011-08-13 | D57: 0.1 | E57: 0.005 | F57: http://www.livemint.com/2011/08/11182320/SBI-ICICI-Bank-hike-base-rate.html
C58: 2011-07-11 | D58: 0.095 | E58: 0.0025 | F58: http://www.livemint.com/2011/08/11182320/SBI-ICICI-Bank-hike-base-rate.html
C59: 2011-05-12 | D59: 0.0925 | E59: 0.0075 | F59: http://www.business-standard.com/india/news/sbi-raises-base-rate-bplr-by-75-basis-pts-/435156/
C60: 2011-04-25 | D60: 0.085 | E60: 0.0025 | F60: http://articles.economictimes.indiatimes.com/2011-04-19/news/29447363_1_base-rate-basis-points-deposit-rates
C61: 2011-04-01 | D61: 0.0825
C62: 2011-02-14 | D62: 0.0825 | E62: 0.0025 | F62: http://www.moneycontrol.com/stocks/stock_market/corp_notices.php?autono=408924
C63: 2011-01-03 | D63: 0.08 | E63: 0.004 | F63: http://www.moneycontrol.com/stocks/stock_market/corp_notices.php?autono=395625
C64: 2011-01-01 | D64: 0.076 | E64: - | F64: http://www.moneycontrol.com/stocks/stock_market/corp_notices.php?autono=395625
C66: Manually calculated base rate | D66: =((D61*(C60-C61)/365)+(D60*(C59-C60)/365)+(D59*(C58-C59)/365)+(D58*(C57-C58)/365)+(D57*(C56-C57)/365))*2 -> 0.09320547945 | E66: =MATCH(C61,C57:C64,-1) -> 5
C67: Interest rate | D67: =ROUND(D66+3%, 4) -> 0.1232 | E67: =OFFSET(C64,-E66,0) -> 40675

Sheet Default-Solar Thermal (hidden)
B2: No | C2: Inputs and Assumptions | D2: Value | E2: Unit | F2: Min | G2: Max
B3: 1 | C3: Capacity | D3: 1 | E3: MW | F3: 0.001 | G3: 1000
B4: =B3+1 -> 2 | C4: Initial Capacity Utilization Factor | D4: 0.23 | E4: % | F4: 0 | G4: 0.5
B5: 3 | C5: Annual Gross Generation | D5: =(D3*1000*8760*D4)/10^5 -> 20.148 | E5: Lakh kWhs
B6: 4 | C6: Auxiliary consumption | D6: 0.1 | E6: % | F6: 0 | G6: 0.5
B7: 5 | C7: Annual Net Generation | D7: =D5*(1-D6) -> 18.1332 | E7: Lakh kWhs
B8: 6 | C8: Annual Deration | D8: 0 | E8: % | F8: 0 | G8: 1
B9: 7 | C9: Life of Plant and Machinery / Project Life | D9: 25 | E9: years | F9: 1 | G9: 40
B10: 8 | C10: CapEx | D10: 1300 | E10: Rs Lacs/MW | F10: 1 | G10: 10000
B11: 9 | C11: Non - Depreciable Amount | D11: 0.1 | E11: % of Capital Cost | F11: 0 | G11: 1
B12: 10 | C12: Depreciable Amount (Cap Cost Less non-depreciable Cost) | D12: =D10*(100%-D11)*D3 -> 1170 | E12: lacs
B13: 11 | C13: Debt Fraction | D13: 0.7 | E13: % | F13: 0 | G13: 0.7
B14: 12 | C14: Debt | D14: =D10*D13*D3 -> 910 | E14: lacs
B15: 13 | C15: Equity | D15: =D10*D3-D14 -> 390 | E15: lacs
B16: 14 | C16: Interest Rate on Term Loan | D16: ='Default-Solar PV'!D67 -> 0.1232 | E16: % | F16: 0 | G16: 0.5
B17: 15 | C17: Loan Term | D17: 12 | E17: years | F17: 1 | G17: =D9 -> 25
B18: 16 | C18: Moratorium | D18: 0 | E18: years | F18: 0 | G18: =IF(D17>11,D17-1,10) -> 11
B19: 17 | C19: Depreciation (Straight Line Method, Company Law) - initial years | D19: 0.0583 | E19: % | F19: 0 | G19: 0.2
B20: 18 | C20: Depreciation (Straight Line Method, Company Law) - later years | D20: =(90%-D19*D21)/D22 -> 0.01541538462 | E20: % | F20: 0 | G20: 0.2
B21: 19 | C21: Number of years for initial depreciation rate | D21: 12 | E21: years | F21: 0 | G21: =G17 -> 25
B22: 20 | C22: Number of years for later depreciation rate | D22: =D9-D21 -> 13 | E22: years
B23: 21 | C23: Discount Rate | D23: =(D13*D16*(1-D32))+((1-D13)*D34) -> 0.106259432 | E23: %
B24: 22 | C24: O&M cost | D24: 15 | E24: Rs Lacs / MW | F24: 0 | G24: 1000
B25: 23 | C25: O&M Cost Esclation | D25: 0.0572 | E25: % | F25: 0 | G25: 0.1
B26: 24 | C26: Return on Equity - pretax (initial years) | D26: 0.2 | E26: % | F26: 0 | G26: =G16 -> 0.5
B27: 25 | C27: Return on Equity - pretax (later years) | D27: 0.24 | E27: % | F27: 0 | G27: =G16 -> 0.5
B28: 26 | C28: Annuity Factor (25 Years) | D28: =(((1+D23)^D9-1)/(D23*(1+D23)^D9)) -> 8.657213087
B29: 27 | C29: Interest on working capital | D29: ='Default-Solar PV'!D67+0.5% -> 0.1282 | E29: % | F29: 0 | G29: =G16 -> 0.5
B30: 28 | C30: Assumed tariff (Iterative) | D30: 12.24 | E30: Rs / kWh
B31: 29 | C31: Maintenance spares | D31: 0.15 | E31: of yearly O&M Cost | F31: 0 | G31: 1
B32: 30 | C32: Corporate Tax Rate | D32: 0.32445 | E32: % | F32: 0 | G32: =G16 -> 0.5
B33: 31 | C33: MAT | D33: 0.2 | E33: % | F33: 0 | G33: =G16 -> 0.5
B34: 32 | C34: Post Tax ROE | D34: 0.16 | E34: % | F34: 0 | G34: =G16 -> 0.5
B35: 33 | C35: Book depreciation first year | D35: 0.0264 | E35: % | F35: 0 | G35: 0.5
B36: 34 | C36: Book depreciation from second year | D36: 0.0528 | E36: % | F36: 0 | G36: 1
B37: 35 | C37: Accelerated Depreciation first year | D37: 0.4 | E37: % | F37: 0 | G37: 0.5
B38: 36 | C38: Accelerated Depreciation from second year | D38: 0.8 | E38: % | F38: 0 | G38: 1
B39: 37 | C39: Tax Holiday Duration | D39: 10 | E39: years | F39: 0 | G39: =D9 -> 25
B40: 38 | C40: Tax Holiday Start Year | D40: 6 | E40: year | F40: 1 | G40: =D9 -> 25
B41: 39 | C41: MAT set off allowed u/s 115JAA (3A) | D41: 10 | E41: years | F41: 0 | G41: =D9 -> 25
B42: 40 | C42: MAT Setoff Duration | D42: 5 | E42: years | F42: 0 | G42: =D9-D43+1 -> 10
B43: 41 | C43: MAT Setoff Start Year | D43: 16 | E43: year | F43: 2 | G43: =D9 -> 25
B44: 42 | C44: Emission Factor | D44: 0.9 | E44: tons of CO2/MWh | F44: 0 | G44: 10
B45: 43 | C45: Price of one CER | D45: 0 | E45: $/ton | F45: 0 | G45: 100
B46: 44 | C46: Exchange Rate | D46: 50 | E46: Rs/US$ | F46: 1 | G46: 100
B47: 45 | C47: Number of years for initial return on equity | D47: 10 | E47: years | F47: 0 | G47: =D9 -> 25
B48: 46 | C48: Duration of initial Capacity Utilization Factor | D48: =D9 -> 25 | E48: years | F48: 0 | G48: =D9 -> 25
B49: 47 | C49: Capacity Utilization Factor for subsequent years | D49: 0.9 | E49: % | F49: 0 | G49: 1
B50: 48 | C50: Fuel requirement/kWh | D50: 0 | E50: kg/kWh | F50: 0 | G50: 0
B51: 49 | C51: Feedstock Price | D51: 0 | E51: Rs/MT | F51: 0 | G51: 0
B52: 50 | C52: Fuel Cost Escalation | D52: 0 | E52: % | F52: 0 | G52: 0

Sheet Default-Wind (hidden)
B2: No | C2: Inputs and Assumptions | D2: Value | E2: Unit | F2: Min | G2: Max
B3: 1 | C3: Capacity | D3: 1 | E3: MW | F3: 0.001 | G3: 1000
B4: =B3+1 -> 2 | C4: Initial Capacity Utilization Factor | D4: 0.25 | E4: % | F4: 0 | G4: 0.4
B5: 3 | C5: Annual Gross Generation | D5: =(D3*1000*8760*D4)/10^5 -> 21.9 | E5: Lakh kWhs
B6: 4 | C6: Auxiliary consumption | D6: 0 | E6: % | F6: 0 | G6: 0.5
B7: 5 | C7: Annual Net Generation | D7: =D5*(1-D6) -> 21.9 | E7: Lakh kWhs
B8: 6 | C8: Annual Deration | D8: 0 | E8: % | F8: 0 | G8: 1
B9: 7 | C9: Life of Plant and Machinery / Project Life | D9: 25 | E9: years | F9: 1 | G9: 40
B10: 8 | C10: CapEx | D10: 575 | E10: Rs Lacs/MW | F10: 1 | G10: 5000
B11: 9 | C11: Non - Depreciable Amount | D11: 0.1 | E11: % of Capital Cost | F11: 0 | G11: 1
B12: 10 | C12: Depreciable Amount (Cap Cost Less non-depreciable Cost) | D12: =D10*(100%-D11)*D3 -> 517.5 | E12: lacs
B13: 11 | C13: Debt Fraction | D13: 0.7 | E13: % | F13: 0 | G13: 0.7
B14: 12 | C14: Debt | D14: =D10*D13*D3 -> 402.5 | E14: lacs
B15: 13 | C15: Equity | D15: =D10*D3-D14 -> 172.5 | E15: lacs
B16: 14 | C16: Interest Rate on Term Loan | D16: ='Default-Solar PV'!D67 -> 0.1232 | E16: % | F16: 0 | G16: 0.5
B17: 15 | C17: Loan Term | D17: 12 | E17: years | F17: 1 | G17: =D9 -> 25
B18: 16 | C18: Moratorium | D18: 0 | E18: years | F18: 0 | G18: =IF(D17>11,D17-1,10) -> 11
B19: 17 | C19: Depreciation (Straight Line Method, Company Law) - initial years | D19: 0.0583 | E19: % | F19: 0 | G19: 0.2
B20: 18 | C20: Depreciation (Straight Line Method, Company Law) - later years | D20: =(90%-D19*D21)/D22 -> 0.01541538462 | E20: % | F20: 0 | G20: 0.2
B21: 19 | C21: Number of years for initial depreciation rate | D21: 12 | E21: years | F21: 0 | G21: =G17 -> 25
B22: 20 | C22: Number of years for later depreciation rate | D22: =D9-D21 -> 13 | E22: years
B23: 21 | C23: Discount Rate | D23: =(D13*D16*(1-D32))+((1-D13)*D34) -> 0.106259432 | E23: %
B24: 22 | C24: O&M cost | D24: 9 | E24: Rs Lacs / MW | F24: 0 | G24: 1000
B25: 23 | C25: O&M Cost Esclation | D25: 0.0572 | E25: % | F25: 0 | G25: 0.1
B26: 24 | C26: Return on Equity - pretax (initial years) | D26: 0.2 | E26: % | F26: 0 | G26: =G16 -> 0.5
B27: 25 | C27: Return on Equity - pretax (later years) | D27: 0.24 | E27: % | F27: 0 | G27: =G16 -> 0.5
B28: 26 | C28: Annuity Factor (25 Years) | D28: =(((1+D23)^D9-1)/(D23*(1+D23)^D9)) -> 8.657213087
B29: 27 | C29: Interest on working capital | D29: ='Default-Solar PV'!D67+0.5% -> 0.1282 | E29: % | F29: 0 | G29: =G16 -> 0.5
B30: 28 | C30: Assumed tariff (Iterative) | D30: 4.38 | E30: Rs / kWh
B31: 29 | C31: Maintenance spares | D31: 0.15 | E31: of yearly O&M Cost | F31: 0 | G31: 1
B32: 30 | C32: Corporate Tax Rate | D32: 0.32445 | E32: % | F32: 0 | G32: =G16 -> 0.5
B33: 31 | C33: MAT | D33: 0.2 | E33: % | F33: 0 | G33: =G16 -> 0.5
B34: 32 | C34: Post Tax ROE | D34: 0.16 | E34: % | F34: 0 | G34: =G16 -> 0.5
B35: 33 | C35: Book depreciation first year | D35: 0.0264 | E35: % | F35: 0 | G35: 0.5
B36: 34 | C36: Book depreciation from second year | D36: 0.0528 | E36: % | F36: 0 | G36: 1
B37: 35 | C37: Accelerated Depreciation first year | D37: 0.4 | E37: % | F37: 0 | G37: 0.5
B38: 36 | C38: Accelerated Depreciation from second year | D38: 0.8 | E38: % | F38: 0 | G38: 1
B39: 37 | C39: Tax Holiday Duration | D39: 10 | E39: years | F39: 0 | G39: =D9 -> 25
B40: 38 | C40: Tax Holiday Start Year | D40: 6 | E40: year | F40: 1 | G40: =D9 -> 25
B41: 39 | C41: MAT set off allowed u/s 115JAA (3A) | D41: 10 | E41: years | F41: 0 | G41: =D9 -> 25
B42: 40 | C42: MAT Setoff Duration | D42: 5 | E42: years | F42: 0 | G42: =D9-D43+1 -> 10
B43: 41 | C43: MAT Setoff Start Year | D43: 16 | E43: year | F43: 2 | G43: =D9 -> 25
B44: 42 | C44: Emission Factor | D44: 0.9 | E44: tons of CO2/MWh | F44: 0 | G44: 10
B45: 43 | C45: Price of one CER | D45: 0 | E45: $/ton | F45: 0 | G45: 100
B46: 44 | C46: Exchange Rate | D46: 50 | E46: Rs/US$ | F46: 1 | G46: 100
B47: 45 | C47: Number of years for initial return on equity | D47: 10 | E47: years | F47: 0 | G47: =D9 -> 25
B48: 46 | C48: Duration of initial Capacity Utilization Factor | D48: =D9 -> 25 | E48: years | F48: 0 | G48: =D9 -> 25
B49: 47 | C49: Capacity Utilization Factor for subsequent years | D49: 0.9 | E49: % | F49: 0 | G49: 1
B50: 48 | C50: Fuel requirement/kWh | D50: 0 | E50: kg/kWh | F50: 0 | G50: 0
B51: 49 | C51: Feedstock Price | D51: 0 | E51: Rs/MT | F51: 0 | G51: 0
B52: 50 | C52: Fuel Cost Escalation | D52: 0 | E52: % | F52: 0 | G52: 0

Sheet Default-Small Hydro (hidden)
B2: No | C2: Inputs and Assumptions | D2: Value | E2: Unit | F2: Min | G2: Max | I2: HP, U, NE | J2: HP, U, NE | K2: Other | L2: Other
B3: 1 | C3: Capacity | D3: 1 | E3: MW | F3: 0.001 | G3: 25 | I3: < 5MW | J3: >5 < 25 MW | K3: < 5MW | L3: >5 < 25 MW
B4: =B3+1 -> 2 | C4: Initial Capacity Utilization Factor | D4: 0.45 | E4: % | F4: 0 | G4: 1 | I4: 45 | J4: 45 | K4: 30 | L4: 30
B5: 3 | C5: Annual Gross Generation | D5: =(D3*1000*8760*D4)/10^5 -> 39.42 | E5: Lakh kWhs
B6: 4 | C6: Auxiliary consumption | D6: 0.01 | E6: % | F6: 0 | G6: 0.5
B7: 5 | C7: Annual Net Generation | D7: =D5*(1-D6) -> 39.0258 | E7: Lakh kWhs | I7: 3.61 | J7: 3.07 | K7: 4.28 | L7: 3.63
B8: 6 | C8: Annual Deration | D8: 0 | E8: % | F8: 0 | G8: 1
B9: 7 | C9: Life of Plant and Machinery / Project Life | D9: 35 | E9: years | F9: 1 | G9: 40
B10: 8 | C10: CapEx | D10: 700 | E10: Rs Lacs/MW | F10: 1 | G10: 5000 | I10: 700 | J10: 630 | K10: 550 | L10: 500
B11: 9 | C11: Non - Depreciable Amount | D11: 0.1 | E11: % of Capital Cost | F11: 0 | G11: 1
B12: 10 | C12: Depreciable Amount (Cap Cost Less non-depreciable Cost) | D12: =D10*(100%-D11)*D3 -> 630 | E12: lacs
B13: 11 | C13: Debt Fraction | D13: 0.7 | E13: % | F13: 0 | G13: 0.7
B14: 12 | C14: Debt | D14: =D10*D13*D3 -> 490 | E14: lacs
B15: 13 | C15: Equity | D15: =D10*D3-D14 -> 210 | E15: lacs
B16: 14 | C16: Interest Rate on Term Loan | D16: ='Default-Solar PV'!D67 -> 0.1232 | E16: % | F16: 0 | G16: 0.5
B17: 15 | C17: Loan Term | D17: 12 | E17: years | F17: 1 | G17: =D9 -> 35
B18: 16 | C18: Moratorium | D18: 0 | E18: years | F18: 0 | G18: =IF(D17>11,D17-1,10) -> 11
B19: 17 | C19: Depreciation (Straight Line Method, Company Law) - initial years | D19: 0.0583 | E19: % | F19: 0 | G19: 0.2
B20: 18 | C20: Depreciation (Straight Line Method, Company Law) - later years | D20: =(90%-D19*D21)/D22 -> 0.008713043478 | E20: % | F20: 0 | G20: 0.2
B21: 19 | C21: Number of years for initial depreciation rate | D21: 12 | E21: years | F21: 0 | G21: =G17 -> 35
B22: 20 | C22: Number of years for later depreciation rate | D22: =D9-D21 -> 23 | E22: years
B23: 21 | C23: Discount Rate | D23: =(D13*D16*(1-D32))+((1-D13)*D34) -> 0.106259432 | E23: %
B24: 22 | C24: O&M cost | D24: 25 | E24: Rs Lacs / MW | F24: 0 | G24: 1000 | I24: 25 | J24: 18 | K24: 20 | L24: 14
B25: 23 | C25: O&M Cost Esclation | D25: 0.0572 | E25: % | F25: 0 | G25: 0.1
B26: 24 | C26: Return on Equity - pretax (initial years) | D26: 0.2 | E26: % | F26: 0 | G26: =G16 -> 0.5
B27: 25 | C27: Return on Equity - pretax (later years) | D27: 0.24 | E27: % | F27: 0 | G27: =G16 -> 0.5
B28: 26 | C28: Annuity Factor (25 Years) | D28: =(((1+D23)^D9-1)/(D23*(1+D23)^D9)) -> 9.136368829
B29: 27 | C29: Interest on working capital | D29: ='Default-Solar PV'!D67+0.5% -> 0.1282 | E29: % | F29: 0 | G29: =G16 -> 0.5
B30: 28 | C30: Assumed tariff (Iterative) | D30: 3.8 | E30: Rs / kWh
B31: 29 | C31: Maintenance spares | D31: 0.15 | E31: of yearly O&M Cost | F31: 0 | G31: 1
B32: 30 | C32: Corporate Tax Rate | D32: 0.32445 | E32: % | F32: 0 | G32: =G16 -> 0.5
B33: 31 | C33: MAT | D33: 0.2 | E33: % | F33: 0 | G33: =G16 -> 0.5
B34: 32 | C34: Post Tax ROE | D34: 0.16 | E34: % | F34: 0 | G34: =G16 -> 0.5
B35: 33 | C35: Book depreciation first year | D35: 0.0264 | E35: % | F35: 0 | G35: 0.5
B36: 34 | C36: Book depreciation from second year | D36: 0.0528 | E36: % | F36: 0 | G36: 1
B37: 35 | C37: Accelerated Depreciation first year | D37: 0.4 | E37: % | F37: 0 | G37: 0.5
B38: 36 | C38: Accelerated Depreciation from second year | D38: 0.8 | E38: % | F38: 0 | G38: 1
B39: 37 | C39: Tax Holiday Duration | D39: 10 | E39: years | F39: 0 | G39: =D9 -> 35
B40: 38 | C40: Tax Holiday Start Year | D40: 6 | E40: year | F40: 1 | G40: =D9 -> 35
B41: 39 | C41: MAT set off allowed u/s 115JAA (3A) | D41: 10 | E41: years | F41: 0 | G41: =D9 -> 35
B42: 40 | C42: MAT Setoff Duration | D42: 5 | E42: years | F42: 0 | G42: =D9-D43+1 -> 20
B43: 41 | C43: MAT Setoff Start Year | D43: 16 | E43: year | F43: 2 | G43: =D9 -> 35
B44: 42 | C44: Emission Factor | D44: 0.9 | E44: tons of CO2/MWh | F44: 0 | G44: 10
B45: 43 | C45: Price of one CER | D45: 0 | E45: $/ton | F45: 0 | G45: 100
B46: 44 | C46: Exchange Rate | D46: 50 | E46: Rs/US$ | F46: 1 | G46: 100
B47: 45 | C47: Number of years for initial return on equity | D47: 10 | E47: years | F47: 0 | G47: =D9 -> 35
B48: 46 | C48: Duration of initial Capacity Utilization Factor | D48: =D9 -> 35 | E48: years | F48: 0 | G48: =D9 -> 35
B49: 47 | C49: Capacity Utilization Factor for subsequent years | D49: 0.9 | E49: % | F49: 0 | G49: 1
B50: 48 | C50: Fuel requirement/kWh | D50: 0 | E50: kg/kWh | F50: 0 | G50: 0
B51: 49 | C51: Feedstock Price | D51: 0 | E51: Rs/MT | F51: 0 | G51: 0
B52: 50 | C52: Fuel Cost Escalation | D52: 0 | E52: % | F52: 0 | G52: 0

Sheet Default-Biogas (hidden)
B2: No | C2: Inputs and Assumptions | D2: Value | E2: Unit | F2: Min | G2: Max
B3: 1 | C3: Capacity | D3: 1 | E3: MW | F3: 0.001 | G3: 1000
B4: =B3+1 -> 2 | C4: Initial Capacity Utilization Factor | D4: 0.9 | E4: % | F4: 0 | G4: 1
B5: 3 | C5: Annual Gross Generation | D5: =(D3*1000*8760*D4)/10^5 -> 78.84 | E5: Lakh kWhs
B6: 4 | C6: Auxiliary consumption | D6: 0.12 | E6: % | F6: 0 | G6: 0.5
B7: 5 | C7: Annual Net Generation | D7: =D5*(1-D6) -> 69.3792 | E7: Lakh kWhs
B8: 6 | C8: Annual Deration | D8: 0 | E8: % | F8: 0 | G8: 1
B9: 7 | C9: Life of Plant and Machinery / Project Life | D9: 20 | E9: years | F9: 1 | G9: 40
B10: 8 | C10: CapEx | D10: 800 | E10: Rs Lacs/MW | F10: 1 | G10: 5000
B11: 9 | C11: Non - Depreciable Amount | D11: 0.1 | E11: % of Capital Cost | F11: 0 | G11: 1
B12: 10 | C12: Depreciable Amount (Cap Cost Less non-depreciable Cost) | D12: =D10*(100%-D11)*D3 -> 720 | E12: lacs
B13: 11 | C13: Debt Fraction | D13: 0.7 | E13: % | F13: 0 | G13: 0.7
B14: 12 | C14: Debt | D14: =D10*D13*D3 -> 560 | E14: lacs
B15: 13 | C15: Equity | D15: =D10*D3-D14 -> 240 | E15: lacs
B16: 14 | C16: Interest Rate on Term Loan | D16: ='Default-Solar PV'!D67 -> 0.1232 | E16: % | F16: 0 | G16: 0.5
B17: 15 | C17: Loan Term | D17: 12 | E17: years | F17: 1 | G17: =D9 -> 20
B18: 16 | C18: Moratorium | D18: 0 | E18: years | F18: 0 | G18: =IF(D17>11,D17-1,10) -> 11
B19: 17 | C19: Depreciation (Straight Line Method, Company Law) - initial years | D19: 0.0583 | E19: % | F19: 0 | G19: 0.2
B20: 18 | C20: Depreciation (Straight Line Method, Company Law) - later years | D20: =(90%-D19*D21)/D22 -> 0.02505 | E20: % | F20: 0 | G20: 0.2
B21: 19 | C21: Number of years for initial depreciation rate | D21: 12 | E21: years | F21: 0 | G21: =G17 -> 20
B22: 20 | C22: Number of years for later depreciation rate | D22: =D9-D21 -> 8 | E22: years
B23: 21 | C23: Discount Rate | D23: =(D13*D16*(1-D32))+((1-D13)*D34) -> 0.106259432 | E23: %
B24: 22 | C24: O&M cost | D24: 40 | E24: Rs Lacs / MW | F24: 0 | G24: 1000
B25: 23 | C25: O&M Cost Esclation | D25: 0.0572 | E25: % | F25: 0 | G25: 0.1
B26: 24 | C26: Return on Equity - pretax (initial years) | D26: 0.2 | E26: % | F26: 0 | G26: =G16 -> 0.5
B27: 25 | C27: Return on Equity - pretax (later years) | D27: 0.24 | E27: % | F27: 0 | G27: =G16 -> 0.5
B28: 26 | C28: Annuity Factor (25 Years) | D28: =(((1+D23)^D9-1)/(D23*(1+D23)^D9)) -> 8.162129599
B29: 27 | C29: Interest on working capital | D29: ='Default-Solar PV'!D67+0.5% -> 0.1282 | E29: % | F29: 0 | G29: =G16 -> 0.5
B30: 28 | C30: Assumed tariff (Iterative) | D30: 6.37 | E30: Rs / kWh
B31: 29 | C31: Maintenance spares | D31: 0.15 | E31: of yearly O&M Cost | F31: 0 | G31: 1
B32: 30 | C32: Corporate Tax Rate | D32: 0.32445 | E32: % | F32: 0 | G32: =G16 -> 0.5
B33: 31 | C33: MAT | D33: 0.2 | E33: % | F33: 0 | G33: =G16 -> 0.5
B34: 32 | C34: Post Tax ROE | D34: 0.16 | E34: % | F34: 0 | G34: =G16 -> 0.5
B35: 33 | C35: Book depreciation first year | D35: 0.0264 | E35: % | F35: 0 | G35: 0.5
B36: 34 | C36: Book depreciation from second year | D36: 0.0528 | E36: % | F36: 0 | G36: 1
B37: 35 | C37: Accelerated Depreciation first year | D37: 0.4 | E37: % | F37: 0 | G37: 0.5
B38: 36 | C38: Accelerated Depreciation from second year | D38: 0.8 | E38: % | F38: 0 | G38: 1
B39: 37 | C39: Tax Holiday Duration | D39: 10 | E39: years | F39: 0 | G39: =D9 -> 20
B40: 38 | C40: Tax Holiday Start Year | D40: 6 | E40: year | F40: 1 | G40: =D9 -> 20
B41: 39 | C41: MAT set off allowed u/s 115JAA (3A) | D41: 10 | E41: years | F41: 0 | G41: =D9 -> 20
B42: 40 | C42: MAT Setoff Duration | D42: 5 | E42: years | F42: 0 | G42: =D9-D43+1 -> 5
B43: 41 | C43: MAT Setoff Start Year | D43: 16 | E43: year | F43: 2 | G43: =D9 -> 20
B44: 42 | C44: Emission Factor | D44: 0.9 | E44: tons of CO2/MWh | F44: 0 | G44: 10
B45: 43 | C45: Price of one CER | D45: 0 | E45: $/ton | F45: 0 | G45: 100
B46: 44 | C46: Exchange Rate | D46: 50 | E46: Rs/US$ | F46: 1 | G46: 100
B47: 45 | C47: Number of years for initial return on equity | D47: 10 | E47: years | F47: 0 | G47: =D9 -> 20
B48: 46 | C48: Duration of initial Capacity Utilization Factor | D48: =D9 -> 20 | E48: years | F48: 0 | G48: =D9 -> 20
B49: 47 | C49: Capacity Utilization Factor for subsequent years | D49: 0.9 | E49: % | F49: 0 | G49: 1
B50: 48 | C50: Fuel requirement/kWh | D50: 3 | E50: kg/kWh | F50: 0 | G50: 100
B51: 49 | C51: Feedstock Price | D51: 990 | E51: Rs/MT | F51: 0 | G51: 10000
B52: 50 | C52: Fuel Cost Escalation | D52: 0.03 | E52: % | F52: 0 | G52: 1

Sheet Default-Bagasse (hidden)
B2: No | C2: Inputs and Assumptions | D2: Value | E2: Unit | F2: Min | G2: Max
B3: 1 | C3: Capacity | D3: 1 | E3: MW | F3: 0.001 | G3: 1000
B4: =B3+1 -> 2 | C4: Initial Capacity Utilization Factor | D4: 0.5 | E4: % | F4: 0 | G4: 1
B5: 3 | C5: Annual Gross Generation | D5: =(D3*1000*8760*D4)/10^5 -> 43.8 | E5: Lakh kWhs
B6: 4 | C6: Auxiliary consumption | D6: 0.085 | E6: % | F6: 0 | G6: 0.5
B7: 5 | C7: Annual Net Generation | D7: =D5*(1-D6) -> 40.077 | E7: Lakh kWhs
B8: 6 | C8: Annual Deration | D8: 0 | E8: % | F8: 0 | G8: 1
B9: 7 | C9: Life of Plant and Machinery / Project Life | D9: 20 | E9: years | F9: 1 | G9: 40
B10: 8 | C10: CapEx | D10: 420 | E10: Rs Lacs/MW | F10: 1 | G10: 5000
B11: 9 | C11: Non - Depreciable Amount | D11: 0.1 | E11: % of Capital Cost | F11: 0 | G11: 1
B12: 10 | C12: Depreciable Amount (Cap Cost Less non-depreciable Cost) | D12: =D10*(100%-D11)*D3 -> 378 | E12: lacs
B13: 11 | C13: Debt Fraction | D13: 0.7 | E13: % | F13: 0 | G13: 0.7
B14: 12 | C14: Debt | D14: =D10*D13*D3 -> 294 | E14: lacs
B15: 13 | C15: Equity | D15: =D10*D3-D14 -> 126 | E15: lacs
B16: 14 | C16: Interest Rate on Term Loan | D16: ='Default-Solar PV'!D67 -> 0.1232 | E16: % | F16: 0 | G16: 0.5
B17: 15 | C17: Loan Term | D17: 12 | E17: years | F17: 1 | G17: =D9 -> 20
B18: 16 | C18: Moratorium | D18: 0 | E18: years | F18: 0 | G18: =IF(D17>11,D17-1,10) -> 11
B19: 17 | C19: Depreciation (Straight Line Method, Company Law) - initial years | D19: 0.0583 | E19: % | F19: 0 | G19: 0.2
B20: 18 | C20: Depreciation (Straight Line Method, Company Law) - later years | D20: =(90%-D19*D21)/D22 -> 0.02505 | E20: % | F20: 0 | G20: 0.2
B21: 19 | C21: Number of years for initial depreciation rate | D21: 12 | E21: years | F21: 0 | G21: =G17 -> 20
B22: 20 | C22: Number of years for later depreciation rate | D22: =D9-D21 -> 8 | E22: years
B23: 21 | C23: Discount Rate | D23: =(D13*D16*(1-D32))+((1-D13)*D34) -> 0.106259432 | E23: %
B24: 22 | C24: O&M cost | D24: 16 | E24: Rs Lacs / MW | F24: 0 | G24: 1000
B25: 23 | C25: O&M Cost Esclation | D25: 0.0572 | E25: % | F25: 0 | G25: 0.1
B26: 24 | C26: Return on Equity - pretax (initial years) | D26: 0.2 | E26: % | F26: 0 | G26: =G16 -> 0.5
B27: 25 | C27: Return on Equity - pretax (later years) | D27: 0.24 | E27: % | F27: 0 | G27: =G16 -> 0.5
B28: 26 | C28: Annuity Factor (25 Years) | D28: =(((1+D23)^D9-1)/(D23*(1+D23)^D9)) -> 8.162129599
B29: 27 | C29: Interest on working capital | D29: ='Default-Solar PV'!D67+0.5% -> 0.1282 | E29: % | F29: 0 | G29: =G16 -> 0.5
B30: 28 | C30: Assumed tariff (Iterative) | D30: 6.37 | E30: Rs / kWh
B31: 29 | C31: Maintenance spares | D31: 0.15 | E31: of yearly O&M Cost | F31: 0 | G31: 1
B32: 30 | C32: Corporate Tax Rate | D32: 0.32445 | E32: % | F32: 0 | G32: =G16 -> 0.5
B33: 31 | C33: MAT | D33: 0.2 | E33: % | F33: 0 | G33: =G16 -> 0.5
B34: 32 | C34: Post Tax ROE | D34: 0.16 | E34: % | F34: 0 | G34: =G16 -> 0.5
B35: 33 | C35: Book depreciation first year | D35: 0.0264 | E35: % | F35: 0 | G35: 0.5
B36: 34 | C36: Book depreciation from second year | D36: 0.0528 | E36: % | F36: 0 | G36: 1
B37: 35 | C37: Accelerated Depreciation first year | D37: 0.4 | E37: % | F37: 0 | G37: 0.5
B38: 36 | C38: Accelerated Depreciation from second year | D38: 0.8 | E38: % | F38: 0 | G38: 1
B39: 37 | C39: Tax Holiday Duration | D39: 10 | E39: years | F39: 0 | G39: =D9 -> 20
B40: 38 | C40: Tax Holiday Start Year | D40: 6 | E40: year | F40: 1 | G40: =D9 -> 20
B41: 39 | C41: MAT set off allowed u/s 115JAA (3A) | D41: 10 | E41: years | F41: 0 | G41: =D9 -> 20
B42: 40 | C42: MAT Setoff Duration | D42: 5 | E42: years | F42: 0 | G42: =D9-D43+1 -> 5
B43: 41 | C43: MAT Setoff Start Year | D43: 16 | E43: year | F43: 2 | G43: =D9 -> 20
B44: 42 | C44: Emission Factor | D44: 0.9 | E44: tons of CO2/MWh | F44: 0 | G44: 10
B45: 43 | C45: Price of one CER | D45: 0 | E45: $/ton | F45: 0 | G45: 100
B46: 44 | C46: Exchange Rate | D46: 50 | E46: Rs/US$ | F46: 1 | G46: 100
B47: 45 | C47: Number of years for initial return on equity | D47: 10 | E47: years | F47: 0 | G47: =D9 -> 20
B48: 46 | C48: Duration of initial Capacity Utilization Factor | D48: =D9 -> 20 | E48: years | F48: 0 | G48: =D9 -> 20
B49: 47 | C49: Capacity Utilization Factor for subsequent years | D49: 0.5 | E49: % | F49: 0 | G49: 1
B50: 48 | C50: Fuel requirement/kWh | D50: ='Default-Bagasse'!D67 -> 1.6 | E50: kg/kWh | F50: 0 | G50: 100
B51: 49 | C51: Feedstock Price | D51: 1832 | E51: Rs/MT | F51: 0 | G51: 10000
B52: 50 | C52: Fuel Cost Escalation | D52: 0.03 | E52: % | F52: 0 | G52: 1
C56: State | D56: Bagasse Price (Rs / tonne)
C57: Andhra Pradesh | D57: 1307
C58: Haryana | D58: 1859
C59: Maharashtra | D59: 1832
C60: Punjab | D60: 1636
C61: Tamilnadu | D61: 1408
C62: Uttar Pradesh | D62: 1458
C63: Other States | D63: 1583
C65: Station Heat Rate | D65: 3600 | E65: kCal/kWh
C66: Calorific value of Biomass | D66: 2250 | E66: kCal/kg
C67: Fuel requirement/kWh | D67: =D65/D66 -> 1.6 | E67: kg/kWh

Sheet Default-Biomass Gasifier (hidden)
B2: No | C2: Inputs and Assumptions | D2: Value | E2: Unit | F2: Min | G2: Max
B3: 1 | C3: Capacity | D3: 1 | E3: MW | F3: 0.001 | G3: 1000
B4: =B3+1 -> 2 | C4: Initial Capacity Utilization Factor | D4: 0.85 | E4: % | F4: 0 | G4: 1
B5: 3 | C5: Annual Gross Generation | D5: =(D3*1000*8760*D4)/10^5 -> 74.46 | E5: Lakh kWhs
B6: 4 | C6: Auxiliary consumption | D6: 0.1 | E6: % | F6: 0 | G6: 0.5
B7: 5 | C7: Annual Net Generation | D7: =D5*(1-D6) -> 67.014 | E7: Lakh kWhs
B8: 6 | C8: Annual Deration | D8: 0 | E8: % | F8: 0 | G8: 1
B9: 7 | C9: Life of Plant and Machinery / Project Life | D9: 20 | E9: years | F9: 1 | G9: 40
B10: 8 | C10: CapEx | D10: 400 | E10: Rs Lacs/MW | F10: 1 | G10: 5000
B11: 9 | C11: Non - Depreciable Amount | D11: 0.1 | E11: % of Capital Cost | F11: 0 | G11: 1
B12: 10 | C12: Depreciable Amount (Cap Cost Less non-depreciable Cost) | D12: =D10*(100%-D11)*D3 -> 360 | E12: lacs
B13: 11 | C13: Debt Fraction | D13: 0.7 | E13: % | F13: 0 | G13: 0.7
B14: 12 | C14: Debt | D14: =D10*D13*D3 -> 280 | E14: lacs
B15: 13 | C15: Equity | D15: =D10*D3-D14 -> 120 | E15: lacs
B16: 14 | C16: Interest Rate on Term Loan | D16: ='Default-Solar PV'!D67 -> 0.1232 | E16: % | F16: 0 | G16: 0.5
B17: 15 | C17: Loan Term | D17: 12 | E17: years | F17: 1 | G17: =D9 -> 20
B18: 16 | C18: Moratorium | D18: 0 | E18: years | F18: 0 | G18: =IF(D17>11,D17-1,10) -> 11
B19: 17 | C19: Depreciation (Straight Line Method, Company Law) - initial years | D19: 0.0583 | E19: % | F19: 0 | G19: 0.2
B20: 18 | C20: Depreciation (Straight Line Method, Company Law) - later years | D20: =(90%-D19*D21)/D22 -> 0.02505 | E20: % | F20: 0 | G20: 0.2
B21: 19 | C21: Number of years for initial depreciation rate | D21: 12 | E21: years | F21: 0 | G21: =G17 -> 20
B22: 20 | C22: Number of years for later depreciation rate | D22: =D9-D21 -> 8 | E22: years
B23: 21 | C23: Discount Rate | D23: =(D13*D16*(1-D32))+((1-D13)*D34) -> 0.106259432 | E23: %
B24: 22 | C24: O&M cost | D24: 40 | E24: Rs Lacs / MW | F24: 0 | G24: 1000
B25: 23 | C25: O&M Cost Esclation | D25: 0.0572 | E25: % | F25: 0 | G25: 0.1
B26: 24 | C26: Return on Equity - pretax (initial years) | D26: 0.2 | E26: % | F26: 0 | G26: =G16 -> 0.5
B27: 25 | C27: Return on Equity - pretax (later years) | D27: 0.24 | E27: % | F27: 0 | G27: =G16 -> 0.5
B28: 26 | C28: Annuity Factor (25 Years) | D28: =(((1+D23)^D9-1)/(D23*(1+D23)^D9)) -> 8.162129599
B29: 27 | C29: Interest on working capital | D29: ='Default-Solar PV'!D67+0.5% -> 0.1282 | E29: % | F29: 0 | G29: =G16 -> 0.5
B30: 28 | C30: Assumed tariff (Iterative) | D30: 6.13 | E30: Rs / kWh
B31: 29 | C31: Maintenance spares | D31: 0.15 | E31: of yearly O&M Cost | F31: 0 | G31: 1
B32: 30 | C32: Corporate Tax Rate | D32: 0.32445 | E32: % | F32: 0 | G32: =G16 -> 0.5
B33: 31 | C33: MAT | D33: 0.2 | E33: % | F33: 0 | G33: =G16 -> 0.5
B34: 32 | C34: Post Tax ROE | D34: 0.16 | E34: % | F34: 0 | G34: =G16 -> 0.5
B35: 33 | C35: Book depreciation first year | D35: 0.0264 | E35: % | F35: 0 | G35: 0.5
B36: 34 | C36: Book depreciation from second year | D36: 0.0528 | E36: % | F36: 0 | G36: 1
B37: 35 | C37: Accelerated Depreciation first year | D37: 0.4 | E37: % | F37: 0 | G37: 0.5
B38: 36 | C38: Accelerated Depreciation from second year | D38: 0.8 | E38: % | F38: 0 | G38: 1
B39: 37 | C39: Tax Holiday Duration | D39: 10 | E39: years | F39: 0 | G39: =D9 -> 20
B40: 38 | C40: Tax Holiday Start Year | D40: 6 | E40: year | F40: 1 | G40: =D9 -> 20
B41: 39 | C41: MAT set off allowed u/s 115JAA (3A) | D41: 10 | E41: years | F41: 0 | G41: =D9 -> 20
B42: 40 | C42: MAT Setoff Duration | D42: 5 | E42: years | F42: 0 | G42: =D9-D43+1 -> 5
B43: 41 | C43: MAT Setoff Start Year | D43: 16 | E43: year | F43: 2 | G43: =D9 -> 20
B44: 42 | C44: Emission Factor | D44: 0.9 | E44: tons of CO2/MWh | F44: 0 | G44: 10
B45: 43 | C45: Price of one CER | D45: 0 | E45: $/ton | F45: 0 | G45: 100
B46: 44 | C46: Exchange Rate | D46: 50 | E46: Rs/US$ | F46: 1 | G46: 100
B47: 45 | C47: Number of years for initial return on equity | D47: 10 | E47: years | F47: 0 | G47: =D9 -> 20
B48: 46 | C48: Duration of initial Capacity Utilization Factor | D48: =D9 -> 20 | E48: years | F48: 0 | G48: =D9 -> 20
B49: 47 | C49: Capacity Utilization Factor for subsequent years | D49: 0.85 | E49: % | F49: 0 | G49: 1
B50: 48 | C50: Fuel requirement/kWh | D50: 1.25 | E50: kg/kWh | F50: 0 | G50: 100
B51: 49 | C51: Feedstock Price | D51: 2116 | E51: Rs/MT | F51: 0 | G51: 10000
B52: 50 | C52: Fuel Cost Escalation | D52: 0.03 | E52: % | F52: 0 | G52: 1
C55: State | D55: FY2012-13
C56: Andhra Pradesh | D56: 2315 | E56: (Rs /MT)
C57: Haryana | D57: 2635 | E57: (Rs /MT)
C58: Maharashtra | D58: 2116 | E58: (Rs /MT)
C59: Madhya Pradesh | D59: 1507 | E59: (Rs /MT)
C60: Punjab | D60: 2756 | E60: (Rs /MT)
C61: Rajasthan | D61: 2300 | E61: (Rs /MT)
C62: Tamil Nadu | D62: 2277 | E62: (Rs /MT)
C63: Uttar Pradesh | D63: 2355 | E63: (Rs /MT)
C64: Other States | D64: 2283 | E64: (Rs /MT)

Sheet Default-Biomass Rankine Cycle (hidden)
B2: No | C2: Inputs and Assumptions | D2: Value | E2: Unit | F2: Min | G2: Max
B3: 1 | C3: Capacity | D3: 1 | E3: MW | F3: 0.001 | G3: 1000
B4: =B3+1 -> 2 | C4: Initial Capacity Utilization Factor | D4: 0.65 | E4: % | F4: 0 | G4: 1
B5: 3 | C5: Annual Gross Generation | D5: =(D3*1000*8760*D4)/10^5 -> 56.94 | E5: Lakh kWhs
B6: 4 | C6: Auxiliary consumption | D6: 0.1 | E6: % | F6: 0 | G6: 0.5
B7: 5 | C7: Annual Net Generation | D7: =D5*(1-D6) -> 51.246 | E7: Lakh kWhs
B8: 6 | C8: Annual Deration | D8: 0 | E8: % | F8: 0 | G8: 1
B9: 7 | C9: Life of Plant and Machinery / Project Life | D9: 20 | E9: years | F9: 1 | G9: 40
B10: 8 | C10: CapEx | D10: 445 | E10: Rs Lacs/MW | F10: 1 | G10: 5000
B11: 9 | C11: Non - Depreciable Amount | D11: 0.1 | E11: % of Capital Cost | F11: 0 | G11: 1
B12: 10 | C12: Depreciable Amount (Cap Cost Less non-depreciable Cost) | D12: =D10*(100%-D11)*D3 -> 400.5 | E12: lacs
B13: 11 | C13: Debt Fraction | D13: 0.7 | E13: % | F13: 0 | G13: 0.7
B14: 12 | C14: Debt | D14: =D10*D13*D3 -> 311.5 | E14: lacs
B15: 13 | C15: Equity | D15: =D10*D3-D14 -> 133.5 | E15: lacs
B16: 14 | C16: Interest Rate on Term Loan | D16: ='Default-Solar PV'!D67 -> 0.1232 | E16: % | F16: 0 | G16: 0.5
B17: 15 | C17: Loan Term | D17: 12 | E17: years | F17: 1 | G17: =D9 -> 20
B18: 16 | C18: Moratorium | D18: 0 | E18: years | F18: 0 | G18: =IF(D17>11,D17-1,10) -> 11
B19: 17 | C19: Depreciation (Straight Line Method, Company Law) - initial years | D19: 0.0583 | E19: % | F19: 0 | G19: 0.2
B20: 18 | C20: Depreciation (Straight Line Method, Company Law) - later years | D20: =(90%-D19*D21)/D22 -> 0.02505 | E20: % | F20: 0 | G20: 0.2
B21: 19 | C21: Number of years for initial depreciation rate | D21: 12 | E21: years | F21: 0 | G21: =G17 -> 20
B22: 20 | C22: Number of years for later depreciation rate | D22: =D9-D21 -> 8 | E22: years
B23: 21 | C23: Discount Rate | D23: =(D13*D16*(1-D32))+((1-D13)*D34) -> 0.106259432 | E23: %
B24: 22 | C24: O&M cost | D24: 24 | E24: Rs Lacs / MW | F24: 0 | G24: 1000
B25: 23 | C25: O&M Cost Esclation | D25: 0.0572 | E25: % | F25: 0 | G25: 0.1
B26: 24 | C26: Return on Equity - pretax (initial years) | D26: 0.2 | E26: % | F26: 0 | G26: =G16 -> 0.5
B27: 25 | C27: Return on Equity - pretax (later years) | D27: 0.24 | E27: % | F27: 0 | G27: =G16 -> 0.5
B28: 26 | C28: Annuity Factor (25 Years) | D28: =(((1+D23)^D9-1)/(D23*(1+D23)^D9)) -> 8.162129599
B29: 27 | C29: Interest on working capital | D29: ='Default-Solar PV'!D67+0.5% -> 0.1282 | E29: % | F29: 0 | G29: =G16 -> 0.5
B30: 28 | C30: Assumed tariff (Iterative) | D30: 6.08 | E30: Rs / kWh
B31: 29 | C31: Maintenance spares | D31: 0.15 | E31: of yearly O&M Cost | F31: 0 | G31: 1
B32: 30 | C32: Corporate Tax Rate | D32: 0.32445 | E32: % | F32: 0 | G32: =G16 -> 0.5
B33: 31 | C33: MAT | D33: 0.2 | E33: % | F33: 0 | G33: =G16 -> 0.5
B34: 32 | C34: Post Tax ROE | D34: 0.16 | E34: % | F34: 0 | G34: =G16 -> 0.5
B35: 33 | C35: Book depreciation first year | D35: 0.0264 | E35: % | F35: 0 | G35: 0.5
B36: 34 | C36: Book depreciation from second year | D36: 0.0528 | E36: % | F36: 0 | G36: 1
B37: 35 | C37: Accelerated Depreciation first year | D37: 0.4 | E37: % | F37: 0 | G37: 0.5
B38: 36 | C38: Accelerated Depreciation from second year | D38: 0.8 | E38: % | F38: 0 | G38: 1
B39: 37 | C39: Tax Holiday Duration | D39: 10 | E39: years | F39: 0 | G39: =D9 -> 20
B40: 38 | C40: Tax Holiday Start Year | D40: 6 | E40: year | F40: 1 | G40: =D9 -> 20
B41: 39 | C41: MAT set off allowed u/s 115JAA (3A) | D41: 10 | E41: years | F41: 0 | G41: =D9 -> 20
B42: 40 | C42: MAT Setoff Duration | D42: 5 | E42: years | F42: 0 | G42: =D9-D43+1 -> 5
B43: 41 | C43: MAT Setoff Start Year | D43: 16 | E43: year | F43: 2 | G43: =D9 -> 20
B44: 42 | C44: Emission Factor | D44: 0.9 | E44: tons of CO2/MWh | F44: 0 | G44: 10
B45: 43 | C45: Price of one CER | D45: 0 | E45: $/ton | F45: 0 | G45: 100
B46: 44 | C46: Exchange Rate | D46: 50 | E46: Rs/US$ | F46: 1 | G46: 100
B47: 45 | C47: Number of years for initial return on equity | D47: 10 | E47: years | F47: 0 | G47: =D9 -> 20
B48: 46 | C48: Duration of initial Capacity Utilization Factor | D48: 2 | E48: years | F48: 0 | G48: =D9 -> 20
B49: 47 | C49: Capacity Utilization Factor for subsequent years | D49: 0.8 | E49: % | F49: 0 | G49: 1
B50: 48 | C50: Fuel requirement/kWh | D50: =ROUND('Default-Biomass Rankine Cycle'!D68, 3) -> 1.212 | E50: kg/kWh | F50: 0 | G50: 100
B51: 49 | C51: Feedstock Price | D51: 2695 | E51: Rs/MT | F51: 0 | G51: 10000
B52: 50 | C52: Fuel Cost Escalation | D52: 0.03 | E52: % | F52: 0 | G52: 1
C55: State | D55: FY2012-13
C56: Andhra Pradesh | D56: 2315 | E56: (Rs /MT)
C57: Haryana | D57: 2635 | E57: (Rs /MT)
C58: Maharashtra | D58: 2695 | E58: (Rs /MT)
C59: Punjab | D59: 2756 | E59: (Rs /MT)
C60: Rajasthan | D60: 2300 | E60: (Rs /MT)
C61: Tamil Nadu | D61: 2277 | E61: (Rs /MT)
C62: Uttar Pradesh | D62: 2355 | E62: (Rs /MT)
C63: Other States | D63: 2476 | E63: (Rs /MT)
C65: Do we need these?
C66: Station Heat Rate | D66: 4000 | E66: kCal/kWh
C67: Calorific value of Biomass | D67: 3300 | E67: kCal/kg
C68: Fuel requirement/kWh | D68: =D66/D67 -> 1.212121212 | E68: kg/kWh

Sheet Inputs-Solar PV (hidden)
B2: No | C2: Inputs and Assumptions | D2: Value | E2: Unit | F2: Min | G2: Max
B3: 1 | C3: Capacity | D3: 1 | E3: MW | F3: 0.001 | G3: 1000
B4: =B3+1 -> 2 | C4: Initial Capacity Utilization Factor | D4: 0.19 | E4: % | F4: 0 | G4: 0.4
B5: =B4+1 -> 3 | C5: Annual Gross Generation | D5: =(D3*1000*8760*D4)/10^5 -> 16.644 | E5: Lakh kWhs
B6: 4 | C6: Auxiliary consumption | D6: 0 | E6: % | F6: 0 | G6: 0.5
B7: 5 | C7: Annual Net Generation | D7: =D5*(1-D6) -> 16.644 | E7: Lakh kWhs
B8: 6 | C8: Annual Deration | D8: 0 | E8: % | F8: 0 | G8: 1
B9: 7 | C9: Life of Plant and Machinery / Project Life | D9: 25 | E9: years | F9: 1 | G9: 40
B10: 8 | C10: CapEx | D10: 1000 | E10: Rs Lacs/MW | F10: 1 | G10: 10000
B11: 9 | C11: Non - Depreciable Amount | D11: 0.1 | E11: % of Capital Cost | F11: 0 | G11: 1
B12: 10 | C12: Depreciable Amount (Cap Cost Less non-depreciable Cost) | D12: =D10*D3*(100%-D11) -> 900 | E12: lacs
B13: 11 | C13: Debt Fraction | D13: 0.7 | E13: % | F13: 0 | G13: 0.7
B14: 12 | C14: Debt | D14: =D10*D3*D13 -> 700 | E14: lacs
B15: 13 | C15: Equity | D15: =D10*D3-D14 -> 300 | E15: lacs
B16: 14 | C16: Interest Rate on Term Loan | D16: 0.1232 | E16: % | F16: 0 | G16: 0.5
B17: 15 | C17: Loan Term | D17: 12 | E17: years | F17: 1 | G17: 50
B18: 16 | C18: Moratorium | D18: 0 | E18: years | F18: 0 | G18: =G17/2 -> 25
B19: 17 | C19: Depreciation (Straight Line Method, Company Law) - initial years | D19: 0.0583 | E19: % | F19: 0 | G19: 0.2
B20: 18 | C20: Depreciation (Straight Line Method, Company Law) - later years | D20: 0.01541538462 | E20: % | F20: 0 | G20: 0.2
B21: 19 | C21: Number of years for initial depreciation rate | D21: 12 | E21: years | F21: 0 | G21: =G17 -> 50
B22: 20 | C22: Number of years for later depreciation rate | D22: 13 | E22: years
B23: 21 | C23: Discount Rate | D23: =(D13*D16*(1-D32))+((1-D13)*D34) -> 0.106259432 | E23: %
B24: 22 | C24: O&M cost | D24: 11 | E24: Rs Lacs / MW | F24: 0 | G24: 1000
B25: 23 | C25: O&M Cost Esclation | D25: 0.0572 | E25: % | F25: 0 | G25: 0.1
B26: 24 | C26: Return on Equity - pretax (initial years) | D26: 0.2 | E26: % | F26: 0 | G26: =G16 -> 0.5
B27: 25 | C27: Return on Equity - pretax (later years) | D27: 0.24 | E27: % | F27: 0 | G27: =G16 -> 0.5
B28: 26 | C28: Annuity Factor (25 Years) | D28: =(((1+D23)^D9-1)/(D23*(1+D23)^D9)) -> 8.657213087
B29: 27 | C29: Interest on working capital | D29: 0.1282 | E29: % | F29: 0 | G29: =G16 -> 0.5
B30: 28 | C30: Assumed tariff (Iterative) | D30: 10.33 | E30: Rs / kWh
B31: 29 | C31: Maintenance spares | D31: 0.15 | E31: of yearly O&M Cost | F31: 0 | G31: 1
B32: 30 | C32: Corporate Tax Rate | D32: 0.32445 | E32: % | F32: 0 | G32: =G16 -> 0.5
B33: 31 | C33: MAT | D33: 0.20008 | E33: % | F33: 0 | G33: =G16 -> 0.5
B34: 32 | C34: Post Tax ROE | D34: 0.16 | E34: % | F34: 0 | G34: =G16 -> 0.5
B35: 33 | C35: Book depreciation first year | D35: 0.0264 | E35: % | F35: 0 | G35: 0.5
B36: 34 | C36: Book depreciation from second year | D36: 0.0528 | E36: % | F36: 0 | G36: 1
B37: 35 | C37: Accelerated Depreciation first year | D37: 0.4 | E37: % | F37: 0 | G37: 0.5
B38: 36 | C38: Accelerated Depreciation from second year | D38: 0.8 | E38: % | F38: 0 | G38: 1
B39: 37 | C39: Tax Holiday Duration | D39: 10 | E39: years | F39: 0 | G39: =D9 -> 25
B40: 38 | C40: Tax Holiday Start Year | D40: 6 | E40: year | F40: 1 | G40: =D9 -> 25
B41: 39 | C41: MAT set off accumulation allowed u/s 115JAA (3A) | D41: 10 | E41: years | F41: 0 | G41: =D9 -> 25
B42: 40 | C42: MAT Setoff Duration | D42: 5 | E42: years | F42: 0 | G42: =D9-D43+1 -> 10
B43: 41 | C43: MAT Setoff Start Year | D43: 16 | E43: year | F43: 2 | G43: =D9 -> 25
B44: 42 | C44: Emission Factor | D44: 0.9 | E44: tons of CO2/MWh | F44: 0 | G44: 10
B45: 43 | C45: Price of one CER | D45: 0 | E45: $/ton | F45: 0 | G45: 100
B46: 44 | C46: Exchange Rate | D46: 50 | E46: Rs/US$ | F46: 1 | G46: 100
B47: 45 | C47: Number of years for initial return on equity | D47: 10 | E47: years | F47: 0 | G47: =D9 -> 25
B48: 46 | C48: Duration of initial Capacity Utilization Factor | D48: 25 | E48: years | F48: 0 | G48: =D9 -> 25
B49: 47 | C49: Capacity Utilization Factor for subsequent years | D49: 0.9 | E49: % | F49: 0 | G49: 1
B50: 48 | C50: Fuel requirement/kWh | D50: 0 | E50: kg/kWh | F50: 0 | G50: 0
B51: 49 | C51: Feedstock Price | D51: 0 | E51: Rs/MT | F51: 0 | G51: 0
B52: 50 | C52: Fuel Cost Escalation | D52: 0 | E52: % | F52: 0 | G52: 0

Sheet Inputs-Solar Thermal (hidden)
B2: No | C2: Inputs and Assumptions | D2: Value | E2: Unit | F2: Min | G2: Max
B3: 1 | C3: Capacity | D3: 1 | E3: MW | F3: 0.001 | G3: 1000
B4: =B3+1 -> 2 | C4: Initial Capacity Utilization Factor | D4: 0.23 | E4: % | F4: 0 | G4: 0.5
B5: 3 | C5: Annual Gross Generation | D5: =(D3*1000*8760*D4)/10^5 -> 20.148 | E5: Lakh kWhs
B6: 4 | C6: Auxiliary consumption | D6: 0.1 | E6: % | F6: 0 | G6: 0.5
B7: 5 | C7: Annual Net Generation | D7: =D5*(1-D6) -> 18.1332 | E7: Lakh kWhs
B8: 6 | C8: Annual Deration | D8: 0 | E8: % | F8: 0 | G8: 1
B9: 7 | C9: Life of Plant and Machinery / Project Life | D9: 25 | E9: years | F9: 1 | G9: 40
B10: 8 | C10: CapEx | D10: 1300 | E10: Rs Lacs/MW | F10: 1 | G10: 10000
B11: 9 | C11: Non - Depreciable Amount | D11: 0.1 | E11: % of Capital Cost | F11: 0 | G11: 1
B12: 10 | C12: Depreciable Amount (Cap Cost Less non-depreciable Cost) | D12: =D10*(100%-D11)*D3 -> 1170 | E12: lacs
B13: 11 | C13: Debt Fraction | D13: 0.7 | E13: % | F13: 0 | G13: 0.7
B14: 12 | C14: Debt | D14: =D10*D13*D3 -> 910 | E14: lacs
B15: 13 | C15: Equity | D15: =D10*D3-D14 -> 390 | E15: lacs
B16: 14 | C16: Interest Rate on Term Loan | D16: ='Default-Solar PV'!D67 -> 0.1232 | E16: % | F16: 0 | G16: 0.5
B17: 15 | C17: Loan Term | D17: 12 | E17: years | F17: 1 | G17: =D9 -> 25
B18: 16 | C18: Moratorium | D18: 0 | E18: years | F18: 0 | G18: =IF(D17>11,D17-1,10) -> 11
B19: 17 | C19: Depreciation (Straight Line Method, Company Law) - initial years | D19: 0.0583 | E19: % | F19: 0 | G19: 0.2
B20: 18 | C20: Depreciation (Straight Line Method, Company Law) - later years | D20: =(90%-D19*D21)/D22 -> 0.01541538462 | E20: % | F20: 0 | G20: 0.2
B21: 19 | C21: Number of years for initial depreciation rate | D21: 12 | E21: years | F21: 0 | G21: =G17 -> 25
B22: 20 | C22: Number of years for later depreciation rate | D22: =D9-D21 -> 13 | E22: years
B23: 21 | C23: Discount Rate | D23: =(D13*D16*(1-D32))+((1-D13)*D34) -> 0.106259432 | E23: %
B24: 22 | C24: O&M cost | D24: 15 | E24: Rs Lacs / MW | F24: 0 | G24: 1000
B25: 23 | C25: O&M Cost Esclation | D25: 0.0572 | E25: % | F25: 0 | G25: 0.1
B26: 24 | C26: Return on Equity - pretax (initial years) | D26: 0.2 | E26: % | F26: 0 | G26: =G16 -> 0.5
B27: 25 | C27: Return on Equity - pretax (later years) | D27: 0.24 | E27: % | F27: 0 | G27: =G16 -> 0.5
B28: 26 | C28: Annuity Factor (25 Years) | D28: =(((1+D23)^D9-1)/(D23*(1+D23)^D9)) -> 8.657213087
B29: 27 | C29: Interest on working capital | D29: ='Default-Solar PV'!D67+0.5% -> 0.1282 | E29: % | F29: 0 | G29: =G16 -> 0.5
B30: 28 | C30: Assumed tariff (Iterative) | D30: 12.4 | E30: Rs / kWh
B31: 29 | C31: Maintenance spares | D31: 0.15 | E31: of yearly O&M Cost | F31: 0 | G31: 1
B32: 30 | C32: Corporate Tax Rate | D32: 0.32445 | E32: % | F32: 0 | G32: =G16 -> 0.5
B33: 31 | C33: MAT | D33: 0.2 | E33: % | F33: 0 | G33: =G16 -> 0.5
B34: 32 | C34: Post Tax ROE | D34: 0.16 | E34: % | F34: 0 | G34: =G16 -> 0.5
B35: 33 | C35: Book depreciation first year | D35: 0.0264 | E35: % | F35: 0 | G35: 0.5
B36: 34 | C36: Book depreciation from second year | D36: 0.0528 | E36: % | F36: 0 | G36: 1
B37: 35 | C37: Accelerated Depreciation first year | D37: 0.4 | E37: % | F37: 0 | G37: 0.5
B38: 36 | C38: Accelerated Depreciation from second year | D38: 0.8 | E38: % | F38: 0 | G38: 1
B39: 37 | C39: Tax Holiday Duration | D39: 10 | E39: years | F39: 0 | G39: =D9 -> 25
B40: 38 | C40: Tax Holiday Start Year | D40: 6 | E40: year | F40: 1 | G40: =D9 -> 25
B41: 39 | C41: MAT set off allowed u/s 115JAA (3A) | D41: 10 | E41: years | F41: 0 | G41: =D9 -> 25
B42: 40 | C42: MAT Setoff Duration | D42: 5 | E42: years | F42: 0 | G42: =D9-D43+1 -> 10
B43: 41 | C43: MAT Setoff Start Year | D43: 16 | E43: year | F43: 2 | G43: =D9 -> 25
B44: 42 | C44: Emission Factor | D44: 0.9 | E44: tons of CO2/MWh | F44: 0 | G44: 10
B45: 43 | C45: Price of one CER | D45: 0 | E45: $/ton | F45: 0 | G45: 100
B46: 44 | C46: Exchange Rate | D46: 50 | E46: Rs/US$ | F46: 1 | G46: 100
B47: 45 | C47: Number of years for initial return on equity | D47: 10 | E47: years | F47: 0 | G47: =D9 -> 25
B48: 46 | C48: Duration of initial Capacity Utilization Factor | D48: 25 | E48: years | F48: 0 | G48: =D9 -> 25
B49: 47 | C49: Capacity Utilization Factor for subsequent years | D49: 0.9 | E49: % | F49: 0 | G49: 1
B50: 48 | C50: Fuel requirement/kWh | D50: 0 | E50: kg/kWh | F50: 0 | G50: 0
B51: 49 | C51: Feedstock Price | D51: 0 | E51: Rs/MT | F51: 0 | G51: 0
B52: 50 | C52: Fuel Cost Escalation | D52: 0 | E52: % | F52: 0 | G52: 0

Sheet Inputs-Wind (hidden)
B2: No | C2: Inputs and Assumptions | D2: Value | E2: Unit | F2: Min | G2: Max
B3: 1 | C3: Capacity | D3: 1 | E3: MW | F3: 0.001 | G3: 1000
B4: =B3+1 -> 2 | C4: Initial Capacity Utilization Factor | D4: 0.25 | E4: % | F4: 0 | G4: 0.4
B5: 3 | C5: Annual Gross Generation | D5: =(D3*1000*8760*D4)/10^5 -> 21.9 | E5: Lakh kWhs
B6: 4 | C6: Auxiliary consumption | D6: 0 | E6: % | F6: 0 | G6: 0.5
B7: 5 | C7: Annual Net Generation | D7: =D5*(1-D6) -> 21.9 | E7: Lakh kWhs
B8: 6 | C8: Annual Deration | D8: 0 | E8: % | F8: 0 | G8: 1
B9: 7 | C9: Life of Plant and Machinery / Project Life | D9: 25 | E9: years | F9: 1 | G9: 40
B10: 8 | C10: CapEx | D10: 575 | E10: Rs Lacs/MW | F10: 1 | G10: 5000
B11: 9 | C11: Non - Depreciable Amount | D11: 0.1 | E11: % of Capital Cost | F11: 0 | G11: 1
B12: 10 | C12: Depreciable Amount (Cap Cost Less non-depreciable Cost) | D12: =D10*(100%-D11)*D3 -> 517.5 | E12: lacs
B13: 11 | C13: Debt Fraction | D13: 0.7 | E13: % | F13: 0 | G13: 0.7
B14: 12 | C14: Debt | D14: =D10*D13*D3 -> 402.5 | E14: lacs
B15: 13 | C15: Equity | D15: =D10*D3-D14 -> 172.5 | E15: lacs
B16: 14 | C16: Interest Rate on Term Loan | D16: ='Default-Solar PV'!D67 -> 0.1232 | E16: % | F16: 0 | G16: 0.5
B17: 15 | C17: Loan Term | D17: 12 | E17: years | F17: 1 | G17: =D9 -> 25
B18: 16 | C18: Moratorium | D18: 0 | E18: years | F18: 0 | G18: =IF(D17>11,D17-1,10) -> 11
B19: 17 | C19: Depreciation (Straight Line Method, Company Law) - initial years | D19: 0.0583 | E19: % | F19: 0 | G19: 0.2
B20: 18 | C20: Depreciation (Straight Line Method, Company Law) - later years | D20: =(90%-D19*D21)/D22 -> 0.01541538462 | E20: % | F20: 0 | G20: 0.2
B21: 19 | C21: Number of years for initial depreciation rate | D21: 12 | E21: years | F21: 0 | G21: =G17 -> 25
B22: 20 | C22: Number of years for later depreciation rate | D22: =D9-D21 -> 13 | E22: years
B23: 21 | C23: Discount Rate | D23: =(D13*D16*(1-D32))+((1-D13)*D34) -> 0.106259432 | E23: %
B24: 22 | C24: O&M cost | D24: 9 | E24: Rs Lacs / MW | F24: 0 | G24: 1000
B25: 23 | C25: O&M Cost Esclation | D25: 0.0572 | E25: % | F25: 0 | G25: 0.1
B26: 24 | C26: Return on Equity - pretax (initial years) | D26: 0.2 | E26: % | F26: 0 | G26: =G16 -> 0.5
B27: 25 | C27: Return on Equity - pretax (later years) | D27: 0.24 | E27: % | F27: 0 | G27: =G16 -> 0.5
B28: 26 | C28: Annuity Factor (25 Years) | D28: =(((1+D23)^D9-1)/(D23*(1+D23)^D9)) -> 8.657213087
B29: 27 | C29: Interest on working capital | D29: ='Default-Solar PV'!D67+0.5% -> 0.1282 | E29: % | F29: 0 | G29: =G16 -> 0.5
B30: 28 | C30: Assumed tariff (Iterative) | D30: 4.74 | E30: Rs / kWh
B31: 29 | C31: Maintenance spares | D31: 0.15 | E31: of yearly O&M Cost | F31: 0 | G31: 1
B32: 30 | C32: Corporate Tax Rate | D32: 0.32445 | E32: % | F32: 0 | G32: =G16 -> 0.5
B33: 31 | C33: MAT | D33: 0.2 | E33: % | F33: 0 | G33: =G16 -> 0.5
B34: 32 | C34: Post Tax ROE | D34: 0.16 | E34: % | F34: 0 | G34: =G16 -> 0.5
B35: 33 | C35: Book depreciation first year | D35: 0.0264 | E35: % | F35: 0 | G35: 0.5
B36: 34 | C36: Book depreciation from second year | D36: 0.0528 | E36: % | F36: 0 | G36: 1
B37: 35 | C37: Accelerated Depreciation first year | D37: 0.4 | E37: % | F37: 0 | G37: 0.5
B38: 36 | C38: Accelerated Depreciation from second year | D38: 0.8 | E38: % | F38: 0 | G38: 1
B39: 37 | C39: Tax Holiday Duration | D39: 10 | E39: years | F39: 0 | G39: =D9 -> 25
B40: 38 | C40: Tax Holiday Start Year | D40: 6 | E40: year | F40: 1 | G40: =D9 -> 25
B41: 39 | C41: MAT set off allowed u/s 115JAA (3A) | D41: 10 | E41: years | F41: 0 | G41: =D9 -> 25
B42: 40 | C42: MAT Setoff Duration | D42: 5 | E42: years | F42: 0 | G42: =D9-D43+1 -> 10
B43: 41 | C43: MAT Setoff Start Year | D43: 16 | E43: year | F43: 2 | G43: =D9 -> 25
B44: 42 | C44: Emission Factor | D44: 0.9 | E44: tons of CO2/MWh | F44: 0 | G44: 10
B45: 43 | C45: Price of one CER | D45: 0 | E45: $/ton | F45: 0 | G45: 100
B46: 44 | C46: Exchange Rate | D46: 50 | E46: Rs/US$ | F46: 1 | G46: 100
B47: 45 | C47: Number of years for initial return on equity | D47: 10 | E47: years | F47: 0 | G47: =D9 -> 25
B48: 46 | C48: Duration of initial Capacity Utilization Factor | D48: 25 | E48: years | F48: 0 | G48: =D9 -> 25
B49: 47 | C49: Capacity Utilization Factor for subsequent years | D49: 0.9 | E49: % | F49: 0 | G49: 1
B50: 48 | C50: Fuel requirement/kWh | D50: 0 | E50: kg/kWh | F50: 0 | G50: 0
B51: 49 | C51: Feedstock Price | D51: 0 | E51: Rs/MT | F51: 0 | G51: 0
B52: 50 | C52: Fuel Cost Escalation | D52: 0 | E52: % | F52: 0 | G52: 0

Sheet Inputs-Small Hydro (hidden)
B2: No | C2: Inputs and Assumptions | D2: Value | E2: Unit | F2: Min | G2: Max | I2: HP, U, NE | J2: HP, U, NE | K2: Other | L2: Other
B3: 1 | C3: Capacity | D3: 1 | E3: MW | F3: 0.001 | G3: 25 | I3: < 5MW | J3: >5 < 25 MW | K3: < 5MW | L3: >5 < 25 MW
B4: =B3+1 -> 2 | C4: Initial Capacity Utilization Factor | D4: 0.45 | E4: % | F4: 0 | G4: 1 | I4: 45 | J4: 45 | K4: 30 | L4: 30
B5: 3 | C5: Annual Gross Generation | D5: =(D3*1000*8760*D4)/10^5 -> 39.42 | E5: Lakh kWhs
B6: 4 | C6: Auxiliary consumption | D6: 0.01 | E6: % | F6: 0 | G6: 0.5
B7: 5 | C7: Annual Net Generation | D7: =D5*(1-D6) -> 39.0258 | E7: Lakh kWhs | I7: 3.61 | J7: 3.07 | K7: 4.28 | L7: 3.63
B8: 6 | C8: Annual Deration | D8: 0 | E8: % | F8: 0 | G8: 1
B9: 7 | C9: Life of Plant and Machinery / Project Life | D9: 35 | E9: years | F9: 1 | G9: 40
B10: 8 | C10: CapEx | D10: 700 | E10: Rs Lacs/MW | F10: 1 | G10: 5000 | I10: 700 | J10: 630 | K10: 550 | L10: 500
B11: 9 | C11: Non - Depreciable Amount | D11: 0.1 | E11: % of Capital Cost | F11: 0 | G11: 1
B12: 10 | C12: Depreciable Amount (Cap Cost Less non-depreciable Cost) | D12: =D10*(100%-D11)*D3 -> 630 | E12: lacs
B13: 11 | C13: Debt Fraction | D13: 0.7 | E13: % | F13: 0 | G13: 0.7
B14: 12 | C14: Debt | D14: =D10*D13*D3 -> 490 | E14: lacs
B15: 13 | C15: Equity | D15: =D10*D3-D14 -> 210 | E15: lacs
B16: 14 | C16: Interest Rate on Term Loan | D16: ='Default-Solar PV'!D67 -> 0.1232 | E16: % | F16: 0 | G16: 0.5
B17: 15 | C17: Loan Term | D17: 12 | E17: years | F17: 1 | G17: =D9 -> 35
B18: 16 | C18: Moratorium | D18: 0 | E18: years | F18: 0 | G18: =IF(D17>11,D17-1,10) -> 11
B19: 17 | C19: Depreciation (Straight Line Method, Company Law) - initial years | D19: 0.0583 | E19: % | F19: 0 | G19: 0.2
B20: 18 | C20: Depreciation (Straight Line Method, Company Law) - later years | D20: =(90%-D19*D21)/D22 -> 0.008713043478 | E20: % | F20: 0 | G20: 0.2
B21: 19 | C21: Number of years for initial depreciation rate | D21: 12 | E21: years | F21: 0 | G21: =G17 -> 35
B22: 20 | C22: Number of years for later depreciation rate | D22: =D9-D21 -> 23 | E22: years
B23: 21 | C23: Discount Rate | D23: =(D13*D16*(1-D32))+((1-D13)*D34) -> 0.106259432 | E23: %
B24: 22 | C24: O&M cost | D24: 25 | E24: Rs Lacs / MW | F24: 0 | G24: 1000 | I24: 25 | J24: 18 | K24: 20 | L24: 14
B25: 23 | C25: O&M Cost Esclation | D25: 0.0572 | E25: % | F25: 0 | G25: 0.1
B26: 24 | C26: Return on Equity - pretax (initial years) | D26: 0.2 | E26: % | F26: 0 | G26: =G16 -> 0.5
B27: 25 | C27: Return on Equity - pretax (later years) | D27: 0.24 | E27: % | F27: 0 | G27: =G16 -> 0.5
B28: 26 | C28: Annuity Factor (25 Years) | D28: =(((1+D23)^D9-1)/(D23*(1+D23)^D9)) -> 9.136368829
B29: 27 | C29: Interest on working capital | D29: ='Default-Solar PV'!D67+0.5% -> 0.1282 | E29: % | F29: 0 | G29: =G16 -> 0.5
B30: 28 | C30: Assumed tariff (Iterative) | D30: 3.94 | E30: Rs / kWh
B31: 29 | C31: Maintenance spares | D31: 0.15 | E31: of yearly O&M Cost | F31: 0 | G31: 1
B32: 30 | C32: Corporate Tax Rate | D32: 0.32445 | E32: % | F32: 0 | G32: =G16 -> 0.5
B33: 31 | C33: MAT | D33: 0.2 | E33: % | F33: 0 | G33: =G16 -> 0.5
B34: 32 | C34: Post Tax ROE | D34: 0.16 | E34: % | F34: 0 | G34: =G16 -> 0.5
B35: 33 | C35: Book depreciation first year | D35: 0.0264 | E35: % | F35: 0 | G35: 0.5
B36: 34 | C36: Book depreciation from second year | D36: 0.0528 | E36: % | F36: 0 | G36: 1
B37: 35 | C37: Accelerated Depreciation first year | D37: 0.4 | E37: % | F37: 0 | G37: 0.5
B38: 36 | C38: Accelerated Depreciation from second year | D38: 0.8 | E38: % | F38: 0 | G38: 1
B39: 37 | C39: Tax Holiday Duration | D39: 10 | E39: years | F39: 0 | G39: =D9 -> 35
B40: 38 | C40: Tax Holiday Start Year | D40: 6 | E40: year | F40: 1 | G40: =D9 -> 35
B41: 39 | C41: MAT set off allowed u/s 115JAA (3A) | D41: 10 | E41: years | F41: 0 | G41: =D9 -> 35
B42: 40 | C42: MAT Setoff Duration | D42: 5 | E42: years | F42: 0 | G42: =D9-D43+1 -> 20
B43: 41 | C43: MAT Setoff Start Year | D43: 16 | E43: year | F43: 2 | G43: =D9 -> 35
B44: 42 | C44: Emission Factor | D44: 0.9 | E44: tons of CO2/MWh | F44: 0 | G44: 10
B45: 43 | C45: Price of one CER | D45: 0 | E45: $/ton | F45: 0 | G45: 100
B46: 44 | C46: Exchange Rate | D46: 50 | E46: Rs/US$ | F46: 1 | G46: 100
B47: 45 | C47: Number of years for initial return on equity | D47: 10 | E47: years | F47: 0 | G47: =D9 -> 35
B48: 46 | C48: Duration of initial Capacity Utilization Factor | D48: 35 | E48: years | F48: 0 | G48: =D9 -> 35
B49: 47 | C49: Capacity Utilization Factor for subsequent years | D49: 0.9 | E49: % | F49: 0 | G49: 1
B50: 48 | C50: Fuel requirement/kWh | D50: 0 | E50: kg/kWh | F50: 0 | G50: 0
B51: 49 | C51: Feedstock Price | D51: 0 | E51: Rs/MT | F51: 0 | G51: 0
B52: 50 | C52: Fuel Cost Escalation | D52: 0 | E52: % | F52: 0 | G52: 0

Sheet Inputs-Biogas (hidden)
B2: No | C2: Inputs and Assumptions | D2: Value | E2: Unit | F2: Min | G2: Max
B3: 1 | C3: Capacity | D3: 1 | E3: MW | F3: 0.001 | G3: 1000
B4: =B3+1 -> 2 | C4: Initial Capacity Utilization Factor | D4: 0.9 | E4: % | F4: 0 | G4: 1
B5: 3 | C5: Annual Gross Generation | D5: =(D3*1000*8760*D4)/10^5 -> 78.84 | E5: Lakh kWhs
B6: 4 | C6: Auxiliary consumption | D6: 0.12 | E6: % | F6: 0 | G6: 0.5
B7: 5 | C7: Annual Net Generation | D7: =D5*(1-D6) -> 69.3792 | E7: Lakh kWhs
B8: 6 | C8: Annual Deration | D8: 0 | E8: % | F8: 0 | G8: 1
B9: 7 | C9: Life of Plant and Machinery / Project Life | D9: 20 | E9: years | F9: 1 | G9: 40
B10: 8 | C10: CapEx | D10: 800 | E10: Rs Lacs/MW | F10: 1 | G10: 5000
B11: 9 | C11: Non - Depreciable Amount | D11: 0.1 | E11: % of Capital Cost | F11: 0 | G11: 1
B12: 10 | C12: Depreciable Amount (Cap Cost Less non-depreciable Cost) | D12: =D10*(100%-D11)*D3 -> 720 | E12: lacs
B13: 11 | C13: Debt Fraction | D13: 0.7 | E13: % | F13: 0 | G13: 0.7
B14: 12 | C14: Debt | D14: =D10*D13*D3 -> 560 | E14: lacs
B15: 13 | C15: Equity | D15: =D10*D3-D14 -> 240 | E15: lacs
B16: 14 | C16: Interest Rate on Term Loan | D16: ='Default-Solar PV'!D67 -> 0.1232 | E16: % | F16: 0 | G16: 0.5
B17: 15 | C17: Loan Term | D17: 12 | E17: years | F17: 1 | G17: 20
B18: 16 | C18: Moratorium | D18: 0 | E18: years | F18: 0 | G18: 11
B19: 17 | C19: Depreciation (Straight Line Method, Company Law) - initial years | D19: 0.0583 | E19: % | F19: 0 | G19: 0.2
B20: 18 | C20: Depreciation (Straight Line Method, Company Law) - later years | D20: =(90%-D19*D21)/D22 -> 0.02505 | E20: % | F20: 0 | G20: 0.2
B21: 19 | C21: Number of years for initial depreciation rate | D21: 12 | E21: years | F21: 0 | G21: 20
B22: 20 | C22: Number of years for later depreciation rate | D22: =D9-D21 -> 8 | E22: years
B23: 21 | C23: Discount Rate | D23: =(D13*D16*(1-D32))+((1-D13)*D34) -> 0.106259432 | E23: %
B24: 22 | C24: O&M cost | D24: 40 | E24: Rs Lacs / MW | F24: 0 | G24: 1000
B25: 23 | C25: O&M Cost Esclation | D25: 0.0572 | E25: % | F25: 0 | G25: 0.1
B26: 24 | C26: Return on Equity - pretax (initial years) | D26: 0.2 | E26: % | F26: 0 | G26: 0.5
B27: 25 | C27: Return on Equity - pretax (later years) | D27: 0.24 | E27: % | F27: 0 | G27: 0.5
B28: 26 | C28: Annuity Factor (25 Years) | D28: =(((1+D23)^D9-1)/(D23*(1+D23)^D9)) -> 8.162129599
B29: 27 | C29: Interest on working capital | D29: ='Default-Solar PV'!D67+0.5% -> 0.1282 | E29: % | F29: 0 | G29: 0.5
B30: 28 | C30: Assumed tariff (Iterative) | D30: 7.21 | E30: Rs / kWh
B31: 29 | C31: Maintenance spares | D31: 0.15 | E31: of yearly O&M Cost | F31: 0 | G31: 1
B32: 30 | C32: Corporate Tax Rate | D32: 0.32445 | E32: % | F32: 0 | G32: 0.5
B33: 31 | C33: MAT | D33: 0.2 | E33: % | F33: 0 | G33: 0.5
B34: 32 | C34: Post Tax ROE | D34: 0.16 | E34: % | F34: 0 | G34: 0.5
B35: 33 | C35: Book depreciation first year | D35: 0.0264 | E35: % | F35: 0 | G35: 0.5
B36: 34 | C36: Book depreciation from second year | D36: 0.0528 | E36: % | F36: 0 | G36: 1
B37: 35 | C37: Accelerated Depreciation first year | D37: 0.4 | E37: % | F37: 0 | G37: 0.5
B38: 36 | C38: Accelerated Depreciation from second year | D38: 0.8 | E38: % | F38: 0 | G38: 1
B39: 37 | C39: Tax Holiday Duration | D39: 10 | E39: years | F39: 0 | G39: 20
B40: 38 | C40: Tax Holiday Start Year | D40: 6 | E40: year | F40: 1 | G40: 20
B41: 39 | C41: MAT set off allowed u/s 115JAA (3A) | D41: 10 | E41: years | F41: 0 | G41: 20
B42: 40 | C42: MAT Setoff Duration | D42: 5 | E42: years | F42: 0 | G42: 5
B43: 41 | C43: MAT Setoff Start Year | D43: 16 | E43: year | F43: 2 | G43: 20
B44: 42 | C44: Emission Factor | D44: 0.9 | E44: tons of CO2/MWh | F44: 0 | G44: 10
B45: 43 | C45: Price of one CER | D45: 0 | E45: $/ton | F45: 0 | G45: 100
B46: 44 | C46: Exchange Rate | D46: 50 | E46: Rs/US$ | F46: 1 | G46: 100
B47: 45 | C47: Number of years for initial return on equity | D47: 10 | E47: years | F47: 0 | G47: 20
B48: 46 | C48: Duration of initial Capacity Utilization Factor | D48: =D9 -> 20 | E48: years | F48: 0 | G48: 20
B49: 47 | C49: Capacity Utilization Factor for subsequent years | D49: 0.9 | E49: % | F49: 0 | G49: 1
B50: 48 | C50: Fuel requirement/kWh | D50: 3 | E50: kg/kWh | F50: 0 | G50: 100
B51: 49 | C51: Feedstock Price | D51: 990 | E51: Rs/MT | F51: 0 | G51: 10000
B52: 50 | C52: Fuel Cost Escalation | D52: 0.03 | E52: % | F52: 0 | G52: 1

Sheet Inputs-Biomass Gasifier (hidden)
B2: No | C2: Inputs and Assumptions | D2: Value | E2: Unit | F2: Min | G2: Max
B3: 1 | C3: Capacity | D3: 1 | E3: MW | F3: 0.001 | G3: 1000
B4: =B3+1 -> 2 | C4: Initial Capacity Utilization Factor | D4: 0.85 | E4: % | F4: 0 | G4: 1
B5: 3 | C5: Annual Gross Generation | D5: =(D3*1000*8760*D4)/10^5 -> 74.46 | E5: Lakh kWhs
B6: 4 | C6: Auxiliary consumption | D6: 0.1 | E6: % | F6: 0 | G6: 0.5
B7: 5 | C7: Annual Net Generation | D7: =D5*(1-D6) -> 67.014 | E7: Lakh kWhs
B8: 6 | C8: Annual Deration | D8: 0 | E8: % | F8: 0 | G8: 1
B9: 7 | C9: Life of Plant and Machinery / Project Life | D9: 20 | E9: years | F9: 1 | G9: 40
B10: 8 | C10: CapEx | D10: 400 | E10: Rs Lacs/MW | F10: 1 | G10: 5000
B11: 9 | C11: Non - Depreciable Amount | D11: 0.1 | E11: % of Capital Cost | F11: 0 | G11: 1
B12: 10 | C12: Depreciable Amount (Cap Cost Less non-depreciable Cost) | D12: =D10*(100%-D11)*D3 -> 360 | E12: lacs
B13: 11 | C13: Debt Fraction | D13: 0.7 | E13: % | F13: 0 | G13: 0.7
B14: 12 | C14: Debt | D14: =D10*D13*D3 -> 280 | E14: lacs
B15: 13 | C15: Equity | D15: =D10*D3-D14 -> 120 | E15: lacs
B16: 14 | C16: Interest Rate on Term Loan | D16: ='Default-Solar PV'!D67 -> 0.1232 | E16: % | F16: 0 | G16: 0.5
B17: 15 | C17: Loan Term | D17: 12 | E17: years | F17: 1 | G17: 20
B18: 16 | C18: Moratorium | D18: 0 | E18: years | F18: 0 | G18: 11
B19: 17 | C19: Depreciation (Straight Line Method, Company Law) - initial years | D19: 0.0583 | E19: % | F19: 0 | G19: 0.2
B20: 18 | C20: Depreciation (Straight Line Method, Company Law) - later years | D20: =(90%-D19*D21)/D22 -> 0.02505 | E20: % | F20: 0 | G20: 0.2
B21: 19 | C21: Number of years for initial depreciation rate | D21: 12 | E21: years | F21: 0 | G21: 20
B22: 20 | C22: Number of years for later depreciation rate | D22: =D9-D21 -> 8 | E22: years
B23: 21 | C23: Discount Rate | D23: =(D13*D16*(1-D32))+((1-D13)*D34) -> 0.106259432 | E23: %
B24: 22 | C24: O&M cost | D24: 40 | E24: Rs Lacs / MW | F24: 0 | G24: 1000
B25: 23 | C25: O&M Cost Esclation | D25: 0.0572 | E25: % | F25: 0 | G25: 0.1
B26: 24 | C26: Return on Equity - pretax (initial years) | D26: 0.2 | E26: % | F26: 0 | G26: 0.5
B27: 25 | C27: Return on Equity - pretax (later years) | D27: 0.24 | E27: % | F27: 0 | G27: 0.5
B28: 26 | C28: Annuity Factor (25 Years) | D28: =(((1+D23)^D9-1)/(D23*(1+D23)^D9)) -> 8.162129599
B29: 27 | C29: Interest on working capital | D29: ='Default-Solar PV'!D67+0.5% -> 0.1282 | E29: % | F29: 0 | G29: 0.5
B30: 28 | C30: Assumed tariff (Iterative) | D30: 5.8 | E30: Rs / kWh
B31: 29 | C31: Maintenance spares | D31: 0.15 | E31: of yearly O&M Cost | F31: 0 | G31: 1
B32: 30 | C32: Corporate Tax Rate | D32: 0.32445 | E32: % | F32: 0 | G32: 0.5
B33: 31 | C33: MAT | D33: 0.2 | E33: % | F33: 0 | G33: 0.5
B34: 32 | C34: Post Tax ROE | D34: 0.16 | E34: % | F34: 0 | G34: 0.5
B35: 33 | C35: Book depreciation first year | D35: 0.0264 | E35: % | F35: 0 | G35: 0.5
B36: 34 | C36: Book depreciation from second year | D36: 0.0528 | E36: % | F36: 0 | G36: 1
B37: 35 | C37: Accelerated Depreciation first year | D37: 0.4 | E37: % | F37: 0 | G37: 0.5
B38: 36 | C38: Accelerated Depreciation from second year | D38: 0.8 | E38: % | F38: 0 | G38: 1
B39: 37 | C39: Tax Holiday Duration | D39: 10 | E39: years | F39: 0 | G39: 20
B40: 38 | C40: Tax Holiday Start Year | D40: 6 | E40: year | F40: 1 | G40: 20
B41: 39 | C41: MAT set off allowed u/s 115JAA (3A) | D41: 10 | E41: years | F41: 0 | G41: 20
B42: 40 | C42: MAT Setoff Duration | D42: 5 | E42: years | F42: 0 | G42: 5
B43: 41 | C43: MAT Setoff Start Year | D43: 16 | E43: year | F43: 2 | G43: 20
B44: 42 | C44: Emission Factor | D44: 0.9 | E44: tons of CO2/MWh | F44: 0 | G44: 10
B45: 43 | C45: Price of one CER | D45: 0 | E45: $/ton | F45: 0 | G45: 100
B46: 44 | C46: Exchange Rate | D46: 50 | E46: Rs/US$ | F46: 1 | G46: 100
B47: 45 | C47: Number of years for initial return on equity | D47: 10 | E47: years | F47: 0 | G47: 20
B48: 46 | C48: Duration of initial Capacity Utilization Factor | D48: =D9 -> 20 | E48: years | F48: 0 | G48: 20
B49: 47 | C49: Capacity Utilization Factor for subsequent years | D49: 0.85 | E49: % | F49: 0 | G49: 1
B50: 48 | C50: Fuel requirement/kWh | D50: 1.25 | E50: kg/kWh | F50: 0 | G50: 100
B51: 49 | C51: Feedstock Price | D51: 2116 | E51: Rs/MT | F51: 0 | G51: 10000
B52: 50 | C52: Fuel Cost Escalation | D52: 0.03 | E52: % | F52: 0 | G52: 1
C55: State | D55: FY2012-13
C56: Andhra Pradesh | D56: 2315 | E56: (Rs /MT)
C57: Haryana | D57: 2635 | E57: (Rs /MT)
C58: Maharashtra | D58: 2116 | E58: (Rs /MT)
C59: Madhya Pradesh | D59: 1507 | E59: (Rs /MT)
C60: Punjab | D60: 2756 | E60: (Rs /MT)
C61: Rajasthan | D61: 2300 | E61: (Rs /MT)
C62: Tamil Nadu | D62: 2277 | E62: (Rs /MT)
C63: Uttar Pradesh | D63: 2355 | E63: (Rs /MT)
C64: Other States | D64: 2283 | E64: (Rs /MT)
C66: Do we need these?
C67: Station Heat Rate | E67: kCal/kWh
C68: Calorific value of Biomass | E68: kCal/kg

Sheet Inputs-Biomass Rankine Cycle (hidden)
B2: No | C2: Inputs and Assumptions | D2: Value | E2: Unit | F2: Min | G2: Max
B3: 1 | C3: Capacity | D3: 1 | E3: MW | F3: 0.001 | G3: 1000
B4: =B3+1 -> 2 | C4: Initial Capacity Utilization Factor | D4: 0.65 | E4: % | F4: 0 | G4: 1
B5: 3 | C5: Annual Gross Generation | D5: =(D3*1000*8760*D4)/10^5 -> 56.94 | E5: Lakh kWhs
B6: 4 | C6: Auxiliary consumption | D6: 0.1 | E6: % | F6: 0 | G6: 0.5
B7: 5 | C7: Annual Net Generation | D7: =D5*(1-D6) -> 51.246 | E7: Lakh kWhs
B8: 6 | C8: Annual Deration | D8: 0 | E8: % | F8: 0 | G8: 1
B9: 7 | C9: Life of Plant and Machinery / Project Life | D9: 20 | E9: years | F9: 1 | G9: 40
B10: 8 | C10: CapEx | D10: 445 | E10: Rs Lacs/MW | F10: 1 | G10: 5000
B11: 9 | C11: Non - Depreciable Amount | D11: 0.1 | E11: % of Capital Cost | F11: 0 | G11: 1
B12: 10 | C12: Depreciable Amount (Cap Cost Less non-depreciable Cost) | D12: =D10*(100%-D11)*D3 -> 400.5 | E12: lacs
B13: 11 | C13: Debt Fraction | D13: 0.7 | E13: % | F13: 0 | G13: 0.7
B14: 12 | C14: Debt | D14: =D10*D13*D3 -> 311.5 | E14: lacs
B15: 13 | C15: Equity | D15: =D10*D3-D14 -> 133.5 | E15: lacs
B16: 14 | C16: Interest Rate on Term Loan | D16: ='Default-Solar PV'!D67 -> 0.1232 | E16: % | F16: 0 | G16: 0.5
B17: 15 | C17: Loan Term | D17: 12 | E17: years | F17: 1 | G17: 20
B18: 16 | C18: Moratorium | D18: 0 | E18: years | F18: 0 | G18: 11
B19: 17 | C19: Depreciation (Straight Line Method, Company Law) - initial years | D19: 0.0583 | E19: % | F19: 0 | G19: 0.2
B20: 18 | C20: Depreciation (Straight Line Method, Company Law) - later years | D20: =(90%-D19*D21)/D22 -> 0.02505 | E20: % | F20: 0 | G20: 0.2
B21: 19 | C21: Number of years for initial depreciation rate | D21: 12 | E21: years | F21: 0 | G21: 20
B22: 20 | C22: Number of years for later depreciation rate | D22: =D9-D21 -> 8 | E22: years
B23: 21 | C23: Discount Rate | D23: =(D13*D16*(1-D32))+((1-D13)*D34) -> 0.106259432 | E23: %
B24: 22 | C24: O&M cost | D24: 24 | E24: Rs Lacs / MW | F24: 0 | G24: 1000
B25: 23 | C25: O&M Cost Esclation | D25: 0.0572 | E25: % | F25: 0 | G25: 0.1
B26: 24 | C26: Return on Equity - pretax (initial years) | D26: 0.2 | E26: % | F26: 0 | G26: 0.5
B27: 25 | C27: Return on Equity - pretax (later years) | D27: 0.24 | E27: % | F27: 0 | G27: 0.5
B28: 26 | C28: Annuity Factor (25 Years) | D28: =(((1+D23)^D9-1)/(D23*(1+D23)^D9)) -> 8.162129599
B29: 27 | C29: Interest on working capital | D29: ='Default-Solar PV'!D67+0.5% -> 0.1282 | E29: % | F29: 0 | G29: 0.5
B30: 28 | C30: Assumed tariff (Iterative) | D30: 6.9 | E30: Rs / kWh
B31: 29 | C31: Maintenance spares | D31: 0.15 | E31: of yearly O&M Cost | F31: 0 | G31: 1
B32: 30 | C32: Corporate Tax Rate | D32: 0.32445 | E32: % | F32: 0 | G32: 0.5
B33: 31 | C33: MAT | D33: 0.2 | E33: % | F33: 0 | G33: 0.5
B34: 32 | C34: Post Tax ROE | D34: 0.16 | E34: % | F34: 0 | G34: 0.5
B35: 33 | C35: Book depreciation first year | D35: 0.0264 | E35: % | F35: 0 | G35: 0.5
B36: 34 | C36: Book depreciation from second year | D36: 0.0528 | E36: % | F36: 0 | G36: 1
B37: 35 | C37: Accelerated Depreciation first year | D37: 0.4 | E37: % | F37: 0 | G37: 0.5
B38: 36 | C38: Accelerated Depreciation from second year | D38: 0.8 | E38: % | F38: 0 | G38: 1
B39: 37 | C39: Tax Holiday Duration | D39: 10 | E39: years | F39: 0 | G39: 20
B40: 38 | C40: Tax Holiday Start Year | D40: 6 | E40: year | F40: 1 | G40: 20
B41: 39 | C41: MAT set off allowed u/s 115JAA (3A) | D41: 10 | E41: years | F41: 0 | G41: 20
B42: 40 | C42: MAT Setoff Duration | D42: 5 | E42: years | F42: 0 | G42: 5
B43: 41 | C43: MAT Setoff Start Year | D43: 16 | E43: year | F43: 2 | G43: 20
B44: 42 | C44: Emission Factor | D44: 0.9 | E44: tons of CO2/MWh | F44: 0 | G44: 10
B45: 43 | C45: Price of one CER | D45: 0 | E45: $/ton | F45: 0 | G45: 100
B46: 44 | C46: Exchange Rate | D46: 50 | E46: Rs/US$ | F46: 1 | G46: 100
B47: 45 | C47: Number of years for initial return on equity | D47: 10 | E47: years | F47: 0 | G47: 20
B48: 46 | C48: Duration of initial Capacity Utilization Factor | D48: 2 | E48: years | F48: 0 | G48: 20
B49: 47 | C49: Capacity Utilization Factor for subsequent years | D49: 0.8 | E49: % | F49: 0 | G49: 1
B50: 48 | C50: Fuel requirement/kWh | D50: =ROUND('Default-Biomass Rankine Cycle'!D68, 3) -> 1.212 | E50: kg/kWh | F50: 0 | G50: 100
B51: 49 | C51: Feedstock Price | D51: 2695 | E51: Rs/MT | F51: 0 | G51: 10000
B52: 50 | C52: Fuel Cost Escalation | D52: 0.03 | E52: % | F52: 0 | G52: 1

Sheet Inputs-Bagasse (hidden)
B2: No | C2: Inputs and Assumptions | D2: Value | E2: Unit | F2: Min | G2: Max
B3: 1 | C3: Capacity | D3: 1 | E3: MW | F3: 0.001 | G3: 1000
B4: =B3+1 -> 2 | C4: Initial Capacity Utilization Factor | D4: 0.5 | E4: % | F4: 0 | G4: 1
B5: 3 | C5: Annual Gross Generation | D5: =(D3*1000*8760*D4)/10^5 -> 43.8 | E5: Lakh kWhs
B6: 4 | C6: Auxiliary consumption | D6: 0.085 | E6: % | F6: 0 | G6: 0.5
B7: 5 | C7: Annual Net Generation | D7: =D5*(1-D6) -> 40.077 | E7: Lakh kWhs
B8: 6 | C8: Annual Deration | D8: 0 | E8: % | F8: 0 | G8: 1
B9: 7 | C9: Life of Plant and Machinery / Project Life | D9: 20 | E9: years | F9: 1 | G9: 40
B10: 8 | C10: CapEx | D10: 420 | E10: Rs Lacs/MW | F10: 1 | G10: 5000
B11: 9 | C11: Non - Depreciable Amount | D11: 0.1 | E11: % of Capital Cost | F11: 0 | G11: 1
B12: 10 | C12: Depreciable Amount (Cap Cost Less non-depreciable Cost) | D12: =D10*(100%-D11)*D3 -> 378 | E12: lacs
B13: 11 | C13: Debt Fraction | D13: 0.7 | E13: % | F13: 0 | G13: 0.7
B14: 12 | C14: Debt | D14: =D10*D13*D3 -> 294 | E14: lacs
B15: 13 | C15: Equity | D15: =D10*D3-D14 -> 126 | E15: lacs
B16: 14 | C16: Interest Rate on Term Loan | D16: ='Default-Solar PV'!D67 -> 0.1232 | E16: % | F16: 0 | G16: 0.5
B17: 15 | C17: Loan Term | D17: 12 | E17: years | F17: 1 | G17: 20
B18: 16 | C18: Moratorium | D18: 0 | E18: years | F18: 0 | G18: 11
B19: 17 | C19: Depreciation (Straight Line Method, Company Law) - initial years | D19: 0.0583 | E19: % | F19: 0 | G19: 0.2
B20: 18 | C20: Depreciation (Straight Line Method, Company Law) - later years | D20: =(90%-D19*D21)/D22 -> 0.02505 | E20: % | F20: 0 | G20: 0.2
B21: 19 | C21: Number of years for initial depreciation rate | D21: 12 | E21: years | F21: 0 | G21: 20
B22: 20 | C22: Number of years for later depreciation rate | D22: =D9-D21 -> 8 | E22: years
B23: 21 | C23: Discount Rate | D23: =(D13*D16*(1-D32))+((1-D13)*D34) -> 0.106259432 | E23: %
B24: 22 | C24: O&M cost | D24: 16 | E24: Rs Lacs / MW | F24: 0 | G24: 1000
B25: 23 | C25: O&M Cost Esclation | D25: 0.0572 | E25: % | F25: 0 | G25: 0.1
B26: 24 | C26: Return on Equity - pretax (initial years) | D26: 0.2 | E26: % | F26: 0 | G26: 0.5
B27: 25 | C27: Return on Equity - pretax (later years) | D27: 0.24 | E27: % | F27: 0 | G27: 0.5
B28: 26 | C28: Annuity Factor (25 Years) | D28: =(((1+D23)^D9-1)/(D23*(1+D23)^D9)) -> 8.162129599
B29: 27 | C29: Interest on working capital | D29: ='Default-Solar PV'!D67+0.5% -> 0.1282 | E29: % | F29: 0 | G29: 0.5
B30: 28 | C30: Assumed tariff (Iterative) | D30: 6.51 | E30: Rs / kWh
B31: 29 | C31: Maintenance spares | D31: 0.15 | E31: of yearly O&M Cost | F31: 0 | G31: 1
B32: 30 | C32: Corporate Tax Rate | D32: 0.32445 | E32: % | F32: 0 | G32: 0.5
B33: 31 | C33: MAT | D33: 0.2 | E33: % | F33: 0 | G33: 0.5
B34: 32 | C34: Post Tax ROE | D34: 0.16 | E34: % | F34: 0 | G34: 0.5
B35: 33 | C35: Book depreciation first year | D35: 0.0264 | E35: % | F35: 0 | G35: 0.5
B36: 34 | C36: Book depreciation from second year | D36: 0.0528 | E36: % | F36: 0 | G36: 1
B37: 35 | C37: Accelerated Depreciation first year | D37: 0.4 | E37: % | F37: 0 | G37: 0.5
B38: 36 | C38: Accelerated Depreciation from second year | D38: 0.8 | E38: % | F38: 0 | G38: 1
B39: 37 | C39: Tax Holiday Duration | D39: 10 | E39: years | F39: 0 | G39: 20
B40: 38 | C40: Tax Holiday Start Year | D40: 6 | E40: year | F40: 1 | G40: 20
B41: 39 | C41: MAT set off allowed u/s 115JAA (3A) | D41: 10 | E41: years | F41: 0 | G41: 20
B42: 40 | C42: MAT Setoff Duration | D42: 5 | E42: years | F42: 0 | G42: 5
B43: 41 | C43: MAT Setoff Start Year | D43: 16 | E43: year | F43: 2 | G43: 20
B44: 42 | C44: Emission Factor | D44: 0.9 | E44: tons of CO2/MWh | F44: 0 | G44: 10
B45: 43 | C45: Price of one CER | D45: 0 | E45: $/ton | F45: 0 | G45: 100
B46: 44 | C46: Exchange Rate | D46: 50 | E46: Rs/US$ | F46: 1 | G46: 100
B47: 45 | C47: Number of years for initial return on equity | D47: 10 | E47: years | F47: 0 | G47: 20
B48: 46 | C48: Duration of initial Capacity Utilization Factor | D48: =D9 -> 20 | E48: years | F48: 0 | G48: 20
B49: 47 | C49: Capacity Utilization Factor for subsequent years | D49: 0.5 | E49: % | F49: 0 | G49: 1
B50: 48 | C50: Fuel requirement/kWh | D50: ='Default-Bagasse'!D67 -> 1.6 | E50: kg/kWh | F50: 0 | G50: 100
B51: 49 | C51: Feedstock Price | D51: 1832 | E51: Rs/MT | F51: 0 | G51: 10000
B52: 50 | C52: Fuel Cost Escalation | D52: 0.03 | E52: % | F52: 0 | G52: 1

Sheet Form Input
B2: No | C2: Inputs and Assumptions | D2: Value | E2: Unit | F2: Min | G2: Max
B3: 1 | C3: Capacity | D3: 1 | E3: MW | F3: 0.001 | G3: 1000
B4: =B3+1 -> 2 | C4: Initial Capacity Utilization Factor | D4: 0.19 | E4: % | F4: 0 | G4: 0.4
B5: =B4+1 -> 3 | C5: Annual Gross Generation | D5: =(D3*1000*8760*D4)/10^5 -> 16.644 | E5: Lakh kWhs
B6: 4 | C6: Auxiliary consumption | D6: 0 | E6: % | F6: 0 | G6: 0.5
B7: 5 | C7: Annual Net Generation | D7: =D5*(1-D6) -> 16.644 | E7: Lakh kWhs
B8: 6 | C8: Annual Deration | D8: 0 | E8: % | F8: 0 | G8: 1
B9: 7 | C9: Life of Plant and Machinery / Project Life | D9: 25 | E9: years | F9: 1 | G9: 40
B10: 8 | C10: CapEx | D10: 1000 | E10: Rs Lacs/MW | F10: 1 | G10: 10000
B11: 9 | C11: Non - Depreciable Amount | D11: 0.1 | E11: % of Capital Cost | F11: 0 | G11: 1
B12: 10 | C12: Depreciable Amount (Cap Cost Less non-depreciable Cost) | D12: =D10*D3*(100%-D11) -> 900 | E12: lacs
B13: 11 | C13: Debt Fraction | D13: 0.7 | E13: % | F13: 0 | G13: 0.7
B14: 12 | C14: Debt | D14: =D10*D3*D13 -> 700 | E14: lacs
B15: 13 | C15: Equity | D15: =D10*D3-D14 -> 300 | E15: lacs
B16: 14 | C16: Interest Rate on Term Loan | D16: 0.1232 | E16: % | F16: 0 | G16: 0.5
B17: 15 | C17: Loan Term | D17: 12 | E17: years | F17: 1 | G17: 50
B18: 16 | C18: Moratorium | D18: 0 | E18: years | F18: 0 | G18: =G17/2 -> 25
B19: 17 | C19: Depreciation (Straight Line Method, Company Law) - initial years | D19: 0.0583 | E19: % | F19: 0 | G19: 0.2
B20: 18 | C20: Depreciation (Straight Line Method, Company Law) - later years | D20: 0.01541538462 | E20: % | F20: 0 | G20: 0.2
B21: 19 | C21: Number of years for initial depreciation rate | D21: 12 | E21: years | F21: 0 | G21: =G17 -> 50
B22: 20 | C22: Number of years for later depreciation rate | D22: 13 | E22: years
B23: 21 | C23: Discount Rate | D23: 0.106259432 | E23: %
B24: 22 | C24: O&M cost | D24: 11 | E24: Rs Lacs / MW | F24: 0 | G24: 1000
B25: 23 | C25: O&M Cost Esclation | D25: 0.0572 | E25: % | F25: 0 | G25: 0.1
B26: 24 | C26: Return on Equity - pretax (initial years) | D26: 0.2 | E26: % | F26: 0 | G26: =G16 -> 0.5
B27: 25 | C27: Return on Equity - pretax (later years) | D27: 0.24 | E27: % | F27: 0 | G27: =G16 -> 0.5
B28: 26 | C28: Annuity Factor (25 Years) | D28: =(((1+D23)^D9-1)/(D23*(1+D23)^D9)) -> 8.657213087
B29: 27 | C29: Interest on working capital | D29: 0.1282 | E29: % | F29: 0 | G29: =G16 -> 0.5
B30: 28 | C30: Assumed tariff (Iterative) | D30: 10.33 | E30: Rs / kWh
B31: 29 | C31: Maintenance spares | D31: 0.15 | E31: of yearly O&M Cost | F31: 0 | G31: 1
B32: 30 | C32: Corporate Tax Rate | D32: 0.32445 | E32: % | F32: 0 | G32: =G16 -> 0.5
B33: 31 | C33: MAT | D33: 0.20008 | E33: % | F33: 0 | G33: =G16 -> 0.5
B34: 32 | C34: Post Tax ROE | D34: 0.16 | E34: % | F34: 0 | G34: =G16 -> 0.5
B35: 33 | C35: Book depreciation first year | D35: 0.0264 | E35: % | F35: 0 | G35: 0.5
B36: 34 | C36: Book depreciation from second year | D36: 0.0528 | E36: % | F36: 0 | G36: 1
B37: 35 | C37: Accelerated Depreciation first year | D37: 0.4 | E37: % | F37: 0 | G37: 0.5
B38: 36 | C38: Accelerated Depreciation from second year | D38: 0.8 | E38: % | F38: 0 | G38: 1
B39: 37 | C39: Tax Holiday Duration | D39: 10 | E39: years | F39: 0 | G39: =D9 -> 25
B40: 38 | C40: Tax Holiday Start Year | D40: 6 | E40: year | F40: 1 | G40: =D9 -> 25
B41: 39 | C41: MAT set off accumulation allowed u/s 115JAA (3A) | D41: 10 | E41: years | F41: 0 | G41: =D9 -> 25
B42: 40 | C42: MAT Setoff Duration | D42: 5 | E42: years | F42: 0 | G42: =D9-D43+1 -> 10
B43: 41 | C43: MAT Setoff Start Year | D43: 16 | E43: year | F43: 2 | G43: =D9 -> 25
B44: 42 | C44: Emission Factor | D44: 0.9 | E44: tons of CO2/MWh | F44: 0 | G44: 10
B45: 43 | C45: Price of one CER | D45: 0 | E45: $/ton | F45: 0 | G45: 100
B46: 44 | C46: Exchange Rate | D46: 50 | E46: Rs/US$ | F46: 1 | G46: 100
B47: 45 | C47: Number of years for initial return on equity | D47: 10 | E47: years | F47: 0 | G47: =D9 -> 25
B48: 46 | C48: Duration of initial Capacity Utilization Factor | D48: 25 | E48: years | F48: 0 | G48: =D9 -> 25
B49: 47 | C49: Capacity Utilization Factor for subsequent years | D49: 0.9 | E49: % | F49: 0 | G49: 1
B50: 48 | C50: Fuel requirement/kWh | D50: 0 | E50: kg/kWh | F50: 0 | G50: 0
B51: 49 | C51: Feedstock Price | D51: 0 | E51: Rs/MT | F51: 0 | G51: 0
B52: 50 | C52: Fuel Cost Escalation | D52: 0 | E52: % | F52: 0 | G52: 0

Sheet Introduction
O2: Technologies Supported:
O3: Solar PV
O4: Solar Thermal
O5: Wind
O6: Small Hydro
O7: Biogas
O8: Bagasse
O9: Biomass Gasifier
O10: Biomass Rankine Cycle

Sheet Summary Results
A1: Renewable Energy Tariff and Financial Analysis Tool v1.0
A2: developed by Prayas Energy Group
B4: Input | H4: Output
B5: Solar PV | C5: Quantity | D5: Units | H5: Solar PV | I5: Without AD | J5: With AD
B6: ='Form Input'!C3 -> Capacity | C6: ='Form Input'!D3 -> 1 | D6: ='Form Input'!E3 -> MW | H6: =Tariff!B26 -> Levelized Tariff | I6: =Tariff!$C$26 -> 10.33351086 | J6: =$I$6-Depreciation!$C$31 -> 9.31593581
B7: ='Form Input'!C4 -> Initial Capacity Utilization Factor | C7: ='Form Input'!D4 -> 0.19 | H7: =DSCR!B15 -> Average DSCR | I7: =DSCR!C15 -> 1.444029197 | J7: =DSCR!C19 -> 1.302009417
B8: ='Form Input'!C6 -> Auxiliary consumption | C8: ='Form Input'!D6 -> 0 | H8: =DSCR!B14 -> MINIMUM DSCR (after 1st year) | I8: =DSCR!C14 -> 1.036809306 | J8: =DSCR!C18 -> 0.9409178798
B9: ='Form Input'!C10 -> CapEx | C9: ='Form Input'!D10 -> 1000 | D9: ='Form Input'!E10 -> Rs Lacs/MW | H9: Project IRR-Post Tax | I9: =IRR!C27 -> 0.1301387863 | J9: ='IRR-AD'!C32 -> 0.1415784174
B10: ='Form Input'!C23 -> Discount Rate | C10: ='Form Input'!D23 -> 0.106259432 | H10: =IRR!B45 -> Equity IRR (Post Tax) | I10: =IRR!C45 -> 0.1421144158 | J10: ='IRR-AD'!C46 -> 0.1798421459
B11: ='Form Input'!C16 -> Interest Rate on Term Loan | C11: ='Form Input'!D16 -> 0.1232
H12: Note: Accelerated Depreciation (AD) applies only to Solar projects

Sheet Term Loan
I2: Term Loan Payments
B3: User Input | C3: Value | D3: Units
B4: Loan amount | C4: ='Form Input'!D14 -> 700 | D4: Rs lacs
B5: Interest Rate | C5: ='Form Input'!D16 -> 0.1232 | D5: %
B6: ='Form Input'!C17 -> Loan Term | C6: ='Form Input'!D17 -> 12 | D6: ='Form Input'!E17 -> years
B7: Moratorium | C7: ='Form Input'!D18 -> 0 | D7: Year
B8: No of installments for principal payment | C8: =IF(C7>0,(C6-1)*12*C7,C6*12) -> 144 | D8: Months
B9: Monthly Principal repayment | C9: =C4/C8 -> 4.861111111 | D9: Rs lacs
B11: TERM LOAN REPAYMENT Details | C11: 1 | D11: =C11+1 -> 2 | E11: =D11+1 -> 3 | F11: 4 | G11: 5 | H11: 6 | I11: 7 | J11: 8 | K11: 9 | L11: 10 | M11: 11 | N11: 12 | O11: 13 | P11: 14 | Q11: 15 | R11: 16 | S11: 17 | T11: 18 | U11: 19 | V11: 20 | W11: 21 | X11: 22 | Y11: 23 | Z11: 24 | AA11: 25 | AB11: 26 | AC11: 27 | AD11: 28 | AE11: 29 | AF11: 30 | AG11: 31 | AH11: 32 | AI11: 33 | AJ11: 34 | AK11: 35 | AL11: 36 | AM11: =AL11+1 -> 37 | AN11: 38 | AO11: 39 | AP11: 40
B12: Instalment-1 | C12: =IF($C$7>=C$11,0,$C$9) -> 4.861111111 | D12: =IF($C$7>=D$11,0,IF(C$25>=$C$4,0,$C$9)) -> 4.861111111 | E12: 4.861111111 | F12: 4.861111111 | G12: 4.861111111 | H12: 4.861111111 | I12: 4.861111111 | J12: 4.861111111 | K12: 4.861111111 | L12: 4.861111111 | M12: 4.861111111 | N12: 4.861111111 | O12: 0 | P12: 0 | Q12: 0 | R12: 0 | S12: 0 | T12: 0 | U12: 0 | V12: 0 | W12: =IF($C$7>=W$11,0,IF(V$25>=$C$4,0,$C$9)) -> 0 | X12: 0 | Y12: 0 | Z12: 0 | AA12: 0 | AB12: 0 | AC12: 0 | AD12: 0 | AE12: 0 | AF12: 0 | AG12: 0 | AH12: 0 | AI12: 0 | AJ12: 0 | AK12: 0 | AL12: 0 | AM12: 0 | AN12: 0 | AO12: 0 | AP12: 0
B13: Instalment-2 | C13: =IF($C$7>=C$11,0,$C$9) -> 4.861111111 | D13: =IF($C$7>=D$11,0,IF(C$25>=$C$4,0,$C$9)) -> 4.861111111 | E13: 4.861111111 | F13: 4.861111111 | G13: 4.861111111 | H13: 4.861111111 | I13: 4.861111111 | J13: 4.861111111 | K13: 4.861111111 | L13: 4.861111111 | M13: 4.861111111 | N13: 4.861111111 | O13: 0 | P13: 0 | Q13: 0 | R13: 0 | S13: 0 | T13: 0 | U13: 0 | V13: 0 | W13: =IF($C$7>=W$11,0,IF(V$25>=$C$4,0,$C$9)) -> 0 | X13: 0 | Y13: 0 | Z13: 0 | AA13: 0 | AB13: 0 | AC13: 0 | AD13: 0 | AE13: 0 | AF13: 0 | AG13: 0 | AH13: 0 | AI13: 0 | AJ13: 0 | AK13: 0 | AL13: 0 | AM13: 0 | AN13: 0 | AO13: 0 | AP13: 0
B14: Instalment-3 | C14: 4.861111111 | D14: =IF($C$7>=D$11,0,IF(C$25>=$C$4,0,$C$9)) -> 4.861111111 | E14: 4.861111111 | F14: 4.861111111 | G14: 4.861111111 | H14: 4.861111111 | I14: 4.861111111 | J14: 4.861111111 | K14: 4.861111111 | L14: 4.861111111 | M14: 4.861111111 | N14: 4.861111111 | O14: 0 | P14: 0 | Q14: 0 | R14: 0 | S14: 0 | T14: 0 | U14: 0 | V14: 0 | W14: =IF($C$7>=W$11,0,IF(V$25>=$C$4,0,$C$9)) -> 0 | X14: 0 | Y14: 0 | Z14: 0 | AA14: 0 | AB14: 0 | AC14: 0 | AD14: 0 | AE14: 0 | AF14: 0 | AG14: 0 | AH14: 0 | AI14: 0 | AJ14: 0 | AK14: 0 | AL14: 0 | AM14: 0 | AN14: 0 | AO14: 0 | AP14: 0
B15: Instalment-4 | C15: 4.861111111 | D15: =IF($C$7>=D$11,0,IF(C$25>=$C$4,0,$C$9)) -> 4.861111111 | E15: 4.861111111 | F15: 4.861111111 | G15: 4.861111111 | H15: 4.861111111 | I15: 4.861111111 | J15: 4.861111111 | K15: 4.861111111 | L15: 4.861111111 | M15: 4.861111111 | N15: 4.861111111 | O15: 0 | P15: 0 | Q15: 0 | R15: 0 | S15: 0 | T15: 0 | U15: 0 | V15: 0 | W15: =IF($C$7>=W$11,0,IF(V$25>=$C$4,0,$C$9)) -> 0 | X15: 0 | Y15: 0 | Z15: 0 | AA15: 0 | AB15: 0 | AC15: 0 | AD15: 0 | AE15: 0 | AF15: 0 | AG15: 0 | AH15: 0 | AI15: 0 | AJ15: 0 | AK15: 0 | AL15: 0 | AM15: 0 | AN15: 0 | AO15: 0 | AP15: 0
B16: Instalment-5 | C16: 4.861111111 | D16: =IF($C$7>=D$11,0,IF(C$25>=$C$4,0,$C$9)) -> 4.861111111 | E16: 4.861111111 | F16: 4.861111111 | G16: 4.861111111 | H16: 4.861111111 | I16: 4.861111111 | J16: 4.861111111 | K16: 4.861111111 | L16: 4.861111111 | M16: 4.861111111 | N16: 4.861111111 | O16: 0 | P16: 0 | Q16: 0 | R16: 0 | S16: 0 | T16: 0 | U16: 0 | V16: 0 | W16: =IF($C$7>=W$11,0,IF(V$25>=$C$4,0,$C$9)) -> 0 | X16: 0 | Y16: 0 | Z16: 0 | AA16: 0 | AB16: 0 | AC16: 0 | AD16: 0 | AE16: 0 | AF16: 0 | AG16: 0 | AH16: 0 | AI16: 0 | AJ16: 0 | AK16: 0 | AL16: 0 | AM16: 0 | AN16: 0 | AO16: 0 | AP16: 0
B17: Instalment-6 | C17: 4.861111111 | D17: =IF($C$7>=D$11,0,IF(C$25>=$C$4,0,$C$9)) -> 4.861111111 | E17: 4.861111111 | F17: 4.861111111 | G17: 4.861111111 | H17: 4.861111111 | I17: 4.861111111 | J17: 4.861111111 | K17: 4.861111111 | L17: 4.861111111 | M17: 4.861111111 | N17: 4.861111111 | O17: 0 | P17: 0 | Q17: 0 | R17: 0 | S17: 0 | T17: 0 | U17: 0 | V17: 0 | W17: =IF($C$7>=W$11,0,IF(V$25>=$C$4,0,$C$9)) -> 0 | X17: 0 | Y17: 0 | Z17: 0 | AA17: 0 | AB17: 0 | AC17: 0 | AD17: 0 | AE17: 0 | AF17: 0 | AG17: 0 | AH17: 0 | AI17: 0 | AJ17: 0 | AK17: 0 | AL17: 0 | AM17: 0 | AN17: 0 | AO17: 0 | AP17: 0
B18: Instalment-7 | C18: 4.861111111 | D18: =IF($C$7>=D$11,0,IF(C$25>=$C$4,0,$C$9)) -> 4.861111111 | E18: 4.861111111 | F18: 4.861111111 | G18: 4.861111111 | H18: 4.861111111 | I18: 4.861111111 | J18: 4.861111111 | K18: 4.861111111 | L18: 4.861111111 | M18: 4.861111111 | N18: 4.861111111 | O18: 0 | P18: 0 | Q18: 0 | R18: 0 | S18: 0 | T18: 0 | U18: 0 | V18: 0 | W18: =IF($C$7>=W$11,0,IF(V$25>=$C$4,0,$C$9)) -> 0 | X18: 0 | Y18: 0 | Z18: 0 | AA18: 0 | AB18: 0 | AC18: 0 | AD18: 0 | AE18: 0 | AF18: 0 | AG18: 0 | AH18: 0 | AI18: 0 | AJ18: 0 | AK18: 0 | AL18: 0 | AM18: 0 | AN18: 0 | AO18: 0 | AP18: 0
B19: Instalment-8 | C19: 4.861111111 | D19: =IF($C$7>=D$11,0,IF(C$25>=$C$4,0,$C$9)) -> 4.861111111 | E19: 4.861111111 | F19: 4.861111111 | G19: 4.861111111 | H19: 4.861111111 | I19: 4.861111111 | J19: 4.861111111 | K19: 4.861111111 | L19: 4.861111111 | M19: 4.861111111 | N19: 4.861111111 | O19: 0 | P19: 0 | Q19: 0 | R19: 0 | S19: 0 | T19: 0 | U19: 0 | V19: 0 | W19: =IF($C$7>=W$11,0,IF(V$25>=$C$4,0,$C$9)) -> 0 | X19: 0 | Y19: 0 | Z19: 0 | AA19: 0 | AB19: 0 | AC19: 0 | AD19: 0 | AE19: 0 | AF19: 0 | AG19: 0 | AH19: 0 | AI19: 0 | AJ19: 0 | AK19: 0 | AL19: 0 | AM19: 0 | AN19: 0 | AO19: 0 | AP19: 0
B20: Instalment-9 | C20: 4.861111111 | D20: =IF($C$7>=D$11,0,IF(C$25>=$C$4,0,$C$9)) -> 4.861111111 | E20: 4.861111111 | F20: 4.861111111 | G20: 4.861111111 | H20: 4.861111111 | I20: 4.861111111 | J20: 4.861111111 | K20: 4.861111111 | L20: 4.861111111 | M20: 4.861111111 | N20: 4.861111111 | O20: 0 | P20: 0 | Q20: 0 | R20: 0 | S20: 0 | T20: 0 | U20: 0 | V20: 0 | W20: =IF($C$7>=W$11,0,IF(V$25>=$C$4,0,$C$9)) -> 0 | X20: 0 | Y20: 0 | Z20: 0 | AA20: 0 | AB20: 0 | AC20: 0 | AD20: 0 | AE20: 0 | AF20: 0 | AG20: 0 | AH20: 0 | AI20: 0 | AJ20: 0 | AK20: 0 | AL20: 0 | AM20: 0 | AN20: 0 | AO20: 0 | AP20: 0
B21: Instalment-10 | C21: 4.861111111 | D21: =IF($C$7>=D$11,0,IF(C$25>=$C$4,0,$C$9)) -> 4.861111111 | E21: 4.861111111 | F21: 4.861111111 | G21: 4.861111111 | H21: 4.861111111 | I21: 4.861111111 | J21: 4.861111111 | K21: 4.861111111 | L21: 4.861111111 | M21: 4.861111111 | N21: 4.861111111 | O21: 0 | P21: 0 | Q21: 0 | R21: 0 | S21: 0 | T21: 0 | U21: 0 | V21: 0 | W21: =IF($C$7>=W$11,0,IF(V$25>=$C$4,0,$C$9)) -> 0 | X21: 0 | Y21: 0 | Z21: 0 | AA21: 0 | AB21: 0 | AC21: 0 | AD21: 0 | AE21: 0 | AF21: 0 | AG21: 0 | AH21: 0 | AI21: 0 | AJ21: 0 | AK21: 0 | AL21: 0 | AM21: 0 | AN21: 0 | AO21: 0 | AP21: 0
B22: Instalment-11 | C22: 4.861111111 | D22: =IF($C$7>=D$11,0,IF(C$25>=$C$4,0,$C$9)) -> 4.861111111 | E22: 4.861111111 | F22: 4.861111111 | G22: 4.861111111 | H22: 4.861111111 | I22: 4.861111111 | J22: 4.861111111 | K22: 4.861111111 | L22: 4.861111111 | M22: 4.861111111 | N22: 4.861111111 | O22: 0 | P22: 0 | Q22: 0 | R22: 0 | S22: 0 | T22: 0 | U22: 0 | V22: 0 | W22: =IF($C$7>=W$11,0,IF(V$25>=$C$4,0,$C$9)) -> 0 | X22: 0 | Y22: 0 | Z22: 0 | AA22: 0 | AB22: 0 | AC22: 0 | AD22: 0 | AE22: 0 | AF22: 0 | AG22: 0 | AH22: 0 | AI22: 0 | AJ22: 0 | AK22: 0 | AL22: 0 | AM22: 0 | AN22: 0 | AO22: 0 | AP22: 0
B23: Instalment-12 | C23: 4.861111111 | D23: =IF($C$7>=D$11,0,IF(C$25>=$C$4,0,$C$9)) -> 4.861111111 | E23: 4.861111111 | F23: 4.861111111 | G23: 4.861111111 | H23: 4.861111111 | I23: 4.861111111 | J23: 4.861111111 | K23: 4.861111111 | L23: 4.861111111 | M23: 4.861111111 | N23: 4.861111111 | O23: 0 | P23: 0 | Q23: 0 | R23: 0 | S23: 0 | T23: 0 | U23: 0 | V23: 0 | W23: =IF($C$7>=W$11,0,IF(V$25>=$C$4,0,$C$9)) -> 0 | X23: 0 | Y23: 0 | Z23: 0 | AA23: 0 | AB23: 0 | AC23: 0 | AD23: 0 | AE23: 0 | AF23: 0 | AG23: 0 | AH23: 0 | AI23: 0 | AJ23: 0 | AK23: 0 | AL23: 0 | AM23: 0 | AN23: 0 | AO23: 0 | AP23: 0
B24: Total installment | C24: =SUM(C12:C23) -> 58.33333333 | D24: =SUM(D12:D23) -> 58.33333333 | E24: =SUM(E12:E23) -> 58.33333333 | F24: 58.33333333 | G24: 58.33333333 | H24: 58.33333333 | I24: 58.33333333 | J24: 58.33333333 | K24: 58.33333333 | L24: 58.33333333 | M24: =SUM(M12:M23) -> 58.33333333 | N24: 58.33333333 | O24: 0 | P24: 0 | Q24: 0 | R24: 0 | S24: 0 | T24: 0 | U24: 0 | V24: 0 | W24: 0 | X24: 0 | Y24: 0 | Z24: 0 | AA24: 0 | AB24: 0 | AC24: 0 | AD24: 0 | AE24: 0 | AF24: 0 | AG24: 0 | AH24: 0 | AI24: 0 | AJ24: 0 | AK24: 0 | AL24: 0 | AM24: 0 | AN24: 0 | AO24: 0 | AP24: 0
B25: Cumulative Principal Payment | C25: =C24 -> 58.33333333 | D25: =C25+D24 -> 116.6666667 | E25: 175 | F25: 233.3333333 | G25: 291.6666667 | H25: 350 | I25: 408.3333333 | J25: 466.6666667 | K25: 525 | L25: 583.3333333 | M25: =L25+M24 -> 641.6666667 | N25: 700 | O25: 700 | P25: 700 | Q25: 700 | R25: 700 | S25: 700 | T25: 700 | U25: 700 | V25: 700 | W25: 700 | X25: =W25+X24 -> 700 | Y25: =X25+Y24 -> 700 | Z25: =Y25+Z24 -> 700 | AA25: =Z25+AA24 -> 700 | AB25: =AA25+AB24 -> 700 | AC25: =AB25+AC24 -> 700 | AD25: =AC25+AD24 -> 700 | AE25: =AD25+AE24 -> 700 | AF25: =AE25+AF24 -> 700 | AG25: =AF25+AG24 -> 700 | AH25: =AG25+AH24 -> 700 | AI25: =AH25+AI24 -> 700 | AJ25: =AI25+AJ24 -> 700 | AK25: =AJ25+AK24 -> 700 | AL25: =AK25+AL24 -> 700 | AM25: =AL25+AM24 -> 700 | AN25: =AM25+AN24 -> 700 | AO25: =AN25+AO24 -> 700 | AP25: =AO25+AP24 -> 700
B26: Outstanding Principal
B27: Outstanding1 | C27: =$C$4 -> 700 | D27: =MAX(C38-C23,0) -> 641.6666667 | E27: =MAX(D38-D23,0) -> 583.3333333 | F27: 525 | G27: 466.6666667 | H27: 408.3333333 | I27: 350 | J27: 291.6666667 | K27: 233.3333333 | L27: 175 | M27: 116.6666667 | N27: 58.33333333 | O27: 2.156497203e-12 | P27: 2.156497203e-12 | Q27: 2.156497203e-12 | R27: 2.156497203e-12 | S27: 2.156497203e-12 | T27: 2.156497203e-12 | U27: 2.156497203e-12 | V27: 2.156497203e-12 | W27: 2.156497203e-12 | X27: 2.156497203e-12 | Y27: 2.156497203e-12 | Z27: 2.156497203e-12 | AA27: 2.156497203e-12 | AB27: 2.156497203e-12 | AC27: 2.156497203e-12 | AD27: 2.156497203e-12 | AE27: 2.156497203e-12 | AF27: 2.156497203e-12 | AG27: 2.156497203e-12 | AH27: 2.156497203e-12 | AI27: 2.156497203e-12 | AJ27: 2.156497203e-12 | AK27: 2.156497203e-12 | AL27: 2.156497203e-12 | AM27: 2.156497203e-12 | AN27: 2.156497203e-12 | AO27: 2.156497203e-12 | AP27: 2.156497203e-12
B28: Outstanding2 | C28: =MAX(C27-C12,0) -> 695.1388889 | D28: =MAX(D27-D12,0) -> 636.8055556 | E28: 578.4722222 | F28: 520.1388889 | G28: 461.8055556 | H28: 403.4722222 | I28: 345.1388889 | J28: 286.8055556 | K28: 228.4722222 | L28: 170.1388889 | M28: 111.8055556 | N28: 53.47222222 | O28: 2.156497203e-12 | P28: 2.156497203e-12 | Q28: 2.156497203e-12 | R28: 2.156497203e-12 | S28: 2.156497203e-12 | T28: 2.156497203e-12 | U28: 2.156497203e-12 | V28: 2.156497203e-12 | W28: 2.156497203e-12 | X28: 2.156497203e-12 | Y28: 2.156497203e-12 | Z28: 2.156497203e-12 | AA28: 2.156497203e-12 | AB28: 2.156497203e-12 | AC28: 2.156497203e-12 | AD28: 2.156497203e-12 | AE28: 2.156497203e-12 | AF28: 2.156497203e-12 | AG28: 2.156497203e-12 | AH28: 2.156497203e-12 | AI28: 2.156497203e-12 | AJ28: 2.156497203e-12 | AK28: 2.156497203e-12 | AL28: 2.156497203e-12 | AM28: 2.156497203e-12 | AN28: 2.156497203e-12 | AO28: 2.156497203e-12 | AP28: 2.156497203e-12
B29: Outstanding3 | C29: 690.2777778 | D29: =MAX(D28-D13,0) -> 631.9444444 | E29: 573.6111111 | F29: 515.2777778 | G29: 456.9444444 | H29: 398.6111111 | I29: 340.2777778 | J29: 281.9444444 | K29: 223.6111111 | L29: 165.2777778 | M29: 106.9444444 | N29: 48.61111111 | O29: 2.156497203e-12 | P29: 2.156497203e-12 | Q29: 2.156497203e-12 | R29: 2.156497203e-12 | S29: 2.156497203e-12 | T29: 2.156497203e-12 | U29: 2.156497203e-12 | V29: 2.156497203e-12 | W29: 2.156497203e-12 | X29: 2.156497203e-12 | Y29: 2.156497203e-12 | Z29: 2.156497203e-12 | AA29: 2.156497203e-12 | AB29: 2.156497203e-12 | AC29: 2.156497203e-12 | AD29: 2.156497203e-12 | AE29: 2.156497203e-12 | AF29: 2.156497203e-12 | AG29: 2.156497203e-12 | AH29: 2.156497203e-12 | AI29: 2.156497203e-12 | AJ29: 2.156497203e-12 | AK29: 2.156497203e-12 | AL29: 2.156497203e-12 | AM29: 2.156497203e-12 | AN29: 2.156497203e-12 | AO29: 2.156497203e-12 | AP29: 2.156497203e-12
B30: Outstanding4 | C30: 685.4166667 | D30: =MAX(D29-D14,0) -> 627.0833333 | E30: 568.75 | F30: 510.4166667 | G30: 452.0833333 | H30: 393.75 | I30: 335.4166667 | J30: 277.0833333 | K30: 218.75 | L30: 160.4166667 | M30: 102.0833333 | N30: 43.75 | O30: 2.156497203e-12 | P30: 2.156497203e-12 | Q30: 2.156497203e-12 | R30: 2.156497203e-12 | S30: 2.156497203e-12 | T30: 2.156497203e-12 | U30: 2.156497203e-12 | V30: 2.156497203e-12 | W30: 2.156497203e-12 | X30: 2.156497203e-12 | Y30: 2.156497203e-12 | Z30: 2.156497203e-12 | AA30: 2.156497203e-12 | AB30: 2.156497203e-12 | AC30: 2.156497203e-12 | AD30: 2.156497203e-12 | AE30: 2.156497203e-12 | AF30: 2.156497203e-12 | AG30: 2.156497203e-12 | AH30: 2.156497203e-12 | AI30: 2.156497203e-12 | AJ30: 2.156497203e-12 | AK30: 2.156497203e-12 | AL30: 2.156497203e-12 | AM30: 2.156497203e-12 | AN30: 2.156497203e-12 | AO30: 2.156497203e-12 | AP30: 2.156497203e-12
B31: Outstanding5 | C31: 680.5555556 | D31: =MAX(D30-D15,0) -> 622.2222222 | E31: 563.8888889 | F31: 505.5555556 | G31: 447.2222222 | H31: 388.8888889 | I31: 330.5555556 | J31: 272.2222222 | K31: 213.8888889 | L31: 155.5555556 | M31: 97.22222222 | N31: 38.88888889 | O31: 2.156497203e-12 | P31: 2.156497203e-12 | Q31: 2.156497203e-12 | R31: 2.156497203e-12 | S31: 2.156497203e-12 | T31: 2.156497203e-12 | U31: 2.156497203e-12 | V31: 2.156497203e-12 | W31: 2.156497203e-12 | X31: 2.156497203e-12 | Y31: 2.156497203e-12 | Z31: 2.156497203e-12 | AA31: 2.156497203e-12 | AB31: 2.156497203e-12 | AC31: 2.156497203e-12 | AD31: 2.156497203e-12 | AE31: 2.156497203e-12 | AF31: 2.156497203e-12 | AG31: 2.156497203e-12 | AH31: 2.156497203e-12 | AI31: 2.156497203e-12 | AJ31: 2.156497203e-12 | AK31: 2.156497203e-12 | AL31: 2.156497203e-12 | AM31: 2.156497203e-12 | AN31: 2.156497203e-12 | AO31: 2.156497203e-12 | AP31: 2.156497203e-12
B32: Outstanding6 | C32: 675.6944444 | D32: =MAX(D31-D16,0) -> 617.3611111 | E32: 559.0277778 | F32: 500.6944444 | G32: 442.3611111 | H32: 384.0277778 | I32: 325.6944444 | J32: 267.3611111 | K32: 209.0277778 | L32: 150.6944444 | M32: 92.36111111 | N32: 34.02777778 | O32: 2.156497203e-12 | P32: 2.156497203e-12 | Q32: 2.156497203e-12 | R32: 2.156497203e-12 | S32: 2.156497203e-12 | T32: 2.156497203e-12 | U32: 2.156497203e-12 | V32: 2.156497203e-12 | W32: 2.156497203e-12 | X32: 2.156497203e-12 | Y32: 2.156497203e-12 | Z32: 2.156497203e-12 | AA32: 2.156497203e-12 | AB32: 2.156497203e-12 | AC32: 2.156497203e-12 | AD32: 2.156497203e-12 | AE32: 2.156497203e-12 | AF32: 2.156497203e-12 | AG32: 2.156497203e-12 | AH32: 2.156497203e-12 | AI32: 2.156497203e-12 | AJ32: 2.156497203e-12 | AK32: 2.156497203e-12 | AL32: 2.156497203e-12 | AM32: 2.156497203e-12 | AN32: 2.156497203e-12 | AO32: 2.156497203e-12 | AP32: 2.156497203e-12
B33: Outstanding7 | C33: 670.8333333 | D33: =MAX(D32-D17,0) -> 612.5 | E33: 554.1666667 | F33: 495.8333333 | G33: 437.5 | H33: 379.1666667 | I33: 320.8333333 | J33: 262.5 | K33: 204.1666667 | L33: 145.8333333 | M33: 87.5 | N33: 29.16666667 | O33: 2.156497203e-12 | P33: 2.156497203e-12 | Q33: 2.156497203e-12 | R33: 2.156497203e-12 | S33: 2.156497203e-12 | T33: 2.156497203e-12 | U33: 2.156497203e-12 | V33: 2.156497203e-12 | W33: 2.156497203e-12 | X33: 2.156497203e-12 | Y33: 2.156497203e-12 | Z33: 2.156497203e-12 | AA33: 2.156497203e-12 | AB33: 2.156497203e-12 | AC33: 2.156497203e-12 | AD33: 2.156497203e-12 | AE33: 2.156497203e-12 | AF33: 2.156497203e-12 | AG33: 2.156497203e-12 | AH33: 2.156497203e-12 | AI33: 2.156497203e-12 | AJ33: 2.156497203e-12 | AK33: 2.156497203e-12 | AL33: 2.156497203e-12 | AM33: 2.156497203e-12 | AN33: 2.156497203e-12 | AO33: 2.156497203e-12 | AP33: 2.156497203e-12
B34: Outstanding8 | C34: 665.9722222 | D34: =MAX(D33-D18,0) -> 607.6388889 | E34: 549.3055556 | F34: 490.9722222 | G34: 432.6388889 | H34: 374.3055556 | I34: 315.9722222 | J34: 257.6388889 | K34: 199.3055556 | L34: 140.9722222 | M34: 82.63888889 | N34: 24.30555556 | O34: 2.156497203e-12 | P34: 2.156497203e-12 | Q34: 2.156497203e-12 | R34: 2.156497203e-12 | S34: 2.156497203e-12 | T34: 2.156497203e-12 | U34: 2.156497203e-12 | V34: 2.156497203e-12 | W34: 2.156497203e-12 | X34: 2.156497203e-12 | Y34: 2.156497203e-12 | Z34: 2.156497203e-12 | AA34: 2.156497203e-12 | AB34: 2.156497203e-12 | AC34: 2.156497203e-12 | AD34: 2.156497203e-12 | AE34: 2.156497203e-12 | AF34: 2.156497203e-12 | AG34: 2.156497203e-12 | AH34: 2.156497203e-12 | AI34: 2.156497203e-12 | AJ34: 2.156497203e-12 | AK34: 2.156497203e-12 | AL34: 2.156497203e-12 | AM34: 2.156497203e-12 | AN34: 2.156497203e-12 | AO34: 2.156497203e-12 | AP34: 2.156497203e-12
B35: Outstanding9 | C35: 661.1111111 | D35: =MAX(D34-D19,0) -> 602.7777778 | E35: 544.4444444 | F35: 486.1111111 | G35: 427.7777778 | H35: 369.4444444 | I35: 311.1111111 | J35: 252.7777778 | K35: 194.4444444 | L35: 136.1111111 | M35: 77.77777778 | N35: 19.44444444 | O35: 2.156497203e-12 | P35: 2.156497203e-12 | Q35: 2.156497203e-12 | R35: 2.156497203e-12 | S35: 2.156497203e-12 | T35: 2.156497203e-12 | U35: 2.156497203e-12 | V35: 2.156497203e-12 | W35: 2.156497203e-12 | X35: 2.156497203e-12 | Y35: 2.156497203e-12 | Z35: 2.156497203e-12 | AA35: 2.156497203e-12 | AB35: 2.156497203e-12 | AC35: 2.156497203e-12 | AD35: 2.156497203e-12 | AE35: 2.156497203e-12 | AF35: 2.156497203e-12 | AG35: 2.156497203e-12 | AH35: 2.156497203e-12 | AI35: 2.156497203e-12 | AJ35: 2.156497203e-12 | AK35: 2.156497203e-12 | AL35: 2.156497203e-12 | AM35: 2.156497203e-12 | AN35: 2.156497203e-12 | AO35: 2.156497203e-12 | AP35: 2.156497203e-12
B36: Outstanding10 | C36: 656.25 | D36: =MAX(D35-D20,0) -> 597.9166667 | E36: 539.5833333 | F36: 481.25 | G36: 422.9166667 | H36: 364.5833333 | I36: 306.25 | J36: 247.9166667 | K36: 189.5833333 | L36: 131.25 | M36: 72.91666667 | N36: 14.58333333 | O36: 2.156497203e-12 | P36: 2.156497203e-12 | Q36: 2.156497203e-12 | R36: 2.156497203e-12 | S36: 2.156497203e-12 | T36: 2.156497203e-12 | U36: 2.156497203e-12 | V36: 2.156497203e-12 | W36: 2.156497203e-12 | X36: 2.156497203e-12 | Y36: 2.156497203e-12 | Z36: 2.156497203e-12 | AA36: 2.156497203e-12 | AB36: 2.156497203e-12 | AC36: 2.156497203e-12 | AD36: 2.156497203e-12 | AE36: 2.156497203e-12 | AF36: 2.156497203e-12 | AG36: 2.156497203e-12 | AH36: 2.156497203e-12 | AI36: 2.156497203e-12 | AJ36: 2.156497203e-12 | AK36: 2.156497203e-12 | AL36: 2.156497203e-12 | AM36: 2.156497203e-12 | AN36: 2.156497203e-12 | AO36: 2.156497203e-12 | AP36: 2.156497203e-12
B37: Outstanding11 | C37: 651.3888889 | D37: =MAX(D36-D21,0) -> 593.0555556 | E37: 534.7222222 | F37: 476.3888889 | G37: 418.0555556 | H37: 359.7222222 | I37: 301.3888889 | J37: 243.0555556 | K37: 184.7222222 | L37: 126.3888889 | M37: 68.05555556 | N37: 9.722222222 | O37: 2.156497203e-12 | P37: 2.156497203e-12 | Q37: 2.156497203e-12 | R37: 2.156497203e-12 | S37: 2.156497203e-12 | T37: 2.156497203e-12 | U37: 2.156497203e-12 | V37: 2.156497203e-12 | W37: 2.156497203e-12 | X37: 2.156497203e-12 | Y37: 2.156497203e-12 | Z37: 2.156497203e-12 | AA37: 2.156497203e-12 | AB37: 2.156497203e-12 | AC37: 2.156497203e-12 | AD37: 2.156497203e-12 | AE37: 2.156497203e-12 | AF37: 2.156497203e-12 | AG37: 2.156497203e-12 | AH37: 2.156497203e-12 | AI37: 2.156497203e-12 | AJ37: 2.156497203e-12 | AK37: 2.156497203e-12 | AL37: 2.156497203e-12 | AM37: 2.156497203e-12 | AN37: 2.156497203e-12 | AO37: 2.156497203e-12 | AP37: 2.156497203e-12
B38: Outstanding12 | C38: 646.5277778 | D38: =MAX(D37-D22,0) -> 588.1944444 | E38: 529.8611111 | F38: 471.5277778 | G38: 413.1944444 | H38: 354.8611111 | I38: 296.5277778 | J38: 238.1944444 | K38: 179.8611111 | L38: 121.5277778 | M38: 63.19444444 | N38: 4.861111111 | O38: 2.156497203e-12 | P38: 2.156497203e-12 | Q38: 2.156497203e-12 | R38: 2.156497203e-12 | S38: 2.156497203e-12 | T38: 2.156497203e-12 | U38: 2.156497203e-12 | V38: 2.156497203e-12 | W38: 2.156497203e-12 | X38: 2.156497203e-12 | Y38: 2.156497203e-12 | Z38: 2.156497203e-12 | AA38: 2.156497203e-12 | AB38: 2.156497203e-12 | AC38: 2.156497203e-12 | AD38: 2.156497203e-12 | AE38: 2.156497203e-12 | AF38: 2.156497203e-12 | AG38: 2.156497203e-12 | AH38: 2.156497203e-12 | AI38: 2.156497203e-12 | AJ38: 2.156497203e-12 | AK38: 2.156497203e-12 | AL38: 2.156497203e-12 | AM38: 2.156497203e-12 | AN38: 2.156497203e-12 | AO38: 2.156497203e-12 | AP38: 2.156497203e-12
B39: Interest payments
B40: interest1 | C40: =C27*$C$5/12 -> 7.186666667 | D40: =D27*$C$5/12 -> 6.587777778 | E40: 5.988888889 | F40: 5.39 | G40: 4.791111111 | H40: 4.192222222 | I40: 3.593333333 | J40: 2.994444444 | K40: 2.395555556 | L40: 1.796666667 | M40: 1.197777778 | N40: 0.5988888889 | O40: 2.214003795e-14 | P40: 2.214003795e-14 | Q40: 2.214003795e-14 | R40: 2.214003795e-14 | S40: 2.214003795e-14 | T40: 2.214003795e-14 | U40: 2.214003795e-14 | V40: 2.214003795e-14 | W40: 2.214003795e-14 | X40: =X27*$C$5/12 -> 2.214003795e-14 | Y40: 2.214003795e-14 | Z40: 2.214003795e-14 | AA40: 2.214003795e-14 | AB40: 2.214003795e-14 | AC40: 2.214003795e-14 | AD40: 2.214003795e-14 | AE40: 2.214003795e-14 | AF40: 2.214003795e-14 | AG40: 2.214003795e-14 | AH40: 2.214003795e-14 | AI40: 2.214003795e-14 | AJ40: 2.214003795e-14 | AK40: 2.214003795e-14 | AL40: 2.214003795e-14 | AM40: 2.214003795e-14 | AN40: 2.214003795e-14 | AO40: 2.214003795e-14 | AP40: =AP27*$C$5/12 -> 2.214003795e-14
B41: interest2 | C41: =C28*$C$5/12 -> 7.136759259 | D41: 6.53787037 | E41: 5.938981481 | F41: 5.340092593 | G41: 4.741203704 | H41: 4.142314815 | I41: 3.543425926 | J41: 2.944537037 | K41: 2.345648148 | L41: 1.746759259 | M41: 1.14787037 | N41: 0.5489814815 | O41: 2.214003795e-14 | P41: 2.214003795e-14 | Q41: 2.214003795e-14 | R41: 2.214003795e-14 | S41: 2.214003795e-14 | T41: 2.214003795e-14 | U41: 2.214003795e-14 | V41: 2.214003795e-14 | W41: 2.214003795e-14 | X41: 2.214003795e-14 | Y41: 2.214003795e-14 | Z41: 2.214003795e-14 | AA41: 2.214003795e-14 | AB41: 2.214003795e-14 | AC41: 2.214003795e-14 | AD41: 2.214003795e-14 | AE41: 2.214003795e-14 | AF41: 2.214003795e-14 | AG41: 2.214003795e-14 | AH41: 2.214003795e-14 | AI41: 2.214003795e-14 | AJ41: 2.214003795e-14 | AK41: 2.214003795e-14 | AL41: 2.214003795e-14 | AM41: 2.214003795e-14 | AN41: 2.214003795e-14 | AO41: 2.214003795e-14 | AP41: 2.214003795e-14
B42: interest3 | C42: 7.086851852 | D42: 6.487962963 | E42: 5.889074074 | F42: 5.290185185 | G42: 4.691296296 | H42: 4.092407407 | I42: 3.493518519 | J42: 2.89462963 | K42: 2.295740741 | L42: 1.696851852 | M42: 1.097962963 | N42: 0.4990740741 | O42: 2.214003795e-14 | P42: 2.214003795e-14 | Q42: 2.214003795e-14 | R42: 2.214003795e-14 | S42: 2.214003795e-14 | T42: 2.214003795e-14 | U42: 2.214003795e-14 | V42: 2.214003795e-14 | W42: 2.214003795e-14 | X42: =X29*$C$5/12 -> 2.214003795e-14 | Y42: 2.214003795e-14 | Z42: 2.214003795e-14 | AA42: 2.214003795e-14 | AB42: 2.214003795e-14 | AC42: 2.214003795e-14 | AD42: 2.214003795e-14 | AE42: 2.214003795e-14 | AF42: 2.214003795e-14 | AG42: 2.214003795e-14 | AH42: 2.214003795e-14 | AI42: 2.214003795e-14 | AJ42: 2.214003795e-14 | AK42: 2.214003795e-14 | AL42: 2.214003795e-14 | AM42: 2.214003795e-14 | AN42: 2.214003795e-14 | AO42: 2.214003795e-14 | AP42: 2.214003795e-14
B43: interest4 | C43: 7.036944444 | D43: 6.438055556 | E43: 5.839166667 | F43: 5.240277778 | G43: 4.641388889 | H43: 4.0425 | I43: 3.443611111 | J43: 2.844722222 | K43: 2.245833333 | L43: 1.646944444 | M43: 1.048055556 | N43: 0.4491666667 | O43: 2.214003795e-14 | P43: 2.214003795e-14 | Q43: 2.214003795e-14 | R43: 2.214003795e-14 | S43: 2.214003795e-14 | T43: 2.214003795e-14 | U43: 2.214003795e-14 | V43: 2.214003795e-14 | W43: 2.214003795e-14 | X43: =X30*$C$5/12 -> 2.214003795e-14 | Y43: 2.214003795e-14 | Z43: 2.214003795e-14 | AA43: 2.214003795e-14 | AB43: 2.214003795e-14 | AC43: 2.214003795e-14 | AD43: 2.214003795e-14 | AE43: 2.214003795e-14 | AF43: 2.214003795e-14 | AG43: 2.214003795e-14 | AH43: 2.214003795e-14 | AI43: 2.214003795e-14 | AJ43: 2.214003795e-14 | AK43: 2.214003795e-14 | AL43: 2.214003795e-14 | AM43: 2.214003795e-14 | AN43: 2.214003795e-14 | AO43: 2.214003795e-14 | AP43: 2.214003795e-14
B44: interest5 | C44: 6.987037037 | D44: 6.388148148 | E44: 5.789259259 | F44: 5.19037037 | G44: 4.591481481 | H44: 3.992592593 | I44: 3.393703704 | J44: 2.794814815 | K44: 2.195925926 | L44: 1.597037037 | M44: 0.9981481481 | N44: 0.3992592593 | O44: 2.214003795e-14 | P44: 2.214003795e-14 | Q44: 2.214003795e-14 | R44: 2.214003795e-14 | S44: 2.214003795e-14 | T44: 2.214003795e-14 | U44: 2.214003795e-14 | V44: 2.214003795e-14 | W44: 2.214003795e-14 | X44: =X31*$C$5/12 -> 2.214003795e-14 | Y44: 2.214003795e-14 | Z44: 2.214003795e-14 | AA44: 2.214003795e-14 | AB44: 2.214003795e-14 | AC44: 2.214003795e-14 | AD44: 2.214003795e-14 | AE44: 2.214003795e-14 | AF44: 2.214003795e-14 | AG44: 2.214003795e-14 | AH44: 2.214003795e-14 | AI44: 2.214003795e-14 | AJ44: 2.214003795e-14 | AK44: 2.214003795e-14 | AL44: 2.214003795e-14 | AM44: 2.214003795e-14 | AN44: 2.214003795e-14 | AO44: 2.214003795e-14 | AP44: 2.214003795e-14
B45: interest6 | C45: 6.93712963 | D45: 6.338240741 | E45: 5.739351852 | F45: 5.140462963 | G45: 4.541574074 | H45: 3.942685185 | I45: 3.343796296 | J45: 2.744907407 | K45: 2.146018519 | L45: 1.54712963 | M45: 0.9482407407 | N45: 0.3493518519 | O45: 2.214003795e-14 | P45: 2.214003795e-14 | Q45: 2.214003795e-14 | R45: 2.214003795e-14 | S45: 2.214003795e-14 | T45: 2.214003795e-14 | U45: 2.214003795e-14 | V45: 2.214003795e-14 | W45: 2.214003795e-14 | X45: =X32*$C$5/12 -> 2.214003795e-14 | Y45: 2.214003795e-14 | Z45: 2.214003795e-14 | AA45: 2.214003795e-14 | AB45: 2.214003795e-14 | AC45: 2.214003795e-14 | AD45: 2.214003795e-14 | AE45: 2.214003795e-14 | AF45: 2.214003795e-14 | AG45: 2.214003795e-14 | AH45: 2.214003795e-14 | AI45: 2.214003795e-14 | AJ45: 2.214003795e-14 | AK45: 2.214003795e-14 | AL45: 2.214003795e-14 | AM45: 2.214003795e-14 | AN45: 2.214003795e-14 | AO45: 2.214003795e-14 | AP45: 2.214003795e-14
B46: interest7 | C46: 6.887222222 | D46: 6.288333333 | E46: 5.689444444 | F46: 5.090555556 | G46: 4.491666667 | H46: 3.892777778 | I46: 3.293888889 | J46: 2.695 | K46: 2.096111111 | L46: 1.497222222 | M46: 0.8983333333 | N46: 0.2994444444 | O46: 2.214003795e-14 | P46: 2.214003795e-14 | Q46: 2.214003795e-14 | R46: 2.214003795e-14 | S46: 2.214003795e-14 | T46: 2.214003795e-14 | U46: 2.214003795e-14 | V46: 2.214003795e-14 | W46: 2.214003795e-14 | X46: =X33*$C$5/12 -> 2.214003795e-14 | Y46: 2.214003795e-14 | Z46: 2.214003795e-14 | AA46: 2.214003795e-14 | AB46: 2.214003795e-14 | AC46: 2.214003795e-14 | AD46: 2.214003795e-14 | AE46: 2.214003795e-14 | AF46: 2.214003795e-14 | AG46: 2.214003795e-14 | AH46: 2.214003795e-14 | AI46: 2.214003795e-14 | AJ46: 2.214003795e-14 | AK46: 2.214003795e-14 | AL46: 2.214003795e-14 | AM46: 2.214003795e-14 | AN46: 2.214003795e-14 | AO46: 2.214003795e-14 | AP46: 2.214003795e-14
B47: interest8 | C47: 6.837314815 | D47: 6.238425926 | E47: 5.639537037 | F47: 5.040648148 | G47: 4.441759259 | H47: 3.84287037 | I47: 3.243981481 | J47: 2.645092593 | K47: 2.046203704 | L47: 1.447314815 | M47: 0.8484259259 | N47: 0.249537037 | O47: 2.214003795e-14 | P47: 2.214003795e-14 | Q47: 2.214003795e-14 | R47: 2.214003795e-14 | S47: 2.214003795e-14 | T47: 2.214003795e-14 | U47: 2.214003795e-14 | V47: 2.214003795e-14 | W47: 2.214003795e-14 | X47: =X34*$C$5/12 -> 2.214003795e-14 | Y47: 2.214003795e-14 | Z47: 2.214003795e-14 | AA47: 2.214003795e-14 | AB47: 2.214003795e-14 | AC47: 2.214003795e-14 | AD47: 2.214003795e-14 | AE47: 2.214003795e-14 | AF47: 2.214003795e-14 | AG47: 2.214003795e-14 | AH47: 2.214003795e-14 | AI47: 2.214003795e-14 | AJ47: 2.214003795e-14 | AK47: 2.214003795e-14 | AL47: 2.214003795e-14 | AM47: 2.214003795e-14 | AN47: 2.214003795e-14 | AO47: 2.214003795e-14 | AP47: 2.214003795e-14
B48: interest9 | C48: 6.787407407 | D48: 6.188518519 | E48: 5.58962963 | F48: 4.990740741 | G48: 4.391851852 | H48: 3.792962963 | I48: 3.194074074 | J48: 2.595185185 | K48: 1.996296296 | L48: 1.397407407 | M48: 0.7985185185 | N48: 0.1996296296 | O48: 2.214003795e-14 | P48: 2.214003795e-14 | Q48: 2.214003795e-14 | R48: 2.214003795e-14 | S48: 2.214003795e-14 | T48: 2.214003795e-14 | U48: 2.214003795e-14 | V48: 2.214003795e-14 | W48: 2.214003795e-14 | X48: =X35*$C$5/12 -> 2.214003795e-14 | Y48: 2.214003795e-14 | Z48: 2.214003795e-14 | AA48: 2.214003795e-14 | AB48: 2.214003795e-14 | AC48: 2.214003795e-14 | AD48: 2.214003795e-14 | AE48: 2.214003795e-14 | AF48: 2.214003795e-14 | AG48: 2.214003795e-14 | AH48: 2.214003795e-14 | AI48: 2.214003795e-14 | AJ48: 2.214003795e-14 | AK48: 2.214003795e-14 | AL48: 2.214003795e-14 | AM48: 2.214003795e-14 | AN48: 2.214003795e-14 | AO48: 2.214003795e-14 | AP48: 2.214003795e-14
B49: interest10 | C49: 6.7375 | D49: 6.138611111 | E49: 5.539722222 | F49: 4.940833333 | G49: 4.341944444 | H49: 3.743055556 | I49: 3.144166667 | J49: 2.545277778 | K49: 1.946388889 | L49: 1.3475 | M49: 0.7486111111 | N49: 0.1497222222 | O49: 2.214003795e-14 | P49: 2.214003795e-14 | Q49: 2.214003795e-14 | R49: 2.214003795e-14 | S49: 2.214003795e-14 | T49: 2.214003795e-14 | U49: 2.214003795e-14 | V49: 2.214003795e-14 | W49: 2.214003795e-14 | X49: =X36*$C$5/12 -> 2.214003795e-14 | Y49: 2.214003795e-14 | Z49: 2.214003795e-14 | AA49: 2.214003795e-14 | AB49: 2.214003795e-14 | AC49: 2.214003795e-14 | AD49: 2.214003795e-14 | AE49: 2.214003795e-14 | AF49: 2.214003795e-14 | AG49: 2.214003795e-14 | AH49: 2.214003795e-14 | AI49: 2.214003795e-14 | AJ49: 2.214003795e-14 | AK49: 2.214003795e-14 | AL49: 2.214003795e-14 | AM49: 2.214003795e-14 | AN49: 2.214003795e-14 | AO49: 2.214003795e-14 | AP49: 2.214003795e-14
B50: interest11 | C50: 6.687592593 | D50: 6.088703704 | E50: 5.489814815 | F50: 4.890925926 | G50: 4.292037037 | H50: 3.693148148 | I50: 3.094259259 | J50: 2.49537037 | K50: 1.896481481 | L50: 1.297592593 | M50: 0.6987037037 | N50: 0.09981481481 | O50: 2.214003795e-14 | P50: 2.214003795e-14 | Q50: 2.214003795e-14 | R50: 2.214003795e-14 | S50: 2.214003795e-14 | T50: 2.214003795e-14 | U50: 2.214003795e-14 | V50: 2.214003795e-14 | W50: 2.214003795e-14 | X50: =X37*$C$5/12 -> 2.214003795e-14 | Y50: 2.214003795e-14 | Z50: 2.214003795e-14 | AA50: 2.214003795e-14 | AB50: 2.214003795e-14 | AC50: 2.214003795e-14 | AD50: 2.214003795e-14 | AE50: 2.214003795e-14 | AF50: 2.214003795e-14 | AG50: 2.214003795e-14 | AH50: 2.214003795e-14 | AI50: 2.214003795e-14 | AJ50: 2.214003795e-14 | AK50: 2.214003795e-14 | AL50: 2.214003795e-14 | AM50: 2.214003795e-14 | AN50: 2.214003795e-14 | AO50: 2.214003795e-14 | AP50: 2.214003795e-14
B51: interest12 | C51: 6.637685185 | D51: 6.038796296 | E51: 5.439907407 | F51: 4.841018519 | G51: 4.24212963 | H51: 3.643240741 | I51: 3.044351852 | J51: 2.445462963 | K51: 1.846574074 | L51: 1.247685185 | M51: 0.6487962963 | N51: 0.04990740741 | O51: 2.214003795e-14 | P51: 2.214003795e-14 | Q51: 2.214003795e-14 | R51: 2.214003795e-14 | S51: 2.214003795e-14 | T51: 2.214003795e-14 | U51: 2.214003795e-14 | V51: 2.214003795e-14 | W51: 2.214003795e-14 | X51: =X38*$C$5/12 -> 2.214003795e-14 | Y51: 2.214003795e-14 | Z51: 2.214003795e-14 | AA51: 2.214003795e-14 | AB51: 2.214003795e-14 | AC51: 2.214003795e-14 | AD51: 2.214003795e-14 | AE51: 2.214003795e-14 | AF51: 2.214003795e-14 | AG51: 2.214003795e-14 | AH51: 2.214003795e-14 | AI51: 2.214003795e-14 | AJ51: 2.214003795e-14 | AK51: 2.214003795e-14 | AL51: 2.214003795e-14 | AM51: 2.214003795e-14 | AN51: 2.214003795e-14 | AO51: 2.214003795e-14 | AP51: 2.214003795e-14
B52: Total interest | C52: =ROUND(SUM(C40:C51),2) -> 82.95 | D52: =ROUND(SUM(D40:D51),2) -> 75.76 | E52: 68.57 | F52: 61.39 | G52: 54.2 | H52: 47.01 | I52: 39.83 | J52: 32.64 | K52: 25.45 | L52: 18.27 | M52: 11.08 | N52: 3.89 | O52: 0 | P52: 0 | Q52: 0 | R52: 0 | S52: 0 | T52: 0 | U52: 0 | V52: 0 | W52: 0 | X52: 0 | Y52: 0 | Z52: 0 | AA52: 0 | AB52: 0 | AC52: 0 | AD52: 0 | AE52: 0 | AF52: 0 | AG52: 0 | AH52: 0 | AI52: 0 | AJ52: 0 | AK52: 0 | AL52: 0 | AM52: 0 | AN52: 0 | AO52: 0 | AP52: 0

Sheet DSCR
H2: Debt Service Coverage Ratio
B5: Debt Service Coverage Ratio Calculations | C5: Yr0 | D5: 1 | E5: =D5+1 -> 2 | F5: =E5+1 -> 3 | G5: 4 | H5: 5 | I5: 6 | J5: 7 | K5: 8 | L5: 9 | M5: 10 | N5: 11 | O5: 12 | P5: 13 | Q5: 14 | R5: 15 | S5: 16 | T5: 17 | U5: 18 | V5: 19 | W5: 20 | X5: 21 | Y5: 22 | Z5: 23 | AA5: 24 | AB5: 25 | AC5: 26 | AD5: 27 | AE5: 28 | AF5: 29 | AG5: 30 | AH5: 31 | AI5: 32 | AJ5: 33 | AK5: 34 | AL5: 35 | AM5: 36 | AN5: 37 | AO5: 38 | AP5: 39 | AQ5: 40
B6: Interest payments | D6: ='Term Loan'!C52 -> 82.95 | E6: ='Term Loan'!D52 -> 75.76 | F6: ='Term Loan'!E52 -> 68.57 | G6: ='Term Loan'!F52 -> 61.39 | H6: ='Term Loan'!G52 -> 54.2 | I6: ='Term Loan'!H52 -> 47.01 | J6: ='Term Loan'!I52 -> 39.83 | K6: ='Term Loan'!J52 -> 32.64 | L6: ='Term Loan'!K52 -> 25.45 | M6: ='Term Loan'!L52 -> 18.27 | N6: ='Term Loan'!M52 -> 11.08 | O6: ='Term Loan'!N52 -> 3.89 | P6: ='Term Loan'!O52 -> 0 | Q6: ='Term Loan'!P52 -> 0 | R6: ='Term Loan'!Q52 -> 0 | S6: ='Term Loan'!R52 -> 0 | T6: ='Term Loan'!S52 -> 0 | U6: ='Term Loan'!T52 -> 0 | V6: ='Term Loan'!U52 -> 0 | W6: ='Term Loan'!V52 -> 0 | X6: ='Term Loan'!W52 -> 0 | Y6: ='Term Loan'!X52 -> 0 | Z6: ='Term Loan'!Y52 -> 0 | AA6: ='Term Loan'!Z52 -> 0 | AB6: ='Term Loan'!AA52 -> 0 | AC6: ='Term Loan'!AB52 -> 0 | AD6: ='Term Loan'!AC52 -> 0 | AE6: ='Term Loan'!AD52 -> 0 | AF6: ='Term Loan'!AE52 -> 0 | AG6: ='Term Loan'!AF52 -> 0 | AH6: ='Term Loan'!AG52 -> 0 | AI6: ='Term Loan'!AH52 -> 0 | AJ6: ='Term Loan'!AI52 -> 0 | AK6: ='Term Loan'!AJ52 -> 0 | AL6: ='Term Loan'!AK52 -> 0 | AM6: ='Term Loan'!AL52 -> 0 | AN6: ='Term Loan'!AM52 -> 0 | AO6: ='Term Loan'!AN52 -> 0 | AP6: ='Term Loan'!AO52 -> 0 | AQ6: ='Term Loan'!AP52 -> 0
B7: Principal Repayments | D7: ='Term Loan'!C24 -> 58.33333333 | E7: ='Term Loan'!D24 -> 58.33333333 | F7: ='Term Loan'!E24 -> 58.33333333 | G7: ='Term Loan'!F24 -> 58.33333333 | H7: ='Term Loan'!G24 -> 58.33333333 | I7: ='Term Loan'!H24 -> 58.33333333 | J7: ='Term Loan'!I24 -> 58.33333333 | K7: ='Term Loan'!J24 -> 58.33333333 | L7: ='Term Loan'!K24 -> 58.33333333 | M7: ='Term Loan'!L24 -> 58.33333333 | N7: ='Term Loan'!M24 -> 58.33333333 | O7: ='Term Loan'!N24 -> 58.33333333 | P7: ='Term Loan'!O24 -> 0 | Q7: ='Term Loan'!P24 -> 0 | R7: ='Term Loan'!Q24 -> 0 | S7: ='Term Loan'!R24 -> 0 | T7: ='Term Loan'!S24 -> 0 | U7: ='Term Loan'!T24 -> 0 | V7: ='Term Loan'!U24 -> 0 | W7: ='Term Loan'!V24 -> 0 | X7: ='Term Loan'!W24 -> 0 | Y7: ='Term Loan'!X24 -> 0 | Z7: ='Term Loan'!Y24 -> 0 | AA7: ='Term Loan'!Z24 -> 0 | AB7: ='Term Loan'!AA24 -> 0 | AC7: ='Term Loan'!AB24 -> 0 | AD7: ='Term Loan'!AC24 -> 0 | AE7: ='Term Loan'!AD24 -> 0 | AF7: ='Term Loan'!AE24 -> 0 | AG7: ='Term Loan'!AF24 -> 0 | AH7: ='Term Loan'!AG24 -> 0 | AI7: ='Term Loan'!AH24 -> 0 | AJ7: ='Term Loan'!AI24 -> 0 | AK7: ='Term Loan'!AJ24 -> 0 | AL7: ='Term Loan'!AK24 -> 0 | AM7: ='Term Loan'!AL24 -> 0 | AN7: ='Term Loan'!AM24 -> 0 | AO7: ='Term Loan'!AN24 -> 0 | AP7: ='Term Loan'!AO24 -> 0 | AQ7: ='Term Loan'!AP24 -> 0
B8: Total Debt Service | C8: =+C6+C7 -> 0 | D8: =+D6+D7 -> 141.2833333 | E8: 134.0933333 | F8: 126.9033333 | G8: 119.7233333 | H8: 112.5333333 | I8: 105.3433333 | J8: 98.16333333 | K8: 90.97333333 | L8: 83.78333333 | M8: 76.60333333 | N8: 69.41333333 | O8: 62.22333333 | P8: 0 | Q8: 0 | R8: 0 | S8: 0 | T8: 0 | U8: 0 | V8: 0 | W8: 0 | X8: 0 | Y8: 0 | Z8: 0 | AA8: 0 | AB8: 0 | AC8: 0 | AD8: 0 | AE8: 0 | AF8: 0 | AG8: 0 | AH8: 0 | AI8: 0 | AJ8: 0 | AK8: 0 | AL8: 0 | AM8: 0 | AN8: 0 | AO8: 0 | AP8: 0 | AQ8: 0
B9: Cumulative Debt Service | C9: =C8 -> 0 | D9: =IF(D8>0,+D8+C9,0) -> 141.2833333 | E9: 275.3766667 | F9: 402.28 | G9: 522.0033333 | H9: 634.5366667 | I9: 739.88 | J9: 838.0433333 | K9: 929.0166667 | L9: 1012.8 | M9: 1089.403333 | N9: 1158.816667 | O9: 1221.04 | P9: 0 | Q9: 0 | R9: =IF(R8>0,+R8+Q9,0) -> 0 | S9: =IF(S8>0,+S8+R9,0) -> 0 | T9: 0 | U9: 0 | V9: 0 | W9: 0 | X9: 0 | Y9: 0 | Z9: 0 | AA9: 0 | AB9: 0 | AC9: =IF(AC8>0,+AC8+AB9,0) -> 0 | AD9: =IF(AD8>0,+AD8+AC9,0) -> 0 | AE9: =IF(AE8>0,+AE8+AD9,0) -> 0 | AF9: =IF(AF8>0,+AF8+AE9,0) -> 0 | AG9: =IF(AG8>0,+AG8+AF9,0) -> 0 | AH9: =IF(AH8>0,+AH8+AG9,0) -> 0 | AI9: =IF(AI8>0,+AI8+AH9,0) -> 0 | AJ9: =IF(AJ8>0,+AJ8+AI9,0) -> 0 | AK9: =IF(AK8>0,+AK8+AJ9,0) -> 0 | AL9: =IF(AL8>0,+AL8+AK9,0) -> 0 | AM9: =IF(AM8>0,+AM8+AL9,0) -> 0 | AN9: =IF(AN8>0,+AN8+AM9,0) -> 0 | AO9: =IF(AO8>0,+AO8+AN9,0) -> 0 | AP9: =IF(AP8>0,+AP8+AO9,0) -> 0 | AQ9: =IF(AQ8>0,+AQ8+AP9,0) -> 0
B10: Post-tax Cashflow before Debt Service | C10: =IRR!C24 -> 0 | D10: =IRR!D24 -> 146.4838748 | E10: =IRR!E24 -> 149.753394 | F10: =IRR!F24 -> 147.7079675 | G10: =IRR!G24 -> 145.6298299 | H10: =IRR!H24 -> 143.512994 | I10: =IRR!I24 -> 141.3573616 | J10: =IRR!J24 -> 139.1627144 | K10: =IRR!K24 -> 136.9227046 | L10: =IRR!L24 -> 134.6368527 | M10: =IRR!M24 -> 132.3045374 | N10: =IRR!N24 -> 129.918985 | O10: =IRR!O24 -> 127.4792654 | P10: =IRR!P24 -> 125.6425444 | Q10: =IRR!Q24 -> 124.5235935 | R10: =IRR!R24 -> 123.3406386 | S10: =IRR!S24 -> 122.0900188 | T10: =IRR!T24 -> 120.7678634 | U10: =IRR!U24 -> 114.5681608 | V10: =IRR!V24 -> 107.328121 | W10: =IRR!W24 -> 105.7658588 | X10: =IRR!X24 -> 88.18398199 | Y10: =IRR!Y24 -> 86.6450589 | Z10: =IRR!Z24 -> 85.03786427 | AA10: =IRR!AA24 -> 83.35355427 | AB10: =IRR!AB24 -> 81.58401386 | AC10: =IRR!AC24 -> 0 | AD10: =IRR!AD24 -> 0 | AE10: =IRR!AE24 -> 0 | AF10: =IRR!AF24 -> 0 | AG10: =IRR!AG24 -> 0 | AH10: =IRR!AH24 -> 0 | AI10: =IRR!AI24 -> 0 | AJ10: =IRR!AJ24 -> 0 | AK10: =IRR!AK24 -> 0 | AL10: =IRR!AL24 -> 0 | AM10: =IRR!AM24 -> 0 | AN10: =IRR!AN24 -> 0 | AO10: =IRR!AO24 -> 0 | AP10: =IRR!AP24 -> 0 | AQ10: =IRR!AQ24 -> 0
B11: Cumulative Cashflow for Debt Service | C11: =C10 -> 0 | D11: =+D10+C11 -> 146.4838748 | E11: =+E10+D11 -> 296.2372688 | F11: =+F10+E11 -> 443.9452363 | G11: =+G10+F11 -> 589.5750662 | H11: 733.0880602 | I11: 874.4454218 | J11: 1013.608136 | K11: 1150.530841 | L11: 1285.167694 | M11: 1417.472231 | N11: 1547.391216 | O11: 1674.870481 | P11: 1800.513026 | Q11: 1925.036619 | R11: 2048.377258 | S11: 2170.467277 | T11: 2291.23514 | U11: 2405.803301 | V11: 2513.131422 | W11: 2618.897281 | X11: 2707.081263 | Y11: 2793.726322 | Z11: 2878.764186 | AA11: 2962.11774 | AB11: 3043.701754 | AC11: =+AC10+AB11 -> 3043.701754 | AD11: =+AD10+AC11 -> 3043.701754 | AE11: =+AE10+AD11 -> 3043.701754 | AF11: =+AF10+AE11 -> 3043.701754 | AG11: =+AG10+AF11 -> 3043.701754 | AH11: =+AH10+AG11 -> 3043.701754 | AI11: =+AI10+AH11 -> 3043.701754 | AJ11: =+AJ10+AI11 -> 3043.701754 | AK11: =+AK10+AJ11 -> 3043.701754 | AL11: =+AL10+AK11 -> 3043.701754 | AM11: =+AM10+AL11 -> 3043.701754 | AN11: =+AN10+AM11 -> 3043.701754 | AO11: =+AO10+AN11 -> 3043.701754 | AP11: =+AP10+AO11 -> 3043.701754 | AQ11: =+AQ10+AP11 -> 3043.701754
B12: DSCR | C12: 0 | D12: =IF(D$8>0,D$10/D$8,0) -> 1.036809306 | E12: =IF(E$8>0,E$10/E$8,0) -> 1.116784782 | F12: 1.163940801 | G12: 1.216386362 | H12: 1.275293193 | I12: 1.341872876 | J12: 1.417664923 | K12: 1.505086156 | L12: 1.606964624 | M12: 1.727138124 | N12: 1.871671892 | O12: 2.048737324 | P12: 0 | Q12: 0 | R12: 0 | S12: 0 | T12: 0 | U12: 0 | V12: 0 | W12: 0 | X12: 0 | Y12: 0 | Z12: 0 | AA12: 0 | AB12: 0 | AC12: 0 | AD12: 0 | AE12: 0 | AF12: 0 | AG12: 0 | AH12: 0 | AI12: 0 | AJ12: 0 | AK12: 0 | AL12: 0 | AM12: 0 | AN12: 0 | AO12: 0 | AP12: 0 | AQ12: 0
B13: Cummulative DSCR | C13: 0 | D13: =IF(D$9>0,D$11/D$9,0) -> 1.036809306 | E13: =IF(E$9>0,E$11/E$9,0) -> 1.075752977 | F13: 1.103572726 | G13: 1.129446938 | H13: 1.15531237 | I13: 1.181874658 | J13: 1.209493705 | K13: 1.238439397 | L13: 1.268925448 | M13: 1.301145487 | N13: 1.335320125 | O13: 1.37167536 | P13: 0 | Q13: 0 | R13: 0 | S13: 0 | T13: 0 | U13: 0 | V13: 0 | W13: 0 | X13: 0 | Y13: 0 | Z13: 0 | AA13: 0 | AB13: 0 | AC13: 0 | AD13: 0 | AE13: 0 | AF13: 0 | AG13: 0 | AH13: 0 | AI13: 0 | AJ13: 0 | AK13: 0 | AL13: 0 | AM13: 0 | AN13: 0 | AO13: 0 | AP13: 0 | AQ13: 0
B14: MINIMUM DSCR (after 1st year) | C14: =SMALL(D12:AQ12,COUNTIF(D12:AQ12,0)+1) -> 1.036809306
B15: Average DSCR | C15: =SUM($D12:$AQ12)/COUNTIF($D12:$AQ12,">0") -> 1.444029197 | AQ15: ='Term Loan'!AP59 -> 0
B16: Post-tax Cashflow before Debt Service w/ AD | C16: ='IRR-AD'!C22 -> 0 | D16: ='IRR-AD'!D22 -> 132.9360145 | E16: ='IRR-AD'!E22 -> 136.2055337 | F16: ='IRR-AD'!F22 -> 134.1601072 | G16: ='IRR-AD'!G22 -> 132.0819695 | H16: ='IRR-AD'!H22 -> 129.9651337 | I16: ='IRR-AD'!I22 -> 127.8095013 | J16: ='IRR-AD'!J22 -> 125.6148541 | K16: ='IRR-AD'!K22 -> 123.3748443 | L16: ='IRR-AD'!L22 -> 121.0889924 | M16: ='IRR-AD'!M22 -> 118.7566771 | N16: ='IRR-AD'!N22 -> 116.3711246 | O16: ='IRR-AD'!O22 -> 113.9314051 | P16: ='IRR-AD'!P22 -> 112.094684 | Q16: ='IRR-AD'!Q22 -> 110.9757332 | R16: ='IRR-AD'!R22 -> 109.7927783 | S16: ='IRR-AD'!S22 -> 108.5421584 | T16: ='IRR-AD'!T22 -> 107.2200031 | U16: ='IRR-AD'!U22 -> 101.0203005 | V16: ='IRR-AD'!V22 -> 93.78026069 | W16: ='IRR-AD'!W22 -> 92.21799842 | X16: ='IRR-AD'!X22 -> 76.48529161 | Y16: ='IRR-AD'!Y22 -> 75.01067474 | Z16: ='IRR-AD'!Z22 -> 73.45170979 | AA16: ='IRR-AD'!AA22 -> 71.80357205 | AB16: ='IRR-AD'!AB22 -> 70.06116082 | AC16: ='IRR-AD'!AC22 -> 0 | AD16: ='IRR-AD'!AD22 -> 0 | AE16: ='IRR-AD'!AE22 -> 0 | AF16: ='IRR-AD'!AF22 -> 0 | AG16: ='IRR-AD'!AG22 -> 0 | AH16: ='IRR-AD'!AH22 -> 0 | AI16: ='IRR-AD'!AI22 -> 0 | AJ16: ='IRR-AD'!AJ22 -> 0 | AK16: ='IRR-AD'!AK22 -> 0 | AL16: ='IRR-AD'!AL22 -> 0 | AM16: ='IRR-AD'!AM22 -> 0 | AN16: ='IRR-AD'!AN22 -> 0 | AO16: ='IRR-AD'!AO22 -> 0 | AP16: ='IRR-AD'!AP22 -> 0 | AQ16: ='IRR-AD'!AQ22 -> 0
B17: DSCR w/ AD | C17: 0 | D17: =IF(D$8>0,D$16/D$8,0) -> 0.9409178798 | E17: =IF(E$8>0,E$16/E$8,0) -> 1.015751718 | F17: 1.057183477 | G17: 1.10322663 | H17: 1.154903439 | I17: 1.213266158 | J17: 1.279651473 | K17: 1.35616493 | L17: 1.445263486 | M17: 1.550280803 | N17: 1.676495265 | O17: 1.831007742 | P17: 0 | Q17: 0 | R17: 0 | S17: 0 | T17: 0 | U17: 0 | V17: 0 | W17: 0 | X17: 0 | Y17: 0 | Z17: 0 | AA17: 0 | AB17: 0 | AC17: 0 | AD17: 0 | AE17: 0 | AF17: 0 | AG17: 0 | AH17: 0 | AI17: 0 | AJ17: 0 | AK17: 0 | AL17: 0 | AM17: 0 | AN17: 0 | AO17: 0 | AP17: 0 | AQ17: 0
B18: MINIMUM DSCR w/ AD (after 1st year) | C18: =SMALL(D17:AQ17,COUNTIF(D17:AQ17,0)+1) -> 0.9409178798
B19: Average DSCR w/ AD | C19: =SUM($D17:$AQ17)/COUNTIF($D17:$AQ17,">0") -> 1.302009417

Sheet Fuel
K2: Fuel
B3: Inputs | C3: Value | D3: Units
B4: ='Form Input'!C5 -> Annual Gross Generation | C4: ='Form Input'!D5 -> 16.644 | D4: ='Form Input'!E5 -> Lakh kWhs
B5: ='Form Input'!C9 -> Life of Plant and Machinery / Project Life | C5: ='Form Input'!D9 -> 25 | D5: ='Form Input'!E9 -> years
B6: ='Form Input'!C50 -> Fuel requirement/kWh | C6: ='Form Input'!D50 -> 0 | D6: ='Form Input'!E50 -> kg/kWh
B7: ='Form Input'!C51 -> Feedstock Price | C7: ='Form Input'!D51 -> 0 | D7: ='Form Input'!E51 -> Rs/MT
B8: ='Form Input'!C52 -> Fuel Cost Escalation | C8: ='Form Input'!D52 -> 0 | D8: ='Form Input'!E52 -> %
B11: Year | D11: 1 | E11: =D11+1 -> 2 | F11: =E11+1 -> 3 | G11: =F11+1 -> 4 | H11: 5 | I11: 6 | J11: 7 | K11: 8 | L11: 9 | M11: 10 | N11: 11 | O11: 12 | P11: 13 | Q11: 14 | R11: 15 | S11: 16 | T11: 17 | U11: 18 | V11: 19 | W11: 20 | X11: 21 | Y11: 22 | Z11: 23 | AA11: 24 | AB11: 25 | AC11: =AB11+1 -> 26 | AD11: =AC11+1 -> 27 | AE11: =AD11+1 -> 28 | AF11: =AE11+1 -> 29 | AG11: =AF11+1 -> 30 | AH11: =AG11+1 -> 31 | AI11: =AH11+1 -> 32 | AJ11: =AI11+1 -> 33 | AK11: =AJ11+1 -> 34 | AL11: =AK11+1 -> 35 | AM11: =AL11+1 -> 36 | AN11: =AM11+1 -> 37 | AO11: =AN11+1 -> 38 | AP11: =AO11+1 -> 39 | AQ11: =AP11+1 -> 40
B12: Fuel requirement | C12: MT | D12: =IF(D11<=$C$5,$C$4*$C$6*100,0) -> 0 | E12: 0 | F12: 0 | G12: 0 | H12: 0 | I12: 0 | J12: 0 | K12: 0 | L12: 0 | M12: 0 | N12: 0 | O12: 0 | P12: 0 | Q12: 0 | R12: 0 | S12: 0 | T12: 0 | U12: 0 | V12: 0 | W12: 0 | X12: 0 | Y12: 0 | Z12: 0 | AA12: 0 | AB12: 0 | AC12: 0 | AD12: 0 | AE12: 0 | AF12: 0 | AG12: 0 | AH12: 0 | AI12: 0 | AJ12: 0 | AK12: 0 | AL12: 0 | AM12: 0 | AN12: 0 | AO12: 0 | AP12: 0 | AQ12: 0
B13: Feedstock Price | C13: Rs/MT | D13: =C7 -> 0 | E13: =IF(E11<=$C$5,D13*(1+$C$8),0) -> 0 | F13: 0 | G13: 0 | H13: 0 | I13: 0 | J13: 0 | K13: 0 | L13: 0 | M13: 0 | N13: 0 | O13: 0 | P13: 0 | Q13: 0 | R13: 0 | S13: 0 | T13: 0 | U13: 0 | V13: 0 | W13: 0 | X13: 0 | Y13: 0 | Z13: 0 | AA13: 0 | AB13: 0 | AC13: 0 | AD13: 0 | AE13: 0 | AF13: 0 | AG13: 0 | AH13: 0 | AI13: 0 | AJ13: 0 | AK13: 0 | AL13: 0 | AM13: 0 | AN13: 0 | AO13: 0 | AP13: 0 | AQ13: 0
B14: Fuel Cost | C14: Rs lakhs | D14: =D13*D12/10^5 -> 0 | E14: =E13*E12/10^5 -> 0 | F14: 0 | G14: 0 | H14: 0 | I14: 0 | J14: 0 | K14: 0 | L14: 0 | M14: 0 | N14: 0 | O14: 0 | P14: 0 | Q14: 0 | R14: 0 | S14: 0 | T14: 0 | U14: 0 | V14: 0 | W14: 0 | X14: 0 | Y14: 0 | Z14: 0 | AA14: 0 | AB14: 0 | AC14: 0 | AD14: 0 | AE14: 0 | AF14: 0 | AG14: 0 | AH14: 0 | AI14: 0 | AJ14: 0 | AK14: 0 | AL14: 0 | AM14: 0 | AN14: 0 | AO14: 0 | AP14: 0 | AQ14: 0

Sheet Depreciation
E2: Depreciation
B3: Depreciation Calculations for SLM | C3: Value | D3: Unit
B4: ='Form Input'!C10 -> CapEx | C4: ='Form Input'!D10*'Form Input'!D3 -> 1000 | D4: Rs Lacs
B5: ='Form Input'!C7 -> Annual Net Generation | C5: ='Form Input'!D7 -> 16.644 | D5: ='Form Input'!E7 -> Lakh kWhs
B6: ='Form Input'!C8 -> Annual Deration | C6: ='Form Input'!D8 -> 0 | D6: ='Form Input'!E8 -> %
B7: ='Form Input'!C9 -> Life of Plant and Machinery / Project Life | C7: ='Form Input'!D9 -> 25 | D7: ='Form Input'!E9 -> years
B8: Annual Depreciation for period of term loan | C8: ='Form Input'!D12*'Form Input'!D19 -> 52.47 | D8: Lakhs/yr
B9: Advance Against Depreciation | C9: 0 | D9: Lakhs/yr
B10: Amount remaining to be depreciated post-term loan | C10: ='Form Input'!D12-('Form Input'!D21*$C$8) -> 270.36 | D10: Lakhs
B11: Depreciation for remaining years (post-term loan) | C11: =C10/'Form Input'!D22 -> 20.79692308 | D11: Lakhs/yr
B12: ='Form Input'!C35 -> Book depreciation first year | C12: ='Form Input'!D35 -> 0.0264 | D12: %
B13: ='Form Input'!C36 -> Book depreciation from second year | C13: ='Form Input'!D36 -> 0.0528 | D13: %
B14: Depreciable Amount | C14: ='Form Input'!D12 -> 900 | D14: Rs Lacs
B15: ='Form Input'!C37 -> Accelerated Depreciation first year | C15: ='Form Input'!D37 -> 0.4 | D15: %
B16: ='Form Input'!C38 -> Accelerated Depreciation from second year | C16: ='Form Input'!D38 -> 0.8 | D16: %
B17: Plant&Machinery Income Tax Depreciation | C17: 0.25 | D17: %
B18: ='Form Input'!C32 -> Corporate Tax Rate | C18: ='Form Input'!D32 -> 0.32445 | D18: ='Form Input'!E32 -> %
B20: Accelerated Depreciation Benefit Calculations | C20: 1 | D20: =C20+1 -> 2 | E20: =D20+1 -> 3 | F20: 4 | G20: 5 | H20: 6 | I20: 7 | J20: 8 | K20: 9 | L20: 10 | M20: 11 | N20: 12 | O20: 13 | P20: 14 | Q20: 15 | R20: 16 | S20: 17 | T20: 18 | U20: 19 | V20: 20 | W20: 21 | X20: 22 | Y20: 23 | Z20: 24 | AA20: 25 | AB20: 26 | AC20: 27 | AD20: 28 | AE20: 29 | AF20: 30 | AG20: 31 | AH20: 32 | AI20: 33 | AJ20: 34 | AK20: 35 | AL20: 36 | AM20: 37 | AN20: 38 | AO20: 39 | AP20: 40
B21: Book depreciation | C21: =C12*C4 -> 26.4 | D21: =IF(D20<$C$7,IF(($C$13*$C$4+C22)<$C$14, $C$13*$C$4, ($C$14-C22)),0) -> 52.8 | E21: =IF(E20<$C$7,IF(($C$13*$C$4+D22)<$C$14, $C$13*$C$4, ($C$14-D22)),0) -> 52.8 | F21: 52.8 | G21: 52.8 | H21: 52.8 | I21: 52.8 | J21: 52.8 | K21: 52.8 | L21: 52.8 | M21: 52.8 | N21: 52.8 | O21: 52.8 | P21: 52.8 | Q21: 52.8 | R21: 52.8 | S21: 52.8 | T21: 28.8 | U21: 0 | V21: 0 | W21: 0 | X21: 0 | Y21: 0 | Z21: 0 | AA21: 0 | AB21: 0 | AC21: 0 | AD21: 0 | AE21: 0 | AF21: 0 | AG21: 0 | AH21: 0 | AI21: 0 | AJ21: 0 | AK21: 0 | AL21: 0 | AM21: 0 | AN21: 0 | AO21: 0 | AP21: 0
B22: Cumulative Book Depreciation | C22: =C21 -> 26.4 | D22: =IF(D20<=$C$7,C22+D21,0) -> 79.2 | E22: =IF(E20<=$C$7,D22+E21,0) -> 132 | F22: 184.8 | G22: 237.6 | H22: 290.4 | I22: 343.2 | J22: 396 | K22: 448.8 | L22: 501.6 | M22: 554.4 | N22: 607.2 | O22: 660 | P22: 712.8 | Q22: 765.6 | R22: 818.4 | S22: 871.2 | T22: 900 | U22: 900 | V22: 900 | W22: 900 | X22: 900 | Y22: 900 | Z22: 900 | AA22: 900 | AB22: 0 | AC22: 0 | AD22: 0 | AE22: 0 | AF22: 0 | AG22: 0 | AH22: 0 | AI22: 0 | AJ22: 0 | AK22: 0 | AL22: 0 | AM22: 0 | AN22: 0 | AO22: 0 | AP22: 0
B23: Acclerated Depreciation | C23: =C15*C4 -> 400 | D23: =IF(D20<=$C$7,($C$4-C24)*$C$16,0) -> 480 | E23: 96 | F23: 19.2 | G23: 3.84 | H23: 0.768 | I23: 0.1536 | J23: 0.03072 | K23: 0.006144 | L23: 0.0012288 | M23: 0.00024576 | N23: 4.915199997e-05 | O23: 9.830399995e-06 | P23: 1.966079981e-06 | Q23: 3.932160325e-07 | R23: 7.864318832e-08 | S23: 1.572861947e-08 | T23: 3.145760274e-09 | U23: 6.291884347e-10 | V23: 1.258740667e-10 | W23: 2.519300324e-11 | X23: 5.00222086e-12 | Y23: 1.000444172e-12 | Z23: 1.818989404e-13 | AA23: 0 | AB23: 0 | AC23: 0 | AD23: 0 | AE23: 0 | AF23: 0 | AG23: 0 | AH23: 0 | AI23: 0 | AJ23: 0 | AK23: 0 | AL23: 0 | AM23: 0 | AN23: 0 | AO23: 0 | AP23: 0
B24: Cumulative Accelerated Depreciation | C24: =C23 -> 400 | D24: =IF(D20<=$C$7,C24+D23,0) -> 880 | E24: =IF(E20<=$C$7,D24+E23,0) -> 976 | F24: 995.2 | G24: 999.04 | H24: 999.808 | I24: 999.9616 | J24: 999.99232 | K24: 999.998464 | L24: 999.9996928 | M24: 999.9999386 | N24: 999.9999877 | O24: 999.9999975 | P24: 999.9999995 | Q24: 999.9999999 | R24: 1000 | S24: 1000 | T24: 1000 | U24: 1000 | V24: 1000 | W24: 1000 | X24: 1000 | Y24: 1000 | Z24: 1000 | AA24: 1000 | AB24: 0 | AC24: 0 | AD24: 0 | AE24: 0 | AF24: 0 | AG24: 0 | AH24: 0 | AI24: 0 | AJ24: 0 | AK24: 0 | AL24: 0 | AM24: 0 | AN24: 0 | AO24: 0 | AP24: 0
B25: Plant & Machinery Depreciation | C25: =$C$17*$C$4 -> 250 | D25: =IF(D20<=$C$7,($C$4-C26)*$C$17,0) -> 187.5 | E25: 140.625 | F25: 105.46875 | G25: 79.1015625 | H25: 59.32617188 | I25: 44.49462891 | J25: 33.37097168 | K25: 25.02822876 | L25: 18.77117157 | M25: 14.07837868 | N25: 10.55878401 | O25: 7.919088006 | P25: 5.939316005 | Q25: 4.454487003 | R25: 3.340865253 | S25: 2.505648939 | T25: 1.879236705 | U25: 1.409427528 | V25: 1.057070646 | W25: 0.7928029847 | X25: 0.5946022386 | Y25: 0.4459516789 | Z25: 0.3344637592 | AA25: 0.2508478194 | AB25: 0 | AC25: 0 | AD25: 0 | AE25: 0 | AF25: 0 | AG25: 0 | AH25: 0 | AI25: 0 | AJ25: 0 | AK25: 0 | AL25: 0 | AM25: 0 | AN25: 0 | AO25: 0 | AP25: 0
B26: Cumulative Plant & Machinery Depreciation | C26: =$C$25 -> 250 | D26: =IF(D20<=$C$7,C26+D25,0) -> 437.5 | E26: =IF(E20<=$C$7,D26+E25,0) -> 578.125 | F26: 683.59375 | G26: 762.6953125 | H26: 822.0214844 | I26: 866.5161133 | J26: 899.887085 | K26: 924.9153137 | L26: 943.6864853 | M26: 957.764864 | N26: 968.323648 | O26: 976.242736 | P26: 982.182052 | Q26: 986.636539 | R26: 989.9774042 | S26: 992.4830532 | T26: 994.3622899 | U26: 995.7717174 | V26: 996.8287881 | W26: 997.621591 | X26: 998.2161933 | Y26: 998.662145 | Z26: 998.9966087 | AA26: 999.2474565 | AB26: 0 | AC26: 0 | AD26: 0 | AE26: 0 | AF26: 0 | AG26: 0 | AH26: 0 | AI26: 0 | AJ26: 0 | AK26: 0 | AL26: 0 | AM26: 0 | AN26: 0 | AO26: 0 | AP26: 0
B27: Net depreciation benefit | C27: =C23-C21 -> 373.6 | D27: =D23-D21 -> 427.2 | E27: 43.2 | F27: -33.6 | G27: -48.96 | H27: -52.032 | I27: -52.6464 | J27: -52.76928 | K27: -52.793856 | L27: -52.7987712 | M27: -52.79975424 | N27: -52.79995085 | O27: -52.79999017 | P27: -52.79999803 | Q27: -52.79999961 | R27: -52.79999992 | S27: -52.79999998 | T27: -28.8 | U27: 6.291884347e-10 | V27: 1.258740667e-10 | W27: 2.519300324e-11 | X27: 5.00222086e-12 | Y27: 1.000444172e-12 | Z27: 1.818989404e-13 | AA27: 0 | AB27: 0 | AC27: 0 | AD27: 0 | AE27: 0 | AF27: 0 | AG27: 0 | AH27: 0 | AI27: 0 | AJ27: 0 | AK27: 0 | AL27: 0 | AM27: 0 | AN27: 0 | AO27: 0 | AP27: 0
B28: Net benefit | C28: =$C$18*C27 -> 121.21452 | D28: =$C$18*D27 -> 138.60504 | E28: 14.01624 | F28: -10.90152 | G28: -15.885072 | H28: -16.8817824 | I28: -17.08112448 | J28: -17.1209929 | K28: -17.12896658 | L28: -17.13056132 | M28: -17.13088026 | N28: -17.13094405 | O28: -17.13095681 | P28: -17.13095936 | Q28: -17.13095987 | R28: -17.13095997 | S28: -17.13095999 | T28: -9.344159999 | U28: 2.041401876e-10 | V28: 4.083984095e-11 | W28: 8.173869901e-12 | X28: 1.622970558e-12 | Y28: 3.245941116e-13 | Z28: 5.90171112e-14 | AA28: 0 | AB28: 0 | AC28: 0 | AD28: 0 | AE28: 0 | AF28: 0 | AG28: 0 | AH28: 0 | AI28: 0 | AJ28: 0 | AK28: 0 | AL28: 0 | AM28: 0 | AN28: 0 | AO28: 0 | AP28: 0
B29: Net Energy sold (lakh kWhs) | C29: =$C$5 -> 16.644 | D29: =IF(D20<=$C$7,C29*(1-$C$6),0) -> 16.644 | E29: =IF(E20<=$C$7,D29*(1-$C$6),0) -> 16.644 | F29: 16.644 | G29: 16.644 | H29: 16.644 | I29: 16.644 | J29: 16.644 | K29: 16.644 | L29: 16.644 | M29: 16.644 | N29: 16.644 | O29: 16.644 | P29: 16.644 | Q29: 16.644 | R29: 16.644 | S29: 16.644 | T29: 16.644 | U29: 16.644 | V29: 16.644 | W29: 16.644 | X29: 16.644 | Y29: 16.644 | Z29: 16.644 | AA29: 16.644 | AB29: 0 | AC29: 0 | AD29: 0 | AE29: 0 | AF29: 0 | AG29: 0 | AH29: 0 | AI29: 0 | AJ29: 0 | AK29: 0 | AL29: 0 | AM29: 0 | AN29: 0 | AO29: 0 | AP29: 0
B30: Benefit/kWh | C30: =IF(C29>0,C28/C29,0) -> 7.282775775 | D30: =IF(D29>0,D28/D29,0) -> 8.327627974 | E30: 0.8421196828 | F30: -0.6549819755 | G30: -0.9544023071 | H30: -1.014286373 | I30: -1.026263187 | J30: -1.028658549 | K30: -1.029137622 | L30: -1.029233436 | M30: -1.029252599 | N30: -1.029256432 | O30: -1.029257198 | P30: -1.029257352 | Q30: -1.029257382 | R30: -1.029257389 | S30: -1.02925739 | T30: -0.5614131218 | U30: 1.226509178e-11 | V30: 2.453727526e-12 | W30: 4.911000902e-13 | X30: 9.751084823e-14 | Y30: 1.950216965e-14 | Z30: 3.545849027e-15 | AA30: 0 | AB30: 0 | AC30: 0 | AD30: 0 | AE30: 0 | AF30: 0 | AG30: 0 | AH30: 0 | AI30: 0 | AJ30: 0 | AK30: 0 | AL30: 0 | AM30: 0 | AN30: 0 | AO30: 0 | AP30: 0
B31: Levelized benefit | C31: =NPV('Form Input'!D23,C30:AP30)/'Form Input'!D28 -> 1.017575046 | D31: Rs/kWh

Sheet W Capital
J2: Working Capital
B3: Inputs | C3: Value | D3: Units
B4: ='Form Input'!C3 -> Capacity | C4: ='Form Input'!D3 -> 1 | D4: ='Form Input'!E3 -> MW
B5: ='Form Input'!C9 -> Life of Plant and Machinery / Project Life | C5: ='Form Input'!D9 -> 25 | D5: ='Form Input'!E9 -> years
B6: ='Form Input'!C24 -> O&M cost | C6: ='Form Input'!D24 -> 11 | D6: ='Form Input'!E24 -> Rs Lacs / MW
B7: ='Form Input'!C25 -> O&M Cost Esclation | C7: ='Form Input'!D25 -> 0.0572 | D7: ='Form Input'!E25 -> %
B8: ='Form Input'!C7 -> Annual Net Generation | C8: ='Form Input'!D7 -> 16.644 | D8: ='Form Input'!E7 -> Lakh kWhs
B9: ='Form Input'!C30 -> Assumed tariff (Iterative) | C9: ='Form Input'!D30 -> 10.33 | D9: ='Form Input'!E30 -> Rs / kWh
B10: ='Form Input'!C31 -> Maintenance spares | C10: ='Form Input'!D31 -> 0.15 | D10: ='Form Input'!E31 -> of yearly O&M Cost
B11: ='Form Input'!C29 -> Interest on working capital | C11: ='Form Input'!D29 -> 0.1282 | D11: ='Form Input'!E29 -> %
B13: Working Capital | C13: 1 | D13: =C13+1 -> 2 | E13: =D13+1 -> 3 | F13: 4 | G13: 5 | H13: 6 | I13: 7 | J13: 8 | K13: 9 | L13: 10 | M13: 11 | N13: 12 | O13: 13 | P13: 14 | Q13: 15 | R13: 16 | S13: 17 | T13: 18 | U13: 19 | V13: 20 | W13: 21 | X13: 22 | Y13: 23 | Z13: 24 | AA13: 25 | AB13: 26 | AC13: 27 | AD13: 28 | AE13: 29 | AF13: 30 | AG13: 31 | AH13: 32 | AI13: 33 | AJ13: 34 | AK13: 35 | AL13: 36 | AM13: 37 | AN13: 38 | AO13: 39 | AP13: 40
B14: Fuel Cost (4 months equivalent) | C14: =Fuel!D14/3 -> 0 | D14: =Fuel!E14/3 -> 0 | E14: =Fuel!F14/3 -> 0 | F14: =Fuel!G14/3 -> 0 | G14: =Fuel!H14/3 -> 0 | H14: =Fuel!I14/3 -> 0 | I14: =Fuel!J14/3 -> 0 | J14: =Fuel!K14/3 -> 0 | K14: =Fuel!L14/3 -> 0 | L14: =Fuel!M14/3 -> 0 | M14: =Fuel!N14/3 -> 0 | N14: =Fuel!O14/3 -> 0 | O14: =Fuel!P14/3 -> 0 | P14: =Fuel!Q14/3 -> 0 | Q14: =Fuel!R14/3 -> 0 | R14: =Fuel!S14/3 -> 0 | S14: =Fuel!T14/3 -> 0 | T14: =Fuel!U14/3 -> 0 | U14: =Fuel!V14/3 -> 0 | V14: =Fuel!W14/3 -> 0 | W14: =Fuel!X14/3 -> 0 | X14: =Fuel!Y14/3 -> 0 | Y14: =Fuel!Z14/3 -> 0 | Z14: =Fuel!AA14/3 -> 0 | AA14: =Fuel!AB14/3 -> 0 | AB14: =Fuel!AC14/3 -> 0 | AC14: =Fuel!AD14/3 -> 0 | AD14: =Fuel!AE14/3 -> 0 | AE14: =Fuel!AF14/3 -> 0 | AF14: =Fuel!AG14/3 -> 0 | AG14: =Fuel!AH14/3 -> 0 | AH14: =Fuel!AI14/3 -> 0 | AI14: =Fuel!AJ14/3 -> 0 | AJ14: =Fuel!AK14/3 -> 0 | AK14: =Fuel!AL14/3 -> 0 | AL14: =Fuel!AM14/3 -> 0 | AM14: =Fuel!AN14/3 -> 0 | AN14: =Fuel!AO14/3 -> 0 | AO14: =Fuel!AP14/3 -> 0 | AP14: =Fuel!AQ14/3 -> 0
B15: O&M | C15: =$C$4*$C$6 -> 11 | D15: =IF(D13<=$C$5,C15*(1+$C$7),0) -> 11.6292 | E15: =IF(E13<=$C$5,D15*(1+$C$7),0) -> 12.29439024 | F15: 12.99762936 | G15: 13.74109376 | H15: 14.52708432 | I15: 15.35803355 | J15: 16.23651307 | K15: 17.16524161 | L15: 18.14709343 | M15: 19.18510718 | N15: 20.28249531 | O15: 21.44265404 | P15: 22.66917385 | Q15: 23.9658506 | R15: 25.33669725 | S15: 26.78595633 | T15: 28.31811304 | U15: 29.9379091 | V15: 31.6503575 | W15: 33.46075795 | X15: 35.37471331 | Y15: 37.39814691 | Z15: 39.53732091 | AA15: 41.79885567 | AB15: 0 | AC15: 0 | AD15: 0 | AE15: 0 | AF15: 0 | AG15: 0 | AH15: 0 | AI15: 0 | AJ15: 0 | AK15: 0 | AL15: 0 | AM15: 0 | AN15: 0 | AO15: 0 | AP15: 0
B16: O&M expenses for 1 month | C16: =C15/12 -> 0.9166666667 | D16: =D15/12 -> 0.9691 | E16: 1.02453252 | F16: 1.08313578 | G16: 1.145091147 | H16: 1.21059036 | I16: 1.279836129 | J16: 1.353042756 | K16: 1.430436801 | L16: 1.512257786 | M16: 1.598758932 | N16: 1.690207942 | O16: 1.786887837 | P16: 1.889097821 | Q16: 1.997154216 | R16: 2.111391438 | S16: 2.232163028 | T16: 2.359842753 | U16: 2.494825758 | V16: 2.637529792 | W16: 2.788396496 | X16: 2.947892775 | Y16: 3.116512242 | Z16: 3.294776743 | AA16: 3.483237972 | AB16: 0 | AC16: 0 | AD16: 0 | AE16: 0 | AF16: 0 | AG16: 0 | AH16: 0 | AI16: 0 | AJ16: 0 | AK16: 0 | AL16: 0 | AM16: 0 | AN16: 0 | AO16: 0 | AP16: 0
B17: Receivables (2 months of energy charges) | C17: =IF(C13<=$C$5,$C$8*$C$9/6,0) -> 28.65542 | D17: =IF(D13<=$C$5,$C$8*$C$9/6,0) -> 28.65542 | E17: 28.65542 | F17: 28.65542 | G17: 28.65542 | H17: 28.65542 | I17: 28.65542 | J17: 28.65542 | K17: 28.65542 | L17: 28.65542 | M17: 28.65542 | N17: 28.65542 | O17: 28.65542 | P17: 28.65542 | Q17: 28.65542 | R17: 28.65542 | S17: 28.65542 | T17: 28.65542 | U17: 28.65542 | V17: 28.65542 | W17: 28.65542 | X17: 28.65542 | Y17: 28.65542 | Z17: 28.65542 | AA17: 28.65542 | AB17: 0 | AC17: 0 | AD17: 0 | AE17: 0 | AF17: 0 | AG17: 0 | AH17: 0 | AI17: 0 | AJ17: 0 | AK17: 0 | AL17: 0 | AM17: 0 | AN17: 0 | AO17: 0 | AP17: 0
B18: Maintenance spare | C18: =C16*$C$10 -> 0.1375 | D18: =D16*$C$10 -> 0.145365 | E18: 0.153679878 | F18: 0.162470367 | G18: 0.171763672 | H18: 0.1815885541 | I18: 0.1919754193 | J18: 0.2029564133 | K18: 0.2145655202 | L18: 0.2268386679 | M18: 0.2398138397 | N18: 0.2535311914 | O18: 0.2680331755 | P18: 0.2833646732 | Q18: 0.2995731325 | R18: 0.3167087156 | S18: 0.3348244542 | T18: 0.3539764129 | U18: 0.3742238638 | V18: 0.3956294688 | W18: 0.4182594744 | X18: 0.4421839163 | Y18: 0.4674768363 | Z18: 0.4942165114 | AA18: 0.5224856958 | AB18: 0 | AC18: 0 | AD18: 0 | AE18: 0 | AF18: 0 | AG18: 0 | AH18: 0 | AI18: 0 | AJ18: 0 | AK18: 0 | AL18: 0 | AM18: 0 | AN18: 0 | AO18: 0 | AP18: 0
B19: Total working capital | C19: =SUM(C14:C18) -> 40.70958667 | D19: =SUM(D14:D18) -> 41.399085 | E19: 42.12802264 | F19: 42.89865551 | G19: 43.71336858 | H19: 44.57468324 | I19: 45.4852651 | J19: 46.44793224 | K19: 47.46566394 | L19: 48.54160989 | M19: 49.67909995 | N19: 50.88165444 | O19: 52.15299505 | P19: 53.49705635 | Q19: 54.91799795 | R19: 56.4202174 | S19: 58.00836382 | T19: 59.6873522 | U19: 61.46237872 | V19: 63.33893676 | W19: 65.32283392 | X19: 67.42021 | Y19: 69.63755599 | Z19: 71.98173416 | AA19: 74.45999933 | AB19: 0 | AC19: 0 | AD19: 0 | AE19: 0 | AF19: 0 | AG19: 0 | AH19: 0 | AI19: 0 | AJ19: 0 | AK19: 0 | AL19: 0 | AM19: 0 | AN19: 0 | AO19: 0 | AP19: 0
B20: Interest on working capital | C20: =C19*$C$11 -> 5.218969011 | D20: =D19*$C$11 -> 5.307362697 | E20: 5.400812502 | F20: 5.499607636 | G20: 5.604053852 | H20: 5.714474391 | I20: 5.831210985 | J20: 5.954624913 | K20: 6.085098117 | L20: 6.223034388 | M20: 6.368860614 | N20: 6.5230281 | O20: 6.686013966 | P20: 6.858322624 | Q20: 7.040487337 | R20: 7.233071871 | S20: 7.436672241 | T20: 7.651918552 | U20: 7.879476952 | V20: 8.120051693 | W20: 8.374387309 | X20: 8.643270922 | Y20: 8.927534677 | Z20: 9.22805832 | AA20: 9.545771915 | AB20: 0 | AC20: 0 | AD20: 0 | AE20: 0 | AF20: 0 | AG20: 0 | AH20: 0 | AI20: 0 | AJ20: 0 | AK20: 0 | AL20: 0 | AM20: 0 | AN20: 0 | AO20: 0 | AP20: 0

Sheet Tariff
J2: Tariff Calculations
B3: Inputs | C3: Value | D3: Units
B4: ='Form Input'!C9 -> Life of Plant and Machinery / Project Life | C4: ='Form Input'!D9 -> 25 | D4: ='Form Input'!E9 -> years
B5: ='Form Input'!C21 -> Number of years for initial depreciation rate | C5: ='Form Input'!D21 -> 12 | D5: ='Form Input'!E21 -> years
B6: ='Form Input'!C15 -> Equity | C6: ='Form Input'!D15 -> 300 | D6: ='Form Input'!E15 -> lacs
B7: ='Form Input'!C26 -> Return on Equity - pretax (initial years) | C7: ='Form Input'!D26 -> 0.2 | D7: ='Form Input'!E26 -> %
B8: ='Form Input'!C27 -> Return on Equity - pretax (later years) | C8: ='Form Input'!D27 -> 0.24 | D8: ='Form Input'!E27 -> %
B9: ='Form Input'!C47 -> Number of years for initial return on equity | C9: ='Form Input'!D47 -> 10 | D9: ='Form Input'!E47 -> years
B10: ='Form Input'!C23 -> Discount Rate | C10: ='Form Input'!D23 -> 0.106259432 | D10: ='Form Input'!E23 -> %
B11: ='Form Input'!C28 -> Annuity Factor (25 Years) | C11: ='Form Input'!D28 -> 8.657213087
B12: Land Lease Rate | C12: 0.05 | D12: %
B14: Year | C14: 1 | D14: =C14+1 -> 2 | E14: =D14+1 -> 3 | F14: 4 | G14: 5 | H14: 6 | I14: 7 | J14: 8 | K14: 9 | L14: 10 | M14: 11 | N14: 12 | O14: 13 | P14: 14 | Q14: 15 | R14: 16 | S14: 17 | T14: 18 | U14: 19 | V14: 20 | W14: 21 | X14: 22 | Y14: 23 | Z14: 24 | AA14: 25 | AB14: 26 | AC14: 27 | AD14: 28 | AE14: 29 | AF14: 30 | AG14: 31 | AH14: 32 | AI14: 33 | AJ14: 34 | AK14: 35 | AL14: 36 | AM14: 37 | AN14: 38 | AO14: 39 | AP14: =AO14+1 -> 40
B15: Net Energy sold (lakh kWhs) | C15: =Depreciation!C29 -> 16.644 | D15: =Depreciation!D29 -> 16.644 | E15: =Depreciation!E29 -> 16.644 | F15: =Depreciation!F29 -> 16.644 | G15: =Depreciation!G29 -> 16.644 | H15: =Depreciation!H29 -> 16.644 | I15: =Depreciation!I29 -> 16.644 | J15: =Depreciation!J29 -> 16.644 | K15: =Depreciation!K29 -> 16.644 | L15: =Depreciation!L29 -> 16.644 | M15: =Depreciation!M29 -> 16.644 | N15: =Depreciation!N29 -> 16.644 | O15: =Depreciation!O29 -> 16.644 | P15: =Depreciation!P29 -> 16.644 | Q15: =Depreciation!Q29 -> 16.644 | R15: =Depreciation!R29 -> 16.644 | S15: =Depreciation!S29 -> 16.644 | T15: =Depreciation!T29 -> 16.644 | U15: =Depreciation!U29 -> 16.644 | V15: =Depreciation!V29 -> 16.644 | W15: =Depreciation!W29 -> 16.644 | X15: =Depreciation!X29 -> 16.644 | Y15: =Depreciation!Y29 -> 16.644 | Z15: =Depreciation!Z29 -> 16.644 | AA15: =Depreciation!AA29 -> 16.644 | AB15: =Depreciation!AB29 -> 0 | AC15: =Depreciation!AC29 -> 0 | AD15: =Depreciation!AD29 -> 0 | AE15: =Depreciation!AE29 -> 0 | AF15: =Depreciation!AF29 -> 0 | AG15: =Depreciation!AG29 -> 0 | AH15: =Depreciation!AH29 -> 0 | AI15: =Depreciation!AI29 -> 0 | AJ15: =Depreciation!AJ29 -> 0 | AK15: =Depreciation!AK29 -> 0 | AL15: =Depreciation!AL29 -> 0 | AM15: =Depreciation!AM29 -> 0 | AN15: =Depreciation!AN29 -> 0 | AO15: =Depreciation!AO29 -> 0 | AP15: =Depreciation!AP29 -> 0
B16: Fixed Costs
B17: O&M | C17: ='W Capital'!C15 -> 11 | D17: ='W Capital'!D15 -> 11.6292 | E17: ='W Capital'!E15 -> 12.29439024 | F17: ='W Capital'!F15 -> 12.99762936 | G17: ='W Capital'!G15 -> 13.74109376 | H17: ='W Capital'!H15 -> 14.52708432 | I17: ='W Capital'!I15 -> 15.35803355 | J17: ='W Capital'!J15 -> 16.23651307 | K17: ='W Capital'!K15 -> 17.16524161 | L17: ='W Capital'!L15 -> 18.14709343 | M17: ='W Capital'!M15 -> 19.18510718 | N17: ='W Capital'!N15 -> 20.28249531 | O17: ='W Capital'!O15 -> 21.44265404 | P17: ='W Capital'!P15 -> 22.66917385 | Q17: ='W Capital'!Q15 -> 23.9658506 | R17: ='W Capital'!R15 -> 25.33669725 | S17: ='W Capital'!S15 -> 26.78595633 | T17: ='W Capital'!T15 -> 28.31811304 | U17: ='W Capital'!U15 -> 29.9379091 | V17: ='W Capital'!V15 -> 31.6503575 | W17: ='W Capital'!W15 -> 33.46075795 | X17: ='W Capital'!X15 -> 35.37471331 | Y17: ='W Capital'!Y15 -> 37.39814691 | Z17: ='W Capital'!Z15 -> 39.53732091 | AA17: ='W Capital'!AA15 -> 41.79885567 | AB17: ='W Capital'!AB15 -> 0 | AC17: ='W Capital'!AC15 -> 0 | AD17: ='W Capital'!AD15 -> 0 | AE17: ='W Capital'!AE15 -> 0 | AF17: ='W Capital'!AF15 -> 0 | AG17: ='W Capital'!AG15 -> 0 | AH17: ='W Capital'!AH15 -> 0 | AI17: ='W Capital'!AI15 -> 0 | AJ17: ='W Capital'!AJ15 -> 0 | AK17: ='W Capital'!AK15 -> 0 | AL17: ='W Capital'!AL15 -> 0 | AM17: ='W Capital'!AM15 -> 0 | AN17: ='W Capital'!AN15 -> 0 | AO17: ='W Capital'!AO15 -> 0 | AP17: ='W Capital'!AP15 -> 0
B18: Depreciation (SLM) | C18: =IF(C14<=$C$4,IF(C14<=$C$5,Depreciation!$C$8,Depreciation!$C$11),0) -> 52.47 | D18: =IF(D14<=$C$4,IF(D14<=$C$5,Depreciation!$C$8,Depreciation!$C$11),0) -> 52.47 | E18: =IF(E14<=$C$4,IF(E14<=$C$5,Depreciation!$C$8,Depreciation!$C$11),0) -> 52.47 | F18: =IF(F14<=$C$4,IF(F14<=$C$5,Depreciation!$C$8,Depreciation!$C$11),0) -> 52.47 | G18: =IF(G14<=$C$4,IF(G14<=$C$5,Depreciation!$C$8,Depreciation!$C$11),0) -> 52.47 | H18: =IF(H14<=$C$4,IF(H14<=$C$5,Depreciation!$C$8,Depreciation!$C$11),0) -> 52.47 | I18: =IF(I14<=$C$4,IF(I14<=$C$5,Depreciation!$C$8,Depreciation!$C$11),0) -> 52.47 | J18: =IF(J14<=$C$4,IF(J14<=$C$5,Depreciation!$C$8,Depreciation!$C$11),0) -> 52.47 | K18: =IF(K14<=$C$4,IF(K14<=$C$5,Depreciation!$C$8,Depreciation!$C$11),0) -> 52.47 | L18: =IF(L14<=$C$4,IF(L14<=$C$5,Depreciation!$C$8,Depreciation!$C$11),0) -> 52.47 | M18: =IF(M14<=$C$4,IF(M14<=$C$5,Depreciation!$C$8,Depreciation!$C$11),0) -> 52.47 | N18: =IF(N14<=$C$4,IF(N14<=$C$5,Depreciation!$C$8,Depreciation!$C$11),0) -> 52.47 | O18: =IF(O14<=$C$4,IF(O14<=$C$5,Depreciation!$C$8,Depreciation!$C$11),0) -> 20.79692308 | P18: =IF(P14<=$C$4,IF(P14<=$C$5,Depreciation!$C$8,Depreciation!$C$11),0) -> 20.79692308 | Q18: =IF(Q14<=$C$4,IF(Q14<=$C$5,Depreciation!$C$8,Depreciation!$C$11),0) -> 20.79692308 | R18: =IF(R14<=$C$4,IF(R14<=$C$5,Depreciation!$C$8,Depreciation!$C$11),0) -> 20.79692308 | S18: =IF(S14<=$C$4,IF(S14<=$C$5,Depreciation!$C$8,Depreciation!$C$11),0) -> 20.79692308 | T18: =IF(T14<=$C$4,IF(T14<=$C$5,Depreciation!$C$8,Depreciation!$C$11),0) -> 20.79692308 | U18: =IF(U14<=$C$4,IF(U14<=$C$5,Depreciation!$C$8,Depreciation!$C$11),0) -> 20.79692308 | V18: =IF(V14<=$C$4,IF(V14<=$C$5,Depreciation!$C$8,Depreciation!$C$11),0) -> 20.79692308 | W18: =IF(W14<=$C$4,IF(W14<=$C$5,Depreciation!$C$8,Depreciation!$C$11),0) -> 20.79692308 | X18: =IF(X14<=$C$4,IF(X14<=$C$5,Depreciation!$C$8,Depreciation!$C$11),0) -> 20.79692308 | Y18: =IF(Y14<=$C$4,IF(Y14<=$C$5,Depreciation!$C$8,Depreciation!$C$11),0) -> 20.79692308 | Z18: =IF(Z14<=$C$4,IF(Z14<=$C$5,Depreciation!$C$8,Depreciation!$C$11),0) -> 20.79692308 | AA18: =IF(AA14<=$C$4,IF(AA14<=$C$5,Depreciation!$C$8,Depreciation!$C$11),0) -> 20.79692308 | AB18: =IF(AB14<=$C$4,IF(AB14<=$C$5,Depreciation!$C$8,Depreciation!$C$11),0) -> 0 | AC18: =IF(AC14<=$C$4,IF(AC14<=$C$5,Depreciation!$C$8,Depreciation!$C$11),0) -> 0 | AD18: =IF(AD14<=$C$4,IF(AD14<=$C$5,Depreciation!$C$8,Depreciation!$C$11),0) -> 0 | AE18: =IF(AE14<=$C$4,IF(AE14<=$C$5,Depreciation!$C$8,Depreciation!$C$11),0) -> 0 | AF18: =IF(AF14<=$C$4,IF(AF14<=$C$5,Depreciation!$C$8,Depreciation!$C$11),0) -> 0 | AG18: =IF(AG14<=$C$4,IF(AG14<=$C$5,Depreciation!$C$8,Depreciation!$C$11),0) -> 0 | AH18: =IF(AH14<=$C$4,IF(AH14<=$C$5,Depreciation!$C$8,Depreciation!$C$11),0) -> 0 | AI18: =IF(AI14<=$C$4,IF(AI14<=$C$5,Depreciation!$C$8,Depreciation!$C$11),0) -> 0 | AJ18: =IF(AJ14<=$C$4,IF(AJ14<=$C$5,Depreciation!$C$8,Depreciation!$C$11),0) -> 0 | AK18: =IF(AK14<=$C$4,IF(AK14<=$C$5,Depreciation!$C$8,Depreciation!$C$11),0) -> 0 | AL18: =IF(AL14<=$C$4,IF(AL14<=$C$5,Depreciation!$C$8,Depreciation!$C$11),0) -> 0 | AM18: =IF(AM14<=$C$4,IF(AM14<=$C$5,Depreciation!$C$8,Depreciation!$C$11),0) -> 0 | AN18: =IF(AN14<=$C$4,IF(AN14<=$C$5,Depreciation!$C$8,Depreciation!$C$11),0) -> 0 | AO18: =IF(AO14<=$C$4,IF(AO14<=$C$5,Depreciation!$C$8,Depreciation!$C$11),0) -> 0 | AP18: =IF(AP14<=$C$4,IF(AP14<=$C$5,Depreciation!$C$8,Depreciation!$C$11),0) -> 0
B19: Interest on term loan | C19: ='Term Loan'!C52 -> 82.95 | D19: ='Term Loan'!D52 -> 75.76 | E19: ='Term Loan'!E52 -> 68.57 | F19: ='Term Loan'!F52 -> 61.39 | G19: ='Term Loan'!G52 -> 54.2 | H19: ='Term Loan'!H52 -> 47.01 | I19: ='Term Loan'!I52 -> 39.83 | J19: ='Term Loan'!J52 -> 32.64 | K19: ='Term Loan'!K52 -> 25.45 | L19: ='Term Loan'!L52 -> 18.27 | M19: ='Term Loan'!M52 -> 11.08 | N19: ='Term Loan'!N52 -> 3.89 | O19: ='Term Loan'!O52 -> 0 | P19: ='Term Loan'!P52 -> 0 | Q19: ='Term Loan'!Q52 -> 0 | R19: ='Term Loan'!R52 -> 0 | S19: ='Term Loan'!S52 -> 0 | T19: ='Term Loan'!T52 -> 0 | U19: ='Term Loan'!U52 -> 0 | V19: ='Term Loan'!V52 -> 0 | W19: ='Term Loan'!W52 -> 0 | X19: ='Term Loan'!X52 -> 0 | Y19: ='Term Loan'!Y52 -> 0 | Z19: ='Term Loan'!Z52 -> 0 | AA19: ='Term Loan'!AA52 -> 0 | AB19: ='Term Loan'!AB52 -> 0 | AC19: ='Term Loan'!AC52 -> 0 | AD19: ='Term Loan'!AD52 -> 0 | AE19: ='Term Loan'!AE52 -> 0 | AF19: ='Term Loan'!AF52 -> 0 | AG19: ='Term Loan'!AG52 -> 0 | AH19: ='Term Loan'!AH52 -> 0 | AI19: ='Term Loan'!AI52 -> 0 | AJ19: ='Term Loan'!AJ52 -> 0 | AK19: ='Term Loan'!AK52 -> 0 | AL19: ='Term Loan'!AL52 -> 0 | AM19: ='Term Loan'!AM52 -> 0 | AN19: ='Term Loan'!AN52 -> 0 | AO19: ='Term Loan'!AO52 -> 0 | AP19: ='Term Loan'!AP52 -> 0
B20: Interest on working capital | C20: ='W Capital'!C20 -> 5.218969011 | D20: ='W Capital'!D20 -> 5.307362697 | E20: ='W Capital'!E20 -> 5.400812502 | F20: ='W Capital'!F20 -> 5.499607636 | G20: ='W Capital'!G20 -> 5.604053852 | H20: ='W Capital'!H20 -> 5.714474391 | I20: ='W Capital'!I20 -> 5.831210985 | J20: ='W Capital'!J20 -> 5.954624913 | K20: ='W Capital'!K20 -> 6.085098117 | L20: ='W Capital'!L20 -> 6.223034388 | M20: ='W Capital'!M20 -> 6.368860614 | N20: ='W Capital'!N20 -> 6.5230281 | O20: ='W Capital'!O20 -> 6.686013966 | P20: ='W Capital'!P20 -> 6.858322624 | Q20: ='W Capital'!Q20 -> 7.040487337 | R20: ='W Capital'!R20 -> 7.233071871 | S20: ='W Capital'!S20 -> 7.436672241 | T20: ='W Capital'!T20 -> 7.651918552 | U20: ='W Capital'!U20 -> 7.879476952 | V20: ='W Capital'!V20 -> 8.120051693 | W20: ='W Capital'!W20 -> 8.374387309 | X20: ='W Capital'!X20 -> 8.643270922 | Y20: ='W Capital'!Y20 -> 8.927534677 | Z20: ='W Capital'!Z20 -> 9.22805832 | AA20: ='W Capital'!AA20 -> 9.545771915 | AB20: ='W Capital'!AB20 -> 0 | AC20: ='W Capital'!AC20 -> 0 | AD20: ='W Capital'!AD20 -> 0 | AE20: ='W Capital'!AE20 -> 0 | AF20: ='W Capital'!AF20 -> 0 | AG20: ='W Capital'!AG20 -> 0 | AH20: ='W Capital'!AH20 -> 0 | AI20: ='W Capital'!AI20 -> 0 | AJ20: ='W Capital'!AJ20 -> 0 | AK20: ='W Capital'!AK20 -> 0 | AL20: ='W Capital'!AL20 -> 0 | AM20: ='W Capital'!AM20 -> 0 | AN20: ='W Capital'!AN20 -> 0 | AO20: ='W Capital'!AO20 -> 0 | AP20: ='W Capital'!AP20 -> 0
B21: Return on Equity | C21: =IF(C14<=$C$4,IF(C14<=$C$9,$C$6*$C$7,$C$6*$C$8),0) -> 60 | D21: 60 | E21: 60 | F21: 60 | G21: 60 | H21: 60 | I21: 60 | J21: 60 | K21: 60 | L21: 60 | M21: 72 | N21: 72 | O21: 72 | P21: 72 | Q21: 72 | R21: 72 | S21: 72 | T21: 72 | U21: 72 | V21: 72 | W21: 72 | X21: 72 | Y21: 72 | Z21: 72 | AA21: 72 | AB21: 0 | AC21: 0 | AD21: 0 | AE21: 0 | AF21: 0 | AG21: 0 | AH21: 0 | AI21: 0 | AJ21: 0 | AK21: 0 | AL21: 0 | AM21: 0 | AN21: 0 | AO21: 0 | AP21: 0
B22: Variable Costs
B23: Fuel Cost | C23: =Fuel!D14 -> 0 | D23: =Fuel!E14 -> 0 | E23: =Fuel!F14 -> 0 | F23: =Fuel!G14 -> 0 | G23: =Fuel!H14 -> 0 | H23: =Fuel!I14 -> 0 | I23: =Fuel!J14 -> 0 | J23: =Fuel!K14 -> 0 | K23: =Fuel!L14 -> 0 | L23: =Fuel!M14 -> 0 | M23: =Fuel!N14 -> 0 | N23: =Fuel!O14 -> 0 | O23: =Fuel!P14 -> 0 | P23: =Fuel!Q14 -> 0 | Q23: =Fuel!R14 -> 0 | R23: =Fuel!S14 -> 0 | S23: =Fuel!T14 -> 0 | T23: =Fuel!U14 -> 0 | U23: =Fuel!V14 -> 0 | V23: =Fuel!W14 -> 0 | W23: =Fuel!X14 -> 0 | X23: =Fuel!Y14 -> 0 | Y23: =Fuel!Z14 -> 0 | Z23: =Fuel!AA14 -> 0 | AA23: =Fuel!AB14 -> 0 | AB23: =Fuel!AC14 -> 0 | AC23: =Fuel!AD14 -> 0 | AD23: =Fuel!AE14 -> 0 | AE23: =Fuel!AF14 -> 0 | AF23: =Fuel!AG14 -> 0 | AG23: =Fuel!AH14 -> 0 | AH23: =Fuel!AI14 -> 0 | AI23: =Fuel!AJ14 -> 0 | AJ23: =Fuel!AK14 -> 0 | AK23: =Fuel!AL14 -> 0 | AL23: =Fuel!AM14 -> 0 | AM23: =Fuel!AN14 -> 0 | AN23: =Fuel!AO14 -> 0 | AO23: =Fuel!AP14 -> 0 | AP23: =Fuel!AQ14 -> 0
B24: Total Cost | C24: =SUM(C17:C21,C23) -> 211.638969 | D24: =SUM(D17:D21,D23) -> 205.1665627 | E24: 198.7352027 | F24: 192.357237 | G24: 186.0151476 | H24: 179.7215587 | I24: 173.4892445 | J24: 167.301138 | K24: 161.1703397 | L24: 155.1101278 | M24: 161.1039678 | N24: 155.1655234 | O24: 120.9255911 | P24: 122.3244196 | Q24: 123.803261 | R24: 125.3666922 | S24: 127.0195517 | T24: 128.7669547 | U24: 130.6143091 | V24: 132.5673323 | W24: 134.6320683 | X24: 136.8149073 | Y24: 139.1226047 | Z24: 141.5623023 | AA24: 144.1415507 | AB24: 0 | AC24: 0 | AD24: 0 | AE24: 0 | AF24: 0 | AG24: 0 | AH24: 0 | AI24: 0 | AJ24: 0 | AK24: 0 | AL24: 0 | AM24: 0 | AN24: 0 | AO24: 0 | AP24: 0
B25: Tariff (Rs/kWh) | C25: =IF(C14<=$C$4,IF(C15>0,C24/C15,0),0) -> 12.7156314 | D25: =IF(D14<=$C$4,IF(D15>0,D24/D15,0),0) -> 12.32675815 | E25: 11.94035104 | F25: 11.55715195 | G25: 11.17610836 | H25: 10.79797877 | I25: 10.42353067 | J25: 10.05173864 | K25: 9.683389794 | L25: 9.319281893 | M25: 9.679402054 | N25: 9.322610154 | O25: 7.265416431 | P25: 7.349460439 | Q25: 7.438311765 | R25: 7.532245386 | S25: 7.63155201 | T25: 7.736538973 | U25: 7.84753119 | V25: 7.964872162 | W25: 8.088925038 | X25: 8.220073739 | Y25: 8.358724145 | Z25: 8.505305354 | AA25: 8.660271008 | AB25: 0 | AC25: 0 | AD25: 0 | AE25: 0 | AF25: 0 | AG25: 0 | AH25: 0 | AI25: 0 | AJ25: 0 | AK25: 0 | AL25: 0 | AM25: 0 | AN25: 0 | AO25: 0 | AP25: 0
B26: Levelized Tariff | C26: =NPV($C$10,C25:AP25)/$C$11 -> 10.33351086 | D26: =IF(D14<=$C$4,$C$26,0) -> 10.33351086 | E26: 10.33351086 | F26: 10.33351086 | G26: 10.33351086 | H26: 10.33351086 | I26: 10.33351086 | J26: 10.33351086 | K26: 10.33351086 | L26: 10.33351086 | M26: 10.33351086 | N26: 10.33351086 | O26: 10.33351086 | P26: 10.33351086 | Q26: 10.33351086 | R26: 10.33351086 | S26: 10.33351086 | T26: 10.33351086 | U26: 10.33351086 | V26: 10.33351086 | W26: 10.33351086 | X26: 10.33351086 | Y26: 10.33351086 | Z26: 10.33351086 | AA26: 10.33351086 | AB26: 0 | AC26: 0 | AD26: 0 | AE26: 0 | AF26: 0 | AG26: 0 | AH26: 0 | AI26: 0 | AJ26: 0 | AK26: 0 | AL26: 0 | AM26: 0 | AN26: 0 | AO26: 0 | AP26: 0
B27: Levelized Tariff with AD | C27: =C26-Depreciation!$C$31 -> 9.31593581 | D27: =IF(D14<=$C$4,$C$27,0) -> 9.31593581 | E27: 9.31593581 | F27: 9.31593581 | G27: 9.31593581 | H27: 9.31593581 | I27: 9.31593581 | J27: 9.31593581 | K27: 9.31593581 | L27: 9.31593581 | M27: 9.31593581 | N27: 9.31593581 | O27: 9.31593581 | P27: 9.31593581 | Q27: 9.31593581 | R27: 9.31593581 | S27: 9.31593581 | T27: 9.31593581 | U27: 9.31593581 | V27: 9.31593581 | W27: 9.31593581 | X27: 9.31593581 | Y27: 9.31593581 | Z27: 9.31593581 | AA27: 9.31593581 | AB27: 0 | AC27: 0 | AD27: 0 | AE27: 0 | AF27: 0 | AG27: 0 | AH27: 0 | AI27: 0 | AJ27: 0 | AK27: 0 | AL27: 0 | AM27: 0 | AN27: 0 | AO27: 0 | AP27: 0
B29: Costs in Rs/kWh
B30: =B17 -> O&M | C30: =C17/$C$15 -> 0.6608988224 | D30: =D17/$C$15 -> 0.698702235 | E30: 0.7386680029 | F30: 0.7809198126 | G30: 0.8255884259 | H30: 0.8728120839 | I30: 0.9227369351 | J30: 0.9755174878 | K30: 1.031317088 | L30: 1.090308426 | M30: 1.152674067 | N30: 1.218607024 | O30: 1.288311346 | P30: 1.362002755 | Q30: 1.439909312 | R30: 1.522272125 | S30: 1.609346091 | T30: 1.701400687 | U30: 1.798720806 | V30: 1.901607637 | W30: 2.010379593 | X30: 2.125373306 | Y30: 2.246944659 | Z30: 2.375469894 | AA30: 2.511346772 | AB30: 0 | AC30: 0 | AD30: 0 | AE30: 0 | AF30: 0 | AG30: 0 | AH30: 0 | AI30: 0 | AJ30: 0 | AK30: 0 | AL30: 0 | AM30: 0 | AN30: 0 | AO30: 0 | AP30: 0
B31: =B18 -> Depreciation (SLM) | C31: =C18/$C$15 -> 3.152487383 | D31: 3.152487383 | E31: 3.152487383 | F31: 3.152487383 | G31: 3.152487383 | H31: 3.152487383 | I31: 3.152487383 | J31: 3.152487383 | K31: 3.152487383 | L31: 3.152487383 | M31: 3.152487383 | N31: 3.152487383 | O31: 1.249514725 | P31: 1.249514725 | Q31: 1.249514725 | R31: 1.249514725 | S31: 1.249514725 | T31: 1.249514725 | U31: 1.249514725 | V31: 1.249514725 | W31: 1.249514725 | X31: 1.249514725 | Y31: 1.249514725 | Z31: 1.249514725 | AA31: 1.249514725 | AB31: 0 | AC31: 0 | AD31: 0 | AE31: 0 | AF31: 0 | AG31: 0 | AH31: 0 | AI31: 0 | AJ31: 0 | AK31: 0 | AL31: 0 | AM31: 0 | AN31: 0 | AO31: 0 | AP31: 0
B32: =B19 -> Interest on term loan | C32: =C19/$C$15 -> 4.983777938 | D32: 4.551790435 | E32: 4.119802932 | F32: 3.688416246 | G32: 3.256428743 | H32: 2.82444124 | I32: 2.393054554 | J32: 1.961067051 | K32: 1.529079548 | L32: 1.097692862 | M32: 0.6657053593 | N32: 0.2337178563 | O32: 0 | P32: 0 | Q32: 0 | R32: 0 | S32: 0 | T32: 0 | U32: 0 | V32: 0 | W32: 0 | X32: 0 | Y32: 0 | Z32: 0 | AA32: 0 | AB32: 0 | AC32: 0 | AD32: 0 | AE32: 0 | AF32: 0 | AG32: 0 | AH32: 0 | AI32: 0 | AJ32: 0 | AK32: 0 | AL32: 0 | AM32: 0 | AN32: 0 | AO32: 0 | AP32: 0
B33: =B20 -> Interest on working capital | C33: =C20/$C$15 -> 0.3135645885 | D33: 0.3188754324 | E33: 0.3244900566 | F33: 0.3304258373 | G33: 0.3367011447 | H33: 0.3433353996 | I33: 0.3503491339 | J33: 0.3577640539 | K33: 0.3656031072 | L33: 0.3738905544 | M33: 0.3826520436 | N33: 0.39191469 | O33: 0.4017071597 | P33: 0.4120597587 | Q33: 0.4230045264 | R33: 0.4345753347 | S33: 0.4468079933 | T33: 0.45974036 | U33: 0.4734124581 | V33: 0.4878666002 | W33: 0.5031475192 | X33: 0.5193025067 | Y33: 0.5363815596 | Z33: 0.5544375342 | AA33: 0.5735263107 | AB33: 0 | AC33: 0 | AD33: 0 | AE33: 0 | AF33: 0 | AG33: 0 | AH33: 0 | AI33: 0 | AJ33: 0 | AK33: 0 | AL33: 0 | AM33: 0 | AN33: 0 | AO33: 0 | AP33: 0
B34: =B21 -> Return on Equity | C34: =C21/$C$15 -> 3.604902668 | D34: 3.604902668 | E34: 3.604902668 | F34: 3.604902668 | G34: 3.604902668 | H34: 3.604902668 | I34: 3.604902668 | J34: 3.604902668 | K34: 3.604902668 | L34: 3.604902668 | M34: 4.325883201 | N34: 4.325883201 | O34: 4.325883201 | P34: 4.325883201 | Q34: 4.325883201 | R34: 4.325883201 | S34: 4.325883201 | T34: 4.325883201 | U34: 4.325883201 | V34: 4.325883201 | W34: 4.325883201 | X34: 4.325883201 | Y34: 4.325883201 | Z34: 4.325883201 | AA34: 4.325883201 | AB34: 0 | AC34: 0 | AD34: 0 | AE34: 0 | AF34: 0 | AG34: 0 | AH34: 0 | AI34: 0 | AJ34: 0 | AK34: 0 | AL34: 0 | AM34: 0 | AN34: 0 | AO34: 0 | AP34: 0
B35: Fuel Cost | C35: =C23/$C$15 -> 0 | D35: 0 | E35: 0 | F35: 0 | G35: 0 | H35: 0 | I35: 0 | J35: 0 | K35: 0 | L35: 0 | M35: 0 | N35: 0 | O35: 0 | P35: 0 | Q35: 0 | R35: 0 | S35: 0 | T35: 0 | U35: 0 | V35: 0 | W35: 0 | X35: 0 | Y35: 0 | Z35: 0 | AA35: 0 | AB35: 0 | AC35: 0 | AD35: 0 | AE35: 0 | AF35: 0 | AG35: 0 | AH35: 0 | AI35: 0 | AJ35: 0 | AK35: 0 | AL35: 0 | AM35: 0 | AN35: 0 | AO35: 0 | AP35: 0
B36: Levelized Tariff | C36: =IF(C14<=$C$4,$C$26,0) -> 10.33351086 | D36: =IF(D14<=$C$4,$C$26,0) -> 10.33351086 | E36: 10.33351086 | F36: 10.33351086 | G36: 10.33351086 | H36: 10.33351086 | I36: 10.33351086 | J36: 10.33351086 | K36: 10.33351086 | L36: 10.33351086 | M36: 10.33351086 | N36: 10.33351086 | O36: 10.33351086 | P36: 10.33351086 | Q36: 10.33351086 | R36: 10.33351086 | S36: 10.33351086 | T36: 10.33351086 | U36: 10.33351086 | V36: 10.33351086 | W36: 10.33351086 | X36: 10.33351086 | Y36: 10.33351086 | Z36: 10.33351086 | AA36: 10.33351086 | AB36: 0 | AC36: 0 | AD36: 0 | AE36: 0 | AF36: 0 | AG36: 0 | AH36: 0 | AI36: 0 | AJ36: 0 | AK36: 0 | AL36: 0 | AM36: 0 | AN36: 0 | AO36: 0 | AP36: 0
B37: Levelized Tariff with AD | C37: =IF(C14<=$C$4,$C$27,0) -> 9.31593581 | D37: =IF(D14<=$C$4,$C$27,0) -> 9.31593581 | E37: 9.31593581 | F37: 9.31593581 | G37: 9.31593581 | H37: 9.31593581 | I37: 9.31593581 | J37: 9.31593581 | K37: 9.31593581 | L37: 9.31593581 | M37: 9.31593581 | N37: 9.31593581 | O37: 9.31593581 | P37: 9.31593581 | Q37: 9.31593581 | R37: 9.31593581 | S37: 9.31593581 | T37: 9.31593581 | U37: 9.31593581 | V37: 9.31593581 | W37: 9.31593581 | X37: 9.31593581 | Y37: 9.31593581 | Z37: 9.31593581 | AA37: 9.31593581 | AB37: 0 | AC37: 0 | AD37: 0 | AE37: 0 | AF37: 0 | AG37: 0 | AH37: 0 | AI37: 0 | AJ37: 0 | AK37: 0 | AL37: 0 | AM37: 0 | AN37: 0 | AO37: 0 | AP37: 0
B40: Land Lease and Royalty (Lakhs/yr) | C40: =C15*$C$26*$C$12 -> 8.599547735 | D40: =D15*$C$26*$C$12 -> 8.599547735 | E40: 8.599547735 | F40: 8.599547735 | G40: 8.599547735 | H40: 8.599547735 | I40: 8.599547735 | J40: 8.599547735 | K40: 8.599547735 | L40: 8.599547735 | M40: 8.599547735 | N40: 8.599547735 | O40: 8.599547735 | P40: 8.599547735 | Q40: 8.599547735 | R40: 8.599547735 | S40: 8.599547735 | T40: 8.599547735 | U40: 8.599547735 | V40: 8.599547735 | W40: 8.599547735 | X40: 8.599547735 | Y40: 8.599547735 | Z40: 8.599547735 | AA40: 8.599547735 | AB40: 0 | AC40: 0 | AD40: 0 | AE40: 0 | AF40: 0 | AG40: 0 | AH40: 0 | AI40: 0 | AJ40: 0 | AK40: 0 | AL40: 0 | AM40: 0 | AN40: 0 | AO40: 0 | AP40: 0
B41: NPV of Lease and Royalty (lakhs/MW) | C41: =NPV($C$10,C40:AP40) -> 74.44811719

Sheet Sensitivity
C2: Sensitivity of Tariff Outcome with Change in different inputs
B4: Input | C4: Units | D4: Enabled | E4: Base | F4: Min | G4: Max | H4: Min % | I4: Max %
B5: ='Form Input'!C10 -> CapEx | C5: ='Form Input'!E10 -> Rs Lacs/MW | D5: Y | E5: ='Form Input'!D10 -> 1000 | F5: 850 | G5: 1150 | H5: =IF(D5="Y",(F5-E5)/E5,"") -> -0.15 | I5: =IF(D5="Y",(G5-E5)/E5,"") -> 0.15 | J5: 8.968066721 | K5: 9.650794976 | L5: 10.33351086 | M5: 11.01640708 | N5: 11.69909728
B6: ='Form Input'!C24 -> O&M cost | C6: ='Form Input'!E24 -> Rs Lacs / MW | D6: N | E6: ='Form Input'!D24 -> 11 | F6: 9.35 | G6: 12.65 | H6: =IF(D6="Y",(F6-E6)/E6,"") ->  | I6: =IF(D6="Y",(G6-E6)/E6,"") -> 
B7: PLF/CUF | C7: ='Form Input'!E4 -> % | D7: Y | E7: ='Form Input'!D4 -> 0.19 | F7: 0.1615 | G7: 0.2185 | H7: -0.15 | I7: 0.15 | J7: 12.15722242 | K7: 11.17141506 | L7: 10.33351086 | M7: 9.612583146 | N7: 8.985819542
B8: ='Form Input'!C16 -> Interest Rate on Term Loan | C8: ='Form Input'!E16 -> % | D8: Y | E8: ='Form Input'!D16 -> 0.1232 | F8: 0.1047 | G8: 0.1417 | H8: -0.1501623377 | I8: 0.1501623377 | J8: 9.968562113 | K8: 10.15099821 | L8: 10.33351086 | M8: 10.51616981 | N8: 10.69861083
B9: ='Form Input'!C23 -> Discount Rate | C9: ='Form Input'!E23 -> % | D9: N | E9: ='Form Input'!D23 -> 0.106259432 | F9: 0.0903 | G9: 0.1222
B10: RoE | C10: ='Form Input'!E26 -> % | D10: N | E10: ='Form Input'!D26 -> 0.2 | F10: 0.17 | G10: 0.23
B11: ='Form Input'!C51 -> Feedstock Price | C11: ='Form Input'!E51 -> Rs/MT | D11: N | E11: ='Form Input'!D51 -> 0 | F11: 0 | G11: 0 | H11: =IF(D11="Y",IF(E11=0,0,(F11-E11)/E11),"") ->  | I11: =IF(D11="Y",IF(E11=0,1,(G11-E11)/E11),"") -> 
B12: ='Form Input'!C52 -> Fuel Cost Escalation | C12: ='Form Input'!E52 -> % | D12: N | E12: ='Form Input'!D52 -> 0 | F12: 0 | G12: 0 | H12: =IF(D12="Y",IF(E12=0,0,(F12-E12)/E12),"") ->  | I12: =IF(D12="Y",IF(E12=0,1,(G12-E12)/E12),"") -> 
B13: PLF/CUF 2 | C13: ='Form Input'!E49 -> % | E13: ='Form Input'!D49 -> 0.9 | F13: 0.9 | G13: 0.9 | H13: =IF(D13="Y",(F13-E13)/E13,"") ->  | I13: =IF(D13="Y",(G13-E13)/E13,"") -> 
B14: RoE 2 | C14: ='Form Input'!E27 -> % | D14: N | E14: ='Form Input'!D27 -> 0.24 | F14: 0.24 | G14: 0.24
B15: Min Tariff | C15: =MIN(J5:P14) -> 8.968066721 | D15: N | H15: =MIN(H5:H14) -> -0.1501623377 | I15: =MAX(I5:I14) -> 0.1501623377
B16: Max Tariff | C16: =MAX(J5:P14) -> 12.15722242
B18: Sensitivity Width | C18: 2

Sheet Carbon
G1: Carbon Credits
B3: Emission factor | C3: ='Form Input'!D44 -> 0.9 | D3: Ton CO2 / MWh
B4: Discount Rate | C4: ='Form Input'!D23 -> 0.106259432 | D4: %
B5: Cumulative Generation in 10 yrs | C5: =SUM(Tariff!C15:L15)/10000 -> 0.016644 | D5: Million MWh
B6: CO2 Saved | C6: =C5*C3 -> 0.0149796 | D6: Million Tonnes
B7: Total number of CERs Generated | C7: =C6 -> 0.0149796 | D7: Million CERs
B8: Assumed Price of one CER | C8: ='Form Input'!D45 -> 0 | D8: Dollars/ton
B9: Total Income from sale of CERs | C9: =C8*C7 -> 0 | D9: Million Dollars
B10: Exchange Rate | C10: ='Form Input'!D46 -> 50 | D10: Rs/dollar
B11: Total Income from sale of CERs | C11: =SUM(C18:L18) -> 0 | D11: Rs Lakhs
B12: NPV of Carbon Credits Benefit to developer | C12: =NPV(C4,C19:L19) -> 0 | D12: Rs Lakhs
B13: NPV of Carbon Credits Benefit as a fraction of Project Cost | C13: =C12/'Form Input'!D10 -> 0 | D13: %
B15: Year | C15: 1 | D15: =C15+1 -> 2 | E15: =D15+1 -> 3 | F15: 4 | G15: 5 | H15: 6 | I15: 7 | J15: 8 | K15: 9 | L15: 10 | M15: 11 | N15: 12 | O15: 13 | P15: 14 | Q15: 15 | R15: 16 | S15: 17 | T15: 18 | U15: 19 | V15: 20 | W15: 21 | X15: 22 | Y15: 23 | Z15: 24 | AA15: 25 | AB15: 26 | AC15: 27 | AD15: 28 | AE15: 29 | AF15: 30 | AG15: 31 | AH15: 32 | AI15: 33 | AJ15: 34 | AK15: 35 | AL15: 36 | AM15: 37 | AN15: 38 | AO15: 39 | AP15: 40
B16: Annual Net Generation (MWh) | C16: =Tariff!C15*100 -> 1664.4 | D16: =Tariff!D15*100 -> 1664.4 | E16: =Tariff!E15*100 -> 1664.4 | F16: =Tariff!F15*100 -> 1664.4 | G16: =Tariff!G15*100 -> 1664.4 | H16: =Tariff!H15*100 -> 1664.4 | I16: =Tariff!I15*100 -> 1664.4 | J16: =Tariff!J15*100 -> 1664.4 | K16: =Tariff!K15*100 -> 1664.4 | L16: =Tariff!L15*100 -> 1664.4 | M16: =Tariff!M15*100 -> 1664.4 | N16: =Tariff!N15*100 -> 1664.4 | O16: =Tariff!O15*100 -> 1664.4 | P16: =Tariff!P15*100 -> 1664.4 | Q16: =Tariff!Q15*100 -> 1664.4 | R16: =Tariff!R15*100 -> 1664.4 | S16: =Tariff!S15*100 -> 1664.4 | T16: =Tariff!T15*100 -> 1664.4 | U16: =Tariff!U15*100 -> 1664.4 | V16: =Tariff!V15*100 -> 1664.4 | W16: =Tariff!W15*100 -> 1664.4 | X16: =Tariff!X15*100 -> 1664.4 | Y16: =Tariff!Y15*100 -> 1664.4 | Z16: =Tariff!Z15*100 -> 1664.4 | AA16: =Tariff!AA15*100 -> 1664.4 | AB16: =Tariff!AB15*100 -> 0 | AC16: =Tariff!AC15*100 -> 0 | AD16: =Tariff!AD15*100 -> 0 | AE16: =Tariff!AE15*100 -> 0 | AF16: =Tariff!AF15*100 -> 0 | AG16: =Tariff!AG15*100 -> 0 | AH16: =Tariff!AH15*100 -> 0 | AI16: =Tariff!AI15*100 -> 0 | AJ16: =Tariff!AJ15*100 -> 0 | AK16: =Tariff!AK15*100 -> 0 | AL16: =Tariff!AL15*100 -> 0 | AM16: =Tariff!AM15*100 -> 0 | AN16: =Tariff!AN15*100 -> 0 | AO16: =Tariff!AO15*100 -> 0 | AP16: =Tariff!AP15*100 -> 0
B17: Emissions Saved per Year (tons) | C17: =C16*$C$3 -> 1497.96 | D17: =D16*$C$3 -> 1497.96 | E17: 1497.96 | F17: 1497.96 | G17: 1497.96 | H17: 1497.96 | I17: 1497.96 | J17: 1497.96 | K17: 1497.96 | L17: 1497.96 | M17: 1497.96 | N17: 1497.96 | O17: 1497.96 | P17: 1497.96 | Q17: 1497.96 | R17: 1497.96 | S17: 1497.96 | T17: 1497.96 | U17: 1497.96 | V17: 1497.96 | W17: 1497.96 | X17: 1497.96 | Y17: 1497.96 | Z17: 1497.96 | AA17: 1497.96 | AB17: 0 | AC17: 0 | AD17: 0 | AE17: 0 | AF17: 0 | AG17: 0 | AH17: 0 | AI17: 0 | AJ17: 0 | AK17: 0 | AL17: 0 | AM17: 0 | AN17: 0 | AO17: 0 | AP17: 0
B18: Income from sale of CERs (Rs Lakhs) | C18: =C17*$C$8*$C$10/10^5 -> 0 | D18: =D17*$C$8*$C$10/10^5 -> 0 | E18: 0 | F18: 0 | G18: 0 | H18: 0 | I18: 0 | J18: 0 | K18: 0 | L18: 0 | M18: 0 | N18: 0 | O18: 0 | P18: 0 | Q18: 0 | R18: 0 | S18: 0 | T18: 0 | U18: 0 | V18: 0 | W18: 0 | X18: 0 | Y18: 0 | Z18: 0 | AA18: 0 | AB18: 0 | AC18: 0 | AD18: 0 | AE18: 0 | AF18: 0 | AG18: 0 | AH18: 0 | AI18: 0 | AJ18: 0 | AK18: 0 | AL18: 0 | AM18: 0 | AN18: 0 | AO18: 0 | AP18: 0
B19: Annual Income of developer from CERS (Lakhs) | C19: =1*C18 -> 0 | D19: =0.9*D18 -> 0 | E19: =0.8*E18 -> 0 | F19: =0.7*F18 -> 0 | G19: =0.6*G18 -> 0 | H19: =0.5*H18 -> 0 | I19: =0.5*I18 -> 0 | J19: =0.5*J18 -> 0 | K19: =0.5*K18 -> 0 | L19: =0.5*L18 -> 0 | M19: =0.5*M18 -> 0 | N19: 0 | O19: 0 | P19: 0 | Q19: 0 | R19: 0 | S19: 0 | T19: 0 | U19: 0 | V19: 0 | W19: 0 | X19: 0 | Y19: 0 | Z19: 0 | AA19: 0 | AB19: 0 | AC19: 0 | AD19: 0 | AE19: 0 | AF19: 0 | AG19: 0 | AH19: 0 | AI19: 0 | AJ19: 0 | AK19: 0 | AL19: 0 | AM19: 0 | AN19: 0 | AO19: 0 | AP19: 0
B20: NPV of carbon income | C20: =NPV(C4,C19:AP19) -> 0

Sheet Profit Loss
H2: Profit Loss Statement
B3: User Inputs | C3: Value | D3: Units
B4: ='Form Input'!C15 -> Equity | C4: ='Form Input'!D15 -> 300 | D4: ='Form Input'!E15 -> lacs
B5: ='Form Input'!C9 -> Life of Plant and Machinery / Project Life | C5: ='Form Input'!D9 -> 25 | D5: ='Form Input'!E9 -> years
B6: ='Form Input'!C32 -> Corporate Tax Rate | C6: ='Form Input'!D32 -> 0.32445 | D6: ='Form Input'!E32 -> %
B7: ='Form Input'!C33 -> MAT | C7: ='Form Input'!D33 -> 0.20008 | D7: ='Form Input'!E33 -> %
B8: ='Form Input'!C40 -> Tax Holiday Start Year | C8: ='Form Input'!D40 -> 6 | D8: ='Form Input'!E40 -> year
B9: ='Form Input'!C39 -> Tax Holiday Duration | C9: ='Form Input'!D39 -> 10 | D9: ='Form Input'!E39 -> years
B10: ='Form Input'!C43 -> MAT Setoff Start Year | C10: ='Form Input'!D43 -> 16 | D10: ='Form Input'!E43 -> year
B11: ='Form Input'!C41 -> MAT set off accumulation allowed u/s 115JAA (3A) | C11: ='Form Input'!D41 -> 10 | D11: ='Form Input'!E41 -> years
B12: ='Form Input'!C42 -> MAT Setoff Duration | C12: ='Form Input'!D42 -> 5 | D12: ='Form Input'!E42 -> years
B15: Year | C15: 1 | D15: =C15+1 -> 2 | E15: =D15+1 -> 3 | F15: 4 | G15: 5 | H15: 6 | I15: 7 | J15: 8 | K15: 9 | L15: 10 | M15: 11 | N15: 12 | O15: 13 | P15: 14 | Q15: 15 | R15: 16 | S15: 17 | T15: 18 | U15: 19 | V15: 20 | W15: 21 | X15: 22 | Y15: 23 | Z15: 24 | AA15: 25 | AB15: 26 | AC15: 27 | AD15: 28 | AE15: 29 | AF15: 30 | AG15: 31 | AH15: 32 | AI15: 33 | AJ15: 34 | AK15: 35 | AL15: 36 | AM15: 37 | AN15: 38 | AO15: 39 | AP15: 40
B16: Net Energy sold (lakh kWhs) | C16: =Tariff!C15 -> 16.644 | D16: =Tariff!D15 -> 16.644 | E16: =Tariff!E15 -> 16.644 | F16: =Tariff!F15 -> 16.644 | G16: =Tariff!G15 -> 16.644 | H16: =Tariff!H15 -> 16.644 | I16: =Tariff!I15 -> 16.644 | J16: =Tariff!J15 -> 16.644 | K16: =Tariff!K15 -> 16.644 | L16: =Tariff!L15 -> 16.644 | M16: =Tariff!M15 -> 16.644 | N16: =Tariff!N15 -> 16.644 | O16: =Tariff!O15 -> 16.644 | P16: =Tariff!P15 -> 16.644 | Q16: =Tariff!Q15 -> 16.644 | R16: =Tariff!R15 -> 16.644 | S16: =Tariff!S15 -> 16.644 | T16: =Tariff!T15 -> 16.644 | U16: =Tariff!U15 -> 16.644 | V16: =Tariff!V15 -> 16.644 | W16: =Tariff!W15 -> 16.644 | X16: =Tariff!X15 -> 16.644 | Y16: =Tariff!Y15 -> 16.644 | Z16: =Tariff!Z15 -> 16.644 | AA16: =Tariff!AA15 -> 16.644 | AB16: =Tariff!AB15 -> 0 | AC16: =Tariff!AC15 -> 0 | AD16: =Tariff!AD15 -> 0 | AE16: =Tariff!AE15 -> 0 | AF16: =Tariff!AF15 -> 0 | AG16: =Tariff!AG15 -> 0 | AH16: =Tariff!AH15 -> 0 | AI16: =Tariff!AI15 -> 0 | AJ16: =Tariff!AJ15 -> 0 | AK16: =Tariff!AK15 -> 0 | AL16: =Tariff!AL15 -> 0 | AM16: =Tariff!AM15 -> 0 | AN16: =Tariff!AN15 -> 0 | AO16: =Tariff!AO15 -> 0 | AP16: =Tariff!AP15 -> 0
B17: Tariff (Rs/kWh) | C17: =Tariff!C$26 -> 10.33351086 | D17: =Tariff!D$26 -> 10.33351086 | E17: =Tariff!E$26 -> 10.33351086 | F17: =Tariff!F$26 -> 10.33351086 | G17: =Tariff!G$26 -> 10.33351086 | H17: =Tariff!H$26 -> 10.33351086 | I17: =Tariff!I$26 -> 10.33351086 | J17: =Tariff!J$26 -> 10.33351086 | K17: =Tariff!K$26 -> 10.33351086 | L17: =Tariff!L$26 -> 10.33351086 | M17: =Tariff!M$26 -> 10.33351086 | N17: =Tariff!N$26 -> 10.33351086 | O17: =Tariff!O$26 -> 10.33351086 | P17: =Tariff!P$26 -> 10.33351086 | Q17: =Tariff!Q$26 -> 10.33351086 | R17: =Tariff!R$26 -> 10.33351086 | S17: =Tariff!S$26 -> 10.33351086 | T17: =Tariff!T$26 -> 10.33351086 | U17: =Tariff!U$26 -> 10.33351086 | V17: =Tariff!V$26 -> 10.33351086 | W17: =Tariff!W$26 -> 10.33351086 | X17: =Tariff!X$26 -> 10.33351086 | Y17: =Tariff!Y$26 -> 10.33351086 | Z17: =Tariff!Z$26 -> 10.33351086 | AA17: =Tariff!AA$26 -> 10.33351086 | AB17: =Tariff!AB$26 -> 0 | AC17: =Tariff!AC$26 -> 0 | AD17: =Tariff!AD$26 -> 0 | AE17: =Tariff!AE$26 -> 0 | AF17: =Tariff!AF$26 -> 0 | AG17: =Tariff!AG$26 -> 0 | AH17: =Tariff!AH$26 -> 0 | AI17: =Tariff!AI$26 -> 0 | AJ17: =Tariff!AJ$26 -> 0 | AK17: =Tariff!AK$26 -> 0 | AL17: =Tariff!AL$26 -> 0 | AM17: =Tariff!AM$26 -> 0 | AN17: =Tariff!AN$26 -> 0 | AO17: =Tariff!AO$26 -> 0 | AP17: =Tariff!AP$26 -> 0
B18: Income From Sale of Electricity (Lakhs) | C18: =C17*C16 -> 171.9909547 | D18: =D17*D16 -> 171.9909547 | E18: 171.9909547 | F18: 171.9909547 | G18: 171.9909547 | H18: 171.9909547 | I18: 171.9909547 | J18: 171.9909547 | K18: 171.9909547 | L18: 171.9909547 | M18: 171.9909547 | N18: 171.9909547 | O18: 171.9909547 | P18: 171.9909547 | Q18: 171.9909547 | R18: 171.9909547 | S18: 171.9909547 | T18: 171.9909547 | U18: 171.9909547 | V18: 171.9909547 | W18: 171.9909547 | X18: 171.9909547 | Y18: 171.9909547 | Z18: 171.9909547 | AA18: 171.9909547 | AB18: 0 | AC18: 0 | AD18: 0 | AE18: 0 | AF18: 0 | AG18: 0 | AH18: 0 | AI18: 0 | AJ18: 0 | AK18: 0 | AL18: 0 | AM18: 0 | AN18: 0 | AO18: 0 | AP18: 0
B19: Income from Carbon Market | C19: =Carbon!C19 -> 0 | D19: =Carbon!D19 -> 0 | E19: =Carbon!E19 -> 0 | F19: =Carbon!F19 -> 0 | G19: =Carbon!G19 -> 0 | H19: =Carbon!H19 -> 0 | I19: =Carbon!I19 -> 0 | J19: =Carbon!J19 -> 0 | K19: =Carbon!K19 -> 0 | L19: =Carbon!L19 -> 0 | M19: =Carbon!M19 -> 0 | N19: =Carbon!N19 -> 0 | O19: =Carbon!O19 -> 0 | P19: =Carbon!P19 -> 0 | Q19: =Carbon!Q19 -> 0 | R19: =Carbon!R19 -> 0 | S19: =Carbon!S19 -> 0 | T19: =Carbon!T19 -> 0 | U19: =Carbon!U19 -> 0 | V19: =Carbon!V19 -> 0 | W19: =Carbon!W19 -> 0 | X19: =Carbon!X19 -> 0 | Y19: =Carbon!Y19 -> 0 | Z19: =Carbon!Z19 -> 0 | AA19: =Carbon!AA19 -> 0 | AB19: =Carbon!AB19 -> 0 | AC19: =Carbon!AC19 -> 0 | AD19: =Carbon!AD19 -> 0 | AE19: =Carbon!AE19 -> 0 | AF19: =Carbon!AF19 -> 0 | AG19: =Carbon!AG19 -> 0 | AH19: =Carbon!AH19 -> 0 | AI19: =Carbon!AI19 -> 0 | AJ19: =Carbon!AJ19 -> 0 | AK19: =Carbon!AK19 -> 0 | AL19: =Carbon!AL19 -> 0 | AM19: =Carbon!AM19 -> 0 | AN19: =Carbon!AN19 -> 0 | AO19: =Carbon!AO19 -> 0 | AP19: =Carbon!AP19 -> 0
B20: Total Income | C20: =SUM(C18:C19) -> 171.9909547 | D20: =SUM(D18:D19) -> 171.9909547 | E20: 171.9909547 | F20: 171.9909547 | G20: 171.9909547 | H20: 171.9909547 | I20: 171.9909547 | J20: 171.9909547 | K20: 171.9909547 | L20: 171.9909547 | M20: 171.9909547 | N20: 171.9909547 | O20: 171.9909547 | P20: 171.9909547 | Q20: 171.9909547 | R20: 171.9909547 | S20: 171.9909547 | T20: 171.9909547 | U20: 171.9909547 | V20: 171.9909547 | W20: 171.9909547 | X20: 171.9909547 | Y20: 171.9909547 | Z20: 171.9909547 | AA20: 171.9909547 | AB20: 0 | AC20: 0 | AD20: 0 | AE20: 0 | AF20: 0 | AG20: 0 | AH20: 0 | AI20: 0 | AJ20: 0 | AK20: 0 | AL20: 0 | AM20: 0 | AN20: 0 | AO20: 0 | AP20: 0
B21: Fuel Cost | C21: =Tariff!C23 -> 0 | D21: =Tariff!D23 -> 0 | E21: =Tariff!E23 -> 0 | F21: =Tariff!F23 -> 0 | G21: =Tariff!G23 -> 0 | H21: =Tariff!H23 -> 0 | I21: =Tariff!I23 -> 0 | J21: =Tariff!J23 -> 0 | K21: =Tariff!K23 -> 0 | L21: =Tariff!L23 -> 0 | M21: =Tariff!M23 -> 0 | N21: =Tariff!N23 -> 0 | O21: =Tariff!O23 -> 0 | P21: =Tariff!P23 -> 0 | Q21: =Tariff!Q23 -> 0 | R21: =Tariff!R23 -> 0 | S21: =Tariff!S23 -> 0 | T21: =Tariff!T23 -> 0 | U21: =Tariff!U23 -> 0 | V21: =Tariff!V23 -> 0 | W21: =Tariff!W23 -> 0 | X21: =Tariff!X23 -> 0 | Y21: =Tariff!Y23 -> 0 | Z21: =Tariff!Z23 -> 0 | AA21: =Tariff!AA23 -> 0 | AB21: =Tariff!AB23 -> 0 | AC21: =Tariff!AC23 -> 0 | AD21: =Tariff!AD23 -> 0 | AE21: =Tariff!AE23 -> 0 | AF21: =Tariff!AF23 -> 0 | AG21: =Tariff!AG23 -> 0 | AH21: =Tariff!AH23 -> 0 | AI21: =Tariff!AI23 -> 0 | AJ21: =Tariff!AJ23 -> 0 | AK21: =Tariff!AK23 -> 0 | AL21: =Tariff!AL23 -> 0 | AM21: =Tariff!AM23 -> 0 | AN21: =Tariff!AN23 -> 0 | AO21: =Tariff!AO23 -> 0 | AP21: =Tariff!AP23 -> 0
B22: O&M + Insurance | C22: =Tariff!C17 -> 11 | D22: =Tariff!D17 -> 11.6292 | E22: =Tariff!E17 -> 12.29439024 | F22: =Tariff!F17 -> 12.99762936 | G22: =Tariff!G17 -> 13.74109376 | H22: =Tariff!H17 -> 14.52708432 | I22: =Tariff!I17 -> 15.35803355 | J22: =Tariff!J17 -> 16.23651307 | K22: =Tariff!K17 -> 17.16524161 | L22: =Tariff!L17 -> 18.14709343 | M22: =Tariff!M17 -> 19.18510718 | N22: =Tariff!N17 -> 20.28249531 | O22: =Tariff!O17 -> 21.44265404 | P22: =Tariff!P17 -> 22.66917385 | Q22: =Tariff!Q17 -> 23.9658506 | R22: =Tariff!R17 -> 25.33669725 | S22: =Tariff!S17 -> 26.78595633 | T22: =Tariff!T17 -> 28.31811304 | U22: =Tariff!U17 -> 29.9379091 | V22: =Tariff!V17 -> 31.6503575 | W22: =Tariff!W17 -> 33.46075795 | X22: =Tariff!X17 -> 35.37471331 | Y22: =Tariff!Y17 -> 37.39814691 | Z22: =Tariff!Z17 -> 39.53732091 | AA22: =Tariff!AA17 -> 41.79885567 | AB22: =Tariff!AB17 -> 0 | AC22: =Tariff!AC17 -> 0 | AD22: =Tariff!AD17 -> 0 | AE22: =Tariff!AE17 -> 0 | AF22: =Tariff!AF17 -> 0 | AG22: =Tariff!AG17 -> 0 | AH22: =Tariff!AH17 -> 0 | AI22: =Tariff!AI17 -> 0 | AJ22: =Tariff!AJ17 -> 0 | AK22: =Tariff!AK17 -> 0 | AL22: =Tariff!AL17 -> 0 | AM22: =Tariff!AM17 -> 0 | AN22: =Tariff!AN17 -> 0 | AO22: =Tariff!AO17 -> 0 | AP22: =Tariff!AP17 -> 0
B23: PBDIT | C23: =C20-C21-C22 -> 160.9909547 | D23: =D20-D21-D22 -> 160.3617547 | E23: 159.6965645 | F23: 158.9933253 | G23: 158.2498609 | H23: 157.4638704 | I23: 156.6329211 | J23: 155.7544416 | K23: 154.8257131 | L23: 153.8438613 | M23: 152.8058475 | N23: 151.7084594 | O23: 150.5483007 | P23: 149.3217808 | Q23: 148.0251041 | R23: 146.6542574 | S23: 145.2049984 | T23: 143.6728417 | U23: 142.0530456 | V23: 140.3405972 | W23: 138.5301967 | X23: 136.6162414 | Y23: 134.5928078 | Z23: 132.4536338 | AA23: 130.192099 | AB23: 0 | AC23: 0 | AD23: 0 | AE23: 0 | AF23: 0 | AG23: 0 | AH23: 0 | AI23: 0 | AJ23: 0 | AK23: 0 | AL23: 0 | AM23: 0 | AN23: 0 | AO23: 0 | AP23: 0
B24: Book Depreciation | C24: =Depreciation!C21 -> 26.4 | D24: =Depreciation!D21 -> 52.8 | E24: =Depreciation!E21 -> 52.8 | F24: =Depreciation!F21 -> 52.8 | G24: =Depreciation!G21 -> 52.8 | H24: =Depreciation!H21 -> 52.8 | I24: =Depreciation!I21 -> 52.8 | J24: =Depreciation!J21 -> 52.8 | K24: =Depreciation!K21 -> 52.8 | L24: =Depreciation!L21 -> 52.8 | M24: =Depreciation!M21 -> 52.8 | N24: =Depreciation!N21 -> 52.8 | O24: =Depreciation!O21 -> 52.8 | P24: =Depreciation!P21 -> 52.8 | Q24: =Depreciation!Q21 -> 52.8 | R24: =Depreciation!R21 -> 52.8 | S24: =Depreciation!S21 -> 52.8 | T24: =Depreciation!T21 -> 28.8 | U24: =Depreciation!U21 -> 0 | V24: =Depreciation!V21 -> 0 | W24: =Depreciation!W21 -> 0 | X24: =Depreciation!X21 -> 0 | Y24: =Depreciation!Y21 -> 0 | Z24: =Depreciation!Z21 -> 0 | AA24: =Depreciation!AA21 -> 0 | AB24: =Depreciation!AB21 -> 0 | AC24: =Depreciation!AC21 -> 0 | AD24: =Depreciation!AD21 -> 0 | AE24: =Depreciation!AE21 -> 0 | AF24: =Depreciation!AF21 -> 0 | AG24: =Depreciation!AG21 -> 0 | AH24: =Depreciation!AH21 -> 0 | AI24: =Depreciation!AI21 -> 0 | AJ24: =Depreciation!AJ21 -> 0 | AK24: =Depreciation!AK21 -> 0 | AL24: =Depreciation!AL21 -> 0 | AM24: =Depreciation!AM21 -> 0 | AN24: =Depreciation!AN21 -> 0 | AO24: =Depreciation!AO21 -> 0 | AP24: =Depreciation!AP21 -> 0
B25: PBIT | C25: =C23-C24 -> 134.5909547 | D25: =D23-D24 -> 107.5617547 | E25: 106.8965645 | F25: 106.1933253 | G25: 105.4498609 | H25: 104.6638704 | I25: 103.8329211 | J25: 102.9544416 | K25: 102.0257131 | L25: 101.0438613 | M25: 100.0058475 | N25: 98.90845939 | O25: 97.74830066 | P25: 96.52178084 | Q25: 95.2251041 | R25: 93.85425745 | S25: 92.40499836 | T25: 114.8728417 | U25: 142.0530456 | V25: 140.3405972 | W25: 138.5301967 | X25: 136.6162414 | Y25: 134.5928078 | Z25: 132.4536338 | AA25: 130.192099 | AB25: 0 | AC25: 0 | AD25: 0 | AE25: 0 | AF25: 0 | AG25: 0 | AH25: 0 | AI25: 0 | AJ25: 0 | AK25: 0 | AL25: 0 | AM25: 0 | AN25: 0 | AO25: 0 | AP25: 0
B26: Interest on term loan and working capital | C26: =Tariff!C19+Tariff!C20 -> 88.16896901 | D26: =Tariff!D19+Tariff!D20 -> 81.0673627 | E26: =Tariff!E19+Tariff!E20 -> 73.9708125 | F26: =Tariff!F19+Tariff!F20 -> 66.88960764 | G26: =Tariff!G19+Tariff!G20 -> 59.80405385 | H26: =Tariff!H19+Tariff!H20 -> 52.72447439 | I26: =Tariff!I19+Tariff!I20 -> 45.66121099 | J26: =Tariff!J19+Tariff!J20 -> 38.59462491 | K26: =Tariff!K19+Tariff!K20 -> 31.53509812 | L26: =Tariff!L19+Tariff!L20 -> 24.49303439 | M26: =Tariff!M19+Tariff!M20 -> 17.44886061 | N26: =Tariff!N19+Tariff!N20 -> 10.4130281 | O26: =Tariff!O19+Tariff!O20 -> 6.686013966 | P26: =Tariff!P19+Tariff!P20 -> 6.858322624 | Q26: =Tariff!Q19+Tariff!Q20 -> 7.040487337 | R26: =Tariff!R19+Tariff!R20 -> 7.233071871 | S26: =Tariff!S19+Tariff!S20 -> 7.436672241 | T26: =Tariff!T19+Tariff!T20 -> 7.651918552 | U26: =Tariff!U19+Tariff!U20 -> 7.879476952 | V26: =Tariff!V19+Tariff!V20 -> 8.120051693 | W26: =Tariff!W19+Tariff!W20 -> 8.374387309 | X26: =Tariff!X19+Tariff!X20 -> 8.643270922 | Y26: =Tariff!Y19+Tariff!Y20 -> 8.927534677 | Z26: =Tariff!Z19+Tariff!Z20 -> 9.22805832 | AA26: =Tariff!AA19+Tariff!AA20 -> 9.545771915 | AB26: =Tariff!AB19+Tariff!AB20 -> 0 | AC26: =Tariff!AC19+Tariff!AC20 -> 0 | AD26: =Tariff!AD19+Tariff!AD20 -> 0 | AE26: =Tariff!AE19+Tariff!AE20 -> 0 | AF26: =Tariff!AF19+Tariff!AF20 -> 0 | AG26: =Tariff!AG19+Tariff!AG20 -> 0 | AH26: =Tariff!AH19+Tariff!AH20 -> 0 | AI26: =Tariff!AI19+Tariff!AI20 -> 0 | AJ26: =Tariff!AJ19+Tariff!AJ20 -> 0 | AK26: =Tariff!AK19+Tariff!AK20 -> 0 | AL26: =Tariff!AL19+Tariff!AL20 -> 0 | AM26: =Tariff!AM19+Tariff!AM20 -> 0 | AN26: =Tariff!AN19+Tariff!AN20 -> 0 | AO26: =Tariff!AO19+Tariff!AO20 -> 0 | AP26: =Tariff!AP19+Tariff!AP20 -> 0
B27: PBT | C27: =C25-C26 -> 46.42198569 | D27: =D25-D26 -> 26.494392 | E27: 32.92575195 | F27: 39.3037177 | G27: 45.64580708 | H27: 51.93939598 | I27: 58.17171016 | J27: 64.35981672 | K27: 70.49061497 | L27: 76.55082687 | M27: 82.5569869 | N27: 88.49543129 | O27: 91.06228669 | P27: 89.66345822 | Q27: 88.18461676 | R27: 86.62118557 | S27: 84.96832612 | T27: 107.2209231 | U27: 134.1735686 | V27: 132.2205455 | W27: 130.1558094 | X27: 127.9729705 | Y27: 125.6652731 | Z27: 123.2255755 | AA27: 120.6463271 | AB27: 0 | AC27: 0 | AD27: 0 | AE27: 0 | AF27: 0 | AG27: 0 | AH27: 0 | AI27: 0 | AJ27: 0 | AK27: 0 | AL27: 0 | AM27: 0 | AN27: 0 | AO27: 0 | AP27: 0
B28: PAT | C28: =C44 -> 37.13387479 | D28: =D44 -> 21.19339405 | E28: 26.3379675 | F28: 31.43982986 | G28: 36.512994 | H28: 41.54736163 | I28: 46.53271439 | J28: 51.48270459 | K28: 56.38685272 | L28: 61.23453743 | M28: 66.03898496 | N28: 70.7892654 | O28: 72.84254437 | P28: 71.7235935 | Q28: 70.54063864 | R28: 69.29001876 | S28: 67.96786343 | T28: 85.76816081 | U28: 107.328121 | V28: 105.7658588 | W28: 88.18398199 | X28: 86.6450589 | Y28: 85.03786427 | Z28: 83.35355427 | AA28: 81.58401386 | AB28: 0 | AC28: 0 | AD28: 0 | AE28: 0 | AF28: 0 | AG28: 0 | AH28: 0 | AI28: 0 | AJ28: 0 | AK28: 0 | AL28: 0 | AM28: 0 | AN28: 0 | AO28: 0 | AP28: 0
B30: Year | C30: 1 | D30: =C30+1 -> 2 | E30: =D30+1 -> 3 | F30: 4 | G30: 5 | H30: 6 | I30: 7 | J30: 8 | K30: 9 | L30: 10 | M30: 11 | N30: 12 | O30: 13 | P30: 14 | Q30: 15 | R30: 16 | S30: 17 | T30: 18 | U30: 19 | V30: 20 | W30: 21 | X30: 22 | Y30: 23 | Z30: 24 | AA30: 25 | AB30: 26 | AC30: 27 | AD30: 28 | AE30: 29 | AF30: 30 | AG30: 31 | AH30: 32 | AI30: 33 | AJ30: 34 | AK30: 35 | AL30: 36 | AM30: 37 | AN30: 38 | AO30: 39 | AP30: 40
B31: PBT | C31: =C27 -> 46.42198569 | D31: 26.494392 | E31: 32.92575195 | F31: 39.3037177 | G31: 45.64580708 | H31: 51.93939598 | I31: 58.17171016 | J31: 64.35981672 | K31: 70.49061497 | L31: 76.55082687 | M31: 82.5569869 | N31: 88.49543129 | O31: 91.06228669 | P31: 89.66345822 | Q31: 88.18461676 | R31: 86.62118557 | S31: 84.96832612 | T31: 107.2209231 | U31: 134.1735686 | V31: 132.2205455 | W31: 130.1558094 | X31: 127.9729705 | Y31: 125.6652731 | Z31: 123.2255755 | AA31: 120.6463271 | AB31: 0 | AC31: 0 | AD31: 0 | AE31: 0 | AF31: 0 | AG31: 0 | AH31: 0 | AI31: 0 | AJ31: 0 | AK31: 0 | AL31: 0 | AM31: 0 | AN31: 0 | AO31: 0 | AP31: 0
B32: Add Book Depreciation | C32: =C24 -> 26.4 | D32: 52.8 | E32: 52.8 | F32: 52.8 | G32: 52.8 | H32: 52.8 | I32: 52.8 | J32: 52.8 | K32: 52.8 | L32: 52.8 | M32: 52.8 | N32: 52.8 | O32: 52.8 | P32: 52.8 | Q32: 52.8 | R32: 52.8 | S32: 52.8 | T32: 28.8 | U32: 0 | V32: 0 | W32: 0 | X32: 0 | Y32: 0 | Z32: 0 | AA32: 0 | AB32: 0 | AC32: 0 | AD32: 0 | AE32: 0 | AF32: 0 | AG32: 0 | AH32: 0 | AI32: 0 | AJ32: 0 | AK32: 0 | AL32: 0 | AM32: 0 | AN32: 0 | AO32: 0 | AP32: 0
B33: PBDT/Gross Income | C33: =C31+C32 -> 72.82198569 | D33: =D31+D32 -> 79.294392 | E33: 85.72575195 | F33: 92.1037177 | G33: 98.44580708 | H33: 104.739396 | I33: 110.9717102 | J33: 117.1598167 | K33: 123.290615 | L33: 129.3508269 | M33: 135.3569869 | N33: 141.2954313 | O33: 143.8622867 | P33: 142.4634582 | Q33: 140.9846168 | R33: 139.4211856 | S33: 137.7683261 | T33: 136.0209231 | U33: 134.1735686 | V33: 132.2205455 | W33: 130.1558094 | X33: 127.9729705 | Y33: 125.6652731 | Z33: 123.2255755 | AA33: 120.6463271 | AB33: 0 | AC33: 0 | AD33: 0 | AE33: 0 | AF33: 0 | AG33: 0 | AH33: 0 | AI33: 0 | AJ33: 0 | AK33: 0 | AL33: 0 | AM33: 0 | AN33: 0 | AO33: 0 | AP33: 0
B34: Depreciation (IT-Written Down Value) | C34: =Depreciation!C25 -> 250 | D34: =Depreciation!D25 -> 187.5 | E34: =Depreciation!E25 -> 140.625 | F34: =Depreciation!F25 -> 105.46875 | G34: =Depreciation!G25 -> 79.1015625 | H34: =Depreciation!H25 -> 59.32617188 | I34: =Depreciation!I25 -> 44.49462891 | J34: =Depreciation!J25 -> 33.37097168 | K34: =Depreciation!K25 -> 25.02822876 | L34: =Depreciation!L25 -> 18.77117157 | M34: =Depreciation!M25 -> 14.07837868 | N34: =Depreciation!N25 -> 10.55878401 | O34: =Depreciation!O25 -> 7.919088006 | P34: =Depreciation!P25 -> 5.939316005 | Q34: =Depreciation!Q25 -> 4.454487003 | R34: =Depreciation!R25 -> 3.340865253 | S34: =Depreciation!S25 -> 2.505648939 | T34: =Depreciation!T25 -> 1.879236705 | U34: =Depreciation!U25 -> 1.409427528 | V34: =Depreciation!V25 -> 1.057070646 | W34: =Depreciation!W25 -> 0.7928029847 | X34: =Depreciation!X25 -> 0.5946022386 | Y34: =Depreciation!Y25 -> 0.4459516789 | Z34: =Depreciation!Z25 -> 0.3344637592 | AA34: =Depreciation!AA25 -> 0.2508478194 | AB34: =Depreciation!AB25 -> 0 | AC34: =Depreciation!AC25 -> 0 | AD34: =Depreciation!AD25 -> 0 | AE34: =Depreciation!AE25 -> 0 | AF34: =Depreciation!AF25 -> 0 | AG34: =Depreciation!AG25 -> 0 | AH34: =Depreciation!AH25 -> 0 | AI34: =Depreciation!AI25 -> 0 | AJ34: =Depreciation!AJ25 -> 0 | AK34: =Depreciation!AK25 -> 0 | AL34: =Depreciation!AL25 -> 0 | AM34: =Depreciation!AM25 -> 0 | AN34: =Depreciation!AN25 -> 0 | AO34: =Depreciation!AO25 -> 0 | AP34: =Depreciation!AP25 -> 0
B35: Taxable Income | C35: =+C33-C34 -> -177.1780143 | D35: =+D33-D34 -> -108.205608 | E35: -54.89924805 | F35: -13.3650323 | G35: 19.34424458 | H35: 45.41322411 | I35: 66.47708126 | J35: 83.78884504 | K35: 98.26238621 | L35: 110.5796553 | M35: 121.2786082 | N35: 130.7366473 | O35: 135.9431987 | P35: 136.5241422 | Q35: 136.5301298 | R35: 136.0803203 | S35: 135.2626772 | T35: 134.1416864 | U35: 132.7641411 | V35: 131.1634749 | W35: 129.3630065 | X35: 127.3783682 | Y35: 125.2193214 | Z35: 122.8911117 | AA35: 120.3954793 | AB35: 0 | AC35: 0 | AD35: 0 | AE35: 0 | AF35: 0 | AG35: 0 | AH35: 0 | AI35: 0 | AJ35: 0 | AK35: 0 | AL35: 0 | AM35: 0 | AN35: 0 | AO35: 0 | AP35: 0
B36: Losses Carried Over | D36: =IF(D30<=$C$5,MIN(C37,0),0) -> -177.1780143 | E36: =IF(E30<=$C$5,MIN(D37,0),0) -> -285.3836223 | F36: -340.2828704 | G36: -353.6479027 | H36: -334.3036581 | I36: -288.890434 | J36: -222.4133527 | K36: -138.6245077 | L36: -40.36212147 | M36: 0 | N36: 0 | O36: 0 | P36: 0 | Q36: 0 | R36: 0 | S36: 0 | T36: 0 | U36: 0 | V36: 0 | W36: 0 | X36: 0 | Y36: 0 | Z36: 0 | AA36: 0 | AB36: 0 | AC36: 0 | AD36: 0 | AE36: 0 | AF36: 0 | AG36: 0 | AH36: 0 | AI36: 0 | AJ36: 0 | AK36: 0 | AL36: 0 | AM36: 0 | AN36: 0 | AO36: 0 | AP36: 0
B37: Taxable Income after loss carried over | C37: =IF(C30<=$C$5,C36+C35,0) -> -177.1780143 | D37: =IF(D30<=$C$5,D36+D35,0) -> -285.3836223 | E37: -340.2828704 | F37: -353.6479027 | G37: -334.3036581 | H37: -288.890434 | I37: -222.4133527 | J37: -138.6245077 | K37: -40.36212147 | L37: 70.21753383 | M37: 121.2786082 | N37: 130.7366473 | O37: 135.9431987 | P37: 136.5241422 | Q37: 136.5301298 | R37: 136.0803203 | S37: 135.2626772 | T37: 134.1416864 | U37: 132.7641411 | V37: 131.1634749 | W37: 129.3630065 | X37: 127.3783682 | Y37: 125.2193214 | Z37: 122.8911117 | AA37: 120.3954793 | AB37: 0 | AC37: 0 | AD37: 0 | AE37: 0 | AF37: 0 | AG37: 0 | AH37: 0 | AI37: 0 | AJ37: 0 | AK37: 0 | AL37: 0 | AM37: 0 | AN37: 0 | AO37: 0 | AP37: 0
B38: Years for Tax Holiday | C38: =IF(AND(C$30>=$C$8,C$30<$C$8+$C$9,C$30<=$C$5),C$30-$C$8+1,"") ->  | D38: =IF(AND(D$30>=$C$8,D$30<$C$8+$C$9,D$30<=$C$5),D$30-$C$8+1,"") ->  | H38: 1 | I38: 2 | J38: 3 | K38: 4 | L38: 5 | M38: 6 | N38: 7 | O38: 8 | P38: 9 | Q38: 10
B39: Income Tax | C39: =IF(OR(C37<=0,ISNUMBER(C38)),0,C37*$C$6) -> 0 | D39: =IF(OR(D37<=0,ISNUMBER(D38)),0,D37*$C$6) -> 0 | E39: 0 | F39: 0 | G39: 0 | H39: 0 | I39: 0 | J39: 0 | K39: 0 | L39: 0 | M39: 0 | N39: 0 | O39: 0 | P39: 0 | Q39: 0 | R39: 44.15125993 | S39: 43.88597561 | T39: 43.52227015 | U39: 43.07532558 | V39: 42.55598942 | W39: 41.97182744 | X39: 41.32791157 | Y39: 40.62740884 | Z39: 39.87202119 | AA39: 39.06231326 | AB39: 0 | AC39: 0 | AD39: 0 | AE39: 0 | AF39: 0 | AG39: 0 | AH39: 0 | AI39: 0 | AJ39: 0 | AK39: 0 | AL39: 0 | AM39: 0 | AN39: 0 | AO39: 0 | AP39: 0
B40: MAT | C40: =MAX(C27*$C$7,0) -> 9.288110896 | D40: =MAX(D27*$C$7,0) -> 5.300997951 | E40: 6.587784451 | F40: 7.863887837 | G40: 9.132813081 | H40: 10.39203435 | I40: 11.63899577 | J40: 12.87711213 | K40: 14.10376224 | L40: 15.31628944 | M40: 16.51800194 | N40: 17.70616589 | O40: 18.21974232 | P40: 17.93986472 | Q40: 17.64397812 | R40: 17.33116681 | S40: 17.00046269 | T40: 21.4527623 | U40: 26.84544761 | V40: 26.45468674 | W40: 26.04157435 | X40: 25.60483193 | Y40: 25.14310784 | Z40: 24.65497314 | AA40: 24.13891713 | AB40: 0 | AC40: 0 | AD40: 0 | AE40: 0 | AF40: 0 | AG40: 0 | AH40: 0 | AI40: 0 | AJ40: 0 | AK40: 0 | AL40: 0 | AM40: 0 | AN40: 0 | AO40: 0 | AP40: 0
B41: Set off under MAT | C41: =IF(C$30>=$C$10,IF(C$30<$C$10+$C$12,MAX(C$39-C$40,0),0),0) -> 0 | D41: 0 | E41: 0 | F41: 0 | G41: 0 | H41: 0 | I41: 0 | J41: 0 | K41: 0 | L41: 0 | M41: 0 | N41: 0 | O41: 0 | P41: 0 | Q41: 0 | R41: 26.82009312 | S41: 26.88551292 | T41: 22.06950786 | U41: 16.22987797 | V41: 16.10130267 | W41: 0 | X41: 0 | Y41: 0 | Z41: 0 | AA41: 0
B42: MAT set off remaining at the end of each year | C42: =IF(C$30=$C$10-1,SUM(OFFSET(C40,0,-$C$11+1,1,$C$11)),IF(AND(C$30>=$C$10,C$30<$C$10+$C$12),MAX(B$42-C$41,0),0)) -> 0 | D42: =IF(D$30=$C$10-1,SUM(OFFSET(D40,0,-$C$11+1,1,$C$11)),IF(AND(D$30>=$C$10,D$30<$C$10+$C$12),MAX(C$42-D$41,0),0)) -> 0 | E42: =IF(E$30=$C$10-1,SUM(OFFSET(E40,0,-$C$11+1,1,$C$11)),IF(AND(E$30>=$C$10,E$30<$C$10+$C$12),MAX(D$42-E$41,0),0)) -> 0 | F42: =IF(F$30=$C$10-1,SUM(OFFSET(F40,0,-$C$11+1,1,$C$11)),IF(AND(F$30>=$C$10,F$30<$C$10+$C$12),MAX(E$42-F$41,0),0)) -> 0 | G42: =IF(G$30=$C$10-1,SUM(OFFSET(G40,0,-$C$11+1,1,$C$11)),IF(AND(G$30>=$C$10,G$30<$C$10+$C$12),MAX(F$42-G$41,0),0)) -> 0 | H42: =IF(H$30=$C$10-1,SUM(OFFSET(H40,0,-$C$11+1,1,$C$11)),IF(AND(H$30>=$C$10,H$30<$C$10+$C$12),MAX(G$42-H$41,0),0)) -> 0 | I42: =IF(I$30=$C$10-1,SUM(OFFSET(I40,0,-$C$11+1,1,$C$11)),IF(AND(I$30>=$C$10,I$30<$C$10+$C$12),MAX(H$42-I$41,0),0)) -> 0 | J42: =IF(J$30=$C$10-1,SUM(OFFSET(J40,0,-$C$11+1,1,$C$11)),IF(AND(J$30>=$C$10,J$30<$C$10+$C$12),MAX(I$42-J$41,0),0)) -> 0 | K42: =IF(K$30=$C$10-1,SUM(OFFSET(K40,0,-$C$11+1,1,$C$11)),IF(AND(K$30>=$C$10,K$30<$C$10+$C$12),MAX(J$42-K$41,0),0)) -> 0 | L42: =IF(L$30=$C$10-1,SUM(OFFSET(L40,0,-$C$11+1,1,$C$11)),IF(AND(L$30>=$C$10,L$30<$C$10+$C$12),MAX(K$42-L$41,0),0)) -> 0 | M42: =IF(M$30=$C$10-1,SUM(OFFSET(M40,0,-$C$11+1,1,$C$11)),IF(AND(M$30>=$C$10,M$30<$C$10+$C$12),MAX(L$42-M$41,0),0)) -> 0 | N42: =IF(N$30=$C$10-1,SUM(OFFSET(N40,0,-$C$11+1,1,$C$11)),IF(AND(N$30>=$C$10,N$30<$C$10+$C$12),MAX(M$42-N$41,0),0)) -> 0 | O42: =IF(O$30=$C$10-1,SUM(OFFSET(O40,0,-$C$11+1,1,$C$11)),IF(AND(O$30>=$C$10,O$30<$C$10+$C$12),MAX(N$42-O$41,0),0)) -> 0 | P42: =IF(P$30=$C$10-1,SUM(OFFSET(P40,0,-$C$11+1,1,$C$11)),IF(AND(P$30>=$C$10,P$30<$C$10+$C$12),MAX(O$42-P$41,0),0)) -> 0 | Q42: =IF(Q$30=$C$10-1,SUM(OFFSET(Q40,0,-$C$11+1,1,$C$11)),IF(AND(Q$30>=$C$10,Q$30<$C$10+$C$12),MAX(P$42-Q$41,0),0)) -> 152.3559469 | R42: =IF(R$30=$C$10-1,SUM(OFFSET(R40,0,-$C$11+1,1,$C$11)),IF(AND(R$30>=$C$10,R$30<$C$10+$C$12),MAX(Q$42-R$41,0),0)) -> 125.5358538 | S42: =IF(S$30=$C$10-1,SUM(OFFSET(S40,0,-$C$11+1,1,$C$11)),IF(AND(S$30>=$C$10,S$30<$C$10+$C$12),MAX(R$42-S$41,0),0)) -> 98.65034088 | T42: =IF(T$30=$C$10-1,SUM(OFFSET(T40,0,-$C$11+1,1,$C$11)),IF(AND(T$30>=$C$10,T$30<$C$10+$C$12),MAX(S$42-T$41,0),0)) -> 76.58083303 | U42: =IF(U$30=$C$10-1,SUM(OFFSET(U40,0,-$C$11+1,1,$C$11)),IF(AND(U$30>=$C$10,U$30<$C$10+$C$12),MAX(T$42-U$41,0),0)) -> 60.35095506 | V42: =IF(V$30=$C$10-1,SUM(OFFSET(V40,0,-$C$11+1,1,$C$11)),IF(AND(V$30>=$C$10,V$30<$C$10+$C$12),MAX(U$42-V$41,0),0)) -> 44.24965238 | W42: =IF(W$30=$C$10-1,SUM(OFFSET(W40,0,-$C$11+1,1,$C$11)),IF(AND(W$30>=$C$10,W$30<$C$10+$C$12),MAX(V$42-W$41,0),0)) -> 0 | X42: =IF(X$30=$C$10-1,SUM(OFFSET(X40,0,-$C$11+1,1,$C$11)),IF(AND(X$30>=$C$10,X$30<$C$10+$C$12),MAX(W$42-X$41,0),0)) -> 0 | Y42: =IF(Y$30=$C$10-1,SUM(OFFSET(Y40,0,-$C$11+1,1,$C$11)),IF(AND(Y$30>=$C$10,Y$30<$C$10+$C$12),MAX(X$42-Y$41,0),0)) -> 0 | Z42: =IF(Z$30=$C$10-1,SUM(OFFSET(Z40,0,-$C$11+1,1,$C$11)),IF(AND(Z$30>=$C$10,Z$30<$C$10+$C$12),MAX(Y$42-Z$41,0),0)) -> 0 | AA42: =IF(AA$30=$C$10-1,SUM(OFFSET(AA40,0,-$C$11+1,1,$C$11)),IF(AND(AA$30>=$C$10,AA$30<$C$10+$C$12),MAX(Z$42-AA$41,0),0)) -> 0 | AB42: =IF(AB$30=$C$10-1,SUM(OFFSET(AB40,0,-$C$11+1,1,$C$11)),IF(AND(AB$30>=$C$10,AB$30<$C$10+$C$12),MAX(AA$42-AB$41,0),0)) -> 0 | AC42: =IF(AC$30=$C$10-1,SUM(OFFSET(AC40,0,-$C$11+1,1,$C$11)),IF(AND(AC$30>=$C$10,AC$30<$C$10+$C$12),MAX(AB$42-AC$41,0),0)) -> 0 | AD42: =IF(AD$30=$C$10-1,SUM(OFFSET(AD40,0,-$C$11+1,1,$C$11)),IF(AND(AD$30>=$C$10,AD$30<$C$10+$C$12),MAX(AC$42-AD$41,0),0)) -> 0 | AE42: =IF(AE$30=$C$10-1,SUM(OFFSET(AE40,0,-$C$11+1,1,$C$11)),IF(AND(AE$30>=$C$10,AE$30<$C$10+$C$12),MAX(AD$42-AE$41,0),0)) -> 0 | AF42: =IF(AF$30=$C$10-1,SUM(OFFSET(AF40,0,-$C$11+1,1,$C$11)),IF(AND(AF$30>=$C$10,AF$30<$C$10+$C$12),MAX(AE$42-AF$41,0),0)) -> 0 | AG42: =IF(AG$30=$C$10-1,SUM(OFFSET(AG40,0,-$C$11+1,1,$C$11)),IF(AND(AG$30>=$C$10,AG$30<$C$10+$C$12),MAX(AF$42-AG$41,0),0)) -> 0 | AH42: =IF(AH$30=$C$10-1,SUM(OFFSET(AH40,0,-$C$11+1,1,$C$11)),IF(AND(AH$30>=$C$10,AH$30<$C$10+$C$12),MAX(AG$42-AH$41,0),0)) -> 0 | AI42: =IF(AI$30=$C$10-1,SUM(OFFSET(AI40,0,-$C$11+1,1,$C$11)),IF(AND(AI$30>=$C$10,AI$30<$C$10+$C$12),MAX(AH$42-AI$41,0),0)) -> 0 | AJ42: =IF(AJ$30=$C$10-1,SUM(OFFSET(AJ40,0,-$C$11+1,1,$C$11)),IF(AND(AJ$30>=$C$10,AJ$30<$C$10+$C$12),MAX(AI$42-AJ$41,0),0)) -> 0 | AK42: =IF(AK$30=$C$10-1,SUM(OFFSET(AK40,0,-$C$11+1,1,$C$11)),IF(AND(AK$30>=$C$10,AK$30<$C$10+$C$12),MAX(AJ$42-AK$41,0),0)) -> 0 | AL42: =IF(AL$30=$C$10-1,SUM(OFFSET(AL40,0,-$C$11+1,1,$C$11)),IF(AND(AL$30>=$C$10,AL$30<$C$10+$C$12),MAX(AK$42-AL$41,0),0)) -> 0 | AM42: =IF(AM$30=$C$10-1,SUM(OFFSET(AM40,0,-$C$11+1,1,$C$11)),IF(AND(AM$30>=$C$10,AM$30<$C$10+$C$12),MAX(AL$42-AM$41,0),0)) -> 0 | AN42: =IF(AN$30=$C$10-1,SUM(OFFSET(AN40,0,-$C$11+1,1,$C$11)),IF(AND(AN$30>=$C$10,AN$30<$C$10+$C$12),MAX(AM$42-AN$41,0),0)) -> 0 | AO42: =IF(AO$30=$C$10-1,SUM(OFFSET(AO40,0,-$C$11+1,1,$C$11)),IF(AND(AO$30>=$C$10,AO$30<$C$10+$C$12),MAX(AN$42-AO$41,0),0)) -> 0 | AP42: =IF(AP$30=$C$10-1,SUM(OFFSET(AP40,0,-$C$11+1,1,$C$11)),IF(AND(AP$30>=$C$10,AP$30<$C$10+$C$12),MAX(AO$42-AP$41,0),0)) -> 0
B43: TAX Paid (MAT or IT) | C43: =MAX(C39-C41,C40) -> 9.288110896 | D43: 5.300997951 | E43: 6.587784451 | F43: 7.863887837 | G43: 9.132813081 | H43: 10.39203435 | I43: 11.63899577 | J43: 12.87711213 | K43: 14.10376224 | L43: 15.31628944 | M43: 16.51800194 | N43: 17.70616589 | O43: 18.21974232 | P43: 17.93986472 | Q43: 17.64397812 | R43: 17.33116681 | S43: 17.00046269 | T43: 21.4527623 | U43: 26.84544761 | V43: 26.45468674 | W43: 41.97182744 | X43: 41.32791157 | Y43: 40.62740884 | Z43: 39.87202119 | AA43: 39.06231326 | AB43: 0 | AC43: 0 | AD43: 0 | AE43: 0 | AF43: 0 | AG43: 0 | AH43: 0 | AI43: 0 | AJ43: 0 | AK43: 0 | AL43: 0 | AM43: 0 | AN43: 0 | AO43: 0 | AP43: 0
B44: PAT | C44: =C31-C43 -> 37.13387479 | D44: 21.19339405 | E44: 26.3379675 | F44: 31.43982986 | G44: 36.512994 | H44: 41.54736163 | I44: 46.53271439 | J44: 51.48270459 | K44: 56.38685272 | L44: 61.23453743 | M44: 66.03898496 | N44: 70.7892654 | O44: 72.84254437 | P44: 71.7235935 | Q44: 70.54063864 | R44: 69.29001876 | S44: 67.96786343 | T44: 85.76816081 | U44: 107.328121 | V44: 105.7658588 | W44: 88.18398199 | X44: 86.6450589 | Y44: 85.03786427 | Z44: 83.35355427 | AA44: 81.58401386 | AB44: 0 | AC44: 0 | AD44: 0 | AE44: 0 | AF44: 0 | AG44: 0 | AH44: 0 | AI44: 0 | AJ44: 0 | AK44: 0 | AL44: 0 | AM44: 0 | AN44: 0 | AO44: 0 | AP44: 0
B45: Post-Tax ROE | C45: =IF(C44/$C$4<0,0,C44/$C$4) -> 0.1237795826 | D45: =IF(D44/$C$4<0,0,D44/$C$4) -> 0.07064464683 | E45: 0.08779322501 | F45: 0.1047994329 | G45: 0.12170998 | H45: 0.1384912054 | I45: 0.155109048 | J45: 0.1716090153 | K45: 0.1879561757 | L45: 0.2041151248 | M45: 0.2201299499 | N45: 0.235964218 | O45: 0.2428084812 | P45: 0.239078645 | Q45: 0.2351354621 | R45: 0.2309667292 | S45: 0.2265595448 | T45: 0.2858938694 | U45: 0.3577604034 | V45: 0.3525528625 | W45: 0.2939466066 | X45: 0.288816863 | Y45: 0.2834595476 | Z45: 0.2778451809 | AA45: 0.2719467129 | AB45: 0 | AC45: 0 | AD45: 0 | AE45: 0 | AF45: 0 | AG45: 0 | AH45: 0 | AI45: 0 | AJ45: 0 | AK45: 0 | AL45: 0 | AM45: 0 | AN45: 0 | AO45: 0 | AP45: 0
B48: Tax Savings from Accelerated Depreciation | C48: 11166.5658 | D48: 699.8481381

Sheet Cash Flows
M2: Cash Flows
B3: ='Form Input'!C9 -> Life of Plant and Machinery / Project Life | C3: ='Form Input'!D9 -> 25 | D3: ='Form Input'!E9 -> years
B5: PARTICULARS | C5: 0 | D5: =C5+1 -> 1 | E5: =D5+1 -> 2 | F5: 3 | G5: 4 | H5: 5 | I5: 6 | J5: 7 | K5: 8 | L5: 9 | M5: 10 | N5: 11 | O5: 12 | P5: 13 | Q5: 14 | R5: 15 | S5: 16 | T5: 17 | U5: 18 | V5: 19 | W5: 20 | X5: 21 | Y5: 22 | Z5: 23 | AA5: 24 | AB5: 25 | AC5: 26 | AD5: 27 | AE5: 28 | AF5: 29 | AG5: 30 | AH5: 31 | AI5: 32 | AJ5: 33 | AK5: 34 | AL5: 35 | AM5: 36 | AN5: 37 | AO5: 38 | AP5: 39 | AQ5: 40
B6: Cash Profit | D6: ='Profit Loss'!C28+'Profit Loss'!C32 -> 63.53387479 | E6: ='Profit Loss'!D28+'Profit Loss'!D32 -> 73.99339405 | F6: ='Profit Loss'!E28+'Profit Loss'!E32 -> 79.1379675 | G6: ='Profit Loss'!F28+'Profit Loss'!F32 -> 84.23982986 | H6: ='Profit Loss'!G28+'Profit Loss'!G32 -> 89.312994 | I6: ='Profit Loss'!H28+'Profit Loss'!H32 -> 94.34736163 | J6: ='Profit Loss'!I28+'Profit Loss'!I32 -> 99.33271439 | K6: ='Profit Loss'!J28+'Profit Loss'!J32 -> 104.2827046 | L6: ='Profit Loss'!K28+'Profit Loss'!K32 -> 109.1868527 | M6: ='Profit Loss'!L28+'Profit Loss'!L32 -> 114.0345374 | N6: ='Profit Loss'!M28+'Profit Loss'!M32 -> 118.838985 | O6: ='Profit Loss'!N28+'Profit Loss'!N32 -> 123.5892654 | P6: ='Profit Loss'!O28+'Profit Loss'!O32 -> 125.6425444 | Q6: ='Profit Loss'!P28+'Profit Loss'!P32 -> 124.5235935 | R6: ='Profit Loss'!Q28+'Profit Loss'!Q32 -> 123.3406386 | S6: ='Profit Loss'!R28+'Profit Loss'!R32 -> 122.0900188 | T6: ='Profit Loss'!S28+'Profit Loss'!S32 -> 120.7678634 | U6: ='Profit Loss'!T28+'Profit Loss'!T32 -> 114.5681608 | V6: ='Profit Loss'!U28+'Profit Loss'!U32 -> 107.328121 | W6: ='Profit Loss'!V28+'Profit Loss'!V32 -> 105.7658588 | X6: ='Profit Loss'!W28+'Profit Loss'!W32 -> 88.18398199 | Y6: ='Profit Loss'!X28+'Profit Loss'!X32 -> 86.6450589 | Z6: ='Profit Loss'!Y28+'Profit Loss'!Y32 -> 85.03786427 | AA6: ='Profit Loss'!Z28+'Profit Loss'!Z32 -> 83.35355427 | AB6: ='Profit Loss'!AA28+'Profit Loss'!AA32 -> 81.58401386 | AC6: ='Profit Loss'!AB28+'Profit Loss'!AB32 -> 0 | AD6: ='Profit Loss'!AC28+'Profit Loss'!AC32 -> 0 | AE6: ='Profit Loss'!AD28+'Profit Loss'!AD32 -> 0 | AF6: ='Profit Loss'!AE28+'Profit Loss'!AE32 -> 0 | AG6: ='Profit Loss'!AF28+'Profit Loss'!AF32 -> 0 | AH6: ='Profit Loss'!AG28+'Profit Loss'!AG32 -> 0 | AI6: ='Profit Loss'!AH28+'Profit Loss'!AH32 -> 0 | AJ6: ='Profit Loss'!AI28+'Profit Loss'!AI32 -> 0 | AK6: ='Profit Loss'!AJ28+'Profit Loss'!AJ32 -> 0 | AL6: ='Profit Loss'!AK28+'Profit Loss'!AK32 -> 0 | AM6: ='Profit Loss'!AL28+'Profit Loss'!AL32 -> 0 | AN6: ='Profit Loss'!AM28+'Profit Loss'!AM32 -> 0 | AO6: ='Profit Loss'!AN28+'Profit Loss'!AN32 -> 0 | AP6: ='Profit Loss'!AO28+'Profit Loss'!AO32 -> 0 | AQ6: ='Profit Loss'!AP28+'Profit Loss'!AP32 -> 0
B7: Equity | C7: ='Form Input'!D15 -> 300
B8: Loan Amount | C8: ='Form Input'!D14 -> 700
B9: Total Inflow | C9: =+SUM(C6:C8) -> 1000 | D9: =+SUM(D6:D8) -> 63.53387479 | E9: 73.99339405 | F9: 79.1379675 | G9: 84.23982986 | H9: 89.312994 | I9: 94.34736163 | J9: 99.33271439 | K9: 104.2827046 | L9: 109.1868527 | M9: 114.0345374 | N9: 118.838985 | O9: 123.5892654 | P9: 125.6425444 | Q9: 124.5235935 | R9: 123.3406386 | S9: 122.0900188 | T9: 120.7678634 | U9: 114.5681608 | V9: 107.328121 | W9: 105.7658588 | X9: 88.18398199 | Y9: 86.6450589 | Z9: 85.03786427 | AA9: 83.35355427 | AB9: 81.58401386 | AC9: 0 | AD9: 0 | AE9: 0 | AF9: 0 | AG9: 0 | AH9: 0 | AI9: 0 | AJ9: 0 | AK9: 0 | AL9: 0 | AM9: 0 | AN9: 0 | AO9: 0 | AP9: 0 | AQ9: 0
B10: Project Cost | C10: ='Form Input'!D10 -> 1000
B11: Loan Repayment | D11: ='Term Loan'!C24 -> 58.33333333 | E11: ='Term Loan'!D24 -> 58.33333333 | F11: ='Term Loan'!E24 -> 58.33333333 | G11: ='Term Loan'!F24 -> 58.33333333 | H11: ='Term Loan'!G24 -> 58.33333333 | I11: ='Term Loan'!H24 -> 58.33333333 | J11: ='Term Loan'!I24 -> 58.33333333 | K11: ='Term Loan'!J24 -> 58.33333333 | L11: ='Term Loan'!K24 -> 58.33333333 | M11: ='Term Loan'!L24 -> 58.33333333 | N11: ='Term Loan'!M24 -> 58.33333333 | O11: ='Term Loan'!N24 -> 58.33333333 | P11: ='Term Loan'!O24 -> 0 | Q11: ='Term Loan'!P24 -> 0 | R11: ='Term Loan'!Q24 -> 0 | S11: ='Term Loan'!R24 -> 0 | T11: ='Term Loan'!S24 -> 0 | U11: ='Term Loan'!T24 -> 0 | V11: ='Term Loan'!U24 -> 0 | W11: ='Term Loan'!V24 -> 0 | X11: ='Term Loan'!W24 -> 0 | Y11: ='Term Loan'!X24 -> 0 | Z11: ='Term Loan'!Y24 -> 0 | AA11: ='Term Loan'!Z24 -> 0 | AB11: ='Term Loan'!AA24 -> 0 | AC11: ='Term Loan'!AB24 -> 0 | AD11: ='Term Loan'!AC24 -> 0 | AE11: ='Term Loan'!AD24 -> 0 | AF11: ='Term Loan'!AE24 -> 0 | AG11: ='Term Loan'!AF24 -> 0 | AH11: ='Term Loan'!AG24 -> 0 | AI11: ='Term Loan'!AH24 -> 0 | AJ11: ='Term Loan'!AI24 -> 0 | AK11: ='Term Loan'!AJ24 -> 0 | AL11: ='Term Loan'!AK24 -> 0 | AM11: ='Term Loan'!AL24 -> 0 | AN11: ='Term Loan'!AM24 -> 0 | AO11: ='Term Loan'!AN24 -> 0 | AP11: ='Term Loan'!AO24 -> 0 | AQ11: ='Term Loan'!AP24 -> 0
B12: Total Outflow | C12: =SUM(C10:C11) -> 1000 | D12: =SUM(D10:D11) -> 58.33333333 | E12: 58.33333333 | F12: 58.33333333 | G12: 58.33333333 | H12: 58.33333333 | I12: 58.33333333 | J12: 58.33333333 | K12: 58.33333333 | L12: 58.33333333 | M12: 58.33333333 | N12: 58.33333333 | O12: 58.33333333 | P12: 0 | Q12: 0 | R12: 0 | S12: 0 | T12: 0 | U12: 0 | V12: 0 | W12: 0 | X12: 0 | Y12: 0 | Z12: 0 | AA12: 0 | AB12: 0 | AC12: 0 | AD12: 0 | AE12: 0 | AF12: 0 | AG12: 0 | AH12: 0 | AI12: 0 | AJ12: 0 | AK12: 0 | AL12: 0 | AM12: 0 | AN12: 0 | AO12: 0 | AP12: 0 | AQ12: 0
B13: Opening Balance | C13: 0 | D13: =IF(D5<=$C$3,C15,0) -> 0 | E13: =IF(E5<=$C$3,D15,0) -> 5.200541457 | F13: 20.86060217 | G13: 41.66523634 | H13: 67.57173287 | I13: 98.55139354 | J13: 134.5654218 | K13: 175.5648029 | L13: 221.5141742 | M13: 272.3676935 | N13: 328.0688976 | O13: 388.5745493 | P13: 453.8304813 | Q13: 579.4730257 | R13: 703.9966192 | S13: 827.3372578 | T13: 949.4272766 | U13: 1070.19514 | V13: 1184.763301 | W13: 1292.091422 | X13: 1397.857281 | Y13: 1486.041263 | Z13: 1572.686322 | AA13: 1657.724186 | AB13: 1741.07774 | AC13: 0 | AD13: 0 | AE13: 0 | AF13: 0 | AG13: 0 | AH13: 0 | AI13: 0 | AJ13: 0 | AK13: 0 | AL13: 0 | AM13: 0 | AN13: 0 | AO13: 0 | AP13: 0 | AQ13: 0
B14: Surplus/Deficit | C14: =+C9-C12 -> 0 | D14: =+D9-D12 -> 5.200541457 | E14: 15.66006071 | F14: 20.80463417 | G14: 25.90649653 | H14: 30.97966067 | I14: 36.0140283 | J14: 40.99938106 | K14: 45.94937126 | L14: 50.85351939 | M14: 55.7012041 | N14: 60.50565163 | O14: 65.25593206 | P14: 125.6425444 | Q14: 124.5235935 | R14: 123.3406386 | S14: 122.0900188 | T14: 120.7678634 | U14: 114.5681608 | V14: 107.328121 | W14: 105.7658588 | X14: 88.18398199 | Y14: 86.6450589 | Z14: 85.03786427 | AA14: 83.35355427 | AB14: 81.58401386 | AC14: 0 | AD14: 0 | AE14: 0 | AF14: 0 | AG14: 0 | AH14: 0 | AI14: 0 | AJ14: 0 | AK14: 0 | AL14: 0 | AM14: 0 | AN14: 0 | AO14: 0 | AP14: 0 | AQ14: 0
B15: Closing Balance | C15: =C13+C14 -> 0 | D15: 5.200541457 | E15: 20.86060217 | F15: 41.66523634 | G15: 67.57173287 | H15: 98.55139354 | I15: 134.5654218 | J15: 175.5648029 | K15: 221.5141742 | L15: 272.3676935 | M15: 328.0688976 | N15: 388.5745493 | O15: 453.8304813 | P15: 579.4730257 | Q15: 703.9966192 | R15: 827.3372578 | S15: 949.4272766 | T15: 1070.19514 | U15: 1184.763301 | V15: 1292.091422 | W15: 1397.857281 | X15: 1486.041263 | Y15: 1572.686322 | Z15: 1657.724186 | AA15: 1741.07774 | AB15: 1822.661754 | AC15: 0 | AD15: 0 | AE15: 0 | AF15: 0 | AG15: 0 | AH15: 0 | AI15: 0 | AJ15: 0 | AK15: 0 | AL15: 0 | AM15: 0 | AN15: 0 | AO15: 0 | AP15: 0 | AQ15: 0

Sheet Balance Sheet
K2: Balance Sheet (Rs Lacs)
B3: ='Form Input'!C9 -> Life of Plant and Machinery / Project Life | C3: ='Form Input'!D9 -> 25 | D3: ='Form Input'!E9 -> years
B5: Assets | C5: 0 | D5: =C5+1 -> 1 | E5: =D5+1 -> 2 | F5: 3 | G5: 4 | H5: 5 | I5: 6 | J5: 7 | K5: 8 | L5: 9 | M5: 10 | N5: 11 | O5: 12 | P5: 13 | Q5: 14 | R5: 15 | S5: 16 | T5: 17 | U5: 18 | V5: 19 | W5: 20 | X5: 21 | Y5: 22 | Z5: 23 | AA5: 24 | AB5: 25 | AC5: 26 | AD5: 27 | AE5: 28 | AF5: 29 | AG5: 30 | AH5: 31 | AI5: 32 | AJ5: 33 | AK5: 34 | AL5: 35 | AM5: 36 | AN5: 37 | AO5: 38 | AP5: 39 | AQ5: 40
B6: Gross fixed assets | D6: ='Form Input'!D10*'Form Input'!D3 -> 1000 | E6: =IF(E5<=$C$3,+D8,0) -> 973.6 | F6: =IF(F5<=$C$3,+E8,0) -> 920.8 | G6: 868 | H6: 815.2 | I6: 762.4 | J6: 709.6 | K6: 656.8 | L6: 604 | M6: 551.2 | N6: 498.4 | O6: 445.6 | P6: 392.8 | Q6: 340 | R6: 287.2 | S6: 234.4 | T6: 181.6 | U6: 128.8 | V6: 100 | W6: 100 | X6: 100 | Y6: 100 | Z6: 100 | AA6: 100 | AB6: 100 | AC6: 0 | AD6: 0 | AE6: 0 | AF6: 0 | AG6: 0 | AH6: 0 | AI6: 0 | AJ6: 0 | AK6: 0 | AL6: 0 | AM6: 0 | AN6: 0 | AO6: 0 | AP6: 0 | AQ6: 0
B7: Less: Book Depreciation | D7: =Depreciation!C21 -> 26.4 | E7: =Depreciation!D21 -> 52.8 | F7: =Depreciation!E21 -> 52.8 | G7: =Depreciation!F21 -> 52.8 | H7: =Depreciation!G21 -> 52.8 | I7: =Depreciation!H21 -> 52.8 | J7: =Depreciation!I21 -> 52.8 | K7: =Depreciation!J21 -> 52.8 | L7: =Depreciation!K21 -> 52.8 | M7: =Depreciation!L21 -> 52.8 | N7: =Depreciation!M21 -> 52.8 | O7: =Depreciation!N21 -> 52.8 | P7: =Depreciation!O21 -> 52.8 | Q7: =Depreciation!P21 -> 52.8 | R7: =Depreciation!Q21 -> 52.8 | S7: =Depreciation!R21 -> 52.8 | T7: =Depreciation!S21 -> 52.8 | U7: =Depreciation!T21 -> 28.8 | V7: =Depreciation!U21 -> 0 | W7: =Depreciation!V21 -> 0 | X7: =Depreciation!W21 -> 0 | Y7: =Depreciation!X21 -> 0 | Z7: =Depreciation!Y21 -> 0 | AA7: =Depreciation!Z21 -> 0 | AB7: =Depreciation!AA21 -> 0 | AC7: =Depreciation!AB21 -> 0 | AD7: =Depreciation!AC21 -> 0 | AE7: =Depreciation!AD21 -> 0 | AF7: =Depreciation!AE21 -> 0 | AG7: =Depreciation!AF21 -> 0 | AH7: =Depreciation!AG21 -> 0 | AI7: =Depreciation!AH21 -> 0 | AJ7: =Depreciation!AI21 -> 0 | AK7: =Depreciation!AJ21 -> 0 | AL7: =Depreciation!AK21 -> 0 | AM7: =Depreciation!AL21 -> 0 | AN7: =Depreciation!AM21 -> 0 | AO7: =Depreciation!AN21 -> 0 | AP7: =Depreciation!AO21 -> 0 | AQ7: =Depreciation!AP21 -> 0
B8: Net fixed assets | D8: =+D6-D7 -> 973.6 | E8: =+E6-E7 -> 920.8 | F8: 868 | G8: 815.2 | H8: 762.4 | I8: 709.6 | J8: 656.8 | K8: 604 | L8: 551.2 | M8: 498.4 | N8: 445.6 | O8: 392.8 | P8: 340 | Q8: 287.2 | R8: 234.4 | S8: 181.6 | T8: 128.8 | U8: 100 | V8: 100 | W8: 100 | X8: 100 | Y8: 100 | Z8: 100 | AA8: 100 | AB8: 100 | AC8: 0 | AD8: 0 | AE8: 0 | AF8: 0 | AG8: 0 | AH8: 0 | AI8: 0 | AJ8: 0 | AK8: 0 | AL8: 0 | AM8: 0 | AN8: 0 | AO8: 0 | AP8: 0 | AQ8: 0
B9: Cash flow from operations | D9: ='Profit Loss'!C33-'Profit Loss'!C43 -> 63.53387479 | E9: ='Profit Loss'!D33-'Profit Loss'!D43 -> 73.99339405 | F9: ='Profit Loss'!E33-'Profit Loss'!E43 -> 79.1379675 | G9: ='Profit Loss'!F33-'Profit Loss'!F43 -> 84.23982986 | H9: ='Profit Loss'!G33-'Profit Loss'!G43 -> 89.312994 | I9: ='Profit Loss'!H33-'Profit Loss'!H43 -> 94.34736163 | J9: ='Profit Loss'!I33-'Profit Loss'!I43 -> 99.33271439 | K9: ='Profit Loss'!J33-'Profit Loss'!J43 -> 104.2827046 | L9: ='Profit Loss'!K33-'Profit Loss'!K43 -> 109.1868527 | M9: ='Profit Loss'!L33-'Profit Loss'!L43 -> 114.0345374 | N9: ='Profit Loss'!M33-'Profit Loss'!M43 -> 118.838985 | O9: ='Profit Loss'!N33-'Profit Loss'!N43 -> 123.5892654 | P9: ='Profit Loss'!O33-'Profit Loss'!O43 -> 125.6425444 | Q9: ='Profit Loss'!P33-'Profit Loss'!P43 -> 124.5235935 | R9: ='Profit Loss'!Q33-'Profit Loss'!Q43 -> 123.3406386 | S9: ='Profit Loss'!R33-'Profit Loss'!R43 -> 122.0900188 | T9: ='Profit Loss'!S33-'Profit Loss'!S43 -> 120.7678634 | U9: ='Profit Loss'!T33-'Profit Loss'!T43 -> 114.5681608 | V9: ='Profit Loss'!U33-'Profit Loss'!U43 -> 107.328121 | W9: ='Profit Loss'!V33-'Profit Loss'!V43 -> 105.7658588 | X9: ='Profit Loss'!W33-'Profit Loss'!W43 -> 88.18398199 | Y9: ='Profit Loss'!X33-'Profit Loss'!X43 -> 86.6450589 | Z9: ='Profit Loss'!Y33-'Profit Loss'!Y43 -> 85.03786427 | AA9: ='Profit Loss'!Z33-'Profit Loss'!Z43 -> 83.35355427 | AB9: ='Profit Loss'!AA33-'Profit Loss'!AA43 -> 81.58401386 | AC9: ='Profit Loss'!AB33-'Profit Loss'!AB43 -> 0 | AD9: ='Profit Loss'!AC33-'Profit Loss'!AC43 -> 0 | AE9: ='Profit Loss'!AD33-'Profit Loss'!AD43 -> 0 | AF9: ='Profit Loss'!AE33-'Profit Loss'!AE43 -> 0 | AG9: ='Profit Loss'!AF33-'Profit Loss'!AF43 -> 0 | AH9: ='Profit Loss'!AG33-'Profit Loss'!AG43 -> 0 | AI9: ='Profit Loss'!AH33-'Profit Loss'!AH43 -> 0 | AJ9: ='Profit Loss'!AI33-'Profit Loss'!AI43 -> 0 | AK9: ='Profit Loss'!AJ33-'Profit Loss'!AJ43 -> 0 | AL9: ='Profit Loss'!AK33-'Profit Loss'!AK43 -> 0 | AM9: ='Profit Loss'!AL33-'Profit Loss'!AL43 -> 0 | AN9: ='Profit Loss'!AM33-'Profit Loss'!AM43 -> 0 | AO9: ='Profit Loss'!AN33-'Profit Loss'!AN43 -> 0 | AP9: ='Profit Loss'!AO33-'Profit Loss'!AO43 -> 0 | AQ9: ='Profit Loss'!AP33-'Profit Loss'!AP43 -> 0
B10: Principal payment | D10: ='Term Loan'!C24 -> 58.33333333 | E10: ='Term Loan'!D24 -> 58.33333333 | F10: ='Term Loan'!E24 -> 58.33333333 | G10: ='Term Loan'!F24 -> 58.33333333 | H10: ='Term Loan'!G24 -> 58.33333333 | I10: ='Term Loan'!H24 -> 58.33333333 | J10: ='Term Loan'!I24 -> 58.33333333 | K10: ='Term Loan'!J24 -> 58.33333333 | L10: ='Term Loan'!K24 -> 58.33333333 | M10: ='Term Loan'!L24 -> 58.33333333 | N10: ='Term Loan'!M24 -> 58.33333333 | O10: ='Term Loan'!N24 -> 58.33333333 | P10: ='Term Loan'!O24 -> 0 | Q10: ='Term Loan'!P24 -> 0 | R10: ='Term Loan'!Q24 -> 0 | S10: ='Term Loan'!R24 -> 0 | T10: ='Term Loan'!S24 -> 0 | U10: ='Term Loan'!T24 -> 0 | V10: ='Term Loan'!U24 -> 0 | W10: ='Term Loan'!V24 -> 0 | X10: ='Term Loan'!W24 -> 0 | Y10: ='Term Loan'!X24 -> 0 | Z10: ='Term Loan'!Y24 -> 0 | AA10: ='Term Loan'!Z24 -> 0 | AB10: ='Term Loan'!AA24 -> 0 | AC10: ='Term Loan'!AB24 -> 0 | AD10: ='Term Loan'!AC24 -> 0 | AE10: ='Term Loan'!AD24 -> 0 | AF10: ='Term Loan'!AE24 -> 0 | AG10: ='Term Loan'!AF24 -> 0 | AH10: ='Term Loan'!AG24 -> 0 | AI10: ='Term Loan'!AH24 -> 0 | AJ10: ='Term Loan'!AI24 -> 0 | AK10: ='Term Loan'!AJ24 -> 0 | AL10: ='Term Loan'!AK24 -> 0 | AM10: ='Term Loan'!AL24 -> 0 | AN10: ='Term Loan'!AM24 -> 0 | AO10: ='Term Loan'!AN24 -> 0 | AP10: ='Term Loan'!AO24 -> 0 | AQ10: ='Term Loan'!AP24 -> 0
B11: Cash and Equivalent | D11: =IF(D5<=$C$3,D9-D10+C11,0) -> 5.200541457 | E11: =IF(E5<=$C$3,E9-E10+D11,0) -> 20.86060217 | F11: 41.66523634 | G11: 67.57173287 | H11: 98.55139354 | I11: 134.5654218 | J11: 175.5648029 | K11: 221.5141742 | L11: 272.3676935 | M11: 328.0688976 | N11: 388.5745493 | O11: 453.8304813 | P11: 579.4730257 | Q11: 703.9966192 | R11: 827.3372578 | S11: 949.4272766 | T11: 1070.19514 | U11: 1184.763301 | V11: 1292.091422 | W11: 1397.857281 | X11: 1486.041263 | Y11: 1572.686322 | Z11: 1657.724186 | AA11: 1741.07774 | AB11: 1822.661754 | AC11: 0 | AD11: 0 | AE11: 0 | AF11: 0 | AG11: 0 | AH11: 0 | AI11: 0 | AJ11: 0 | AK11: 0 | AL11: 0 | AM11: 0 | AN11: 0 | AO11: 0 | AP11: 0 | AQ11: 0
B12: Total assets | D12: =D11+D8 -> 978.8005415 | E12: =E11+E8 -> 941.6606022 | F12: 909.6652363 | G12: 882.7717329 | H12: 860.9513935 | I12: 844.1654218 | J12: 832.3648029 | K12: 825.5141742 | L12: 823.5676935 | M12: 826.4688976 | N12: 834.1745493 | O12: 846.6304813 | P12: 919.4730257 | Q12: 991.1966192 | R12: 1061.737258 | S12: 1131.027277 | T12: 1198.99514 | U12: 1284.763301 | V12: 1392.091422 | W12: 1497.857281 | X12: 1586.041263 | Y12: 1672.686322 | Z12: 1757.724186 | AA12: 1841.07774 | AB12: 1922.661754 | AC12: 0 | AD12: 0 | AE12: 0 | AF12: 0 | AG12: 0 | AH12: 0 | AI12: 0 | AJ12: 0 | AK12: 0 | AL12: 0 | AM12: 0 | AN12: 0 | AO12: 0 | AP12: 0 | AQ12: 0
B14: Liabilities | C14: 0 | D14: =C14+1 -> 1 | E14: =D14+1 -> 2 | F14: 3 | G14: 4 | H14: 5 | I14: 6 | J14: 7 | K14: 8 | L14: 9 | M14: 10 | N14: 11 | O14: 12 | P14: 13 | Q14: 14 | R14: 15 | S14: 16 | T14: 17 | U14: 18 | V14: 19 | W14: 20 | X14: 21 | Y14: 22 | Z14: 23 | AA14: 24 | AB14: 25 | AC14: 26 | AD14: 27 | AE14: 28 | AF14: 29 | AG14: 30 | AH14: 31 | AI14: 32 | AJ14: 33 | AK14: 34 | AL14: 35 | AM14: 36 | AN14: 37 | AO14: 38 | AP14: 39 | AQ14: 40
B15: Equity share capital | C15: ='Form Input'!D15 -> 300 | D15: =IF(D5<=$C$3,C15+'Cash Flows'!D7,0) -> 300 | E15: =IF(E5<=$C$3,D15+'Cash Flows'!E7,0) -> 300 | F15: =IF(F5<=$C$3,E15+'Cash Flows'!F7,0) -> 300 | G15: =IF(G5<=$C$3,F15+'Cash Flows'!G7,0) -> 300 | H15: =IF(H5<=$C$3,G15+'Cash Flows'!H7,0) -> 300 | I15: =IF(I5<=$C$3,H15+'Cash Flows'!I7,0) -> 300 | J15: =IF(J5<=$C$3,I15+'Cash Flows'!J7,0) -> 300 | K15: =IF(K5<=$C$3,J15+'Cash Flows'!K7,0) -> 300 | L15: =IF(L5<=$C$3,K15+'Cash Flows'!L7,0) -> 300 | M15: =IF(M5<=$C$3,L15+'Cash Flows'!M7,0) -> 300 | N15: =IF(N5<=$C$3,M15+'Cash Flows'!N7,0) -> 300 | O15: =IF(O5<=$C$3,N15+'Cash Flows'!O7,0) -> 300 | P15: =IF(P5<=$C$3,O15+'Cash Flows'!P7,0) -> 300 | Q15: =IF(Q5<=$C$3,P15+'Cash Flows'!Q7,0) -> 300 | R15: =IF(R5<=$C$3,Q15+'Cash Flows'!R7,0) -> 300 | S15: =IF(S5<=$C$3,R15+'Cash Flows'!S7,0) -> 300 | T15: =IF(T5<=$C$3,S15+'Cash Flows'!T7,0) -> 300 | U15: =IF(U5<=$C$3,T15+'Cash Flows'!U7,0) -> 300 | V15: =IF(V5<=$C$3,U15+'Cash Flows'!V7,0) -> 300 | W15: =IF(W5<=$C$3,V15+'Cash Flows'!W7,0) -> 300 | X15: =IF(X5<=$C$3,W15+'Cash Flows'!X7,0) -> 300 | Y15: =IF(Y5<=$C$3,X15+'Cash Flows'!Y7,0) -> 300 | Z15: =IF(Z5<=$C$3,Y15+'Cash Flows'!Z7,0) -> 300 | AA15: =IF(AA5<=$C$3,Z15+'Cash Flows'!AA7,0) -> 300 | AB15: =IF(AB5<=$C$3,AA15+'Cash Flows'!AB7,0) -> 300 | AC15: =IF(AC5<=$C$3,AB15+'Cash Flows'!AC7,0) -> 0 | AD15: =IF(AD5<=$C$3,AC15+'Cash Flows'!AD7,0) -> 0 | AE15: =IF(AE5<=$C$3,AD15+'Cash Flows'!AE7,0) -> 0 | AF15: =IF(AF5<=$C$3,AE15+'Cash Flows'!AF7,0) -> 0 | AG15: =IF(AG5<=$C$3,AF15+'Cash Flows'!AG7,0) -> 0 | AH15: =IF(AH5<=$C$3,AG15+'Cash Flows'!AH7,0) -> 0 | AI15: =IF(AI5<=$C$3,AH15+'Cash Flows'!AI7,0) -> 0 | AJ15: =IF(AJ5<=$C$3,AI15+'Cash Flows'!AJ7,0) -> 0 | AK15: =IF(AK5<=$C$3,AJ15+'Cash Flows'!AK7,0) -> 0 | AL15: =IF(AL5<=$C$3,AK15+'Cash Flows'!AL7,0) -> 0 | AM15: =IF(AM5<=$C$3,AL15+'Cash Flows'!AM7,0) -> 0 | AN15: =IF(AN5<=$C$3,AM15+'Cash Flows'!AN7,0) -> 0 | AO15: =IF(AO5<=$C$3,AN15+'Cash Flows'!AO7,0) -> 0 | AP15: =IF(AP5<=$C$3,AO15+'Cash Flows'!AP7,0) -> 0 | AQ15: =IF(AQ5<=$C$3,AP15+'Cash Flows'!AQ7,0) -> 0
B16: PAT for the year | D16: ='Profit Loss'!C28 -> 37.13387479 | E16: ='Profit Loss'!D28 -> 21.19339405 | F16: ='Profit Loss'!E28 -> 26.3379675 | G16: ='Profit Loss'!F28 -> 31.43982986 | H16: ='Profit Loss'!G28 -> 36.512994 | I16: ='Profit Loss'!H28 -> 41.54736163 | J16: ='Profit Loss'!I28 -> 46.53271439 | K16: ='Profit Loss'!J28 -> 51.48270459 | L16: ='Profit Loss'!K28 -> 56.38685272 | M16: ='Profit Loss'!L28 -> 61.23453743 | N16: ='Profit Loss'!M28 -> 66.03898496 | O16: ='Profit Loss'!N28 -> 70.7892654 | P16: ='Profit Loss'!O28 -> 72.84254437 | Q16: ='Profit Loss'!P28 -> 71.7235935 | R16: ='Profit Loss'!Q28 -> 70.54063864 | S16: ='Profit Loss'!R28 -> 69.29001876 | T16: ='Profit Loss'!S28 -> 67.96786343 | U16: ='Profit Loss'!T28 -> 85.76816081 | V16: ='Profit Loss'!U28 -> 107.328121 | W16: ='Profit Loss'!V28 -> 105.7658588 | X16: ='Profit Loss'!W28 -> 88.18398199 | Y16: ='Profit Loss'!X28 -> 86.6450589 | Z16: ='Profit Loss'!Y28 -> 85.03786427 | AA16: ='Profit Loss'!Z28 -> 83.35355427 | AB16: ='Profit Loss'!AA28 -> 81.58401386 | AC16: ='Profit Loss'!AB28 -> 0 | AD16: ='Profit Loss'!AC28 -> 0 | AE16: ='Profit Loss'!AD28 -> 0 | AF16: ='Profit Loss'!AE28 -> 0 | AG16: ='Profit Loss'!AF28 -> 0 | AH16: ='Profit Loss'!AG28 -> 0 | AI16: ='Profit Loss'!AH28 -> 0 | AJ16: ='Profit Loss'!AI28 -> 0 | AK16: ='Profit Loss'!AJ28 -> 0 | AL16: ='Profit Loss'!AK28 -> 0 | AM16: ='Profit Loss'!AL28 -> 0 | AN16: ='Profit Loss'!AM28 -> 0 | AO16: ='Profit Loss'!AN28 -> 0 | AP16: ='Profit Loss'!AO28 -> 0 | AQ16: ='Profit Loss'!AP28 -> 0
B17: Reserves and surplus | D17: =IF(D5<=$C$3,D16+C17,0) -> 37.13387479 | E17: =IF(E5<=$C$3,E16+D17,0) -> 58.32726884 | F17: 84.66523634 | G17: 116.1050662 | H17: 152.6180602 | I17: 194.1654218 | J17: 240.6981362 | K17: 292.1808408 | L17: 348.5676935 | M17: 409.802231 | N17: 475.8412159 | O17: 546.6304813 | P17: 619.4730257 | Q17: 691.1966192 | R17: 761.7372578 | S17: 831.0272766 | T17: 898.99514 | U17: 984.7633009 | V17: 1092.091422 | W17: 1197.857281 | X17: 1286.041263 | Y17: 1372.686322 | Z17: 1457.724186 | AA17: 1541.07774 | AB17: 1622.661754 | AC17: 0 | AD17: 0 | AE17: 0 | AF17: 0 | AG17: 0 | AH17: 0 | AI17: 0 | AJ17: 0 | AK17: 0 | AL17: 0 | AM17: 0 | AN17: 0 | AO17: 0 | AP17: 0 | AQ17: 0
B18: Networth | C18: =C15+C17 -> 300 | D18: =D15+D17 -> 337.1338748 | E18: 358.3272688 | F18: 384.6652363 | G18: 416.1050662 | H18: 452.6180602 | I18: 494.1654218 | J18: 540.6981362 | K18: 592.1808408 | L18: 648.5676935 | M18: 709.802231 | N18: 775.8412159 | O18: 846.6304813 | P18: 919.4730257 | Q18: 991.1966192 | R18: 1061.737258 | S18: 1131.027277 | T18: 1198.99514 | U18: 1284.763301 | V18: 1392.091422 | W18: 1497.857281 | X18: 1586.041263 | Y18: 1672.686322 | Z18: 1757.724186 | AA18: 1841.07774 | AB18: 1922.661754 | AC18: 0 | AD18: 0 | AE18: 0 | AF18: 0 | AG18: 0 | AH18: 0 | AI18: 0 | AJ18: 0 | AK18: 0 | AL18: 0 | AM18: 0 | AN18: 0 | AO18: 0 | AP18: 0 | AQ18: 0
B19: Rupee debt | C19: ='Form Input'!D14 -> 700 | D19: =C19-'Term Loan'!C24 -> 641.6666667 | E19: =D19-'Term Loan'!D24 -> 583.3333333 | F19: =E19-'Term Loan'!E24 -> 525 | G19: =F19-'Term Loan'!F24 -> 466.6666667 | H19: =G19-'Term Loan'!G24 -> 408.3333333 | I19: =H19-'Term Loan'!H24 -> 350 | J19: =I19-'Term Loan'!I24 -> 291.6666667 | K19: =J19-'Term Loan'!J24 -> 233.3333333 | L19: =K19-'Term Loan'!K24 -> 175 | M19: =L19-'Term Loan'!L24 -> 116.6666667 | N19: =M19-'Term Loan'!M24 -> 58.33333333 | O19: =N19-'Term Loan'!N24 -> -3.126388037e-13 | P19: =O19-'Term Loan'!O24 -> -3.126388037e-13 | Q19: =P19-'Term Loan'!P24 -> -3.126388037e-13 | R19: =Q19-'Term Loan'!Q24 -> -3.126388037e-13 | S19: =R19-'Term Loan'!R24 -> -3.126388037e-13 | T19: =S19-'Term Loan'!S24 -> -3.126388037e-13 | U19: =T19-'Term Loan'!T24 -> -3.126388037e-13 | V19: =U19-'Term Loan'!U24 -> -3.126388037e-13 | W19: =V19-'Term Loan'!V24 -> -3.126388037e-13 | X19: =W19-'Term Loan'!W24 -> -3.126388037e-13 | Y19: =X19-'Term Loan'!X24 -> -3.126388037e-13 | Z19: =Y19-'Term Loan'!Y24 -> -3.126388037e-13 | AA19: =Z19-'Term Loan'!Z24 -> -3.126388037e-13 | AB19: =AA19-'Term Loan'!AA24 -> -3.126388037e-13 | AC19: =AB19-'Term Loan'!AB24 -> -3.126388037e-13 | AD19: =AC19-'Term Loan'!AC24 -> -3.126388037e-13 | AE19: =AD19-'Term Loan'!AD24 -> -3.126388037e-13 | AF19: =AE19-'Term Loan'!AE24 -> -3.126388037e-13 | AG19: =AF19-'Term Loan'!AF24 -> -3.126388037e-13 | AH19: =AG19-'Term Loan'!AG24 -> -3.126388037e-13 | AI19: =AH19-'Term Loan'!AH24 -> -3.126388037e-13 | AJ19: =AI19-'Term Loan'!AI24 -> -3.126388037e-13 | AK19: =AJ19-'Term Loan'!AJ24 -> -3.126388037e-13 | AL19: =AK19-'Term Loan'!AK24 -> -3.126388037e-13 | AM19: =AL19-'Term Loan'!AL24 -> -3.126388037e-13 | AN19: =AM19-'Term Loan'!AM24 -> -3.126388037e-13 | AO19: =AN19-'Term Loan'!AN24 -> -3.126388037e-13 | AP19: =AO19-'Term Loan'!AO24 -> -3.126388037e-13 | AQ19: =AP19-'Term Loan'!AP24 -> -3.126388037e-13
B20: Total liabilities | C20: =+SUM(C18:C19) -> 1000 | D20: =+SUM(D18:D19) -> 978.8005415 | E20: 941.6606022 | F20: 909.6652363 | G20: 882.7717329 | H20: 860.9513935 | I20: 844.1654218 | J20: 832.3648029 | K20: 825.5141742 | L20: 823.5676935 | M20: 826.4688976 | N20: 834.1745493 | O20: 846.6304813 | P20: 919.4730257 | Q20: 991.1966192 | R20: 1061.737258 | S20: 1131.027277 | T20: 1198.99514 | U20: 1284.763301 | V20: 1392.091422 | W20: 1497.857281 | X20: 1586.041263 | Y20: 1672.686322 | Z20: 1757.724186 | AA20: 1841.07774 | AB20: 1922.661754 | AC20: -3.126388037e-13 | AD20: -3.126388037e-13 | AE20: -3.126388037e-13 | AF20: -3.126388037e-13 | AG20: -3.126388037e-13 | AH20: -3.126388037e-13 | AI20: -3.126388037e-13 | AJ20: -3.126388037e-13 | AK20: -3.126388037e-13 | AL20: -3.126388037e-13 | AM20: -3.126388037e-13 | AN20: -3.126388037e-13 | AO20: -3.126388037e-13 | AP20: -3.126388037e-13 | AQ20: -3.126388037e-13
B22: Check | D22: =+D12-D20 -> 0 | E22: =+E12-E20 -> 0 | F22: 0 | G22: 0 | H22: 0 | I22: 0 | J22: 0 | K22: 0 | L22: 0 | M22: 0 | N22: 0 | O22: 0 | P22: 0 | Q22: 0 | R22: 0 | S22: 0 | T22: 0 | U22: 0 | V22: 0 | W22: 0 | X22: 0 | Y22: 0 | Z22: 0 | AA22: 0 | AB22: 0 | AC22: 3.126388037e-13 | AD22: 3.126388037e-13 | AE22: 3.126388037e-13 | AF22: 3.126388037e-13 | AG22: 3.126388037e-13 | AH22: 3.126388037e-13 | AI22: 3.126388037e-13 | AJ22: 3.126388037e-13 | AK22: 3.126388037e-13 | AL22: 3.126388037e-13 | AM22: 3.126388037e-13 | AN22: 3.126388037e-13 | AO22: 3.126388037e-13 | AP22: 3.126388037e-13 | AQ22: 3.126388037e-13

Sheet IRR
G2: IRR Analysis
B3: User Inputs | C3: Value | D3: Units
B4: ='Form Input'!C9 -> Life of Plant and Machinery / Project Life | C4: ='Form Input'!D9 -> 25 | D4: ='Form Input'!E9 -> years
B5: ='Form Input'!C16 -> Interest Rate on Term Loan | C5: ='Form Input'!D16 -> 0.1232 | D5: ='Form Input'!E16 -> %
B6: Re-investment ROR-IRR ratio (for MIRR) | C6: 0.8 | D6: %
B8: Project IRR-Pre Tax | C8: Year 0 | D8: 1 | E8: =D8+1 -> 2 | F8: =E8+1 -> 3 | G8: 4 | H8: 5 | I8: 6 | J8: 7 | K8: 8 | L8: 9 | M8: 10 | N8: 11 | O8: 12 | P8: 13 | Q8: 14 | R8: 15 | S8: 16 | T8: 17 | U8: 18 | V8: 19 | W8: 20 | X8: 21 | Y8: 22 | Z8: 23 | AA8: 24 | AB8: 25 | AC8: 26 | AD8: 27 | AE8: 28 | AF8: 29 | AG8: 30 | AH8: 31 | AI8: 32 | AJ8: 33 | AK8: 34 | AL8: 35 | AM8: 36 | AN8: 37 | AO8: 38 | AP8: 39 | AQ8: 40
B9: Profit Before Tax (PBT) | D9: ='Profit Loss'!C27 -> 46.42198569 | E9: ='Profit Loss'!D27 -> 26.494392 | F9: ='Profit Loss'!E27 -> 32.92575195 | G9: ='Profit Loss'!F27 -> 39.3037177 | H9: ='Profit Loss'!G27 -> 45.64580708 | I9: ='Profit Loss'!H27 -> 51.93939598 | J9: ='Profit Loss'!I27 -> 58.17171016 | K9: ='Profit Loss'!J27 -> 64.35981672 | L9: ='Profit Loss'!K27 -> 70.49061497 | M9: ='Profit Loss'!L27 -> 76.55082687 | N9: ='Profit Loss'!M27 -> 82.5569869 | O9: ='Profit Loss'!N27 -> 88.49543129 | P9: ='Profit Loss'!O27 -> 91.06228669 | Q9: ='Profit Loss'!P27 -> 89.66345822 | R9: ='Profit Loss'!Q27 -> 88.18461676 | S9: ='Profit Loss'!R27 -> 86.62118557 | T9: ='Profit Loss'!S27 -> 84.96832612 | U9: ='Profit Loss'!T27 -> 107.2209231 | V9: ='Profit Loss'!U27 -> 134.1735686 | W9: ='Profit Loss'!V27 -> 132.2205455 | X9: ='Profit Loss'!W27 -> 130.1558094 | Y9: ='Profit Loss'!X27 -> 127.9729705 | Z9: ='Profit Loss'!Y27 -> 125.6652731 | AA9: ='Profit Loss'!Z27 -> 123.2255755 | AB9: ='Profit Loss'!AA27 -> 120.6463271 | AC9: ='Profit Loss'!AB27 -> 0 | AD9: ='Profit Loss'!AC27 -> 0 | AE9: ='Profit Loss'!AD27 -> 0 | AF9: ='Profit Loss'!AE27 -> 0 | AG9: ='Profit Loss'!AF27 -> 0 | AH9: ='Profit Loss'!AG27 -> 0 | AI9: ='Profit Loss'!AH27 -> 0 | AJ9: ='Profit Loss'!AI27 -> 0 | AK9: ='Profit Loss'!AJ27 -> 0 | AL9: ='Profit Loss'!AK27 -> 0 | AM9: ='Profit Loss'!AL27 -> 0 | AN9: ='Profit Loss'!AM27 -> 0 | AO9: ='Profit Loss'!AN27 -> 0 | AP9: ='Profit Loss'!AO27 -> 0 | AQ9: ='Profit Loss'!AP27 -> 0
B10: Add Book Depreciation | D10: =Depreciation!C21 -> 26.4 | E10: =Depreciation!D21 -> 52.8 | F10: =Depreciation!E21 -> 52.8 | G10: =Depreciation!F21 -> 52.8 | H10: =Depreciation!G21 -> 52.8 | I10: =Depreciation!H21 -> 52.8 | J10: =Depreciation!I21 -> 52.8 | K10: =Depreciation!J21 -> 52.8 | L10: =Depreciation!K21 -> 52.8 | M10: =Depreciation!L21 -> 52.8 | N10: =Depreciation!M21 -> 52.8 | O10: =Depreciation!N21 -> 52.8 | P10: =Depreciation!O21 -> 52.8 | Q10: =Depreciation!P21 -> 52.8 | R10: =Depreciation!Q21 -> 52.8 | S10: =Depreciation!R21 -> 52.8 | T10: =Depreciation!S21 -> 52.8 | U10: =Depreciation!T21 -> 28.8 | V10: =Depreciation!U21 -> 0 | W10: =Depreciation!V21 -> 0 | X10: =Depreciation!W21 -> 0 | Y10: =Depreciation!X21 -> 0 | Z10: =Depreciation!Y21 -> 0 | AA10: =Depreciation!Z21 -> 0 | AB10: =Depreciation!AA21 -> 0 | AC10: =Depreciation!AB21 -> 0 | AD10: =Depreciation!AC21 -> 0 | AE10: =Depreciation!AD21 -> 0 | AF10: =Depreciation!AE21 -> 0 | AG10: =Depreciation!AF21 -> 0 | AH10: =Depreciation!AG21 -> 0 | AI10: =Depreciation!AH21 -> 0 | AJ10: =Depreciation!AI21 -> 0 | AK10: =Depreciation!AJ21 -> 0 | AL10: =Depreciation!AK21 -> 0 | AM10: =Depreciation!AL21 -> 0 | AN10: =Depreciation!AM21 -> 0 | AO10: =Depreciation!AN21 -> 0 | AP10: =Depreciation!AO21 -> 0 | AQ10: =Depreciation!AP21 -> 0
B11: Cashflow from operations (available for repayment) | D11: =+D9+D10 -> 72.82198569 | E11: =+E9+E10 -> 79.294392 | F11: 85.72575195 | G11: 92.1037177 | H11: 98.44580708 | I11: 104.739396 | J11: 110.9717102 | K11: 117.1598167 | L11: 123.290615 | M11: 129.3508269 | N11: 135.3569869 | O11: 141.2954313 | P11: 143.8622867 | Q11: 142.4634582 | R11: 140.9846168 | S11: 139.4211856 | T11: 137.7683261 | U11: 136.0209231 | V11: 134.1735686 | W11: 132.2205455 | X11: 130.1558094 | Y11: 127.9729705 | Z11: 125.6652731 | AA11: 123.2255755 | AB11: 120.6463271 | AC11: 0 | AD11: 0 | AE11: 0 | AF11: 0 | AG11: 0 | AH11: 0 | AI11: 0 | AJ11: 0 | AK11: 0 | AL11: 0 | AM11: 0 | AN11: 0 | AO11: 0 | AP11: 0 | AQ11: 0
B12: Add Interest | D12: ='Term Loan'!C52 -> 82.95 | E12: ='Term Loan'!D52 -> 75.76 | F12: ='Term Loan'!E52 -> 68.57 | G12: ='Term Loan'!F52 -> 61.39 | H12: ='Term Loan'!G52 -> 54.2 | I12: ='Term Loan'!H52 -> 47.01 | J12: ='Term Loan'!I52 -> 39.83 | K12: ='Term Loan'!J52 -> 32.64 | L12: ='Term Loan'!K52 -> 25.45 | M12: ='Term Loan'!L52 -> 18.27 | N12: ='Term Loan'!M52 -> 11.08 | O12: ='Term Loan'!N52 -> 3.89 | P12: ='Term Loan'!O52 -> 0 | Q12: ='Term Loan'!P52 -> 0 | R12: ='Term Loan'!Q52 -> 0 | S12: ='Term Loan'!R52 -> 0 | T12: ='Term Loan'!S52 -> 0 | U12: ='Term Loan'!T52 -> 0 | V12: ='Term Loan'!U52 -> 0 | W12: ='Term Loan'!V52 -> 0 | X12: ='Term Loan'!W52 -> 0 | Y12: ='Term Loan'!X52 -> 0 | Z12: ='Term Loan'!Y52 -> 0 | AA12: ='Term Loan'!Z52 -> 0 | AB12: ='Term Loan'!AA52 -> 0 | AC12: ='Term Loan'!AB52 -> 0 | AD12: ='Term Loan'!AC52 -> 0 | AE12: ='Term Loan'!AD52 -> 0 | AF12: ='Term Loan'!AE52 -> 0 | AG12: ='Term Loan'!AF52 -> 0 | AH12: ='Term Loan'!AG52 -> 0 | AI12: ='Term Loan'!AH52 -> 0 | AJ12: ='Term Loan'!AI52 -> 0 | AK12: ='Term Loan'!AJ52 -> 0 | AL12: ='Term Loan'!AK52 -> 0 | AM12: ='Term Loan'!AL52 -> 0 | AN12: ='Term Loan'!AM52 -> 0 | AO12: ='Term Loan'!AN52 -> 0 | AP12: ='Term Loan'!AO52 -> 0 | AQ12: ='Term Loan'!AP52 -> 0
B13: Total Inflow-Cashflow before debt service | D13: =+D11+D12 -> 155.7719857 | E13: 155.054392 | F13: 154.295752 | G13: 153.4937177 | H13: 152.6458071 | I13: 151.749396 | J13: 150.8017102 | K13: 149.7998167 | L13: 148.740615 | M13: 147.6208269 | N13: 146.4369869 | O13: 145.1854313 | P13: 143.8622867 | Q13: 142.4634582 | R13: 140.9846168 | S13: 139.4211856 | T13: 137.7683261 | U13: 136.0209231 | V13: 134.1735686 | W13: 132.2205455 | X13: 130.1558094 | Y13: 127.9729705 | Z13: 125.6652731 | AA13: 123.2255755 | AB13: 120.6463271 | AC13: 0 | AD13: 0 | AE13: 0 | AF13: 0 | AG13: 0 | AH13: 0 | AI13: 0 | AJ13: 0 | AK13: 0 | AL13: 0 | AM13: 0 | AN13: 0 | AO13: 0 | AP13: 0 | AQ13: 0
B14: Total Outflow-Capex | C14: ='Form Input'!D10*'Form Input'!D3 -> 1000
B15: Net flow (Pre-Tax) | C15: =+C13-C14 -> -1000 | D15: =+D13-D14 -> 155.7719857 | E15: 155.054392 | F15: 154.295752 | G15: 153.4937177 | H15: 152.6458071 | I15: 151.749396 | J15: 150.8017102 | K15: 149.7998167 | L15: 148.740615 | M15: 147.6208269 | N15: 146.4369869 | O15: 145.1854313 | P15: 143.8622867 | Q15: 142.4634582 | R15: 140.9846168 | S15: 139.4211856 | T15: 137.7683261 | U15: 136.0209231 | V15: 134.1735686 | W15: 132.2205455 | X15: 130.1558094 | Y15: 127.9729705 | Z15: 125.6652731 | AA15: 123.2255755 | AB15: 120.6463271 | AC15: 0 | AD15: 0 | AE15: 0 | AF15: 0 | AG15: 0 | AH15: 0 | AI15: 0 | AJ15: 0 | AK15: 0 | AL15: 0 | AM15: 0 | AN15: 0 | AO15: 0 | AP15: 0 | AQ15: 0
B16: =B8 -> Project IRR-Pre Tax | C16: =+IRR(C15:AQ15) -> 0.144669173
B17: MIRR-Pre Tax (25 years) | C17: =MIRR($C$15:$AB$15, $C$5, $C$16*$C$6) -> 0.1239623835
B19: Project IRR- Post Tax-Without Tax Shelter | C19: 0 | D19: =C19+1 -> 1 | E19: =D19+1 -> 2 | F19: 3 | G19: 4 | H19: 5 | I19: 6 | J19: 7 | K19: 8 | L19: 9 | M19: 10 | N19: 11 | O19: 12 | P19: 13 | Q19: 14 | R19: 15 | S19: 16 | T19: 17 | U19: 18 | V19: 19 | W19: 20 | X19: 21 | Y19: 22 | Z19: 23 | AA19: 24 | AB19: 25 | AC19: 26 | AD19: 27 | AE19: 28 | AF19: 29 | AG19: 30 | AH19: 31 | AI19: 32 | AJ19: 33 | AK19: 34 | AL19: 35 | AM19: 36 | AN19: 37 | AO19: 38 | AP19: 39 | AQ19: 40
B20: Profit After Tax (PAT) | D20: ='Profit Loss'!C28 -> 37.13387479 | E20: ='Profit Loss'!D28 -> 21.19339405 | F20: ='Profit Loss'!E28 -> 26.3379675 | G20: ='Profit Loss'!F28 -> 31.43982986 | H20: ='Profit Loss'!G28 -> 36.512994 | I20: ='Profit Loss'!H28 -> 41.54736163 | J20: ='Profit Loss'!I28 -> 46.53271439 | K20: ='Profit Loss'!J28 -> 51.48270459 | L20: ='Profit Loss'!K28 -> 56.38685272 | M20: ='Profit Loss'!L28 -> 61.23453743 | N20: ='Profit Loss'!M28 -> 66.03898496 | O20: ='Profit Loss'!N28 -> 70.7892654 | P20: ='Profit Loss'!O28 -> 72.84254437 | Q20: ='Profit Loss'!P28 -> 71.7235935 | R20: ='Profit Loss'!Q28 -> 70.54063864 | S20: ='Profit Loss'!R28 -> 69.29001876 | T20: ='Profit Loss'!S28 -> 67.96786343 | U20: ='Profit Loss'!T28 -> 85.76816081 | V20: ='Profit Loss'!U28 -> 107.328121 | W20: ='Profit Loss'!V28 -> 105.7658588 | X20: ='Profit Loss'!W28 -> 88.18398199 | Y20: ='Profit Loss'!X28 -> 86.6450589 | Z20: ='Profit Loss'!Y28 -> 85.03786427 | AA20: ='Profit Loss'!Z28 -> 83.35355427 | AB20: ='Profit Loss'!AA28 -> 81.58401386 | AC20: ='Profit Loss'!AB28 -> 0 | AD20: ='Profit Loss'!AC28 -> 0 | AE20: ='Profit Loss'!AD28 -> 0 | AF20: ='Profit Loss'!AE28 -> 0 | AG20: ='Profit Loss'!AF28 -> 0 | AH20: ='Profit Loss'!AG28 -> 0 | AI20: ='Profit Loss'!AH28 -> 0 | AJ20: ='Profit Loss'!AI28 -> 0 | AK20: ='Profit Loss'!AJ28 -> 0 | AL20: ='Profit Loss'!AK28 -> 0 | AM20: ='Profit Loss'!AL28 -> 0 | AN20: ='Profit Loss'!AM28 -> 0 | AO20: ='Profit Loss'!AN28 -> 0 | AP20: ='Profit Loss'!AO28 -> 0 | AQ20: ='Profit Loss'!AP28 -> 0
B21: Add Book Depreciation | D21: =D10 -> 26.4 | E21: =E10 -> 52.8 | F21: 52.8 | G21: 52.8 | H21: 52.8 | I21: 52.8 | J21: 52.8 | K21: 52.8 | L21: 52.8 | M21: 52.8 | N21: 52.8 | O21: 52.8 | P21: 52.8 | Q21: 52.8 | R21: 52.8 | S21: 52.8 | T21: 52.8 | U21: 28.8 | V21: 0 | W21: 0 | X21: 0 | Y21: 0 | Z21: 0 | AA21: 0 | AB21: 0 | AC21: 0 | AD21: 0 | AE21: 0 | AF21: 0 | AG21: 0 | AH21: 0 | AI21: 0 | AJ21: 0 | AK21: 0 | AL21: 0 | AM21: 0 | AN21: 0 | AO21: 0 | AP21: 0 | AQ21: 0
B22: Cashflow from operations-Post tax (avlbl for repayment) | D22: =+D20+D21 -> 63.53387479 | E22: 73.99339405 | F22: 79.1379675 | G22: 84.23982986 | H22: 89.312994 | I22: 94.34736163 | J22: 99.33271439 | K22: 104.2827046 | L22: 109.1868527 | M22: 114.0345374 | N22: 118.838985 | O22: 123.5892654 | P22: 125.6425444 | Q22: 124.5235935 | R22: 123.3406386 | S22: 122.0900188 | T22: 120.7678634 | U22: 114.5681608 | V22: 107.328121 | W22: 105.7658588 | X22: 88.18398199 | Y22: 86.6450589 | Z22: 85.03786427 | AA22: 83.35355427 | AB22: 81.58401386 | AC22: 0 | AD22: 0 | AE22: 0 | AF22: 0 | AG22: 0 | AH22: 0 | AI22: 0 | AJ22: 0 | AK22: 0 | AL22: 0 | AM22: 0 | AN22: 0 | AO22: 0 | AP22: 0 | AQ22: 0
B23: Add Interest payments | D23: =D12 -> 82.95 | E23: =E12 -> 75.76 | F23: 68.57 | G23: 61.39 | H23: 54.2 | I23: 47.01 | J23: 39.83 | K23: 32.64 | L23: 25.45 | M23: 18.27 | N23: 11.08 | O23: 3.89 | P23: 0 | Q23: 0 | R23: 0 | S23: 0 | T23: 0 | U23: 0 | V23: 0 | W23: 0 | X23: 0 | Y23: 0 | Z23: 0 | AA23: 0 | AB23: 0 | AC23: 0 | AD23: 0 | AE23: 0 | AF23: 0 | AG23: 0 | AH23: 0 | AI23: 0 | AJ23: 0 | AK23: 0 | AL23: 0 | AM23: 0 | AN23: 0 | AO23: 0 | AP23: 0 | AQ23: 0
B24: Total Inflow-Cashflow before debt service | D24: =+D22+D23 -> 146.4838748 | E24: 149.753394 | F24: 147.7079675 | G24: 145.6298299 | H24: 143.512994 | I24: 141.3573616 | J24: 139.1627144 | K24: 136.9227046 | L24: 134.6368527 | M24: 132.3045374 | N24: 129.918985 | O24: 127.4792654 | P24: 125.6425444 | Q24: 124.5235935 | R24: 123.3406386 | S24: 122.0900188 | T24: 120.7678634 | U24: 114.5681608 | V24: 107.328121 | W24: 105.7658588 | X24: 88.18398199 | Y24: 86.6450589 | Z24: 85.03786427 | AA24: 83.35355427 | AB24: 81.58401386 | AC24: 0 | AD24: 0 | AE24: 0 | AF24: 0 | AG24: 0 | AH24: 0 | AI24: 0 | AJ24: 0 | AK24: 0 | AL24: 0 | AM24: 0 | AN24: 0 | AO24: 0 | AP24: 0 | AQ24: 0
B25: Total Outflow-Capex | C25: =C14 -> 1000
B26: Net Flow (Post Tax) | C26: =C24-C25 -> -1000 | D26: =D24-D25 -> 146.4838748 | E26: 149.753394 | F26: 147.7079675 | G26: 145.6298299 | H26: 143.512994 | I26: 141.3573616 | J26: 139.1627144 | K26: 136.9227046 | L26: 134.6368527 | M26: 132.3045374 | N26: 129.918985 | O26: 127.4792654 | P26: 125.6425444 | Q26: 124.5235935 | R26: 123.3406386 | S26: 122.0900188 | T26: 120.7678634 | U26: 114.5681608 | V26: 107.328121 | W26: 105.7658588 | X26: 88.18398199 | Y26: 86.6450589 | Z26: 85.03786427 | AA26: 83.35355427 | AB26: 81.58401386 | AC26: 0 | AD26: 0 | AE26: 0 | AF26: 0 | AG26: 0 | AH26: 0 | AI26: 0 | AJ26: 0 | AK26: 0 | AL26: 0 | AM26: 0 | AN26: 0 | AO26: 0 | AP26: 0 | AQ26: 0
B27: =B19 -> Project IRR- Post Tax-Without Tax Shelter | C27: =+IRR(C26:AQ26) -> 0.1301387863
B28: NPV of Net Flow without Tax Shelter | C28: =NPV('Form Input'!D23,IRR!D26:AQ26)+C26 -> 165.499486
B29: MIRR-Post Tax-Without Tax Shelter (25 years) | C29: =MIRR($C$26:$AB$26, $C$5, $C$27*$C$6) -> 0.1115476263
B31: Project IRR- Post Tax- With Tax Shelter | C31: 0 | D31: =C31+1 -> 1 | E31: =D31+1 -> 2 | F31: 3 | G31: 4 | H31: 5 | I31: 6 | J31: 7 | K31: 8 | L31: 9 | M31: 10 | N31: 11 | O31: 12 | P31: 13 | Q31: 14 | R31: 15 | S31: 16 | T31: 17 | U31: 18 | V31: 19 | W31: 20 | X31: 21 | Y31: 22 | Z31: 23 | AA31: 24 | AB31: 25 | AC31: 26 | AD31: 27 | AE31: 28 | AF31: 29 | AG31: 30 | AH31: 31 | AI31: 32 | AJ31: 33 | AK31: 34 | AL31: 35 | AM31: 36 | AN31: 37 | AO31: 38 | AP31: 39 | AQ31: 40
B32: Net Flow (Post Tax) | C32: =C26 -> -1000 | D32: =D26 -> 146.4838748 | E32: 149.753394 | F32: 147.7079675 | G32: 145.6298299 | H32: 143.512994 | I32: 141.3573616 | J32: 139.1627144 | K32: 136.9227046 | L32: 134.6368527 | M32: 132.3045374 | N32: 129.918985 | O32: 127.4792654 | P32: 125.6425444 | Q32: 124.5235935 | R32: 123.3406386 | S32: 122.0900188 | T32: 120.7678634 | U32: 114.5681608 | V32: 107.328121 | W32: 105.7658588 | X32: 88.18398199 | Y32: 86.6450589 | Z32: 85.03786427 | AA32: 83.35355427 | AB32: 81.58401386 | AC32: 0 | AD32: 0 | AE32: 0 | AF32: 0 | AG32: 0 | AH32: 0 | AI32: 0 | AJ32: 0 | AK32: 0 | AL32: 0 | AM32: 0 | AN32: 0 | AO32: 0 | AP32: 0 | AQ32: 0
B33: Add- Tax shelter (Acc Dep) | D33: =Depreciation!C28 -> 121.21452 | E33: =Depreciation!D28 -> 138.60504 | F33: =Depreciation!E28 -> 14.01624 | G33: =Depreciation!F28 -> -10.90152 | H33: =Depreciation!G28 -> -15.885072 | I33: =Depreciation!H28 -> -16.8817824 | J33: =Depreciation!I28 -> -17.08112448 | K33: =Depreciation!J28 -> -17.1209929 | L33: =Depreciation!K28 -> -17.12896658 | M33: =Depreciation!L28 -> -17.13056132 | N33: =Depreciation!M28 -> -17.13088026 | O33: =Depreciation!N28 -> -17.13094405 | P33: =Depreciation!O28 -> -17.13095681 | Q33: =Depreciation!P28 -> -17.13095936 | R33: =Depreciation!Q28 -> -17.13095987 | S33: =Depreciation!R28 -> -17.13095997 | T33: =Depreciation!S28 -> -17.13095999 | U33: =Depreciation!T28 -> -9.344159999 | V33: =Depreciation!U28 -> 2.041401876e-10 | W33: =Depreciation!V28 -> 4.083984095e-11 | X33: =Depreciation!W28 -> 8.173869901e-12 | Y33: =Depreciation!X28 -> 1.622970558e-12 | Z33: =Depreciation!Y28 -> 3.245941116e-13 | AA33: =Depreciation!Z28 -> 5.90171112e-14 | AB33: =Depreciation!AA28 -> 0 | AC33: =Depreciation!AB28 -> 0 | AD33: =Depreciation!AC28 -> 0 | AE33: =Depreciation!AD28 -> 0 | AF33: =Depreciation!AE28 -> 0 | AG33: =Depreciation!AF28 -> 0 | AH33: =Depreciation!AG28 -> 0 | AI33: =Depreciation!AH28 -> 0 | AJ33: =Depreciation!AI28 -> 0 | AK33: =Depreciation!AJ28 -> 0 | AL33: =Depreciation!AK28 -> 0 | AM33: =Depreciation!AL28 -> 0 | AN33: =Depreciation!AM28 -> 0 | AO33: =Depreciation!AN28 -> 0 | AP33: =Depreciation!AO28 -> 0 | AQ33: =Depreciation!AP28 -> 0
B34: Net flows adjusted for tax saving | C34: =+C32+C33 -> -1000 | D34: =+D32+D33 -> 267.6983948 | E34: 288.358434 | F34: 161.7242075 | G34: 134.7283099 | H34: 127.627922 | I34: 124.4755792 | J34: 122.0815899 | K34: 119.8017117 | L34: 117.5078861 | M34: 115.1739761 | N34: 112.7881047 | O34: 110.3483213 | P34: 108.5115876 | Q34: 107.3926341 | R34: 106.2096788 | S34: 104.9590588 | T34: 103.6369034 | U34: 105.2240008 | V34: 107.328121 | W34: 105.7658588 | X34: 88.18398199 | Y34: 86.6450589 | Z34: 85.03786427 | AA34: 83.35355427 | AB34: 81.58401386 | AC34: 0 | AD34: 0 | AE34: 0 | AF34: 0 | AG34: 0 | AH34: 0 | AI34: 0 | AJ34: 0 | AK34: 0 | AL34: 0 | AM34: 0 | AN34: 0 | AO34: 0 | AP34: 0 | AQ34: 0
B35: =B31 -> Project IRR- Post Tax- With Tax Shelter | C35: =+IRR(C34:AQ34) -> 0.1610551863
B36: NPV of Net Flow with Tax Shelter | C36: =NPV('Form Input'!D23,IRR!D34:AQ34)+C34 -> 312.1225406
B37: MIRR-Post Tax-With Tax Shelter (25 years) | C37: =MIRR($C$34:$AB$34, $C$5, $C$35*$C$6) -> 0.1356403491
B39: Equity IRR | C39: 0 | D39: =C39+1 -> 1 | E39: =D39+1 -> 2 | F39: 3 | G39: 4 | H39: 5 | I39: 6 | J39: 7 | K39: 8 | L39: 9 | M39: 10 | N39: 11 | O39: 12 | P39: 13 | Q39: 14 | R39: 15 | S39: 16 | T39: 17 | U39: 18 | V39: 19 | W39: 20 | X39: 21 | Y39: 22 | Z39: 23 | AA39: 24 | AB39: 25 | AC39: 26 | AD39: 27 | AE39: 28 | AF39: 29 | AG39: 30 | AH39: 31 | AI39: 32 | AJ39: 33 | AK39: 34 | AL39: 35 | AM39: 36 | AN39: 37 | AO39: 38 | AP39: 39 | AQ39: 40
B40: Equity Outflow | C40: =-'Form Input'!D15 -> -300
B41: Cashflow available for repayment | C41: =C22 -> 0 | D41: =D22 -> 63.53387479 | E41: 73.99339405 | F41: 79.1379675 | G41: 84.23982986 | H41: 89.312994 | I41: 94.34736163 | J41: 99.33271439 | K41: 104.2827046 | L41: 109.1868527 | M41: 114.0345374 | N41: 118.838985 | O41: 123.5892654 | P41: 125.6425444 | Q41: 124.5235935 | R41: 123.3406386 | S41: 122.0900188 | T41: 120.7678634 | U41: 114.5681608 | V41: 107.328121 | W41: 105.7658588 | X41: 88.18398199 | Y41: 86.6450589 | Z41: 85.03786427 | AA41: 83.35355427 | AB41: 81.58401386 | AC41: 0 | AD41: 0 | AE41: 0 | AF41: 0 | AG41: 0 | AH41: 0 | AI41: 0 | AJ41: 0 | AK41: 0 | AL41: 0 | AM41: 0 | AN41: 0 | AO41: 0 | AP41: 0 | AQ41: 0
B42: Capital repayments | D42: ='Term Loan'!C24 -> 58.33333333 | E42: ='Term Loan'!D24 -> 58.33333333 | F42: ='Term Loan'!E24 -> 58.33333333 | G42: ='Term Loan'!F24 -> 58.33333333 | H42: ='Term Loan'!G24 -> 58.33333333 | I42: ='Term Loan'!H24 -> 58.33333333 | J42: ='Term Loan'!I24 -> 58.33333333 | K42: ='Term Loan'!J24 -> 58.33333333 | L42: ='Term Loan'!K24 -> 58.33333333 | M42: ='Term Loan'!L24 -> 58.33333333 | N42: ='Term Loan'!M24 -> 58.33333333 | O42: ='Term Loan'!N24 -> 58.33333333 | P42: ='Term Loan'!O24 -> 0 | Q42: ='Term Loan'!P24 -> 0 | R42: ='Term Loan'!Q24 -> 0 | S42: ='Term Loan'!R24 -> 0 | T42: ='Term Loan'!S24 -> 0 | U42: ='Term Loan'!T24 -> 0 | V42: ='Term Loan'!U24 -> 0 | W42: ='Term Loan'!V24 -> 0 | X42: ='Term Loan'!W24 -> 0 | Y42: ='Term Loan'!X24 -> 0 | Z42: ='Term Loan'!Y24 -> 0 | AA42: ='Term Loan'!Z24 -> 0 | AB42: ='Term Loan'!AA24 -> 0 | AC42: ='Term Loan'!AB24 -> 0 | AD42: ='Term Loan'!AC24 -> 0 | AE42: ='Term Loan'!AD24 -> 0 | AF42: ='Term Loan'!AE24 -> 0 | AG42: ='Term Loan'!AF24 -> 0 | AH42: ='Term Loan'!AG24 -> 0 | AI42: ='Term Loan'!AH24 -> 0 | AJ42: ='Term Loan'!AI24 -> 0 | AK42: ='Term Loan'!AJ24 -> 0 | AL42: ='Term Loan'!AK24 -> 0 | AM42: ='Term Loan'!AL24 -> 0 | AN42: ='Term Loan'!AM24 -> 0 | AO42: ='Term Loan'!AN24 -> 0 | AP42: ='Term Loan'!AO24 -> 0 | AQ42: ='Term Loan'!AP24 -> 0
B43: Inflow | C43: =+C41-C42 -> 0 | D43: =+D41-D42 -> 5.200541457 | E43: 15.66006071 | F43: 20.80463417 | G43: 25.90649653 | H43: 30.97966067 | I43: 36.0140283 | J43: 40.99938106 | K43: 45.94937126 | L43: 50.85351939 | M43: 55.7012041 | N43: 60.50565163 | O43: 65.25593206 | P43: 125.6425444 | Q43: 124.5235935 | R43: 123.3406386 | S43: 122.0900188 | T43: 120.7678634 | U43: 114.5681608 | V43: 107.328121 | W43: 105.7658588 | X43: 88.18398199 | Y43: 86.6450589 | Z43: 85.03786427 | AA43: 83.35355427 | AB43: 81.58401386 | AC43: 0 | AD43: 0 | AE43: 0 | AF43: 0 | AG43: 0 | AH43: 0 | AI43: 0 | AJ43: 0 | AK43: 0 | AL43: 0 | AM43: 0 | AN43: 0 | AO43: 0 | AP43: 0 | AQ43: 0
B44: Net Flow | C44: =+C40+C43 -> -300 | D44: =+D40+D43 -> 5.200541457 | E44: 15.66006071 | F44: 20.80463417 | G44: 25.90649653 | H44: 30.97966067 | I44: 36.0140283 | J44: 40.99938106 | K44: 45.94937126 | L44: 50.85351939 | M44: 55.7012041 | N44: 60.50565163 | O44: 65.25593206 | P44: 125.6425444 | Q44: 124.5235935 | R44: 123.3406386 | S44: 122.0900188 | T44: 120.7678634 | U44: 114.5681608 | V44: 107.328121 | W44: 105.7658588 | X44: 88.18398199 | Y44: 86.6450589 | Z44: 85.03786427 | AA44: 83.35355427 | AB44: 81.58401386 | AC44: 0 | AD44: 0 | AE44: 0 | AF44: 0 | AG44: 0 | AH44: 0 | AI44: 0 | AJ44: 0 | AK44: 0 | AL44: 0 | AM44: 0 | AN44: 0 | AO44: 0 | AP44: 0 | AQ44: 0
B45: Equity IRR (Post Tax) | C45: =+IRR(C44:AQ44) -> 0.1421144158
B46: NPV @ Interest Rate | C46: =NPV('Form Input'!D23,IRR!D44:AQ44)+C44 -> 137.1368147
B47: Equity MIRR (Post Tax - 25 years) | C47: =MIRR($C$44:$AB$44, $C$5, $C$45*$C$6) -> 0.1268867602
B49: Equity IRR (Post Tax)- With Tax Shelter | C49: 0 | D49: =C49+1 -> 1 | E49: =D49+1 -> 2 | F49: 3 | G49: 4 | H49: 5 | I49: 6 | J49: 7 | K49: 8 | L49: 9 | M49: 10 | N49: 11 | O49: 12 | P49: 13 | Q49: 14 | R49: 15 | S49: 16 | T49: 17 | U49: 18 | V49: 19 | W49: 20 | X49: 21 | Y49: 22 | Z49: 23 | AA49: 24 | AB49: 25 | AC49: 26 | AD49: 27 | AE49: 28 | AF49: 29 | AG49: 30 | AH49: 31 | AI49: 32 | AJ49: 33 | AK49: 34 | AL49: 35 | AM49: 36 | AN49: 37 | AO49: 38 | AP49: 39 | AQ49: 40
B50: Net Flows adjusted for tax saving | C50: =+C44+C33 -> -300 | D50: 126.4150615 | E50: 154.2651007 | F50: 34.82087417 | G50: 15.00497653 | H50: 15.09458867 | I50: 19.1322459 | J50: 23.91825658 | K50: 28.82837836 | L50: 33.72455281 | M50: 38.57064278 | N50: 43.37477137 | O50: 48.12498801 | P50: 108.5115876 | Q50: 107.3926341 | R50: 106.2096788 | S50: 104.9590588 | T50: 103.6369034 | U50: 105.2240008 | V50: 107.328121 | W50: 105.7658588 | X50: 88.18398199 | Y50: 86.6450589 | Z50: 85.03786427 | AA50: 83.35355427 | AB50: 81.58401386 | AC50: 0 | AD50: 0 | AE50: 0 | AF50: 0 | AG50: 0 | AH50: 0 | AI50: 0 | AJ50: 0 | AK50: 0 | AL50: 0 | AM50: 0 | AN50: 0 | AO50: 0 | AP50: 0 | AQ50: 0
B51: =B49 -> Equity IRR (Post Tax)- With Tax Shelter | C51: =+IRR(C50:AQ50) -> 0.2355062624
B52: NPV @ Interest Rate | C52: =NPV('Form Input'!D23,IRR!D50:AQ50)+C50 -> 283.7598693
B53: Equity MIRR (Post Tax)- With Tax Shelter (25 yrs) | C53: =MIRR($C$50:$AB$50, $C$5, $C$51*$C$6) -> 0.1970494843

Sheet Profit Loss AD
G2: Profit Loss Statement in Accelerated Depreciation Scenario
B3: User Inputs | C3: Value | D3: Units
B4: ='Form Input'!C15 -> Equity | C4: ='Form Input'!D15 -> 300 | D4: ='Form Input'!E15 -> lacs
B5: ='Form Input'!C9 -> Life of Plant and Machinery / Project Life | C5: ='Form Input'!D9 -> 25 | D5: ='Form Input'!E9 -> years
B6: ='Form Input'!C32 -> Corporate Tax Rate | C6: ='Form Input'!D32 -> 0.32445 | D6: ='Form Input'!E32 -> %
B7: ='Form Input'!C33 -> MAT | C7: ='Form Input'!D33 -> 0.20008 | D7: ='Form Input'!E33 -> %
B8: ='Form Input'!C40 -> Tax Holiday Start Year | C8: ='Form Input'!D40 -> 6 | D8: ='Form Input'!E40 -> year
B9: ='Form Input'!C39 -> Tax Holiday Duration | C9: ='Form Input'!D39 -> 10 | D9: ='Form Input'!E39 -> years
B10: ='Form Input'!C43 -> MAT Setoff Start Year | C10: ='Form Input'!D43 -> 16 | D10: ='Form Input'!E43 -> year
B11: ='Form Input'!C41 -> MAT set off accumulation allowed u/s 115JAA (3A) | C11: ='Form Input'!D41 -> 10 | D11: ='Form Input'!E41 -> years
B12: ='Form Input'!C42 -> MAT Setoff Duration | C12: ='Form Input'!D42 -> 5 | D12: ='Form Input'!E42 -> years
B15: Year | C15: 1 | D15: =C15+1 -> 2 | E15: =D15+1 -> 3 | F15: 4 | G15: 5 | H15: 6 | I15: 7 | J15: 8 | K15: 9 | L15: 10 | M15: 11 | N15: 12 | O15: 13 | P15: 14 | Q15: 15 | R15: 16 | S15: 17 | T15: 18 | U15: 19 | V15: 20 | W15: 21 | X15: 22 | Y15: 23 | Z15: 24 | AA15: 25 | AB15: 26 | AC15: 27 | AD15: 28 | AE15: 29 | AF15: 30 | AG15: 31 | AH15: 32 | AI15: 33 | AJ15: 34 | AK15: 35 | AL15: 36 | AM15: 37 | AN15: 38 | AO15: 39 | AP15: 40
B16: Net Energy sold (lakh kWhs) | C16: =Tariff!C15 -> 16.644 | D16: =Tariff!D15 -> 16.644 | E16: =Tariff!E15 -> 16.644 | F16: =Tariff!F15 -> 16.644 | G16: =Tariff!G15 -> 16.644 | H16: =Tariff!H15 -> 16.644 | I16: =Tariff!I15 -> 16.644 | J16: =Tariff!J15 -> 16.644 | K16: =Tariff!K15 -> 16.644 | L16: =Tariff!L15 -> 16.644 | M16: =Tariff!M15 -> 16.644 | N16: =Tariff!N15 -> 16.644 | O16: =Tariff!O15 -> 16.644 | P16: =Tariff!P15 -> 16.644 | Q16: =Tariff!Q15 -> 16.644 | R16: =Tariff!R15 -> 16.644 | S16: =Tariff!S15 -> 16.644 | T16: =Tariff!T15 -> 16.644 | U16: =Tariff!U15 -> 16.644 | V16: =Tariff!V15 -> 16.644 | W16: =Tariff!W15 -> 16.644 | X16: =Tariff!X15 -> 16.644 | Y16: =Tariff!Y15 -> 16.644 | Z16: =Tariff!Z15 -> 16.644 | AA16: =Tariff!AA15 -> 16.644 | AB16: =Tariff!AB15 -> 0 | AC16: =Tariff!AC15 -> 0 | AD16: =Tariff!AD15 -> 0 | AE16: =Tariff!AE15 -> 0 | AF16: =Tariff!AF15 -> 0 | AG16: =Tariff!AG15 -> 0 | AH16: =Tariff!AH15 -> 0 | AI16: =Tariff!AI15 -> 0 | AJ16: =Tariff!AJ15 -> 0 | AK16: =Tariff!AK15 -> 0 | AL16: =Tariff!AL15 -> 0 | AM16: =Tariff!AM15 -> 0 | AN16: =Tariff!AN15 -> 0 | AO16: =Tariff!AO15 -> 0 | AP16: =Tariff!AP15 -> 0
B17: Tariff (Rs/kWh) | C17: =IF(C15<=$C$5,'Summary Results'!$J$6,0) -> 9.31593581 | D17: =IF(D15<=$C$5,'Summary Results'!$J$6,0) -> 9.31593581 | E17: =IF(E15<=$C$5,'Summary Results'!$J$6,0) -> 9.31593581 | F17: =IF(F15<=$C$5,'Summary Results'!$J$6,0) -> 9.31593581 | G17: =IF(G15<=$C$5,'Summary Results'!$J$6,0) -> 9.31593581 | H17: =IF(H15<=$C$5,'Summary Results'!$J$6,0) -> 9.31593581 | I17: =IF(I15<=$C$5,'Summary Results'!$J$6,0) -> 9.31593581 | J17: =IF(J15<=$C$5,'Summary Results'!$J$6,0) -> 9.31593581 | K17: =IF(K15<=$C$5,'Summary Results'!$J$6,0) -> 9.31593581 | L17: =IF(L15<=$C$5,'Summary Results'!$J$6,0) -> 9.31593581 | M17: =IF(M15<=$C$5,'Summary Results'!$J$6,0) -> 9.31593581 | N17: =IF(N15<=$C$5,'Summary Results'!$J$6,0) -> 9.31593581 | O17: =IF(O15<=$C$5,'Summary Results'!$J$6,0) -> 9.31593581 | P17: =IF(P15<=$C$5,'Summary Results'!$J$6,0) -> 9.31593581 | Q17: =IF(Q15<=$C$5,'Summary Results'!$J$6,0) -> 9.31593581 | R17: =IF(R15<=$C$5,'Summary Results'!$J$6,0) -> 9.31593581 | S17: =IF(S15<=$C$5,'Summary Results'!$J$6,0) -> 9.31593581 | T17: =IF(T15<=$C$5,'Summary Results'!$J$6,0) -> 9.31593581 | U17: =IF(U15<=$C$5,'Summary Results'!$J$6,0) -> 9.31593581 | V17: =IF(V15<=$C$5,'Summary Results'!$J$6,0) -> 9.31593581 | W17: =IF(W15<=$C$5,'Summary Results'!$J$6,0) -> 9.31593581 | X17: =IF(X15<=$C$5,'Summary Results'!$J$6,0) -> 9.31593581 | Y17: =IF(Y15<=$C$5,'Summary Results'!$J$6,0) -> 9.31593581 | Z17: =IF(Z15<=$C$5,'Summary Results'!$J$6,0) -> 9.31593581 | AA17: =IF(AA15<=$C$5,'Summary Results'!$J$6,0) -> 9.31593581 | AB17: =IF(AB15<=$C$5,'Summary Results'!$J$6,0) -> 0 | AC17: =IF(AC15<=$C$5,'Summary Results'!$J$6,0) -> 0 | AD17: =IF(AD15<=$C$5,'Summary Results'!$J$6,0) -> 0 | AE17: =IF(AE15<=$C$5,'Summary Results'!$J$6,0) -> 0 | AF17: =IF(AF15<=$C$5,'Summary Results'!$J$6,0) -> 0 | AG17: =IF(AG15<=$C$5,'Summary Results'!$J$6,0) -> 0 | AH17: =IF(AH15<=$C$5,'Summary Results'!$J$6,0) -> 0 | AI17: =IF(AI15<=$C$5,'Summary Results'!$J$6,0) -> 0 | AJ17: =IF(AJ15<=$C$5,'Summary Results'!$J$6,0) -> 0 | AK17: =IF(AK15<=$C$5,'Summary Results'!$J$6,0) -> 0 | AL17: =IF(AL15<=$C$5,'Summary Results'!$J$6,0) -> 0 | AM17: =IF(AM15<=$C$5,'Summary Results'!$J$6,0) -> 0 | AN17: =IF(AN15<=$C$5,'Summary Results'!$J$6,0) -> 0 | AO17: =IF(AO15<=$C$5,'Summary Results'!$J$6,0) -> 0 | AP17: =IF(AP15<=$C$5,'Summary Results'!$J$6,0) -> 0
B18: Income From Sale of Electricity (Lakhs) | C18: =C17*C16 -> 155.0544356 | D18: =D17*D16 -> 155.0544356 | E18: 155.0544356 | F18: 155.0544356 | G18: 155.0544356 | H18: 155.0544356 | I18: 155.0544356 | J18: 155.0544356 | K18: 155.0544356 | L18: 155.0544356 | M18: 155.0544356 | N18: 155.0544356 | O18: 155.0544356 | P18: 155.0544356 | Q18: 155.0544356 | R18: 155.0544356 | S18: 155.0544356 | T18: 155.0544356 | U18: 155.0544356 | V18: 155.0544356 | W18: 155.0544356 | X18: 155.0544356 | Y18: 155.0544356 | Z18: 155.0544356 | AA18: 155.0544356 | AB18: 0 | AC18: 0 | AD18: 0 | AE18: 0 | AF18: 0 | AG18: 0 | AH18: 0 | AI18: 0 | AJ18: 0 | AK18: 0 | AL18: 0 | AM18: 0 | AN18: 0 | AO18: 0 | AP18: 0
B19: Income from Carbon Market | C19: =Carbon!C19 -> 0 | D19: =Carbon!D19 -> 0 | E19: =Carbon!E19 -> 0 | F19: =Carbon!F19 -> 0 | G19: =Carbon!G19 -> 0 | H19: =Carbon!H19 -> 0 | I19: =Carbon!I19 -> 0 | J19: =Carbon!J19 -> 0 | K19: =Carbon!K19 -> 0 | L19: =Carbon!L19 -> 0 | M19: =Carbon!M19 -> 0 | N19: =Carbon!N19 -> 0 | O19: =Carbon!O19 -> 0 | P19: =Carbon!P19 -> 0 | Q19: =Carbon!Q19 -> 0 | R19: =Carbon!R19 -> 0 | S19: =Carbon!S19 -> 0 | T19: =Carbon!T19 -> 0 | U19: =Carbon!U19 -> 0 | V19: =Carbon!V19 -> 0 | W19: =Carbon!W19 -> 0 | X19: =Carbon!X19 -> 0 | Y19: =Carbon!Y19 -> 0 | Z19: =Carbon!Z19 -> 0 | AA19: =Carbon!AA19 -> 0 | AB19: =Carbon!AB19 -> 0 | AC19: =Carbon!AC19 -> 0 | AD19: =Carbon!AD19 -> 0 | AE19: =Carbon!AE19 -> 0 | AF19: =Carbon!AF19 -> 0 | AG19: =Carbon!AG19 -> 0 | AH19: =Carbon!AH19 -> 0 | AI19: =Carbon!AI19 -> 0 | AJ19: =Carbon!AJ19 -> 0 | AK19: =Carbon!AK19 -> 0 | AL19: =Carbon!AL19 -> 0 | AM19: =Carbon!AM19 -> 0 | AN19: =Carbon!AN19 -> 0 | AO19: =Carbon!AO19 -> 0 | AP19: =Carbon!AP19 -> 0
B20: Total Income | C20: =SUM(C18:C19) -> 155.0544356 | D20: =SUM(D18:D19) -> 155.0544356 | E20: 155.0544356 | F20: 155.0544356 | G20: 155.0544356 | H20: 155.0544356 | I20: 155.0544356 | J20: 155.0544356 | K20: 155.0544356 | L20: 155.0544356 | M20: 155.0544356 | N20: 155.0544356 | O20: 155.0544356 | P20: 155.0544356 | Q20: 155.0544356 | R20: 155.0544356 | S20: 155.0544356 | T20: 155.0544356 | U20: 155.0544356 | V20: 155.0544356 | W20: 155.0544356 | X20: 155.0544356 | Y20: 155.0544356 | Z20: 155.0544356 | AA20: 155.0544356 | AB20: 0 | AC20: 0 | AD20: 0 | AE20: 0 | AF20: 0 | AG20: 0 | AH20: 0 | AI20: 0 | AJ20: 0 | AK20: 0 | AL20: 0 | AM20: 0 | AN20: 0 | AO20: 0 | AP20: 0
B21: Fuel Cost | C21: =Tariff!C23 -> 0 | D21: =Tariff!D23 -> 0 | E21: =Tariff!E23 -> 0 | F21: =Tariff!F23 -> 0 | G21: =Tariff!G23 -> 0 | H21: =Tariff!H23 -> 0 | I21: =Tariff!I23 -> 0 | J21: =Tariff!J23 -> 0 | K21: =Tariff!K23 -> 0 | L21: =Tariff!L23 -> 0 | M21: =Tariff!M23 -> 0 | N21: =Tariff!N23 -> 0 | O21: =Tariff!O23 -> 0 | P21: =Tariff!P23 -> 0 | Q21: =Tariff!Q23 -> 0 | R21: =Tariff!R23 -> 0 | S21: =Tariff!S23 -> 0 | T21: =Tariff!T23 -> 0 | U21: =Tariff!U23 -> 0 | V21: =Tariff!V23 -> 0 | W21: =Tariff!W23 -> 0 | X21: =Tariff!X23 -> 0 | Y21: =Tariff!Y23 -> 0 | Z21: =Tariff!Z23 -> 0 | AA21: =Tariff!AA23 -> 0 | AB21: =Tariff!AB23 -> 0 | AC21: =Tariff!AC23 -> 0 | AD21: =Tariff!AD23 -> 0 | AE21: =Tariff!AE23 -> 0 | AF21: =Tariff!AF23 -> 0 | AG21: =Tariff!AG23 -> 0 | AH21: =Tariff!AH23 -> 0 | AI21: =Tariff!AI23 -> 0 | AJ21: =Tariff!AJ23 -> 0 | AK21: =Tariff!AK23 -> 0 | AL21: =Tariff!AL23 -> 0 | AM21: =Tariff!AM23 -> 0 | AN21: =Tariff!AN23 -> 0 | AO21: =Tariff!AO23 -> 0 | AP21: =Tariff!AP23 -> 0
B22: O&M + Insurance | C22: =Tariff!C17 -> 11 | D22: =Tariff!D17 -> 11.6292 | E22: =Tariff!E17 -> 12.29439024 | F22: =Tariff!F17 -> 12.99762936 | G22: =Tariff!G17 -> 13.74109376 | H22: =Tariff!H17 -> 14.52708432 | I22: =Tariff!I17 -> 15.35803355 | J22: =Tariff!J17 -> 16.23651307 | K22: =Tariff!K17 -> 17.16524161 | L22: =Tariff!L17 -> 18.14709343 | M22: =Tariff!M17 -> 19.18510718 | N22: =Tariff!N17 -> 20.28249531 | O22: =Tariff!O17 -> 21.44265404 | P22: =Tariff!P17 -> 22.66917385 | Q22: =Tariff!Q17 -> 23.9658506 | R22: =Tariff!R17 -> 25.33669725 | S22: =Tariff!S17 -> 26.78595633 | T22: =Tariff!T17 -> 28.31811304 | U22: =Tariff!U17 -> 29.9379091 | V22: =Tariff!V17 -> 31.6503575 | W22: =Tariff!W17 -> 33.46075795 | X22: =Tariff!X17 -> 35.37471331 | Y22: =Tariff!Y17 -> 37.39814691 | Z22: =Tariff!Z17 -> 39.53732091 | AA22: =Tariff!AA17 -> 41.79885567 | AB22: =Tariff!AB17 -> 0 | AC22: =Tariff!AC17 -> 0 | AD22: =Tariff!AD17 -> 0 | AE22: =Tariff!AE17 -> 0 | AF22: =Tariff!AF17 -> 0 | AG22: =Tariff!AG17 -> 0 | AH22: =Tariff!AH17 -> 0 | AI22: =Tariff!AI17 -> 0 | AJ22: =Tariff!AJ17 -> 0 | AK22: =Tariff!AK17 -> 0 | AL22: =Tariff!AL17 -> 0 | AM22: =Tariff!AM17 -> 0 | AN22: =Tariff!AN17 -> 0 | AO22: =Tariff!AO17 -> 0 | AP22: =Tariff!AP17 -> 0
B23: PBDIT | C23: =C20-C21-C22 -> 144.0544356 | D23: =D20-D21-D22 -> 143.4252356 | E23: 142.7600454 | F23: 142.0568063 | G23: 141.3133419 | H23: 140.5273513 | I23: 139.6964021 | J23: 138.8179226 | K23: 137.889194 | L23: 136.9073422 | M23: 135.8693284 | N23: 134.7719403 | O23: 133.6117816 | P23: 132.3852618 | Q23: 131.088585 | R23: 129.7177384 | S23: 128.2684793 | T23: 126.7363226 | U23: 125.1165265 | V23: 123.4040781 | W23: 121.5936777 | X23: 119.6797223 | Y23: 117.6562887 | Z23: 115.5171147 | AA23: 113.25558 | AB23: 0 | AC23: 0 | AD23: 0 | AE23: 0 | AF23: 0 | AG23: 0 | AH23: 0 | AI23: 0 | AJ23: 0 | AK23: 0 | AL23: 0 | AM23: 0 | AN23: 0 | AO23: 0 | AP23: 0
B24: Book Depreciation | C24: =Depreciation!C21 -> 26.4 | D24: =Depreciation!D21 -> 52.8 | E24: =Depreciation!E21 -> 52.8 | F24: =Depreciation!F21 -> 52.8 | G24: =Depreciation!G21 -> 52.8 | H24: =Depreciation!H21 -> 52.8 | I24: =Depreciation!I21 -> 52.8 | J24: =Depreciation!J21 -> 52.8 | K24: =Depreciation!K21 -> 52.8 | L24: =Depreciation!L21 -> 52.8 | M24: =Depreciation!M21 -> 52.8 | N24: =Depreciation!N21 -> 52.8 | O24: =Depreciation!O21 -> 52.8 | P24: =Depreciation!P21 -> 52.8 | Q24: =Depreciation!Q21 -> 52.8 | R24: =Depreciation!R21 -> 52.8 | S24: =Depreciation!S21 -> 52.8 | T24: =Depreciation!T21 -> 28.8 | U24: =Depreciation!U21 -> 0 | V24: =Depreciation!V21 -> 0 | W24: =Depreciation!W21 -> 0 | X24: =Depreciation!X21 -> 0 | Y24: =Depreciation!Y21 -> 0 | Z24: =Depreciation!Z21 -> 0 | AA24: =Depreciation!AA21 -> 0 | AB24: =Depreciation!AB21 -> 0 | AC24: =Depreciation!AC21 -> 0 | AD24: =Depreciation!AD21 -> 0 | AE24: =Depreciation!AE21 -> 0 | AF24: =Depreciation!AF21 -> 0 | AG24: =Depreciation!AG21 -> 0 | AH24: =Depreciation!AH21 -> 0 | AI24: =Depreciation!AI21 -> 0 | AJ24: =Depreciation!AJ21 -> 0 | AK24: =Depreciation!AK21 -> 0 | AL24: =Depreciation!AL21 -> 0 | AM24: =Depreciation!AM21 -> 0 | AN24: =Depreciation!AN21 -> 0 | AO24: =Depreciation!AO21 -> 0 | AP24: =Depreciation!AP21 -> 0
B25: PBIT | C25: =C23-C24 -> 117.6544356 | D25: =D23-D24 -> 90.62523562 | E25: 89.96004538 | F25: 89.25680626 | G25: 88.51334186 | H25: 87.7273513 | I25: 86.89640208 | J25: 86.01792256 | K25: 85.08919401 | L25: 84.10734219 | M25: 83.06932845 | N25: 81.97194031 | O25: 80.81178158 | P25: 79.58526177 | Q25: 78.28858503 | R25: 76.91773837 | S25: 75.46847929 | T25: 97.93632259 | U25: 125.1165265 | V25: 123.4040781 | W25: 121.5936777 | X25: 119.6797223 | Y25: 117.6562887 | Z25: 115.5171147 | AA25: 113.25558 | AB25: 0 | AC25: 0 | AD25: 0 | AE25: 0 | AF25: 0 | AG25: 0 | AH25: 0 | AI25: 0 | AJ25: 0 | AK25: 0 | AL25: 0 | AM25: 0 | AN25: 0 | AO25: 0 | AP25: 0
B26: Interest on term loan and working capital | C26: =Tariff!C19+Tariff!C20 -> 88.16896901 | D26: =Tariff!D19+Tariff!D20 -> 81.0673627 | E26: =Tariff!E19+Tariff!E20 -> 73.9708125 | F26: =Tariff!F19+Tariff!F20 -> 66.88960764 | G26: =Tariff!G19+Tariff!G20 -> 59.80405385 | H26: =Tariff!H19+Tariff!H20 -> 52.72447439 | I26: =Tariff!I19+Tariff!I20 -> 45.66121099 | J26: =Tariff!J19+Tariff!J20 -> 38.59462491 | K26: =Tariff!K19+Tariff!K20 -> 31.53509812 | L26: =Tariff!L19+Tariff!L20 -> 24.49303439 | M26: =Tariff!M19+Tariff!M20 -> 17.44886061 | N26: =Tariff!N19+Tariff!N20 -> 10.4130281 | O26: =Tariff!O19+Tariff!O20 -> 6.686013966 | P26: =Tariff!P19+Tariff!P20 -> 6.858322624 | Q26: =Tariff!Q19+Tariff!Q20 -> 7.040487337 | R26: =Tariff!R19+Tariff!R20 -> 7.233071871 | S26: =Tariff!S19+Tariff!S20 -> 7.436672241 | T26: =Tariff!T19+Tariff!T20 -> 7.651918552 | U26: =Tariff!U19+Tariff!U20 -> 7.879476952 | V26: =Tariff!V19+Tariff!V20 -> 8.120051693 | W26: =Tariff!W19+Tariff!W20 -> 8.374387309 | X26: =Tariff!X19+Tariff!X20 -> 8.643270922 | Y26: =Tariff!Y19+Tariff!Y20 -> 8.927534677 | Z26: =Tariff!Z19+Tariff!Z20 -> 9.22805832 | AA26: =Tariff!AA19+Tariff!AA20 -> 9.545771915 | AB26: =Tariff!AB19+Tariff!AB20 -> 0 | AC26: =Tariff!AC19+Tariff!AC20 -> 0 | AD26: =Tariff!AD19+Tariff!AD20 -> 0 | AE26: =Tariff!AE19+Tariff!AE20 -> 0 | AF26: =Tariff!AF19+Tariff!AF20 -> 0 | AG26: =Tariff!AG19+Tariff!AG20 -> 0 | AH26: =Tariff!AH19+Tariff!AH20 -> 0 | AI26: =Tariff!AI19+Tariff!AI20 -> 0 | AJ26: =Tariff!AJ19+Tariff!AJ20 -> 0 | AK26: =Tariff!AK19+Tariff!AK20 -> 0 | AL26: =Tariff!AL19+Tariff!AL20 -> 0 | AM26: =Tariff!AM19+Tariff!AM20 -> 0 | AN26: =Tariff!AN19+Tariff!AN20 -> 0 | AO26: =Tariff!AO19+Tariff!AO20 -> 0 | AP26: =Tariff!AP19+Tariff!AP20 -> 0
B27: PBT | C27: =C25-C26 -> 29.48546661 | D27: =D25-D26 -> 9.557872927 | E27: 15.98923288 | F27: 22.36719863 | G27: 28.70928801 | H27: 35.00287691 | I27: 41.23519109 | J27: 47.42329765 | K27: 53.55409589 | L27: 59.6143078 | M27: 65.62046783 | N27: 71.55891222 | O27: 74.12576762 | P27: 72.72693915 | Q27: 71.24809769 | R27: 69.6846665 | S27: 68.03180705 | T27: 90.28440404 | U27: 117.2370496 | V27: 115.2840264 | W27: 113.2192904 | X27: 111.0364514 | Y27: 108.728754 | Z27: 106.2890564 | AA27: 103.709808 | AB27: 0 | AC27: 0 | AD27: 0 | AE27: 0 | AF27: 0 | AG27: 0 | AH27: 0 | AI27: 0 | AJ27: 0 | AK27: 0 | AL27: 0 | AM27: 0 | AN27: 0 | AO27: 0 | AP27: 0
B28: PAT | C28: =C44 -> 23.58601445 | D28: =D44 -> 7.645533712 | E28: 12.79010717 | F28: 17.89196953 | G28: 22.96513367 | H28: 27.9995013 | I28: 32.98485406 | J28: 37.93484425 | K28: 42.83899239 | L28: 47.6866771 | M28: 52.49112463 | N28: 57.24140506 | O28: 59.29468403 | P28: 58.17573316 | Q28: 56.9927783 | R28: 55.74215843 | S28: 54.4200031 | T28: 72.22030048 | U28: 93.78026069 | V28: 92.21799842 | W28: 76.48529161 | X28: 75.01067474 | Y28: 73.45170979 | Z28: 71.80357205 | AA28: 70.06116082 | AB28: 0 | AC28: 0 | AD28: 0 | AE28: 0 | AF28: 0 | AG28: 0 | AH28: 0 | AI28: 0 | AJ28: 0 | AK28: 0 | AL28: 0 | AM28: 0 | AN28: 0 | AO28: 0 | AP28: 0
B30: Year | C30: 1 | D30: =C30+1 -> 2 | E30: =D30+1 -> 3 | F30: 4 | G30: 5 | H30: 6 | I30: 7 | J30: 8 | K30: 9 | L30: 10 | M30: 11 | N30: 12 | O30: 13 | P30: 14 | Q30: 15 | R30: 16 | S30: 17 | T30: 18 | U30: 19 | V30: 20 | W30: 21 | X30: 22 | Y30: 23 | Z30: 24 | AA30: 25 | AB30: 26 | AC30: 27 | AD30: 28 | AE30: 29 | AF30: 30 | AG30: 31 | AH30: 32 | AI30: 33 | AJ30: 34 | AK30: 35 | AL30: 36 | AM30: 37 | AN30: 38 | AO30: 39 | AP30: 40
B31: PBT | C31: =C27 -> 29.48546661 | D31: 9.557872927 | E31: 15.98923288 | F31: 22.36719863 | G31: 28.70928801 | H31: 35.00287691 | I31: 41.23519109 | J31: 47.42329765 | K31: 53.55409589 | L31: 59.6143078 | M31: 65.62046783 | N31: 71.55891222 | O31: 74.12576762 | P31: 72.72693915 | Q31: 71.24809769 | R31: 69.6846665 | S31: 68.03180705 | T31: 90.28440404 | U31: 117.2370496 | V31: 115.2840264 | W31: 113.2192904 | X31: 111.0364514 | Y31: 108.728754 | Z31: 106.2890564 | AA31: 103.709808 | AB31: 0 | AC31: 0 | AD31: 0 | AE31: 0 | AF31: 0 | AG31: 0 | AH31: 0 | AI31: 0 | AJ31: 0 | AK31: 0 | AL31: 0 | AM31: 0 | AN31: 0 | AO31: 0 | AP31: 0
B32: Add Book Depreciation | C32: =C24 -> 26.4 | D32: 52.8 | E32: 52.8 | F32: 52.8 | G32: 52.8 | H32: 52.8 | I32: 52.8 | J32: 52.8 | K32: 52.8 | L32: 52.8 | M32: 52.8 | N32: 52.8 | O32: 52.8 | P32: 52.8 | Q32: 52.8 | R32: 52.8 | S32: 52.8 | T32: 28.8 | U32: 0 | V32: 0 | W32: 0 | X32: 0 | Y32: 0 | Z32: 0 | AA32: 0 | AB32: 0 | AC32: 0 | AD32: 0 | AE32: 0 | AF32: 0 | AG32: 0 | AH32: 0 | AI32: 0 | AJ32: 0 | AK32: 0 | AL32: 0 | AM32: 0 | AN32: 0 | AO32: 0 | AP32: 0
B33: PBDT/Gross Income | C33: =C31+C32 -> 55.88546661 | D33: =D31+D32 -> 62.35787293 | E33: 68.78923288 | F33: 75.16719863 | G33: 81.50928801 | H33: 87.80287691 | I33: 94.03519109 | J33: 100.2232976 | K33: 106.3540959 | L33: 112.4143078 | M33: 118.4204678 | N33: 124.3589122 | O33: 126.9257676 | P33: 125.5269391 | Q33: 124.0480977 | R33: 122.4846665 | S33: 120.831807 | T33: 119.084404 | U33: 117.2370496 | V33: 115.2840264 | W33: 113.2192904 | X33: 111.0364514 | Y33: 108.728754 | Z33: 106.2890564 | AA33: 103.709808 | AB33: 0 | AC33: 0 | AD33: 0 | AE33: 0 | AF33: 0 | AG33: 0 | AH33: 0 | AI33: 0 | AJ33: 0 | AK33: 0 | AL33: 0 | AM33: 0 | AN33: 0 | AO33: 0 | AP33: 0
B34: Depreciation (IT-WDV) | C34: =Depreciation!C23 -> 400 | D34: =Depreciation!D23 -> 480 | E34: =Depreciation!E23 -> 96 | F34: =Depreciation!F23 -> 19.2 | G34: =Depreciation!G23 -> 3.84 | H34: =Depreciation!H23 -> 0.768 | I34: =Depreciation!I23 -> 0.1536 | J34: =Depreciation!J23 -> 0.03072 | K34: =Depreciation!K23 -> 0.006144 | L34: =Depreciation!L23 -> 0.0012288 | M34: =Depreciation!M23 -> 0.00024576 | N34: =Depreciation!N23 -> 4.915199997e-05 | O34: =Depreciation!O23 -> 9.830399995e-06 | P34: =Depreciation!P23 -> 1.966079981e-06 | Q34: =Depreciation!Q23 -> 3.932160325e-07 | R34: =Depreciation!R23 -> 7.864318832e-08 | S34: =Depreciation!S23 -> 1.572861947e-08 | T34: =Depreciation!T23 -> 3.145760274e-09 | U34: =Depreciation!U23 -> 6.291884347e-10 | V34: =Depreciation!V23 -> 1.258740667e-10 | W34: =Depreciation!W23 -> 2.519300324e-11 | X34: =Depreciation!X23 -> 5.00222086e-12 | Y34: =Depreciation!Y23 -> 1.000444172e-12 | Z34: =Depreciation!Z23 -> 1.818989404e-13 | AA34: =Depreciation!AA23 -> 0 | AB34: =Depreciation!AB23 -> 0 | AC34: =Depreciation!AC23 -> 0 | AD34: =Depreciation!AD23 -> 0 | AE34: =Depreciation!AE23 -> 0 | AF34: =Depreciation!AF23 -> 0 | AG34: =Depreciation!AG23 -> 0 | AH34: =Depreciation!AH23 -> 0 | AI34: =Depreciation!AI23 -> 0 | AJ34: =Depreciation!AJ23 -> 0 | AK34: =Depreciation!AK23 -> 0 | AL34: =Depreciation!AL23 -> 0 | AM34: =Depreciation!AM23 -> 0 | AN34: =Depreciation!AN23 -> 0 | AO34: =Depreciation!AO23 -> 0 | AP34: =Depreciation!AP23 -> 0
B35: Taxable Income | C35: =+C33-C34 -> -344.1145334 | D35: =+D33-D34 -> -417.6421271 | E35: -27.21076712 | F35: 55.96719863 | G35: 77.66928801 | H35: 87.03487691 | I35: 93.88159109 | J35: 100.1925776 | K35: 106.3479519 | L35: 112.413079 | M35: 118.4202221 | N35: 124.3588631 | O35: 126.9257578 | P35: 125.5269372 | Q35: 124.0480973 | R35: 122.4846664 | S35: 120.831807 | T35: 119.084404 | U35: 117.2370496 | V35: 115.2840264 | W35: 113.2192904 | X35: 111.0364514 | Y35: 108.728754 | Z35: 106.2890564 | AA35: 103.709808 | AB35: 0 | AC35: 0 | AD35: 0 | AE35: 0 | AF35: 0 | AG35: 0 | AH35: 0 | AI35: 0 | AJ35: 0 | AK35: 0 | AL35: 0 | AM35: 0 | AN35: 0 | AO35: 0 | AP35: 0
B36: Losses Carried Over | D36: =IF(D30<=$C$5,MIN(C37,0),0) -> -344.1145334 | E36: =IF(E30<=$C$5,MIN(D37,0),0) -> -761.7566605 | F36: -788.9674276 | G36: -733.000229 | H36: -655.3309409 | I36: -568.296064 | J36: -474.4144729 | K36: -374.2218953 | L36: -267.8739434 | M36: -155.4608644 | N36: -37.04064233 | O36: 0 | P36: 0 | Q36: 0 | R36: 0 | S36: 0 | T36: 0 | U36: 0 | V36: 0 | W36: 0 | X36: 0 | Y36: 0 | Z36: 0 | AA36: 0 | AB36: 0 | AC36: 0 | AD36: 0 | AE36: 0 | AF36: 0 | AG36: 0 | AH36: 0 | AI36: 0 | AJ36: 0 | AK36: 0 | AL36: 0 | AM36: 0 | AN36: 0 | AO36: 0 | AP36: 0
B37: Taxable Income after loss carried over | C37: =C36+C35 -> -344.1145334 | D37: -761.7566605 | E37: -788.9674276 | F37: -733.000229 | G37: -655.3309409 | H37: -568.296064 | I37: -474.4144729 | J37: -374.2218953 | K37: -267.8739434 | L37: -155.4608644 | M37: -37.04064233 | N37: 87.31822074 | O37: 126.9257578 | P37: 125.5269372 | Q37: 124.0480973 | R37: 122.4846664 | S37: 120.831807 | T37: 119.084404 | U37: 117.2370496 | V37: 115.2840264 | W37: 113.2192904 | X37: 111.0364514 | Y37: 108.728754 | Z37: 106.2890564 | AA37: 103.709808 | AB37: 0 | AC37: 0 | AD37: 0 | AE37: 0 | AF37: 0 | AG37: 0 | AH37: 0 | AI37: 0 | AJ37: 0 | AK37: 0 | AL37: 0 | AM37: 0 | AN37: 0 | AO37: 0 | AP37: 0
B38: Year for Tax Holiday | C38: =IF(AND(C$30>=$C$8,C$30<$C$8+$C$9,C$30<=$C$5),C$30-$C$8+1,"") ->  | D38: =IF(AND(D$30>=$C$8,D$30<$C$8+$C$9,D$30<=$C$5),D$30-$C$8+1,"") ->  | H38: 1 | I38: 2 | J38: 3 | K38: 4 | L38: 5 | M38: 6 | N38: 7 | O38: 8 | P38: 9 | Q38: 10
B39: Income Tax | C39: =IF(OR(C37<=0,ISNUMBER(C38)),0,C37*$C$6) -> 0 | D39: =IF(OR(D37<=0,ISNUMBER(D38)),0,D37*$C$6) -> 0 | E39: 0 | F39: 0 | G39: 0 | H39: 0 | I39: 0 | J39: 0 | K39: 0 | L39: 0 | M39: 0 | N39: 0 | O39: 0 | P39: 0 | Q39: 0 | R39: 39.74015002 | S39: 39.20387979 | T39: 38.63693489 | U39: 38.03756073 | V39: 37.40390237 | W39: 36.73399876 | X39: 36.02577666 | Y39: 35.27704425 | Z39: 34.48548435 | AA39: 33.64864722 | AB39: 0 | AC39: 0 | AD39: 0 | AE39: 0 | AF39: 0 | AG39: 0 | AH39: 0 | AI39: 0 | AJ39: 0 | AK39: 0 | AL39: 0 | AM39: 0 | AN39: 0 | AO39: 0 | AP39: 0
B40: MAT | C40: =MAX(C27*$C$7,0) -> 5.89945216 | D40: =MAX(D27*$C$7,0) -> 1.912339215 | E40: 3.199125715 | F40: 4.475229101 | G40: 5.744154345 | H40: 7.003375612 | I40: 8.250337034 | J40: 9.488453393 | K40: 10.71510351 | L40: 11.92763071 | M40: 13.1293432 | N40: 14.31750716 | O40: 14.83108358 | P40: 14.55120598 | Q40: 14.25531939 | R40: 13.94250807 | S40: 13.61180395 | T40: 18.06410356 | U40: 23.45678888 | V40: 23.06602801 | W40: 22.65291562 | X40: 22.2161732 | Y40: 21.75444911 | Z40: 21.2663144 | AA40: 20.75025839 | AB40: 0 | AC40: 0 | AD40: 0 | AE40: 0 | AF40: 0 | AG40: 0 | AH40: 0 | AI40: 0 | AJ40: 0 | AK40: 0 | AL40: 0 | AM40: 0 | AN40: 0 | AO40: 0 | AP40: 0
B41: Set off under MAT | C41: =IF(C$30>=$C$10,IF(C$30<$C$10+$C$12,MAX(C$39-C$40,0),0),0) -> 0 | D41: =IF(D$30>=$C$10,IF(D$30<$C$10+$C$12,MAX(D$39-D$40,0),0),0) -> 0 | E41: 0 | F41: 0 | G41: 0 | H41: 0 | I41: 0 | J41: 0 | K41: 0 | L41: 0 | M41: 0 | N41: 0 | O41: 0 | P41: 0 | Q41: 0 | R41: 25.79764195 | S41: 25.59207584 | T41: 20.57283133 | U41: 14.58077185 | V41: 14.33787437 | W41: 0 | X41: 0 | Y41: 0 | Z41: 0 | AA41: 0 | AB41: 0 | AC41: 0 | AD41: 0 | AE41: 0 | AF41: 0 | AG41: 0 | AH41: 0 | AI41: 0 | AJ41: 0 | AK41: 0 | AL41: 0 | AM41: 0 | AN41: 0 | AO41: 0 | AP41: 0
B42: MAT set off remaining at the end of each year | C42: =IF(C$30=$C$10-1,SUM(OFFSET(C40,0,-$C$11+1,1,$C$11)),IF(AND(C$30>=$C$10,C$30<$C$10+$C$12),MAX(B$42-C$41,0),0)) -> 0 | D42: =IF(D$30=$C$10-1,SUM(OFFSET(D40,0,-$C$11+1,1,$C$11)),IF(AND(D$30>=$C$10,D$30<$C$10+$C$12),MAX(C$42-D$41,0),0)) -> 0 | E42: =IF(E$30=$C$10-1,SUM(OFFSET(E40,0,-$C$11+1,1,$C$11)),IF(AND(E$30>=$C$10,E$30<$C$10+$C$12),MAX(D$42-E$41,0),0)) -> 0 | F42: =IF(F$30=$C$10-1,SUM(OFFSET(F40,0,-$C$11+1,1,$C$11)),IF(AND(F$30>=$C$10,F$30<$C$10+$C$12),MAX(E$42-F$41,0),0)) -> 0 | G42: =IF(G$30=$C$10-1,SUM(OFFSET(G40,0,-$C$11+1,1,$C$11)),IF(AND(G$30>=$C$10,G$30<$C$10+$C$12),MAX(F$42-G$41,0),0)) -> 0 | H42: =IF(H$30=$C$10-1,SUM(OFFSET(H40,0,-$C$11+1,1,$C$11)),IF(AND(H$30>=$C$10,H$30<$C$10+$C$12),MAX(G$42-H$41,0),0)) -> 0 | I42: =IF(I$30=$C$10-1,SUM(OFFSET(I40,0,-$C$11+1,1,$C$11)),IF(AND(I$30>=$C$10,I$30<$C$10+$C$12),MAX(H$42-I$41,0),0)) -> 0 | J42: =IF(J$30=$C$10-1,SUM(OFFSET(J40,0,-$C$11+1,1,$C$11)),IF(AND(J$30>=$C$10,J$30<$C$10+$C$12),MAX(I$42-J$41,0),0)) -> 0 | K42: =IF(K$30=$C$10-1,SUM(OFFSET(K40,0,-$C$11+1,1,$C$11)),IF(AND(K$30>=$C$10,K$30<$C$10+$C$12),MAX(J$42-K$41,0),0)) -> 0 | L42: =IF(L$30=$C$10-1,SUM(OFFSET(L40,0,-$C$11+1,1,$C$11)),IF(AND(L$30>=$C$10,L$30<$C$10+$C$12),MAX(K$42-L$41,0),0)) -> 0 | M42: =IF(M$30=$C$10-1,SUM(OFFSET(M40,0,-$C$11+1,1,$C$11)),IF(AND(M$30>=$C$10,M$30<$C$10+$C$12),MAX(L$42-M$41,0),0)) -> 0 | N42: =IF(N$30=$C$10-1,SUM(OFFSET(N40,0,-$C$11+1,1,$C$11)),IF(AND(N$30>=$C$10,N$30<$C$10+$C$12),MAX(M$42-N$41,0),0)) -> 0 | O42: =IF(O$30=$C$10-1,SUM(OFFSET(O40,0,-$C$11+1,1,$C$11)),IF(AND(O$30>=$C$10,O$30<$C$10+$C$12),MAX(N$42-O$41,0),0)) -> 0 | P42: =IF(P$30=$C$10-1,SUM(OFFSET(P40,0,-$C$11+1,1,$C$11)),IF(AND(P$30>=$C$10,P$30<$C$10+$C$12),MAX(O$42-P$41,0),0)) -> 0 | Q42: =IF(Q$30=$C$10-1,SUM(OFFSET(Q40,0,-$C$11+1,1,$C$11)),IF(AND(Q$30>=$C$10,Q$30<$C$10+$C$12),MAX(P$42-Q$41,0),0)) -> 118.4693596 | R42: =IF(R$30=$C$10-1,SUM(OFFSET(R40,0,-$C$11+1,1,$C$11)),IF(AND(R$30>=$C$10,R$30<$C$10+$C$12),MAX(Q$42-R$41,0),0)) -> 92.67171762 | S42: =IF(S$30=$C$10-1,SUM(OFFSET(S40,0,-$C$11+1,1,$C$11)),IF(AND(S$30>=$C$10,S$30<$C$10+$C$12),MAX(R$42-S$41,0),0)) -> 67.07964178 | T42: =IF(T$30=$C$10-1,SUM(OFFSET(T40,0,-$C$11+1,1,$C$11)),IF(AND(T$30>=$C$10,T$30<$C$10+$C$12),MAX(S$42-T$41,0),0)) -> 46.50681045 | U42: =IF(U$30=$C$10-1,SUM(OFFSET(U40,0,-$C$11+1,1,$C$11)),IF(AND(U$30>=$C$10,U$30<$C$10+$C$12),MAX(T$42-U$41,0),0)) -> 31.9260386 | V42: =IF(V$30=$C$10-1,SUM(OFFSET(V40,0,-$C$11+1,1,$C$11)),IF(AND(V$30>=$C$10,V$30<$C$10+$C$12),MAX(U$42-V$41,0),0)) -> 17.58816423 | W42: =IF(W$30=$C$10-1,SUM(OFFSET(W40,0,-$C$11+1,1,$C$11)),IF(AND(W$30>=$C$10,W$30<$C$10+$C$12),MAX(V$42-W$41,0),0)) -> 0 | X42: =IF(X$30=$C$10-1,SUM(OFFSET(X40,0,-$C$11+1,1,$C$11)),IF(AND(X$30>=$C$10,X$30<$C$10+$C$12),MAX(W$42-X$41,0),0)) -> 0 | Y42: =IF(Y$30=$C$10-1,SUM(OFFSET(Y40,0,-$C$11+1,1,$C$11)),IF(AND(Y$30>=$C$10,Y$30<$C$10+$C$12),MAX(X$42-Y$41,0),0)) -> 0 | Z42: =IF(Z$30=$C$10-1,SUM(OFFSET(Z40,0,-$C$11+1,1,$C$11)),IF(AND(Z$30>=$C$10,Z$30<$C$10+$C$12),MAX(Y$42-Z$41,0),0)) -> 0 | AA42: =IF(AA$30=$C$10-1,SUM(OFFSET(AA40,0,-$C$11+1,1,$C$11)),IF(AND(AA$30>=$C$10,AA$30<$C$10+$C$12),MAX(Z$42-AA$41,0),0)) -> 0 | AB42: =IF(AB$30=$C$10-1,SUM(OFFSET(AB40,0,-$C$11+1,1,$C$11)),IF(AND(AB$30>=$C$10,AB$30<$C$10+$C$12),MAX(AA$42-AB$41,0),0)) -> 0 | AC42: =IF(AC$30=$C$10-1,SUM(OFFSET(AC40,0,-$C$11+1,1,$C$11)),IF(AND(AC$30>=$C$10,AC$30<$C$10+$C$12),MAX(AB$42-AC$41,0),0)) -> 0 | AD42: =IF(AD$30=$C$10-1,SUM(OFFSET(AD40,0,-$C$11+1,1,$C$11)),IF(AND(AD$30>=$C$10,AD$30<$C$10+$C$12),MAX(AC$42-AD$41,0),0)) -> 0 | AE42: =IF(AE$30=$C$10-1,SUM(OFFSET(AE40,0,-$C$11+1,1,$C$11)),IF(AND(AE$30>=$C$10,AE$30<$C$10+$C$12),MAX(AD$42-AE$41,0),0)) -> 0 | AF42: =IF(AF$30=$C$10-1,SUM(OFFSET(AF40,0,-$C$11+1,1,$C$11)),IF(AND(AF$30>=$C$10,AF$30<$C$10+$C$12),MAX(AE$42-AF$41,0),0)) -> 0 | AG42: =IF(AG$30=$C$10-1,SUM(OFFSET(AG40,0,-$C$11+1,1,$C$11)),IF(AND(AG$30>=$C$10,AG$30<$C$10+$C$12),MAX(AF$42-AG$41,0),0)) -> 0 | AH42: =IF(AH$30=$C$10-1,SUM(OFFSET(AH40,0,-$C$11+1,1,$C$11)),IF(AND(AH$30>=$C$10,AH$30<$C$10+$C$12),MAX(AG$42-AH$41,0),0)) -> 0 | AI42: =IF(AI$30=$C$10-1,SUM(OFFSET(AI40,0,-$C$11+1,1,$C$11)),IF(AND(AI$30>=$C$10,AI$30<$C$10+$C$12),MAX(AH$42-AI$41,0),0)) -> 0 | AJ42: =IF(AJ$30=$C$10-1,SUM(OFFSET(AJ40,0,-$C$11+1,1,$C$11)),IF(AND(AJ$30>=$C$10,AJ$30<$C$10+$C$12),MAX(AI$42-AJ$41,0),0)) -> 0 | AK42: =IF(AK$30=$C$10-1,SUM(OFFSET(AK40,0,-$C$11+1,1,$C$11)),IF(AND(AK$30>=$C$10,AK$30<$C$10+$C$12),MAX(AJ$42-AK$41,0),0)) -> 0 | AL42: =IF(AL$30=$C$10-1,SUM(OFFSET(AL40,0,-$C$11+1,1,$C$11)),IF(AND(AL$30>=$C$10,AL$30<$C$10+$C$12),MAX(AK$42-AL$41,0),0)) -> 0 | AM42: =IF(AM$30=$C$10-1,SUM(OFFSET(AM40,0,-$C$11+1,1,$C$11)),IF(AND(AM$30>=$C$10,AM$30<$C$10+$C$12),MAX(AL$42-AM$41,0),0)) -> 0 | AN42: =IF(AN$30=$C$10-1,SUM(OFFSET(AN40,0,-$C$11+1,1,$C$11)),IF(AND(AN$30>=$C$10,AN$30<$C$10+$C$12),MAX(AM$42-AN$41,0),0)) -> 0 | AO42: =IF(AO$30=$C$10-1,SUM(OFFSET(AO40,0,-$C$11+1,1,$C$11)),IF(AND(AO$30>=$C$10,AO$30<$C$10+$C$12),MAX(AN$42-AO$41,0),0)) -> 0 | AP42: =IF(AP$30=$C$10-1,SUM(OFFSET(AP40,0,-$C$11+1,1,$C$11)),IF(AND(AP$30>=$C$10,AP$30<$C$10+$C$12),MAX(AO$42-AP$41,0),0)) -> 0
B43: TAX Paid (MAT or IT) | C43: =MAX(C39-C41,C40) -> 5.89945216 | D43: 1.912339215 | E43: 3.199125715 | F43: 4.475229101 | G43: 5.744154345 | H43: 7.003375612 | I43: 8.250337034 | J43: 9.488453393 | K43: 10.71510351 | L43: 11.92763071 | M43: 13.1293432 | N43: 14.31750716 | O43: 14.83108358 | P43: 14.55120598 | Q43: 14.25531939 | R43: 13.94250807 | S43: 13.61180395 | T43: 18.06410356 | U43: 23.45678888 | V43: 23.06602801 | W43: 36.73399876 | X43: 36.02577666 | Y43: 35.27704425 | Z43: 34.48548435 | AA43: 33.64864722 | AB43: 0 | AC43: 0 | AD43: 0 | AE43: 0 | AF43: 0 | AG43: 0 | AH43: 0 | AI43: 0 | AJ43: 0 | AK43: 0 | AL43: 0 | AM43: 0 | AN43: 0 | AO43: 0 | AP43: 0
B44: PAT | C44: =C31-C43 -> 23.58601445 | D44: 7.645533712 | E44: 12.79010717 | F44: 17.89196953 | G44: 22.96513367 | H44: 27.9995013 | I44: 32.98485406 | J44: 37.93484425 | K44: 42.83899239 | L44: 47.6866771 | M44: 52.49112463 | N44: 57.24140506 | O44: 59.29468403 | P44: 58.17573316 | Q44: 56.9927783 | R44: 55.74215843 | S44: 54.4200031 | T44: 72.22030048 | U44: 93.78026069 | V44: 92.21799842 | W44: 76.48529161 | X44: 75.01067474 | Y44: 73.45170979 | Z44: 71.80357205 | AA44: 70.06116082 | AB44: 0 | AC44: 0 | AD44: 0 | AE44: 0 | AF44: 0 | AG44: 0 | AH44: 0 | AI44: 0 | AJ44: 0 | AK44: 0 | AL44: 0 | AM44: 0 | AN44: 0 | AO44: 0 | AP44: 0
B45: Post-Tax ROE | C45: =IF(C44/$C$4<0,0,C44/$C$4) -> 0.07862004818 | D45: =IF(D44/$C$4<0,0,D44/$C$4) -> 0.02548511237 | E45: 0.04263369056 | F45: 0.05963989842 | G45: 0.07655044555 | H45: 0.09333167099 | I45: 0.1099495135 | J45: 0.1264494808 | K45: 0.1427966413 | L45: 0.1589555903 | M45: 0.1749704154 | N45: 0.1908046835 | O45: 0.1976489468 | P45: 0.1939191105 | Q45: 0.1899759277 | R45: 0.1858071948 | S45: 0.1814000103 | T45: 0.2407343349 | U45: 0.312600869 | V45: 0.3073933281 | W45: 0.254950972 | X45: 0.2500355825 | Y45: 0.2448390326 | Z45: 0.2393452402 | AA45: 0.2335372027 | AB45: 0 | AC45: 0 | AD45: 0 | AE45: 0 | AF45: 0 | AG45: 0 | AH45: 0 | AI45: 0 | AJ45: 0 | AK45: 0 | AL45: 0 | AM45: 0 | AN45: 0 | AO45: 0 | AP45: 0
B50: Tax Savings from Accelerated Depreciation | C50: 11166.5658 | D50: 699.8481381
B51: NPV of Tax Savings | C51: 9963.594

Sheet Cash Flows AD
J2: Cash Flows in the Accelerated Depreciation Scenario
B3: ='Form Input'!C9 -> Life of Plant and Machinery / Project Life | C3: ='Form Input'!D9 -> 25 | D3: ='Form Input'!E9 -> years
B5: PARTICULARS | C5: 0 | D5: =C5+1 -> 1 | E5: =D5+1 -> 2 | F5: 3 | G5: 4 | H5: 5 | I5: 6 | J5: 7 | K5: 8 | L5: 9 | M5: 10 | N5: 11 | O5: 12 | P5: 13 | Q5: 14 | R5: 15 | S5: 16 | T5: 17 | U5: 18 | V5: 19 | W5: 20 | X5: 21 | Y5: 22 | Z5: 23 | AA5: 24 | AB5: 25 | AC5: 26 | AD5: 27 | AE5: 28 | AF5: 29 | AG5: 30 | AH5: 31 | AI5: 32 | AJ5: 33 | AK5: 34 | AL5: 35 | AM5: 36 | AN5: 37 | AO5: 38 | AP5: 39 | AQ5: 40
B6: Cash Profit | D6: ='Profit Loss AD'!C28+'Profit Loss AD'!C32 -> 49.98601445 | E6: ='Profit Loss AD'!D28+'Profit Loss AD'!D32 -> 60.44553371 | F6: ='Profit Loss AD'!E28+'Profit Loss AD'!E32 -> 65.59010717 | G6: ='Profit Loss AD'!F28+'Profit Loss AD'!F32 -> 70.69196953 | H6: ='Profit Loss AD'!G28+'Profit Loss AD'!G32 -> 75.76513367 | I6: ='Profit Loss AD'!H28+'Profit Loss AD'!H32 -> 80.7995013 | J6: ='Profit Loss AD'!I28+'Profit Loss AD'!I32 -> 85.78485406 | K6: ='Profit Loss AD'!J28+'Profit Loss AD'!J32 -> 90.73484425 | L6: ='Profit Loss AD'!K28+'Profit Loss AD'!K32 -> 95.63899239 | M6: ='Profit Loss AD'!L28+'Profit Loss AD'!L32 -> 100.4866771 | N6: ='Profit Loss AD'!M28+'Profit Loss AD'!M32 -> 105.2911246 | O6: ='Profit Loss AD'!N28+'Profit Loss AD'!N32 -> 110.0414051 | P6: ='Profit Loss AD'!O28+'Profit Loss AD'!O32 -> 112.094684 | Q6: ='Profit Loss AD'!P28+'Profit Loss AD'!P32 -> 110.9757332 | R6: ='Profit Loss AD'!Q28+'Profit Loss AD'!Q32 -> 109.7927783 | S6: ='Profit Loss AD'!R28+'Profit Loss AD'!R32 -> 108.5421584 | T6: ='Profit Loss AD'!S28+'Profit Loss AD'!S32 -> 107.2200031 | U6: ='Profit Loss AD'!T28+'Profit Loss AD'!T32 -> 101.0203005 | V6: ='Profit Loss AD'!U28+'Profit Loss AD'!U32 -> 93.78026069 | W6: ='Profit Loss AD'!V28+'Profit Loss AD'!V32 -> 92.21799842 | X6: ='Profit Loss AD'!W28+'Profit Loss AD'!W32 -> 76.48529161 | Y6: ='Profit Loss AD'!X28+'Profit Loss AD'!X32 -> 75.01067474 | Z6: ='Profit Loss AD'!Y28+'Profit Loss AD'!Y32 -> 73.45170979 | AA6: ='Profit Loss AD'!Z28+'Profit Loss AD'!Z32 -> 71.80357205 | AB6: ='Profit Loss AD'!AA28+'Profit Loss AD'!AA32 -> 70.06116082 | AC6: ='Profit Loss AD'!AB28+'Profit Loss AD'!AB32 -> 0 | AD6: ='Profit Loss AD'!AC28+'Profit Loss AD'!AC32 -> 0 | AE6: ='Profit Loss AD'!AD28+'Profit Loss AD'!AD32 -> 0 | AF6: ='Profit Loss AD'!AE28+'Profit Loss AD'!AE32 -> 0 | AG6: ='Profit Loss AD'!AF28+'Profit Loss AD'!AF32 -> 0 | AH6: ='Profit Loss AD'!AG28+'Profit Loss AD'!AG32 -> 0 | AI6: ='Profit Loss AD'!AH28+'Profit Loss AD'!AH32 -> 0 | AJ6: ='Profit Loss AD'!AI28+'Profit Loss AD'!AI32 -> 0 | AK6: ='Profit Loss AD'!AJ28+'Profit Loss AD'!AJ32 -> 0 | AL6: ='Profit Loss AD'!AK28+'Profit Loss AD'!AK32 -> 0 | AM6: ='Profit Loss AD'!AL28+'Profit Loss AD'!AL32 -> 0 | AN6: ='Profit Loss AD'!AM28+'Profit Loss AD'!AM32 -> 0 | AO6: ='Profit Loss AD'!AN28+'Profit Loss AD'!AN32 -> 0 | AP6: ='Profit Loss AD'!AO28+'Profit Loss AD'!AO32 -> 0 | AQ6: ='Profit Loss AD'!AP28+'Profit Loss AD'!AP32 -> 0
B7: Equity | C7: ='Form Input'!D15 -> 300
B8: Loan Amount | C8: ='Form Input'!D14 -> 700
B9: Total Inflow | C9: =+SUM(C6:C8) -> 1000 | D9: =+SUM(D6:D8) -> 49.98601445 | E9: 60.44553371 | F9: 65.59010717 | G9: 70.69196953 | H9: 75.76513367 | I9: 80.7995013 | J9: 85.78485406 | K9: 90.73484425 | L9: 95.63899239 | M9: 100.4866771 | N9: 105.2911246 | O9: 110.0414051 | P9: 112.094684 | Q9: 110.9757332 | R9: 109.7927783 | S9: 108.5421584 | T9: 107.2200031 | U9: 101.0203005 | V9: 93.78026069 | W9: 92.21799842 | X9: 76.48529161 | Y9: 75.01067474 | Z9: 73.45170979 | AA9: 71.80357205 | AB9: 70.06116082 | AC9: 0 | AD9: 0 | AE9: 0 | AF9: 0 | AG9: 0 | AH9: 0 | AI9: 0 | AJ9: 0 | AK9: 0 | AL9: 0 | AM9: 0 | AN9: 0 | AO9: 0 | AP9: 0 | AQ9: 0
B10: Project Cost | C10: ='Form Input'!D10 -> 1000
B11: Loan Repayment | C11: 0 | D11: ='Term Loan'!C24 -> 58.33333333 | E11: ='Term Loan'!D24 -> 58.33333333 | F11: ='Term Loan'!E24 -> 58.33333333 | G11: ='Term Loan'!F24 -> 58.33333333 | H11: ='Term Loan'!G24 -> 58.33333333 | I11: ='Term Loan'!H24 -> 58.33333333 | J11: ='Term Loan'!I24 -> 58.33333333 | K11: ='Term Loan'!J24 -> 58.33333333 | L11: ='Term Loan'!K24 -> 58.33333333 | M11: ='Term Loan'!L24 -> 58.33333333 | N11: ='Term Loan'!M24 -> 58.33333333 | O11: ='Term Loan'!N24 -> 58.33333333 | P11: ='Term Loan'!O24 -> 0 | Q11: ='Term Loan'!P24 -> 0 | R11: ='Term Loan'!Q24 -> 0 | S11: ='Term Loan'!R24 -> 0 | T11: ='Term Loan'!S24 -> 0 | U11: ='Term Loan'!T24 -> 0 | V11: ='Term Loan'!U24 -> 0 | W11: ='Term Loan'!V24 -> 0 | X11: ='Term Loan'!W24 -> 0 | Y11: ='Term Loan'!X24 -> 0 | Z11: ='Term Loan'!Y24 -> 0 | AA11: ='Term Loan'!Z24 -> 0 | AB11: ='Term Loan'!AA24 -> 0 | AC11: ='Term Loan'!AB24 -> 0 | AD11: ='Term Loan'!AC24 -> 0 | AE11: ='Term Loan'!AD24 -> 0 | AF11: ='Term Loan'!AE24 -> 0 | AG11: ='Term Loan'!AF24 -> 0 | AH11: ='Term Loan'!AG24 -> 0 | AI11: ='Term Loan'!AH24 -> 0 | AJ11: ='Term Loan'!AI24 -> 0 | AK11: ='Term Loan'!AJ24 -> 0 | AL11: ='Term Loan'!AK24 -> 0 | AM11: ='Term Loan'!AL24 -> 0 | AN11: ='Term Loan'!AM24 -> 0 | AO11: ='Term Loan'!AN24 -> 0 | AP11: ='Term Loan'!AO24 -> 0 | AQ11: ='Term Loan'!AP24 -> 0
B12: Total Outflow | C12: =SUM(C10:C11) -> 1000 | D12: =SUM(D10:D11) -> 58.33333333 | E12: 58.33333333 | F12: 58.33333333 | G12: 58.33333333 | H12: 58.33333333 | I12: 58.33333333 | J12: 58.33333333 | K12: 58.33333333 | L12: 58.33333333 | M12: 58.33333333 | N12: 58.33333333 | O12: 58.33333333 | P12: 0 | Q12: 0 | R12: 0 | S12: 0 | T12: 0 | U12: 0 | V12: 0 | W12: 0 | X12: 0 | Y12: 0 | Z12: 0 | AA12: 0 | AB12: 0 | AC12: 0 | AD12: 0 | AE12: 0 | AF12: 0 | AG12: 0 | AH12: 0 | AI12: 0 | AJ12: 0 | AK12: 0 | AL12: 0 | AM12: 0 | AN12: 0 | AO12: 0 | AP12: 0 | AQ12: 0
B13: Opening Balance | C13: 0 | D13: =IF(D5<='Form Input'!$D$9,C15,0) -> 0 | E13: =IF(E5<=$C$3,D15,0) -> -8.34731888 | F13: =IF(F5<=$C$3,E15,0) -> -6.235118501 | G13: 1.021655333 | H13: 13.38029152 | I13: 30.81209186 | J13: 53.27825982 | K13: 80.72978054 | L13: 113.1312915 | M13: 150.4369505 | N13: 192.5902943 | O13: 239.5480856 | P13: 291.2561573 | Q13: 403.3508413 | R13: 514.3265745 | S13: 624.1193528 | T13: 732.6615112 | U13: 839.8815143 | V13: 940.9018148 | W13: 1034.682075 | X13: 1126.900074 | Y13: 1203.385366 | Z13: 1278.39604 | AA13: 1351.84775 | AB13: 1423.651322 | AC13: 0 | AD13: 0 | AE13: 0 | AF13: 0 | AG13: 0 | AH13: 0 | AI13: 0 | AJ13: 0 | AK13: 0 | AL13: 0 | AM13: 0 | AN13: 0 | AO13: 0 | AP13: 0 | AQ13: 0
B14: Surplus/Deficit | C14: =+C9-C12 -> 0 | D14: =+D9-D12 -> -8.34731888 | E14: 2.112200379 | F14: 7.256773834 | G14: 12.35863619 | H14: 17.43180033 | I14: 22.46616796 | J14: 27.45152072 | K14: 32.40151092 | L14: 37.30565905 | M14: 42.15334376 | N14: 46.95779129 | O14: 51.70807173 | P14: 112.094684 | Q14: 110.9757332 | R14: 109.7927783 | S14: 108.5421584 | T14: 107.2200031 | U14: 101.0203005 | V14: 93.78026069 | W14: 92.21799842 | X14: 76.48529161 | Y14: 75.01067474 | Z14: 73.45170979 | AA14: 71.80357205 | AB14: 70.06116082 | AC14: 0 | AD14: 0 | AE14: 0 | AF14: 0 | AG14: 0 | AH14: 0 | AI14: 0 | AJ14: 0 | AK14: 0 | AL14: 0 | AM14: 0 | AN14: 0 | AO14: 0 | AP14: 0 | AQ14: 0
B15: Closing Balance | C15: =C13+C14 -> 0 | D15: -8.34731888 | E15: -6.235118501 | F15: 1.021655333 | G15: 13.38029152 | H15: 30.81209186 | I15: 53.27825982 | J15: 80.72978054 | K15: 113.1312915 | L15: 150.4369505 | M15: 192.5902943 | N15: 239.5480856 | O15: 291.2561573 | P15: 403.3508413 | Q15: 514.3265745 | R15: 624.1193528 | S15: 732.6615112 | T15: 839.8815143 | U15: 940.9018148 | V15: 1034.682075 | W15: 1126.900074 | X15: 1203.385366 | Y15: 1278.39604 | Z15: 1351.84775 | AA15: 1423.651322 | AB15: 1493.712483 | AC15: 0 | AD15: 0 | AE15: 0 | AF15: 0 | AG15: 0 | AH15: 0 | AI15: 0 | AJ15: 0 | AK15: 0 | AL15: 0 | AM15: 0 | AN15: 0 | AO15: 0 | AP15: 0 | AQ15: 0

Sheet Balance Sheet AD
I2: Balance Sheet in Accelerated Depreciation Scenario
B3: ='Form Input'!C9 -> Life of Plant and Machinery / Project Life | C3: ='Form Input'!D9 -> 25 | D3: ='Form Input'!E9 -> years
B5: Assets | C5: 0 | D5: =C5+1 -> 1 | E5: =D5+1 -> 2 | F5: 3 | G5: 4 | H5: 5 | I5: 6 | J5: 7 | K5: 8 | L5: 9 | M5: 10 | N5: 11 | O5: 12 | P5: 13 | Q5: 14 | R5: 15 | S5: 16 | T5: 17 | U5: 18 | V5: 19 | W5: 20 | X5: 21 | Y5: 22 | Z5: 23 | AA5: 24 | AB5: 25 | AC5: 26 | AD5: 27 | AE5: 28 | AF5: 29 | AG5: 30 | AH5: 31 | AI5: 32 | AJ5: 33 | AK5: 34 | AL5: 35 | AM5: 36 | AN5: 37 | AO5: 38 | AP5: 39 | AQ5: 40
B6: Gross fixed assets | D6: ='Form Input'!D10*'Form Input'!D3 -> 1000 | E6: =IF(E5<=$C$3,D8,0) -> 973.6 | F6: =IF(F5<=$C$3,E8,0) -> 920.8 | G6: 868 | H6: 815.2 | I6: 762.4 | J6: 709.6 | K6: 656.8 | L6: 604 | M6: 551.2 | N6: 498.4 | O6: 445.6 | P6: 392.8 | Q6: 340 | R6: 287.2 | S6: 234.4 | T6: 181.6 | U6: 128.8 | V6: 100 | W6: 100 | X6: 100 | Y6: 100 | Z6: 100 | AA6: 100 | AB6: 100 | AC6: 0 | AD6: 0 | AE6: 0 | AF6: 0 | AG6: 0 | AH6: 0 | AI6: 0 | AJ6: 0 | AK6: 0 | AL6: 0 | AM6: 0 | AN6: 0 | AO6: 0 | AP6: 0 | AQ6: 0
B7: Less: Book Depreciation | D7: =Depreciation!C21 -> 26.4 | E7: =Depreciation!D21 -> 52.8 | F7: =Depreciation!E21 -> 52.8 | G7: =Depreciation!F21 -> 52.8 | H7: =Depreciation!G21 -> 52.8 | I7: =Depreciation!H21 -> 52.8 | J7: =Depreciation!I21 -> 52.8 | K7: =Depreciation!J21 -> 52.8 | L7: =Depreciation!K21 -> 52.8 | M7: =Depreciation!L21 -> 52.8 | N7: =Depreciation!M21 -> 52.8 | O7: =Depreciation!N21 -> 52.8 | P7: =Depreciation!O21 -> 52.8 | Q7: =Depreciation!P21 -> 52.8 | R7: =Depreciation!Q21 -> 52.8 | S7: =Depreciation!R21 -> 52.8 | T7: =Depreciation!S21 -> 52.8 | U7: =Depreciation!T21 -> 28.8 | V7: =Depreciation!U21 -> 0 | W7: =Depreciation!V21 -> 0 | X7: =Depreciation!W21 -> 0 | Y7: =Depreciation!X21 -> 0 | Z7: =Depreciation!Y21 -> 0 | AA7: =Depreciation!Z21 -> 0 | AB7: =Depreciation!AA21 -> 0 | AC7: =Depreciation!AB21 -> 0 | AD7: =Depreciation!AC21 -> 0 | AE7: =Depreciation!AD21 -> 0 | AF7: =Depreciation!AE21 -> 0 | AG7: =Depreciation!AF21 -> 0 | AH7: =Depreciation!AG21 -> 0 | AI7: =Depreciation!AH21 -> 0 | AJ7: =Depreciation!AI21 -> 0 | AK7: =Depreciation!AJ21 -> 0 | AL7: =Depreciation!AK21 -> 0 | AM7: =Depreciation!AL21 -> 0 | AN7: =Depreciation!AM21 -> 0 | AO7: =Depreciation!AN21 -> 0 | AP7: =Depreciation!AO21 -> 0 | AQ7: =Depreciation!AP21 -> 0
B8: Net fixed assets | D8: =+D6-D7 -> 973.6 | E8: =+E6-E7 -> 920.8 | F8: 868 | G8: 815.2 | H8: 762.4 | I8: 709.6 | J8: 656.8 | K8: 604 | L8: 551.2 | M8: 498.4 | N8: 445.6 | O8: 392.8 | P8: 340 | Q8: 287.2 | R8: 234.4 | S8: 181.6 | T8: 128.8 | U8: 100 | V8: 100 | W8: 100 | X8: 100 | Y8: 100 | Z8: 100 | AA8: 100 | AB8: 100 | AC8: 0 | AD8: 0 | AE8: 0 | AF8: 0 | AG8: 0 | AH8: 0 | AI8: 0 | AJ8: 0 | AK8: 0 | AL8: 0 | AM8: 0 | AN8: 0 | AO8: 0 | AP8: 0 | AQ8: 0
B9: Cash flow from operations | D9: ='Profit Loss AD'!C33-'Profit Loss AD'!C43 -> 49.98601445 | E9: ='Profit Loss AD'!D33-'Profit Loss AD'!D43 -> 60.44553371 | F9: ='Profit Loss AD'!E33-'Profit Loss AD'!E43 -> 65.59010717 | G9: ='Profit Loss AD'!F33-'Profit Loss AD'!F43 -> 70.69196953 | H9: ='Profit Loss AD'!G33-'Profit Loss AD'!G43 -> 75.76513367 | I9: ='Profit Loss AD'!H33-'Profit Loss AD'!H43 -> 80.7995013 | J9: ='Profit Loss AD'!I33-'Profit Loss AD'!I43 -> 85.78485406 | K9: ='Profit Loss AD'!J33-'Profit Loss AD'!J43 -> 90.73484425 | L9: ='Profit Loss AD'!K33-'Profit Loss AD'!K43 -> 95.63899239 | M9: ='Profit Loss AD'!L33-'Profit Loss AD'!L43 -> 100.4866771 | N9: ='Profit Loss AD'!M33-'Profit Loss AD'!M43 -> 105.2911246 | O9: ='Profit Loss AD'!N33-'Profit Loss AD'!N43 -> 110.0414051 | P9: ='Profit Loss AD'!O33-'Profit Loss AD'!O43 -> 112.094684 | Q9: ='Profit Loss AD'!P33-'Profit Loss AD'!P43 -> 110.9757332 | R9: ='Profit Loss AD'!Q33-'Profit Loss AD'!Q43 -> 109.7927783 | S9: ='Profit Loss AD'!R33-'Profit Loss AD'!R43 -> 108.5421584 | T9: ='Profit Loss AD'!S33-'Profit Loss AD'!S43 -> 107.2200031 | U9: ='Profit Loss AD'!T33-'Profit Loss AD'!T43 -> 101.0203005 | V9: ='Profit Loss AD'!U33-'Profit Loss AD'!U43 -> 93.78026069 | W9: ='Profit Loss AD'!V33-'Profit Loss AD'!V43 -> 92.21799842 | X9: ='Profit Loss AD'!W33-'Profit Loss AD'!W43 -> 76.48529161 | Y9: ='Profit Loss AD'!X33-'Profit Loss AD'!X43 -> 75.01067474 | Z9: ='Profit Loss AD'!Y33-'Profit Loss AD'!Y43 -> 73.45170979 | AA9: ='Profit Loss AD'!Z33-'Profit Loss AD'!Z43 -> 71.80357205 | AB9: ='Profit Loss AD'!AA33-'Profit Loss AD'!AA43 -> 70.06116082 | AC9: ='Profit Loss AD'!AB33-'Profit Loss AD'!AB43 -> 0 | AD9: ='Profit Loss AD'!AC33-'Profit Loss AD'!AC43 -> 0 | AE9: ='Profit Loss AD'!AD33-'Profit Loss AD'!AD43 -> 0 | AF9: ='Profit Loss AD'!AE33-'Profit Loss AD'!AE43 -> 0 | AG9: ='Profit Loss AD'!AF33-'Profit Loss AD'!AF43 -> 0 | AH9: ='Profit Loss AD'!AG33-'Profit Loss AD'!AG43 -> 0 | AI9: ='Profit Loss AD'!AH33-'Profit Loss AD'!AH43 -> 0 | AJ9: ='Profit Loss AD'!AI33-'Profit Loss AD'!AI43 -> 0 | AK9: ='Profit Loss AD'!AJ33-'Profit Loss AD'!AJ43 -> 0 | AL9: ='Profit Loss AD'!AK33-'Profit Loss AD'!AK43 -> 0 | AM9: ='Profit Loss AD'!AL33-'Profit Loss AD'!AL43 -> 0 | AN9: ='Profit Loss AD'!AM33-'Profit Loss AD'!AM43 -> 0 | AO9: ='Profit Loss AD'!AN33-'Profit Loss AD'!AN43 -> 0 | AP9: ='Profit Loss AD'!AO33-'Profit Loss AD'!AO43 -> 0 | AQ9: ='Profit Loss AD'!AP33-'Profit Loss AD'!AP43 -> 0
B10: Principal payment | D10: ='Term Loan'!C24 -> 58.33333333 | E10: ='Term Loan'!D24 -> 58.33333333 | F10: ='Term Loan'!E24 -> 58.33333333 | G10: ='Term Loan'!F24 -> 58.33333333 | H10: ='Term Loan'!G24 -> 58.33333333 | I10: ='Term Loan'!H24 -> 58.33333333 | J10: ='Term Loan'!I24 -> 58.33333333 | K10: ='Term Loan'!J24 -> 58.33333333 | L10: ='Term Loan'!K24 -> 58.33333333 | M10: ='Term Loan'!L24 -> 58.33333333 | N10: ='Term Loan'!M24 -> 58.33333333 | O10: ='Term Loan'!N24 -> 58.33333333 | P10: ='Term Loan'!O24 -> 0 | Q10: ='Term Loan'!P24 -> 0 | R10: ='Term Loan'!Q24 -> 0 | S10: ='Term Loan'!R24 -> 0 | T10: ='Term Loan'!S24 -> 0 | U10: ='Term Loan'!T24 -> 0 | V10: ='Term Loan'!U24 -> 0 | W10: ='Term Loan'!V24 -> 0 | X10: ='Term Loan'!W24 -> 0 | Y10: ='Term Loan'!X24 -> 0 | Z10: ='Term Loan'!Y24 -> 0 | AA10: ='Term Loan'!Z24 -> 0 | AB10: ='Term Loan'!AA24 -> 0 | AC10: ='Term Loan'!AB24 -> 0 | AD10: ='Term Loan'!AC24 -> 0 | AE10: ='Term Loan'!AD24 -> 0 | AF10: ='Term Loan'!AE24 -> 0 | AG10: ='Term Loan'!AF24 -> 0 | AH10: ='Term Loan'!AG24 -> 0 | AI10: ='Term Loan'!AH24 -> 0 | AJ10: ='Term Loan'!AI24 -> 0 | AK10: ='Term Loan'!AJ24 -> 0 | AL10: ='Term Loan'!AK24 -> 0 | AM10: ='Term Loan'!AL24 -> 0 | AN10: ='Term Loan'!AM24 -> 0 | AO10: ='Term Loan'!AN24 -> 0 | AP10: ='Term Loan'!AO24 -> 0 | AQ10: ='Term Loan'!AP24 -> 0
B11: Cash and Equivalent | D11: =D9-D10 -> -8.34731888 | E11: =IF(E5<=$C$3,E9-E10+D11,0) -> -6.235118501 | F11: =IF(F5<=$C$3,F9-F10+E11,0) -> 1.021655333 | G11: 13.38029152 | H11: 30.81209186 | I11: 53.27825982 | J11: 80.72978054 | K11: 113.1312915 | L11: 150.4369505 | M11: 192.5902943 | N11: 239.5480856 | O11: 291.2561573 | P11: 403.3508413 | Q11: 514.3265745 | R11: 624.1193528 | S11: 732.6615112 | T11: 839.8815143 | U11: 940.9018148 | V11: 1034.682075 | W11: 1126.900074 | X11: 1203.385366 | Y11: 1278.39604 | Z11: 1351.84775 | AA11: 1423.651322 | AB11: 1493.712483 | AC11: 0 | AD11: 0 | AE11: 0 | AF11: 0 | AG11: 0 | AH11: 0 | AI11: 0 | AJ11: 0 | AK11: 0 | AL11: 0 | AM11: 0 | AN11: 0 | AO11: 0 | AP11: 0 | AQ11: 0
B12: Total assets | D12: =D11+D8 -> 965.2526811 | E12: =E11+E8 -> 914.5648815 | F12: 869.0216553 | G12: 828.5802915 | H12: 793.2120919 | I12: 762.8782598 | J12: 737.5297805 | K12: 717.1312915 | L12: 701.6369505 | M12: 690.9902943 | N12: 685.1480856 | O12: 684.0561573 | P12: 743.3508413 | Q12: 801.5265745 | R12: 858.5193528 | S12: 914.2615112 | T12: 968.6815143 | U12: 1040.901815 | V12: 1134.682075 | W12: 1226.900074 | X12: 1303.385366 | Y12: 1378.39604 | Z12: 1451.84775 | AA12: 1523.651322 | AB12: 1593.712483 | AC12: 0 | AD12: 0 | AE12: 0 | AF12: 0 | AG12: 0 | AH12: 0 | AI12: 0 | AJ12: 0 | AK12: 0 | AL12: 0 | AM12: 0 | AN12: 0 | AO12: 0 | AP12: 0 | AQ12: 0
B14: Liabilities | C14: 0 | D14: =C14+1 -> 1 | E14: =D14+1 -> 2 | F14: 3 | G14: 4 | H14: 5 | I14: 6 | J14: 7 | K14: 8 | L14: 9 | M14: 10 | N14: 11 | O14: 12 | P14: 13 | Q14: 14 | R14: 15 | S14: 16 | T14: 17 | U14: 18 | V14: 19 | W14: 20 | X14: 21 | Y14: 22 | Z14: 23 | AA14: 24 | AB14: 25 | AC14: 26 | AD14: 27 | AE14: 28 | AF14: 29 | AG14: 30 | AH14: 31 | AI14: 32 | AJ14: 33 | AK14: 34 | AL14: 35 | AM14: 36 | AN14: 37 | AO14: 38 | AP14: 39 | AQ14: 40
B15: Equity share capital | C15: ='Form Input'!D15 -> 300 | D15: =IF(D14<=$C$3,C15+'Cash Flows'!D7,0) -> 300 | E15: =IF(E14<=$C$3,D15+'Cash Flows'!E7,0) -> 300 | F15: =IF(F14<=$C$3,E15+'Cash Flows'!F7,0) -> 300 | G15: =IF(G14<=$C$3,F15+'Cash Flows'!G7,0) -> 300 | H15: =IF(H14<=$C$3,G15+'Cash Flows'!H7,0) -> 300 | I15: =IF(I14<=$C$3,H15+'Cash Flows'!I7,0) -> 300 | J15: =IF(J14<=$C$3,I15+'Cash Flows'!J7,0) -> 300 | K15: =IF(K14<=$C$3,J15+'Cash Flows'!K7,0) -> 300 | L15: =IF(L14<=$C$3,K15+'Cash Flows'!L7,0) -> 300 | M15: =IF(M14<=$C$3,L15+'Cash Flows'!M7,0) -> 300 | N15: =IF(N14<=$C$3,M15+'Cash Flows'!N7,0) -> 300 | O15: =IF(O14<=$C$3,N15+'Cash Flows'!O7,0) -> 300 | P15: =IF(P14<=$C$3,O15+'Cash Flows'!P7,0) -> 300 | Q15: =IF(Q14<=$C$3,P15+'Cash Flows'!Q7,0) -> 300 | R15: =IF(R14<=$C$3,Q15+'Cash Flows'!R7,0) -> 300 | S15: =IF(S14<=$C$3,R15+'Cash Flows'!S7,0) -> 300 | T15: =IF(T14<=$C$3,S15+'Cash Flows'!T7,0) -> 300 | U15: =IF(U14<=$C$3,T15+'Cash Flows'!U7,0) -> 300 | V15: =IF(V14<=$C$3,U15+'Cash Flows'!V7,0) -> 300 | W15: =IF(W14<=$C$3,V15+'Cash Flows'!W7,0) -> 300 | X15: =IF(X14<=$C$3,W15+'Cash Flows'!X7,0) -> 300 | Y15: =IF(Y14<=$C$3,X15+'Cash Flows'!Y7,0) -> 300 | Z15: =IF(Z14<=$C$3,Y15+'Cash Flows'!Z7,0) -> 300 | AA15: =IF(AA14<=$C$3,Z15+'Cash Flows'!AA7,0) -> 300 | AB15: =IF(AB14<=$C$3,AA15+'Cash Flows'!AB7,0) -> 300 | AC15: =IF(AC14<=$C$3,AB15+'Cash Flows'!AC7,0) -> 0 | AD15: =IF(AD14<=$C$3,AC15+'Cash Flows'!AD7,0) -> 0 | AE15: =IF(AE14<=$C$3,AD15+'Cash Flows'!AE7,0) -> 0 | AF15: =IF(AF14<=$C$3,AE15+'Cash Flows'!AF7,0) -> 0 | AG15: =IF(AG14<=$C$3,AF15+'Cash Flows'!AG7,0) -> 0 | AH15: =IF(AH14<=$C$3,AG15+'Cash Flows'!AH7,0) -> 0 | AI15: =IF(AI14<=$C$3,AH15+'Cash Flows'!AI7,0) -> 0 | AJ15: =IF(AJ14<=$C$3,AI15+'Cash Flows'!AJ7,0) -> 0 | AK15: =IF(AK14<=$C$3,AJ15+'Cash Flows'!AK7,0) -> 0 | AL15: =IF(AL14<=$C$3,AK15+'Cash Flows'!AL7,0) -> 0 | AM15: =IF(AM14<=$C$3,AL15+'Cash Flows'!AM7,0) -> 0 | AN15: =IF(AN14<=$C$3,AM15+'Cash Flows'!AN7,0) -> 0 | AO15: =IF(AO14<=$C$3,AN15+'Cash Flows'!AO7,0) -> 0 | AP15: =IF(AP14<=$C$3,AO15+'Cash Flows'!AP7,0) -> 0 | AQ15: =IF(AQ14<=$C$3,AP15+'Cash Flows'!AQ7,0) -> 0
B16: PAT for the year | D16: ='Profit Loss AD'!C28 -> 23.58601445 | E16: ='Profit Loss AD'!D28 -> 7.645533712 | F16: ='Profit Loss AD'!E28 -> 12.79010717 | G16: ='Profit Loss AD'!F28 -> 17.89196953 | H16: ='Profit Loss AD'!G28 -> 22.96513367 | I16: ='Profit Loss AD'!H28 -> 27.9995013 | J16: ='Profit Loss AD'!I28 -> 32.98485406 | K16: ='Profit Loss AD'!J28 -> 37.93484425 | L16: ='Profit Loss AD'!K28 -> 42.83899239 | M16: ='Profit Loss AD'!L28 -> 47.6866771 | N16: ='Profit Loss AD'!M28 -> 52.49112463 | O16: ='Profit Loss AD'!N28 -> 57.24140506 | P16: ='Profit Loss AD'!O28 -> 59.29468403 | Q16: ='Profit Loss AD'!P28 -> 58.17573316 | R16: ='Profit Loss AD'!Q28 -> 56.9927783 | S16: ='Profit Loss AD'!R28 -> 55.74215843 | T16: ='Profit Loss AD'!S28 -> 54.4200031 | U16: ='Profit Loss AD'!T28 -> 72.22030048 | V16: ='Profit Loss AD'!U28 -> 93.78026069 | W16: ='Profit Loss AD'!V28 -> 92.21799842 | X16: ='Profit Loss AD'!W28 -> 76.48529161 | Y16: ='Profit Loss AD'!X28 -> 75.01067474 | Z16: ='Profit Loss AD'!Y28 -> 73.45170979 | AA16: ='Profit Loss AD'!Z28 -> 71.80357205 | AB16: ='Profit Loss AD'!AA28 -> 70.06116082 | AC16: ='Profit Loss AD'!AB28 -> 0 | AD16: ='Profit Loss AD'!AC28 -> 0 | AE16: ='Profit Loss AD'!AD28 -> 0 | AF16: ='Profit Loss AD'!AE28 -> 0 | AG16: ='Profit Loss AD'!AF28 -> 0 | AH16: ='Profit Loss AD'!AG28 -> 0 | AI16: ='Profit Loss AD'!AH28 -> 0 | AJ16: ='Profit Loss AD'!AI28 -> 0 | AK16: ='Profit Loss AD'!AJ28 -> 0 | AL16: ='Profit Loss AD'!AK28 -> 0 | AM16: ='Profit Loss AD'!AL28 -> 0 | AN16: ='Profit Loss AD'!AM28 -> 0 | AO16: ='Profit Loss AD'!AN28 -> 0 | AP16: ='Profit Loss AD'!AO28 -> 0 | AQ16: ='Profit Loss AD'!AP28 -> 0
B17: Reserves and surplus | D17: =IF(D14<=$C$3,D16+C17,0) -> 23.58601445 | E17: =IF(E14<=$C$3,E16+D17,0) -> 31.23154817 | F17: 44.02165533 | G17: 61.91362486 | H17: 84.87875852 | I17: 112.8782598 | J17: 145.8631139 | K17: 183.7979581 | L17: 226.6369505 | M17: 274.3236276 | N17: 326.8147522 | O17: 384.0561573 | P17: 443.3508413 | Q17: 501.5265745 | R17: 558.5193528 | S17: 614.2615112 | T17: 668.6815143 | U17: 740.9018148 | V17: 834.6820755 | W17: 926.9000739 | X17: 1003.385366 | Y17: 1078.39604 | Z17: 1151.84775 | AA17: 1223.651322 | AB17: 1293.712483 | AC17: 0 | AD17: 0 | AE17: 0 | AF17: 0 | AG17: 0 | AH17: 0 | AI17: 0 | AJ17: 0 | AK17: 0 | AL17: 0 | AM17: 0 | AN17: 0 | AO17: 0 | AP17: 0 | AQ17: 0
B18: Networth | C18: =C15+C17 -> 300 | D18: =D15+D17 -> 323.5860145 | E18: 331.2315482 | F18: 344.0216553 | G18: 361.9136249 | H18: 384.8787585 | I18: 412.8782598 | J18: 445.8631139 | K18: 483.7979581 | L18: 526.6369505 | M18: 574.3236276 | N18: 626.8147522 | O18: 684.0561573 | P18: 743.3508413 | Q18: 801.5265745 | R18: 858.5193528 | S18: 914.2615112 | T18: 968.6815143 | U18: 1040.901815 | V18: 1134.682075 | W18: 1226.900074 | X18: 1303.385366 | Y18: 1378.39604 | Z18: 1451.84775 | AA18: 1523.651322 | AB18: 1593.712483 | AC18: 0 | AD18: 0 | AE18: 0 | AF18: 0 | AG18: 0 | AH18: 0 | AI18: 0 | AJ18: 0 | AK18: 0 | AL18: 0 | AM18: 0 | AN18: 0 | AO18: 0 | AP18: 0 | AQ18: 0
B19: Rupee debt | C19: ='Form Input'!D14 -> 700 | D19: =C19-'Term Loan'!C24 -> 641.6666667 | E19: =D19-'Term Loan'!D24 -> 583.3333333 | F19: =E19-'Term Loan'!E24 -> 525 | G19: =F19-'Term Loan'!F24 -> 466.6666667 | H19: =G19-'Term Loan'!G24 -> 408.3333333 | I19: =H19-'Term Loan'!H24 -> 350 | J19: =I19-'Term Loan'!I24 -> 291.6666667 | K19: =J19-'Term Loan'!J24 -> 233.3333333 | L19: =K19-'Term Loan'!K24 -> 175 | M19: =L19-'Term Loan'!L24 -> 116.6666667 | N19: =M19-'Term Loan'!M24 -> 58.33333333 | O19: =N19-'Term Loan'!N24 -> -3.126388037e-13 | P19: =O19-'Term Loan'!O24 -> -3.126388037e-13 | Q19: =P19-'Term Loan'!P24 -> -3.126388037e-13 | R19: =Q19-'Term Loan'!Q24 -> -3.126388037e-13 | S19: =R19-'Term Loan'!R24 -> -3.126388037e-13 | T19: =S19-'Term Loan'!S24 -> -3.126388037e-13 | U19: =T19-'Term Loan'!T24 -> -3.126388037e-13 | V19: =U19-'Term Loan'!U24 -> -3.126388037e-13 | W19: =V19-'Term Loan'!V24 -> -3.126388037e-13 | X19: =W19-'Term Loan'!W24 -> -3.126388037e-13 | Y19: =X19-'Term Loan'!X24 -> -3.126388037e-13 | Z19: =Y19-'Term Loan'!Y24 -> -3.126388037e-13 | AA19: =Z19-'Term Loan'!Z24 -> -3.126388037e-13 | AB19: =AA19-'Term Loan'!AA24 -> -3.126388037e-13 | AC19: =AB19-'Term Loan'!AB24 -> -3.126388037e-13 | AD19: =AC19-'Term Loan'!AC24 -> -3.126388037e-13 | AE19: =AD19-'Term Loan'!AD24 -> -3.126388037e-13 | AF19: =AE19-'Term Loan'!AE24 -> -3.126388037e-13 | AG19: =AF19-'Term Loan'!AF24 -> -3.126388037e-13 | AH19: =AG19-'Term Loan'!AG24 -> -3.126388037e-13 | AI19: =AH19-'Term Loan'!AH24 -> -3.126388037e-13 | AJ19: =AI19-'Term Loan'!AI24 -> -3.126388037e-13 | AK19: =AJ19-'Term Loan'!AJ24 -> -3.126388037e-13 | AL19: =AK19-'Term Loan'!AK24 -> -3.126388037e-13 | AM19: =AL19-'Term Loan'!AL24 -> -3.126388037e-13 | AN19: =AM19-'Term Loan'!AM24 -> -3.126388037e-13 | AO19: =AN19-'Term Loan'!AN24 -> -3.126388037e-13 | AP19: =AO19-'Term Loan'!AO24 -> -3.126388037e-13 | AQ19: =AP19-'Term Loan'!AP24 -> -3.126388037e-13
B20: Total liabilities | C20: =+SUM(C18:C19) -> 1000 | D20: =+SUM(D18:D19) -> 965.2526811 | E20: 914.5648815 | F20: 869.0216553 | G20: 828.5802915 | H20: 793.2120919 | I20: 762.8782598 | J20: 737.5297805 | K20: 717.1312915 | L20: 701.6369505 | M20: 690.9902943 | N20: 685.1480856 | O20: 684.0561573 | P20: 743.3508413 | Q20: 801.5265745 | R20: 858.5193528 | S20: 914.2615112 | T20: 968.6815143 | U20: 1040.901815 | V20: 1134.682075 | W20: 1226.900074 | X20: 1303.385366 | Y20: 1378.39604 | Z20: 1451.84775 | AA20: 1523.651322 | AB20: 1593.712483 | AC20: -3.126388037e-13 | AD20: -3.126388037e-13 | AE20: -3.126388037e-13 | AF20: -3.126388037e-13 | AG20: -3.126388037e-13 | AH20: -3.126388037e-13 | AI20: -3.126388037e-13 | AJ20: -3.126388037e-13 | AK20: -3.126388037e-13 | AL20: -3.126388037e-13 | AM20: -3.126388037e-13 | AN20: -3.126388037e-13 | AO20: -3.126388037e-13 | AP20: -3.126388037e-13 | AQ20: -3.126388037e-13
